Workbook

Sheet START
A1: =muni -> BUF Buffalo City

Sheet Instructions
D2: 2020
X4: Yes
X5: No
W7: Type of Entities Range: | X7: Parent Municipality
X8: Consolidated Information
W10: Date linked | X10: 3
W11: Date | X11: =VLOOKUP(X10,W39:X55,2) -> M03 September | Y11: 2013-08-01
W19: MTREF Range: | X19: 2008
X20: 2009
X21: 2010
X22: 2011
X23: 2012
X24: 2013
X25: 2014
X26: 2015
X27: 2016
X28: 2017
X29: 2018
X30: 2019
X31: 2020
X32: 2021
X33: 2022
W34: MTREF Linked:
W35: MTREF: | X35: 8
X36: =INDEX(X19:X33,X35,1) -> 2015
W37: Fin Year:
X38: =MTREF&"/"&RIGHT(MTREF,2)+1 -> 2015/16
V39: Date/type of report | W39: 1 | X39: M01 July
W40: 2 | X40: M02 August
W41: 3 | X41: M03 September
W42: 4 | X42: M04 October
W43: 5 | X43: M05 November
W44: 6 | X44: M06 December
W45: 7 | X45: M07 January
W46: 8 | X46: M08 February
W47: 9 | X47: M09 March
W48: 10 | X48: M10 April
W49: 11 | X49: M11 May
W50: 12 | X50: M12 June
W51: 13 | X51: Q1 First Quarter
W52: 14 | X52: Q2 Second Quarter
W53: 15 | X53: Q3 Third Quarter
W54: 16 | X54: Q4 Fourth Quarter
W55: 17 | X55: Mid-Year Assessment

Sheet Template names (hidden)
A1: Common sheet headings
A2: Head1 | B2: =HLOOKUP(MTREF,Headings,2) -> 2014/15 | C2: Prior year -1
A3: Head2 | B3: =HLOOKUP(MTREF,Headings,5) -> Budget Year 2015/16 | C3: Year of approved budget
A4: Head2A | B4: =HLOOKUP(MTREF,Headings,4) -> 2015/16 | C4: Approved budget year
A5: Head3 | B5: =HLOOKUP(MTREF,Headings,3) -> 2015/16 Medium Term Revenue & Expenditure Framework | C5: MTREF header name
A6: Head5 | B6: Audited Outcome
A7: Head5A | B7: Outcome
A8: Head5B | B8: Pre-audit outcome
A9: Head6 | B9: Original Budget
A10: Head7 | B10: Adjusted Budget
A11: Head8 | B11: Full Year Forecast
A12: Head9 | B12: =HLOOKUP(MTREF,Headings,5) -> Budget Year 2015/16 | C12: 1st year of MTREF | D12: Year1
A13: Head10 | B13: =HLOOKUP(MTREF,Headings,6) -> Budget Year +1 2016/17 | C13: 2nd year of MTREF | D13: Year2
A14: Head11 | B14: =HLOOKUP(MTREF,Headings,7) -> Budget Year +2 2017/18 | C14: 3rd year of MTREF | D14: Year3
A15: Head12 | B15: Forecast 2010/11 | D15: Year4
A16: Head13 | B16: Forecast 2011/12 | D16: Year5
A17: Head14 | B17: Forecast 2012/13 | D17: Year6
A18: Head15 | B18: Forecast 2013/14 | D18: Year7
A19: Head16 | B19: Forecast 2014/15 | D19: Year8
A20: Head17 | B20: Forecast 2015/16 | D20: Year9
A21: Head18 | B21: Forecast 2016/17 | D21: Year10
A22: Head19 | B22: Forecast 2017/18 | D22: Year11
A23: Head20 | B23: Forecast 2018/19 | D23: Year12
A24: Head21 | B24: Forecast 2019/20 | D24: Year13
A25: Head22 | B25: Forecast 2020/21 | D25: Year14
A26: Head23 | B26: Forecast 2021/22 | D26: Year15
A27: Head24 | B27: Description | D27: Desc
A28: Head25 | B28: Schedule of funding diligence | D28: fdil
A29: Head26 | B29: Vote Description | D29: VDesc
A30: Head27 | B30: Ref
A31: Head27a | B31: References
A32: Head28 | B32: Surplus/ (Deficit) for the year | D32: Result
A33: Head29 | B33: Annual target 2007/08
A34: Head30 | B34: Revised target 2007/08
A35: Head31 | B35: Quarter ended 30 September
A36: Head32 | B36: Quarter ended 31 December
A37: Head33 | B37: Quarter ended 31 March
A38: Head34 | B38: Quarter ended 30 June
A39: Head35 | B39: Variance explanation
A40: Head36 | B40: YTD Actual 31 Dec
A41: Head37 | B41: YTD Budget 31 Dec
A42: Head38 | B42: Monthly actual
A43: Head39 | B43: YearTD actual
A44: Head40 | B44: YearTD budget
A45: Head41 | B45: YTD variance
A46: Head42 | B46: Surplus/ (Deficit) for the yr/period
A47: Head43 | B47: =Head3&" Summary" -> 2015/16 Medium Term Revenue & Expenditure Framework Summary
A48: Head44 | B48: 1996 Census
A49: Head45 | B49: 2001 Census
A50: Head46 | B50: - Adjustments Budget - Month YYYY
A51: Head47 | B51: Previous target year to complete
A52: Head48 | B52: Present value
A53: Head49 | B53: Virement
A54: Head50 | B54: Other Adjusts.
A55: Head51 | B55: Accum. Funds
A56: Head52 | B56: Multi-year capital
A57: Head53 | B57: Unfore. Unavoid.
A58: Head54 | B58: Prior Adjusted
A59: Head55 | B59: Nat. or Prov. Govt
A60: Head56 | B60: Total Adjusts.
A61: Head57 | B61: =date -> M03 September
A62: Head58 | B62: Parent muni.
A63: Head59 | B63: Downward adjusts
A64: Head60 | B64: Month | C64: Report header part name | D64: =MONTH(date) -> 
A65: SFPerf1 | B65: Budgeted Financial Performance
A66: SFPerf2 | B66: Forecast Financial Performance
A67: SFPos1 | B67: Budgeted Financial Position
A68: SFPos2 | B68: Forecast Financial Position
A69: Cash1 | B69: Budget Cash Flow
A70: Cash2 | B70: Forecast Cash Flow
A71: RandM | B71: Expenditure includes repairs & maintenance of R'000
A72: Standard nomenclature
A73: Muni | B73: ='Lookup and lists'!B27 -> BUF Buffalo City
A74: Municipal Entities | B74: 2 | C74: Type of report: | D74: 2
A75: =IF((MuniEntities=1)*(MuniType=2),"YES","NO") -> NO | B75: Does this municipality have entities (consolidated budget and entity budgets required)? YES/NO
A76: s71 (Monthly Mayor report) schedules and charts
A77: S71sum | B77: =IF(Consolques="YES",E77,F77) -> Table C1 Monthly Budget Statement Summary | D77: Table C1 | E77: =D77&"Consolidated Monthly Budget Statement Summary" -> Table C1 Consolidated Monthly Budget Statement Summary | F77: =D77&"Monthly Budget Statement Summary" -> Table C1 Monthly Budget Statement Summary
A78: S71C | B78: Table C3 Monthly Budget Statement - Financial Performance (revenue and expenditure by municipal vote) | D78: Table C3 | E78: =D78&"Consolidated Monthly Budget Statement - Financial Performance (revenue and expenditure by municipal vote) " -> Table C3 Consolidated Monthly Budget Statement - Financial Performance (revenue and expenditure by municipal vote) | F78: =D78&"Monthly Budget Statement - Financial Performance (revenue and expenditure by municipal vote)" -> Table C3 Monthly Budget Statement - Financial Performance (revenue and expenditure by municipal vote)
A79: S71A | B79: =IF(Consolques="YES",E79,F79) -> Table C2 Monthly Budget Statement - Financial Performance (standard classification) | D79: Table C2 | E79: =D79&"Consolidated Monthly Budget Statement - Financial Performance (standard classification) " -> Table C2 Consolidated Monthly Budget Statement - Financial Performance (standard classification) | F79: =D79&"Monthly Budget Statement - Financial Performance (standard classification)" -> Table C2 Monthly Budget Statement - Financial Performance (standard classification)
A80: S71B | B80: =IF(Consolques="YES",E80,F80) -> Table C4 Monthly Budget Statement - Financial Performance (revenue and expenditure) | D80: Table C4 | E80: =D80&"Consolidated Monthly Budget Statement - Financial Performance (revenue and expenditure) " -> Table C4 Consolidated Monthly Budget Statement - Financial Performance (revenue and expenditure) | F80: =D80&"Monthly Budget Statement - Financial Performance (revenue and expenditure)" -> Table C4 Monthly Budget Statement - Financial Performance (revenue and expenditure)
A81: S71D | B81: =IF(Consolques="YES",E81,F81) -> Table C5 Monthly Budget Statement - Capital Expenditure (municipal vote, standard classification and funding) | D81: Table C5 | E81: =D81&"Consolidated Monthly Budget Statement - Capital Expenditure (municipal vote, standard classification and funding " -> Table C5 Consolidated Monthly Budget Statement - Capital Expenditure (municipal vote, standard classification and funding | F81: =D81&"Monthly Budget Statement - Capital Expenditure (municipal vote, standard classification and funding)" -> Table C5 Monthly Budget Statement - Capital Expenditure (municipal vote, standard classification and funding)
A82: S71E | B82: Table C6 Monthly Budget Statement - Financial Position | D82: Table C6 | E82: =D82&"Consolidated Monthly Budget Statement - Financial Position " -> Table C6 Consolidated Monthly Budget Statement - Financial Position | F82: =D82&"Monthly Budget Statement - Financial Position" -> Table C6 Monthly Budget Statement - Financial Position
A83: S71F | B83: Table C7 Monthly Budget Statement - Cash Flow | D83: Table C7 | E83: =D83&"Consolidated Monthly Budget Statement - Cash Flow " -> Table C7 Consolidated Monthly Budget Statement - Cash Flow | F83: =D83&"Monthly Budget Statement - Cash Flow " -> Table C7 Monthly Budget Statement - Cash Flow
A84: S71G | B84: =D84&"Material variance explanations " -> Supporting Table SC1 Material variance explanations | D84: Supporting Table SC1
A85: S71H | B85: =D85&"Monthly Budget Statement - performance indicators " -> Supporting Table SC2 Monthly Budget Statement - performance indicators | D85: Supporting Table SC2
A86: S71I | B86: =D86&"Monthly Budget Statement - aged debtors" -> Supporting Table SC3 Monthly Budget Statement - aged debtors | D86: Supporting Table SC3
A87: S71J | B87: =D87&"Monthly Budget Statement - aged creditors " -> Supporting Table SC4 Monthly Budget Statement - aged creditors | D87: Supporting Table SC4
A88: S71K | B88: =D88&"Monthly Budget Statement - investment portfolio " -> Supporting Table SC5 Monthly Budget Statement - investment portfolio | D88: Supporting Table SC5
A89: S71L | B89: =D89&"Monthly Budget Statement - transfers and grant receipts " -> Supporting Table SC6 Monthly Budget Statement - transfers and grant receipts | D89: Supporting Table SC6
A90: S71M | B90: =D90&" Monthly Budget Statement - transfers and grant expenditure " -> Supporting Table SC7(1) Monthly Budget Statement - transfers and grant expenditure | D90: Supporting Table SC7(1)
A91: S71N | B91: =D91&"Monthly Budget Statement - councillor and staff benefits " -> Supporting Table SC8 Monthly Budget Statement - councillor and staff benefits | D91: Supporting Table SC8
A92: S71O | B92: =D92&"Monthly Budget Statement - actuals and revised targets for cash receipts" -> Supporting Table SC9 Monthly Budget Statement - actuals and revised targets for cash receipts | D92: Supporting Table SC9
A93: S71P | B93: =IF(Consolques="YES",E93,F93) -> NOT REQUIRED - municipality does not have entities or this is the parent municipality's budget | D93: Supporting Table SC10 | E93: =D93&"Monthly Budget Statement - Parent Municipality Financial Performance (revenue and expenditure) " -> Supporting Table SC10 Monthly Budget Statement - Parent Municipality Financial Performance (revenue and expenditure) | F93: NOT REQUIRED - municipality does not have entities or this is the parent municipality's budget
A94: S71Q | B94: NOT REQUIRED - municipality does not have entities or this is the parent municipality's budget | D94: Supporting Table SC11 | E94: =D94&"Monthly Budget Statement - summary of municipal entities" -> Supporting Table SC11 Monthly Budget Statement - summary of municipal entities | F94: NOT REQUIRED - municipality does not have entities or this is the parent municipality's budget
A95: S71R | B95: Supporting Table SC12 Monthly Budget Statement - capital expenditure trend | D95: Supporting Table SC12 | E95: =D95&"Consolidated Monthly Budget Statement - capital expenditure trend " -> Supporting Table SC12 Consolidated Monthly Budget Statement - capital expenditure trend | F95: =D95&"Monthly Budget Statement - capital expenditure trend" -> Supporting Table SC12 Monthly Budget Statement - capital expenditure trend
A96: S71Sa | B96: Supporting Table SC13a Monthly Budget Statement - capital expenditure on new assets by asset class | D96: Supporting Table SC13a | E96: =D96&"Consolidated Monthly Budget Statement - capital expenditure on new assets by asset class" -> Supporting Table SC13a Consolidated Monthly Budget Statement - capital expenditure on new assets by asset class | F96: =D96&"Monthly Budget Statement - capital expenditure on new assets by asset class" -> Supporting Table SC13a Monthly Budget Statement - capital expenditure on new assets by asset class
A97: S71Sb | B97: Supporting Table SC13b Monthly Budget Statement - capital expenditure on renewal of existing assets by asset class | D97: Supporting Table SC13b | E97: =D97&"Consolidated Monthly Budget Statement - capital expenditure on renewal of existing assets by asset class" -> Supporting Table SC13b Consolidated Monthly Budget Statement - capital expenditure on renewal of existing assets by asset class | F97: =D97&"Monthly Budget Statement - capital expenditure on renewal of existing assets by asset class" -> Supporting Table SC13b Monthly Budget Statement - capital expenditure on renewal of existing assets by asset class
A98: S71Sc | B98: Supporting Table SC13c Monthly Budget Statement - expenditure on repairs and maintenance by asset class | D98: Supporting Table SC13c | E98: =D98&"Consolidated Monthly Budget Statement - expenditure on repairs and maintenance by asset class" -> Supporting Table SC13c Consolidated Monthly Budget Statement - expenditure on repairs and maintenance by asset class | F98: =D98&"Monthly Budget Statement - expenditure on repairs and maintenance by asset class" -> Supporting Table SC13c Monthly Budget Statement - expenditure on repairs and maintenance by asset class
A99: S71Sd | B99: Supporting Table SC13d Monthly Budget Statement - depreciation by asset class | D99: Supporting Table SC13d | E99: =D99&"Consolidated Monthly Budget Statement - depreciation by asset class" -> Supporting Table SC13d Consolidated Monthly Budget Statement - depreciation by asset class | F99: =D99&"Monthly Budget Statement - depreciation by asset class" -> Supporting Table SC13d Monthly Budget Statement - depreciation by asset class
B100: s71 charts listing
B101: =D101&Head2A&" Capital Expenditure Monthly Trend: actual v target" -> Chart C1 2015/16 Capital Expenditure Monthly Trend: actual v target | D101: Chart C1
B102: =D102&Head2A&" Capital Expenditure: YTD actual v YTD target" -> Chart C2 2015/16 Capital Expenditure: YTD actual v YTD target | D102: Chart C2
B103: =D103&"Aged Consumer Debtors Analysis" -> Chart C3 Aged Consumer Debtors Analysis | D103: Chart C3
B104: =D104&"Consumer Debtors (total by Debtor Customer Category)" -> Chart C4 Consumer Debtors (total by Debtor Customer Category) | D104: Chart C4
B105: =D105&"Aged Creditors Analysis" -> Chart C5 Aged Creditors Analysis | D105: Chart C5
A106: S71T | B106: =D106&" Monthly Budget Statement - Expenditure against approved rollovers" -> Supporting Table SC7(2) Monthly Budget Statement - Expenditure against approved rollovers | D106: Supporting Table SC7(2)

Sheet Lookup and lists (hidden)
A1: Description | B1: 2007 | C1: 2008 | D1: 2009 | E1: 2010 | F1: 2011 | G1: 2012 | H1: 2013 | I1: 2014 | J1: 2015 | K1: 2016 | L1: 2017 | M1: 2018 | N1: 2019 | O1: 2020 | Q1: Grants: | R1: National - opex | S1: Provincial - opex | T1: National - capex | U1: Provincial - capex | V1: YESNO
A2: ='Template names'!C2 -> Prior year -1 | B2: 2006/07 | C2: 2007/08 | D2: 2008/09 | E2: =E1-1&"/"&RIGHT(E1,2)-0 -> 2009/10 | F2: =F1-1&"/"&RIGHT(F1,2)-0 -> 2010/11 | G2: 2011/12 | H2: 2012/13 | I2: 2013/14 | J2: 2014/15 | K2: 2015/16 | L2: 2016/17 | M2: 2017/18 | N2: 2018/19 | O2: 2019/20 | R2: Local Government Equitable Share | S2: Health subsidy | T2: Municipal Infrastructure Grant (MIG) | U2: Agriculture | V2: Yes
A3: ='Template names'!C5 -> MTREF header name | B3: 2007/08 Medium Term Revenue & Expenditure Framework | C3: 2008/09 Medium Term Revenue & Expenditure Framework | D3: 2009/10 Medium Term Revenue & Expenditure Framework | E3: =E1&"/"&RIGHT(E1,2)+1&" Medium Term Revenue & Expenditure Framework" -> 2010/11 Medium Term Revenue & Expenditure Framework | F3: =F1&"/"&RIGHT(F1,2)+1&" Medium Term Revenue & Expenditure Framework" -> 2011/12 Medium Term Revenue & Expenditure Framework | G3: 2012/13 Medium Term Revenue & Expenditure Framework | H3: 2013/14 Medium Term Revenue & Expenditure Framework | I3: 2014/15 Medium Term Revenue & Expenditure Framework | J3: 2015/16 Medium Term Revenue & Expenditure Framework | K3: 2016/17 Medium Term Revenue & Expenditure Framework | L3: 2017/18 Medium Term Revenue & Expenditure Framework | M3: 2018/19 Medium Term Revenue & Expenditure Framework | N3: 2019/20 Medium Term Revenue & Expenditure Framework | O3: 2020/21 Medium Term Revenue & Expenditure Framework | R3: RSC Levy Replacement | S3: Ambulance subsidy | T3: Public Transport and Systems | U3: Education | V3: No
A4: ='Template names'!C4 -> Approved budget year | B4: 2007/08 | C4: 2008/09 | D4: 2009/10 | E4: =E1&"/"&RIGHT(E1,2)+1 -> 2010/11 | F4: =F1&"/"&RIGHT(F1,2)+1 -> 2011/12 | G4: 2012/13 | H4: 2013/14 | I4: 2014/15 | J4: 2015/16 | K4: 2016/17 | L4: 2017/18 | M4: 2018/19 | N4: 2019/20 | O4: 2020/21 | R4: Finance Management | S4: Housing | T4: Rural Transport Services and Infrastructure | U4: Health
A5: ='Template names'!C12 -> 1st year of MTREF | B5: Budget Year 2007/08 | C5: Budget Year 2008/09 | D5: Budget Year 2009/10 | E5: ="Budget Year "&E1&"/"&RIGHT(E1,2)+1 -> Budget Year 2010/11 | F5: ="Budget Year "&F1&"/"&RIGHT(F1,2)+1 -> Budget Year 2011/12 | G5: Budget Year 2012/13 | H5: Budget Year 2013/14 | I5: Budget Year 2014/15 | J5: Budget Year 2015/16 | K5: Budget Year 2016/17 | L5: Budget Year 2017/18 | M5: Budget Year 2018/19 | N5: Budget Year 2019/20 | O5: Budget Year 2020/21 | R5: Municipal Systems Improvement | S5: Sport and Recreation | T5: Regional Bulk Infrastructure | U5: Housing and Local Government
A6: ='Template names'!C13 -> 2nd year of MTREF | B6: Budget Year +1 2008/09 | C6: Budget Year +1 2009/10 | D6: Budget Year +1 2010/11 | E6: ="Budget Year +1 "&E1+1&"/"&RIGHT(E1,2)+2 -> Budget Year +1 2011/12 | F6: ="Budget Year +1 "&F1+1&"/"&RIGHT(F1,2)+2 -> Budget Year +1 2012/13 | G6: Budget Year +1 2013/14 | H6: Budget Year +1 2014/15 | I6: Budget Year +1 2015/16 | J6: Budget Year +1 2016/17 | K6: Budget Year +1 2017/18 | L6: Budget Year +1 2018/19 | M6: Budget Year +1 2019/20 | N6: Budget Year +1 2020/21 | O6: Budget Year +1 2021/22 | R6: Water Services Operating Subsidy | T6: Rural Households Infrastructure | U6: Other Departments
A7: ='Template names'!C14 -> 3rd year of MTREF | B7: Budget Year +2 2009/10 | C7: Budget Year +2 2010/11 | D7: Budget Year +2 2011/12 | E7: ="Budget Year +2 "&E1+2&"/"&RIGHT(E1,2)+3 -> Budget Year +2 2012/13 | F7: ="Budget Year +2 "&F1+2&"/"&RIGHT(F1,2)+3 -> Budget Year +2 2013/14 | G7: Budget Year +2 2014/15 | H7: Budget Year +2 2015/16 | I7: Budget Year +2 2016/17 | J7: Budget Year +2 2017/18 | K7: Budget Year +2 2018/19 | L7: Budget Year +2 2019/20 | M7: Budget Year +2 2020/21 | N7: Budget Year +2 2021/22 | O7: Budget Year +2 2022/23 | R7: Energy Efficiency and Demand Management | T7: Neighbourhood Development Partnership | U7: Public Works, Roads, Transport
A8: NOTE: This sheet should not be directly amended - select headings from sheet 'S' | R8: Integrated National Electrification Programme | T8: 2010 FIFA World Cup Stadiums Development | U8: Sport and Recreation
R9: Municipal Drought Relief
R10: 2010 FIFA World Cup Operating
R11: Electricity Demand Side Management
R12: EPWP Incentive
A26: Name link | B26: 2
A27: Name of Muni | B27: =INDEX(B28:B311,B26,1) -> BUF Buffalo City
B28: Choose name from list | C28: Set name on 'Instructions' sheet
B29: BUF Buffalo City | C29: EC EASTERN CAPE
B30: NMA Nelson Mandela Bay | C30: EC EASTERN CAPE
B31: EC101 Camdeboo | C31: EC EASTERN CAPE
B32: EC102 Blue Crane Route | C32: EC EASTERN CAPE
B33: EC103 Ikwezi | C33: EC EASTERN CAPE
B34: EC104 Makana | C34: EC EASTERN CAPE
B35: EC105 Ndlambe | C35: EC EASTERN CAPE
B36: EC106 Sundays River Valley | C36: EC EASTERN CAPE
B37: EC107 Baviaans | C37: EC EASTERN CAPE
B38: EC108 Kouga | C38: EC EASTERN CAPE
B39: EC109 Kou-Kamma | C39: EC EASTERN CAPE
B40: DC10 Cacadu | C40: EC EASTERN CAPE
B41: EC121 Mbhashe | C41: EC EASTERN CAPE
B42: EC122 Mnquma | C42: EC EASTERN CAPE
B43: EC123 Great Kei | C43: EC EASTERN CAPE
B44: EC124 Amahlathi | C44: EC EASTERN CAPE
B45: EC126 Ngqushwa | C45: EC EASTERN CAPE
B46: EC127 Nkonkobe | C46: EC EASTERN CAPE
B47: EC128 Nxuba | C47: EC EASTERN CAPE
B48: DC12 Amathole | C48: EC EASTERN CAPE
B49: EC131 Inxuba Yethemba | C49: EC EASTERN CAPE
B50: EC132 Tsolwana | C50: EC EASTERN CAPE
B51: EC133 Inkwanca | C51: EC EASTERN CAPE
B52: EC134 Lukhanji | C52: EC EASTERN CAPE
B53: EC135 Intsika Yethu | C53: EC EASTERN CAPE
B54: EC136 Emalahleni (Ec) | C54: EC EASTERN CAPE
B55: EC137 Engcobo | C55: EC EASTERN CAPE
B56: EC138 Sakhisizwe | C56: EC EASTERN CAPE
B57: DC13 Chris Hani | C57: EC EASTERN CAPE
B58: EC141 Elundini | C58: EC EASTERN CAPE
B59: EC142 Senqu | C59: EC EASTERN CAPE
B60: EC143 Maletswai | C60: EC EASTERN CAPE
B61: EC144 Gariep | C61: EC EASTERN CAPE
B62: DC14 Joe Gqabi | C62: EC EASTERN CAPE
B63: EC153 Ngquza Hills | C63: EC EASTERN CAPE
B64: EC154 Port St Johns | C64: EC EASTERN CAPE
B65: EC155 Nyandeni | C65: EC EASTERN CAPE
B66: EC156 Mhlontlo | C66: EC EASTERN CAPE
B67: EC157 King Sabata Dalindyebo | C67: EC EASTERN CAPE
B68: DC15 O .R. Tambo | C68: EC EASTERN CAPE
B69: EC441 Matatiele | C69: EC EASTERN CAPE
B70: EC442 Umzimvubu | C70: EC EASTERN CAPE
B71: EC443 Mbizana | C71: EC EASTERN CAPE
B72: EC444 Ntabankulu | C72: EC EASTERN CAPE
B73: DC44 Alfred Nzo | C73: EC EASTERN CAPE
B74: MAN Mangaung | C74: FS FREE STATE
B75: FS161 Letsemeng | C75: FS FREE STATE
B76: FS162 Kopanong | C76: FS FREE STATE
B77: FS163 Mohokare | C77: FS FREE STATE
B78: FS164 Naledi (Fs) | C78: FS FREE STATE
B79: DC16 Xhariep | C79: FS FREE STATE
B80: FS181 Masilonyana | C80: FS FREE STATE
B81: FS182 Tokologo | C81: FS FREE STATE
B82: FS183 Tswelopele | C82: FS FREE STATE
B83: FS184 Matjhabeng | C83: FS FREE STATE
B84: FS185 Nala | C84: FS FREE STATE
B85: DC18 Lejweleputswa | C85: FS FREE STATE
B86: FS191 Setsoto | C86: FS FREE STATE
B87: FS192 Dihlabeng | C87: FS FREE STATE
B88: FS193 Nketoana | C88: FS FREE STATE
B89: FS194 Maluti-a-Phofung | C89: FS FREE STATE
B90: FS195 Phumelela | C90: FS FREE STATE
B91: FS196 Mantsopa | C91: FS FREE STATE
B92: DC19 Thabo Mofutsanyana | C92: FS FREE STATE
B93: FS201 Moqhaka | C93: FS FREE STATE
B94: FS203 Ngwathe | C94: FS FREE STATE
B95: FS204 Metsimaholo | C95: FS FREE STATE
B96: FS205 Mafube | C96: FS FREE STATE
B97: DC20 Fezile Dabi | C97: FS FREE STATE
B98: EKU Ekurhuleni Metro | C98: GT GAUTENG
B99: JHB City Of Johannesburg | C99: GT GAUTENG
B100: TSH City Of Tshwane | C100: GT GAUTENG
B101: GT421 Emfuleni | C101: GT GAUTENG
B102: GT422 Midvaal | C102: GT GAUTENG
B103: GT423 Lesedi | C103: GT GAUTENG
B104: DC42 Sedibeng | C104: GT GAUTENG
B105: GT481 Mogale City | C105: GT GAUTENG
B106: GT482 Randfontein | C106: GT GAUTENG
B107: GT483 Westonaria | C107: GT GAUTENG
B108: GT484 Merafong City | C108: GT GAUTENG
B109: DC48 West Rand | C109: GT GAUTENG
B110: ETH eThekwini | C110: KZN KWAZULU-NATAL
B111: KZN211 Vulamehlo | C111: KZN KWAZULU-NATAL
B112: KZN212 Umdoni | C112: KZN KWAZULU-NATAL
B113: KZN213 Umzumbe | C113: KZN KWAZULU-NATAL
B114: KZN214 uMuziwabantu | C114: KZN KWAZULU-NATAL
B115: KZN215 Ezinqoleni | C115: KZN KWAZULU-NATAL
B116: KZN216 Hibiscus Coast | C116: KZN KWAZULU-NATAL
B117: DC21 Ugu | C117: KZN KWAZULU-NATAL
B118: KZN221 uMshwathi | C118: KZN KWAZULU-NATAL
B119: KZN222 uMngeni | C119: KZN KWAZULU-NATAL
B120: KZN223 Mpofana | C120: KZN KWAZULU-NATAL
B121: KZN224 Impendle | C121: KZN KWAZULU-NATAL
B122: KZN225 Msunduzi | C122: KZN KWAZULU-NATAL
B123: KZN226 Mkhambathini | C123: KZN KWAZULU-NATAL
B124: KZN227 Richmond | C124: KZN KWAZULU-NATAL
B125: DC22 uMgungundlovu | C125: KZN KWAZULU-NATAL
B126: KZN232 Emnambithi/Ladysmith | C126: KZN KWAZULU-NATAL
B127: KZN233 Indaka | C127: KZN KWAZULU-NATAL
B128: KZN234 Umtshezi | C128: KZN KWAZULU-NATAL
B129: KZN235 Okhahlamba | C129: KZN KWAZULU-NATAL
B130: KZN236 Imbabazane | C130: KZN KWAZULU-NATAL
B131: DC23 Uthukela | C131: KZN KWAZULU-NATAL
B132: KZN241 Endumeni | C132: KZN KWAZULU-NATAL
B133: KZN242 Nquthu | C133: KZN KWAZULU-NATAL
B134: KZN244 Msinga | C134: KZN KWAZULU-NATAL
B135: KZN245 Umvoti | C135: KZN KWAZULU-NATAL
B136: DC24 Umzinyathi | C136: KZN KWAZULU-NATAL
B137: KZN252 Newcastle | C137: KZN KWAZULU-NATAL
B138: KZN253 eMadlangeni | C138: KZN KWAZULU-NATAL
B139: KZN254 Dannhauser | C139: KZN KWAZULU-NATAL
B140: DC25 Amajuba | C140: KZN KWAZULU-NATAL
B141: KZN261 eDumbe | C141: KZN KWAZULU-NATAL
B142: KZN262 uPhongolo | C142: KZN KWAZULU-NATAL
B143: KZN263 Abaqulusi | C143: KZN KWAZULU-NATAL
B144: KZN265 Nongoma | C144: KZN KWAZULU-NATAL
B145: KZN266 Ulundi | C145: KZN KWAZULU-NATAL
B146: DC26 Zululand | C146: KZN KWAZULU-NATAL
B147: KZN271 Umhlabuyalingana | C147: KZN KWAZULU-NATAL
B148: KZN272 Jozini | C148: KZN KWAZULU-NATAL
B149: KZN273 The Big 5 False Bay | C149: KZN KWAZULU-NATAL
B150: KZN274 Hlabisa | C150: KZN KWAZULU-NATAL
B151: KZN275 Mtubatuba | C151: KZN KWAZULU-NATAL
B152: DC27 Umkhanyakude | C152: KZN KWAZULU-NATAL
B153: KZN281 Mfolozi | C153: KZN KWAZULU-NATAL
B154: KZN282 uMhlathuze | C154: KZN KWAZULU-NATAL
B155: KZN283 Ntambanana | C155: KZN KWAZULU-NATAL
B156: KZN284 uMlalazi | C156: KZN KWAZULU-NATAL
B157: KZN285 Mthonjaneni | C157: KZN KWAZULU-NATAL
B158: KZN286 Nkandla | C158: KZN KWAZULU-NATAL
B159: DC28 uThungulu | C159: KZN KWAZULU-NATAL
B160: KZN291 Mandeni | C160: KZN KWAZULU-NATAL
B161: KZN292 KwaDukuza | C161: KZN KWAZULU-NATAL
B162: KZN293 Ndwedwe | C162: KZN KWAZULU-NATAL
B163: KZN294 Maphumulo | C163: KZN KWAZULU-NATAL
B164: DC29 iLembe | C164: KZN KWAZULU-NATAL
B165: KZN431 Ingwe | C165: KZN KWAZULU-NATAL
B166: KZN432 Kwa Sani | C166: KZN KWAZULU-NATAL
B167: KZN433 Greater Kokstad | C167: KZN KWAZULU-NATAL
B168: KZN434 Ubuhlebezwe | C168: KZN KWAZULU-NATAL
B169: KZN435 Umzimkhulu | C169: KZN KWAZULU-NATAL
B170: DC43 Sisonke | C170: KZN KWAZULU-NATAL
B171: LIM331 Greater Giyani | C171: LIM LIMPOPO
B172: LIM332 Greater Letaba | C172: LIM LIMPOPO
B173: LIM333 Greater Tzaneen | C173: LIM LIMPOPO
B174: LIM334 Ba-Phalaborwa | C174: LIM LIMPOPO
B175: LIM335 Maruleng | C175: LIM LIMPOPO
B176: DC33 Mopani | C176: LIM LIMPOPO
B177: LIM341 Musina | C177: LIM LIMPOPO
B178: LIM342 Mutale | C178: LIM LIMPOPO
B179: LIM343 Thulamela | C179: LIM LIMPOPO
B180: LIM344 Makhado | C180: LIM LIMPOPO
B181: DC34 Vhembe | C181: LIM LIMPOPO
B182: LIM351 Blouberg | C182: LIM LIMPOPO
B183: LIM352 Aganang | C183: LIM LIMPOPO
B184: LIM353 Molemole | C184: LIM LIMPOPO
B185: LIM354 Polokwane | C185: LIM LIMPOPO
B186: LIM355 Lepelle-Nkumpi | C186: LIM LIMPOPO
B187: DC35 Capricorn | C187: LIM LIMPOPO
B188: LIM361 Thabazimbi | C188: LIM LIMPOPO
B189: LIM362 Lephalale | C189: LIM LIMPOPO
B190: LIM364 Mookgopong | C190: LIM LIMPOPO
B191: LIM365 Modimolle | C191: LIM LIMPOPO
B192: LIM366 Bela Bela | C192: LIM LIMPOPO
B193: LIM367 Mogalakwena | C193: LIM LIMPOPO
B194: DC36 Waterberg | C194: LIM LIMPOPO
B195: LIM471 Ephraim Mogale | C195: LIM LIMPOPO
B196: LIM472 Elias Motsoaledi | C196: LIM LIMPOPO
B197: LIM473 Makhuduthamaga | C197: LIM LIMPOPO
B198: LIM474 Fetakgomo | C198: LIM LIMPOPO
B199: LIM475 Greater Tubatse | C199: LIM LIMPOPO
B200: DC47 Sekhukhune | C200: LIM LIMPOPO
B201: MP301 Albert Luthuli | C201: MP MPUMALANGA
B202: MP302 Msukaligwa | C202: MP MPUMALANGA
B203: MP303 Mkhondo | C203: MP MPUMALANGA
B204: MP304 Pixley Ka Seme (MP) | C204: MP MPUMALANGA
B205: MP305 Lekwa | C205: MP MPUMALANGA
B206: MP306 Dipaleseng | C206: MP MPUMALANGA
B207: MP307 Govan Mbeki | C207: MP MPUMALANGA
B208: DC30 Gert Sibande | C208: MP MPUMALANGA
B209: MP311 Victor Khanye | C209: MP MPUMALANGA
B210: MP312 Emalahleni (Mp) | C210: MP MPUMALANGA
B211: MP313 Steve Tshwete | C211: MP MPUMALANGA
B212: MP314 Emakhazeni | C212: MP MPUMALANGA
B213: MP315 Thembisile Hani | C213: MP MPUMALANGA
... 94 more rows

Sheet Org structure
A1: Organisational Structure Votes | C1: Organisational Structure Sub-Votes | E1: Display Sub-Votes
A2: =B2&" - "&C2 -> Vote 1 - Directorate - Executive Support Services | B2: Vote 1 | C2: Directorate - Executive Support Services
A3: =B16&" - "& C16 -> Vote 2 - Directorate - City Manager | B3: 1.1 | C3: Office of The Director of Executive Support | D3: =CONCATENATE(B3, " - ", C3) -> 1.1 - Office of The Director of Executive Support | E3: 1.1 - Office of The Director of Executive Support
A4: =B27&" - "&C27 -> Vote 3 - Directorate - Human Settlements | B4: 1.2 | C4: Executive Mayor, Speaker & Mayoral Committee | D4: 1.2 - Executive Mayor, Speaker & Mayoral Committee | E4: 1.2 - Executive Mayor, Speaker & Mayoral Committee
A5: =B38&" - "&C38 -> Vote 4 - Directorate - Finance | B5: 1.3 | C5: Councillors | D5: 1.3 - Councillors | E5: 1.3 - Councillors
A6: =B51&" - "&C51 -> Vote 5 - Directorate - Corporate Services | B6: 1.4 | C6: Grants-In-Aid | D6: 1.4 - Grants-In-Aid | E6: 1.4 - Grants-In-Aid
A7: =B63&" - "&C63 -> Vote 6 - Directorate - Infrastructure Services | B7: 1.5 | C7: Public Participation & Ward Committees | D7: 1.5 - Public Participation & Ward Committees | E7: 1.5 - Public Participation & Ward Committees
A8: =B111&" - "&C111 -> Vote 7 - Directorate - Development Planning | B8: 1.6 | C8: Strategic Support | D8: 1.6 - Strategic Support | E8: 1.6 - Strategic Support
A9: =B148&" - "&C148 -> Vote 8 - Directorate - Health / Public Safety & Emergency Services | B9: 1.7 | C9: Special Programmes | D9: 1.7 - Special Programmes | E9: 1.7 - Special Programmes
A10: =B173&" - "&C173 -> Vote 9 - Directorate - Municipal Services | B10: 1.8 | C10: City Hall | D10: 1.8 - City Hall | E10: 1.8 - City Hall
A11: =B201&" - "&C201 -> Vote 10 - Directorate - Miscellaneous | B11: 1.9 | C11: IDP | D11: 1.9 - IDP | E11: 1.9 - IDP
B12: 1.10 | C12: G I S Unit | E12: 1.10 - G I S Unit
B13: 1.11 | C13: Development Co-Operation | E13: 1.11 - Development Co-Operation
B14: 1.12 | C14: Public Relations & International Events | E14: 1.12 - Public Relations & International Events
A15: =B215&" - "&C215 -> Vote 11 - [NAME OF VOTE 11] | B15: 1.13 | C15: Research Policy & Knowledge Management Unit | D15: 1.13 - Research Policy & Knowledge Management Unit | E15: 1.13 - Research Policy & Knowledge Management Unit
A16: =B226&" - "&C226 -> Vote 12 - [NAME OF VOTE 12] | B16: Vote 2 | C16: Directorate - City Manager
A17: =B237&" - "&C237 -> Vote 13 - [NAME OF VOTE 13] | B17: 2.1 | C17: Office of The Municipal Manager & Support Services | D17: =CONCATENATE(B17, " - ", C17) -> 2.1 - Office of The Municipal Manager & Support Services | E17: 2.1 - Office of The Municipal Manager & Support Services
A18: =B248&" - "&C248 -> Vote 14 - [NAME OF VOTE 14] | B18: 2.2 | C18: Internal Audit | D18: 2.2 - Internal Audit | E18: 2.2 - Internal Audit
A19: =B259&" - "&C259 -> Vote 15 - [NAME OF VOTE 15] | B19: 2.3 | C19: Legal Services | D19: 2.3 - Legal Services | E19: 2.3 - Legal Services
B20: 2.4 | C20: Municipal Public Accounts Committee | D20: 2.4 - Municipal Public Accounts Committee | E20: 2.4 - Municipal Public Accounts Committee
B21: 2.5 | C21: [Name of sub-vote] | D21: 2.5 - [Name of sub-vote]
B22: 2.6 | C22: [Name of sub-vote] | D22: 2.6 - [Name of sub-vote]
B23: 2.7 | C23: [Name of sub-vote] | D23: 2.7 - [Name of sub-vote]
B24: 2.8 | C24: [Name of sub-vote] | D24: 2.8 - [Name of sub-vote]
B25: 2.9 | C25: [Name of sub-vote] | D25: 2.9 - [Name of sub-vote]
B26: 2.10 | C26: [Name of sub-vote] | D26: 2.10 - [Name of sub-vote]
B27: Vote 3 | C27: Directorate - Human Settlements
B28: 3.1 | C28: Mdantsane Urban Renewal Unit | D28: =CONCATENATE(B28, " - ", C28) -> 3.1 - Mdantsane Urban Renewal Unit | E28: 3.1 - Mdantsane Urban Renewal Unit
B29: 3.2 | C29: Office of The Chief Operations Officer | D29: 3.2 - Office of The Chief Operations Officer | E29: 3.2 - Office of The Chief Operations Officer
B30: 3.3 | C30: Housing Department | D30: 3.3 - Housing Department | E30: 3.3 - Housing Department
B31: 3.4 | C31: Mdantsane Urban Renewal Unit | D31: 3.4 - Mdantsane Urban Renewal Unit | E31: 3.4 - Mdantsane Urban Renewal Unit
B32: 3.5 | C32: [Name of sub-vote] | D32: 3.5 - [Name of sub-vote]
B33: 3.6 | C33: [Name of sub-vote] | D33: 3.6 - [Name of sub-vote]
B34: 3.7 | C34: [Name of sub-vote] | D34: 3.7 - [Name of sub-vote]
B35: 3.8 | C35: [Name of sub-vote] | D35: 3.8 - [Name of sub-vote]
B36: 3.9 | C36: [Name of sub-vote] | D36: 3.9 - [Name of sub-vote]
B37: 3.10 | C37: [Name of sub-vote] | D37: 3.10 - [Name of sub-vote]
B38: Vote 4 | C38: Directorate - Finance
B39: 4.1 | C39: Office of The Director of Finance | D39: =CONCATENATE(B39, " - ", C39) -> 4.1 - Office of The Director of Finance | E39: 4.1 - Office of The Director of Finance
B40: 4.2 | C40: Support Services Office | D40: 4.2 - Support Services Office | E40: 4.2 - Support Services Office
B41: 4.3 | C41: Budget Office | D41: 4.3 - Budget Office | E41: 4.3 - Budget Office
B42: 4.4 | C42: Asset Risk & Financial Services | D42: 4.4 - Asset Risk & Financial Services | E42: 4.4 - Asset Risk & Financial Services
B43: 4.5 | C43: Supply Chain Management | D43: 4.5 - Supply Chain Management | E43: 4.5 - Supply Chain Management
B44: 4.6 | C44: Expenditure Office | D44: 4.6 - Expenditure Office | E44: 4.6 - Expenditure Office
B45: 4.7 | C45: Salary Office | D45: 4.7 - Salary Office | E45: 4.7 - Salary Office
B46: 4.8 | C46: Rates and Valuations Office | D46: 4.8 - Rates and Valuations Office | E46: 4.8 - Rates and Valuations Office
B47: 4.9 | C47: Consolidated Billing & Miscellaneous Revenue Office | D47: 4.9 - Consolidated Billing & Miscellaneous Revenue Office | E47: 4.9 - Consolidated Billing & Miscellaneous Revenue Office
B48: 4.10 | C48: Debtors Management Office | D48: 4.10 - Debtors Management Office | E48: 4.10 - Debtors Management Office
B49: 4.11 | C49: Customer Care Office | E49: 4.11 - Customer Care Office
B50: 4.12 | C50: Pre-Payment Vending Office | E50: 4.12 - Pre-Payment Vending Office
B51: Vote 5 | C51: Directorate - Corporate Services
B52: 5.1 | C52: Office of The Director of Corporate Services | D52: =CONCATENATE(B52, " - ", C52) -> 5.1 - Office of The Director of Corporate Services | E52: 5.1 - Office of The Director of Corporate Services
B53: 5.2 | C53: Support Services Office | D53: 5.2 - Support Services Office | E53: 5.2 - Support Services Office
B54: 5.3 | C54: Administrative & Council Support | D54: 5.3 - Administrative & Council Support | E54: 5.3 - Administrative & Council Support
B55: 5.4 | C55: Auxilliary & Telecommunication Support | D55: 5.4 - Auxilliary & Telecommunication Support | E55: 5.4 - Auxilliary & Telecommunication Support
B56: 5.5 | C56: General Admin & Telecomm Services | D56: 5.5 - General Admin & Telecomm Services | E56: 5.5 - General Admin & Telecomm Services
B57: 5.6 | C57: Management Information Services | D57: 5.6 - Management Information Services | E57: 5.6 - Management Information Services
B58: 5.7 | C58: H.R. Administration | D58: 5.7 - H.R. Administration | E58: 5.7 - H.R. Administration
B59: 5.8 | C59: Occupational Risk Management | D59: 5.8 - Occupational Risk Management | E59: 5.8 - Occupational Risk Management
B60: 5.9 | C60: Labour Relations | D60: 5.9 - Labour Relations | E60: 5.9 - Labour Relations
B61: 5.10 | C61: Organisational Development | D61: 5.10 - Organisational Development | E61: 5.10 - Organisational Development
B62: 5.11 | C62: Research Policy & Knowledge Management Unit | D62: 5.11 - Research Policy & Knowledge Management Unit | E62: 5.11 - Research Policy & Knowledge Management Unit
B63: Vote 6 | C63: Directorate - Infrastructure Services
B64: 6.1 | C64: Office of The Director of Engineering Services | D64: =CONCATENATE(B64, " - ", C64) -> 6.1 - Office of The Director of Engineering Services | E64: 6.1 - Office of The Director of Engineering Services
B65: 6.2 | C65: City Engineering Building | D65: 6.2 - City Engineering Building | E65: 6.2 - City Engineering Building
B66: 6.3 | C66: Chiselhurst Beacon Bay & Kwt Depot | D66: 6.3 - Chiselhurst Beacon Bay & Kwt Depot | E66: 6.3 - Chiselhurst Beacon Bay & Kwt Depot
B67: 6.4 | C67: Beacon Bay Civic Centre | D67: 6.4 - Beacon Bay Civic Centre | E67: 6.4 - Beacon Bay Civic Centre
B68: 6.5 | C68: Scientific Services | D68: 6.5 - Scientific Services | E68: 6.5 - Scientific Services
B69: 6.6 | C69: Night Soil Removal - Coastal | D69: 6.6 - Night Soil Removal - Coastal | E69: 6.6 - Night Soil Removal - Coastal
B70: 6.7 | C70: Night Soil Removal - Central | D70: 6.7 - Night Soil Removal - Central | E70: 6.7 - Night Soil Removal - Central
B71: 6.8 | C71: Night Soil Removal - Inland | D71: 6.8 - Night Soil Removal - Inland | E71: 6.8 - Night Soil Removal - Inland
B72: 6.9 | C72: Sewerage Admin | D72: 6.9 - Sewerage Admin | E72: 6.9 - Sewerage Admin
B73: 6.10 | C73: Sewerage Pump Station - Coastal | E73: 6.10 - Sewerage Pump Station - Coastal
B74: 6.11 | C74: Sewerage Pump Station - Central | E74: 6.11 - Sewerage Pump Station - Central
B75: 6.12 | C75: Sewerage Pump Station - Inland | E75: 6.12 - Sewerage Pump Station - Inland
B76: 6.13 | C76: Sewerage Treatment - Coastal | E76: 6.13 - Sewerage Treatment - Coastal
B77: 6.14 | C77: Sewerage Treatment - Central | E77: 6.14 - Sewerage Treatment - Central
B78: 6.15 | C78: Sewerage Treatment - Inland | E78: 6.15 - Sewerage Treatment - Inland
B79: 6.16 | C79: Sewerage Reticulation - Coastal | E79: 6.16 - Sewerage Reticulation - Coastal
B80: 6.17 | C80: Sewerage Reticulation - Central | E80: 6.17 - Sewerage Reticulation - Central
B81: 6.18 | C81: Sewerage Reticulation - Inland | E81: 6.18 - Sewerage Reticulation - Inland
B82: 6.19 | C82: Sewerage Interceptors | E82: 6.19 - Sewerage Interceptors
B83: 6.20 | C83: Water Administration | E83: 6.20 - Water Administration
B84: 6.21 | C84: Water Miscellaneous | E84: 6.21 - Water Miscellaneous
B85: 6.22 | C85: Maden Dam | E85: 6.22 - Maden Dam
B86: 6.23 | C86: Bridle Drift Dam | E86: 6.23 - Bridle Drift Dam
B87: 6.24 | C87: Bulk Pumping Stations | E87: 6.24 - Bulk Pumping Stations
B88: 6.25 | C88: Water Treatment Works | E88: 6.25 - Water Treatment Works
B89: 6.26 | C89: Umzonyana Water Treatment Works | E89: 6.26 - Umzonyana Water Treatment Works
B90: 6.27 | C90: Needs Camp Water Treatment Works | E90: 6.27 - Needs Camp Water Treatment Works
B91: 6.28 | C91: KWT Water Treatment Works | E91: 6.28 - KWT Water Treatment Works
B92: 6.29 | C92: Mdantsane Bulk Pumping | E92: 6.29 - Mdantsane Bulk Pumping
B93: 6.30 | C93: Water Ops and Maint. - Inland | E93: 6.30 - Water Ops and Maint. - Inland
B94: 6.31 | C94: Water Ops and Maint. - Midland | E94: 6.31 - Water Ops and Maint. - Midland
B95: 6.32 | C95: Water Ops and Maint. - Coastal | E95: 6.32 - Water Ops and Maint. - Coastal
B96: 6.33 | C96: Construction Distribution | E96: 6.33 - Construction Distribution
B97: 6.34 | C97: Roads Administration | E97: 6.34 - Roads Administration
B98: 6.35 | C98: Roads Design | E98: 6.35 - Roads Design
B99: 6.36 | C99: Roads and Stormwater Drainage | E99: 6.36 - Roads and Stormwater Drainage
B100: 6.37 | C100: Provincial Main Roads | E100: 6.37 - Provincial Main Roads
B101: 6.38 | C101: Project Management and Implementation Branch | E101: 6.38 - Project Management and Implementation Branch
B102: 6.39 | C102: Project Management Unit | E102: 6.39 - Project Management Unit
B103: 6.40 | C103: Mechanical Workshop - Westbank | E103: 6.40 - Mechanical Workshop - Westbank
B104: 6.41 | C104: Fleet Management - Westbank | E104: 6.41 - Fleet Management - Westbank
B105: 6.42 | C105: Mechanical Workshop - Braelyn | E105: 6.42 - Mechanical Workshop - Braelyn
B106: 6.43 | C106: Fleet Management - Braelyn | E106: 6.43 - Fleet Management - Braelyn
B107: 6.44 | C107: Electricity Administration | E107: 6.44 - Electricity Administration
B108: 6.45 | C108: Electricity Distribution Supervisory Staff | E108: 6.45 - Electricity Distribution Supervisory Staff
B109: 6.46 | C109: Electricity Planning & Design | E109: 6.46 - Electricity Planning & Design
B110: 6.47 | C110: Revenue Protection | D110: 6.47 - Revenue Protection | E110: 6.47 - Revenue Protection
B111: Vote 7 | C111: Directorate - Development Planning
B112: 7.1 | C112: Office of The Director of Planning & Economic Dev. | D112: =CONCATENATE(B112, " - ", C112) -> 7.1 - Office of The Director of Planning & Economic Dev. | E112: 7.1 - Office of The Director of Planning & Economic Dev.
B113: 7.2 | C113: Development Planning Administration | D113: 7.2 - Development Planning Administration | E113: 7.2 - Development Planning Administration
B114: 7.3 | C114: Housing Department | E114: 7.3 - Housing Department
B115: 7.4 | C115: Berlin Transit Camp | E115: 7.4 - Berlin Transit Camp
B116: 7.5 | C116: Garcia Flats | E116: 7.5 - Garcia Flats
B117: 7.6 | C117: Gompo Hostel | E117: 7.6 - Gompo Hostel
B118: 7.7 | C118: Gonubie Sub-Economic Scheme 1 | E118: 7.7 - Gonubie Sub-Economic Scheme 1
B119: 7.8 | C119: Gonubie Sub-Economic Scheme 2 | E119: 7.8 - Gonubie Sub-Economic Scheme 2
B120: 7.9 | C120: Pefferville 619 | E120: 7.9 - Pefferville 619
B121: 7.10 | C121: Kwt Housing Staff and Rents and Leases | E121: 7.10 - Kwt Housing Staff and Rents and Leases
B122: 7.11 | C122: City Planning | E122: 7.11 - City Planning
B123: 7.12 | C123: Architecture | E123: 7.12 - Architecture
B124: 7.13 | C124: Land Administration | E124: 7.13 - Land Administration
B125: 7.14 | C125: Land Surveying | E125: 7.14 - Land Surveying
B126: 7.15 | C126: Property Administrarion | E126: 7.15 - Property Administrarion
B127: 7.16 | C127: Building Maintenance - Coastal / Central | E127: 7.16 - Building Maintenance - Coastal / Central
B128: 7.17 | C128: Electricity House | E128: 7.17 - Electricity House
B129: 7.18 | C129: Buxton House | E129: 7.18 - Buxton House
B130: 7.19 | C130: Munifin Centre | E130: 7.19 - Munifin Centre
B131: 7.20 | C131: Braelyn Depot | E131: 7.20 - Braelyn Depot
B132: 7.21 | C132: Chiselhurst Beacon Bay & Kwt Depot | E132: 7.21 - Chiselhurst Beacon Bay & Kwt Depot
B133: 7.22 | C133: Gonubie Public & Council Buildings | E133: 7.22 - Gonubie Public & Council Buildings
B134: 7.23 | C134: Mdantsane Zone Office | E134: 7.23 - Mdantsane Zone Office
B135: 7.24 | C135: KWT Civic (Admin) Buildings | E135: 7.24 - KWT Civic (Admin) Buildings
B136: 7.25 | C136: Miscellaneous | E136: 7.25 - Miscellaneous
B137: 7.26 | C137: Ilitha Small Business Centre | E137: 7.26 - Ilitha Small Business Centre
B138: 7.27 | C138: Phakamisa Small Business Centre | E138: 7.27 - Phakamisa Small Business Centre
B139: 7.28 | C139: Signage Control | E139: 7.28 - Signage Control
B140: 7.29 | C140: Old Mutual Building | E140: 7.29 - Old Mutual Building
B141: 7.30 | C141: Transport Planning & Operations Admin | E141: 7.30 - Transport Planning & Operations Admin
B142: 7.31 | C142: Traffic Engineering | E142: 7.31 - Traffic Engineering
B143: 7.32 | C143: Traffic Signal Maintenance | E143: 7.32 - Traffic Signal Maintenance
B144: 7.33 | C144: Buffalo City Bus Services | D144: 7.33 - Buffalo City Bus Services | E144: 7.33 - Buffalo City Bus Services
B145: 7.34 | C145: BCMET | D145: 7.34 - BCMET | E145: 7.34 - BCMET
B146: 7.35 | C146: Local Economic Development | D146: 7.35 - Local Economic Development | E146: 7.35 - Local Economic Development
B147: 7.36 | C147: Market | D147: 7.36 - Market | E147: 7.36 - Market
B148: Vote 8 | C148: Directorate - Health / Public Safety & Emergency Services
B149: 8.1 | C149: Office of The Director of Health & Public Safety | D149: =CONCATENATE(B149, " - ", C149) -> 8.1 - Office of The Director of Health & Public Safety | E149: 8.1 - Office of The Director of Health & Public Safety
B150: 8.2 | C150: Support Services | D150: 8.2 - Support Services | E150: 8.2 - Support Services
B151: 8.3 | C151: Health Administration | D151: 8.3 - Health Administration | E151: 8.3 - Health Administration
B152: 8.4 | C152: Health Support | D152: 8.4 - Health Support | E152: 8.4 - Health Support
B153: 8.5 | C153: Pharmacy | D153: 8.5 - Pharmacy | E153: 8.5 - Pharmacy
B154: 8.6 | C154: Clinics | D154: 8.6 - Clinics | E154: 8.6 - Clinics
B155: 8.7 | C155: Aids Training Information Centre | D155: 8.7 - Aids Training Information Centre | E155: 8.7 - Aids Training Information Centre
B156: 8.8 | C156: Environmental Health | D156: 8.8 - Environmental Health | E156: 8.8 - Environmental Health
B157: 8.9 | C157: Pest Control | D157: 8.9 - Pest Control | E157: 8.9 - Pest Control
B158: 8.10 | C158: Pollution Control | E158: 8.10 - Pollution Control
B159: 8.11 | C159: Educare Centre | E159: 8.11 - Educare Centre
B160: 8.12 | C160: Public Safety Administration | E160: 8.12 - Public Safety Administration
B161: 8.13 | C161: Fire and Rescue Services | E161: 8.13 - Fire and Rescue Services
B162: 8.14 | C162: Security Services | E162: 8.14 - Security Services
B163: 8.15 | C163: Traffic Administration | E163: 8.15 - Traffic Administration
B164: 8.16 | C164: Traffic Control | E164: 8.16 - Traffic Control
B165: 8.17 | C165: Criminal Process | E165: 8.17 - Criminal Process
B166: 8.18 | C166: Vehicle Test Station / Examination | E166: 8.18 - Vehicle Test Station / Examination
B167: 8.19 | C167: Vehicle Registration | E167: 8.19 - Vehicle Registration
B168: 8.20 | C168: Drivers License Testing | E168: 8.20 - Drivers License Testing
B169: 8.21 | C169: Traffic Technical Services | E169: 8.21 - Traffic Technical Services
B170: 8.22 | C170: Parking Areas / Meters | E170: 8.22 - Parking Areas / Meters
B171: 8.23 | C171: Disaster Management | E171: 8.23 - Disaster Management
B172: 8.24 | C172: Dog Tax Office | E172: 8.24 - Dog Tax Office
B173: Vote 9 | C173: Directorate - Municipal Services
B174: 9.1 | C174: Office of The Director of Community Services | D174: =CONCATENATE(B174, " - ", C174) -> 9.1 - Office of The Director of Community Services | E174: 9.1 - Office of The Director of Community Services
B175: 9.2 | C175: Cleansing Administration Support | D175: 9.2 - Cleansing Administration Support | E175: 9.2 - Cleansing Administration Support
B176: 9.3 | C176: Environmental Administration Support | D176: 9.3 - Environmental Administration Support | E176: 9.3 - Environmental Administration Support
B177: 9.4 | C177: Environmental Services | D177: 9.4 - Environmental Services | E177: 9.4 - Environmental Services
B178: 9.5 | C178: Environmental Conservation | E178: 9.5 - Environmental Conservation
B179: 9.6 | C179: Environmental Workshop | E179: 9.6 - Environmental Workshop
B180: 9.7 | C180: Interments | E180: 9.7 - Interments
B181: 9.8 | C181: Gompo Admin Building | E181: 9.8 - Gompo Admin Building
B182: 9.9 | C182: Integrated Environmental Management | E182: 9.9 - Integrated Environmental Management
B183: 9.10 | C183: Arts & Cultural Services Admin | E183: 9.10 - Arts & Cultural Services Admin
B184: 9.11 | C184: Libraries | E184: 9.11 - Libraries
B185: 9.12 | C185: Art Gallery | E185: 9.12 - Art Gallery
B186: 9.13 | C186: Art Centres | E186: 9.13 - Art Centres
B187: 9.14 | C187: Halls | E187: 9.14 - Halls
B188: 9.15 | C188: Amenities Administration Support | E188: 9.15 - Amenities Administration Support
B189: 9.16 | C189: Sportsfields | E189: 9.16 - Sportsfields
B190: 9.17 | C190: Swimming Pools | E190: 9.17 - Swimming Pools
B191: 9.18 | C191: Aquarium | E191: 9.18 - Aquarium
B192: 9.19 | C192: Zoo | E192: 9.19 - Zoo
B193: 9.20 | C193: Beaches | E193: 9.20 - Beaches
B194: 9.21 | C194: Resorts | E194: 9.21 - Resorts
B195: 9.22 | C195: Cleansing Administration Support | E195: 9.22 - Cleansing Administration Support
B196: 9.23 | C196: Refuse Removal | E196: 9.23 - Refuse Removal
B197: 9.24 | C197: Waste Disposal Sites | E197: 9.24 - Waste Disposal Sites
B198: 9.25 | C198: Street Sweeping | E198: 9.25 - Street Sweeping
B199: 9.26 | C199: Public Conveniences | E199: 9.26 - Public Conveniences
B200: 9.27 | C200: E.L Regional Waste Disposal Site & Transfer Station | E200: 9.27 - E.L Regional Waste Disposal Site & Transfer Station
... 69 more rows

Sheet Contacts
A1: =muni&" - "&" Contact Information" -> BUF Buffalo City - Contact Information
A3: A. GENERAL INFORMATION
A4: Municipality | B4: =muni -> BUF Buffalo City | C4: Set name on 'Instructions' sheet
A6: Grade | B6: GRADE 5 | C6: 1 Grade in terms of the Remuneration of Public Office Bearers Act.
A8: Province | B8: =IF(B4>" ",VLOOKUP(B4,'Lookup and lists'!B28:C311,2, FALSE)," ") -> EC EASTERN CAPE
A10: Web Address | B10: www.buffalocity.gov.za
A12: e-mail Address | B12: zukiswafa@buffalocity.gov.za
A14: B. CONTACT INFORMATION
A15: Postal address:
A16: P.O. Box | B16: 134
A17: City / Town | B17: EAST LONDON
A18: Postal Code | B18: 5200
A20: Street address
A21: Building | B21: TRUST CENTRE
A22: Street No. & Name | B22: CNR. OXFORD & NORTH STREETS
A23: City / Town | B23: EAST LONDON
A24: Postal Code | B24: 5201
A26: General Contacts
A27: Telephone number | B27: 043 705 1901
A28: Fax number | B28: 043 743 1941
A30: C. POLITICAL LEADERSHIP
A31: Speaker: | C31: Secretary/PA to the Speaker:
A32: Name | B32: LULEKA SIMON | C32: Name | D32: NOKULUNGA NDANGENI
A33: Telephone number | B33: 043 705 2805 | C33: Telephone number | D33: 043 705 2805
A34: Cell number | B34: 083 731 0696 | C34: Cell number | D34: 082 474 1598
A35: Fax number | B35: 043 743 9040 | C35: Fax number | D35: 043 743 9040
A36: E-mail address | B36: lulekas@buffalocity.gov.za | C36: E-mail address | D36: nokulungan@buffalocity.gov.za
A38: Mayor/Executive Mayor: | C38: Secretary/PA to the Mayor/Executive Mayor:
A39: Name | B39: ZUKISWA NCITHA | C39: Name | D39: LUNGI GOSA
A40: Telephone number | B40: 043 705 1071 | C40: Telephone number | D40: 043 705 1071
A41: Cell number | B41: 083 387 2612 | C41: Cell number | D41: 073 639 9814
A42: Fax number | B42: 043 743 9040 | C42: Fax number | D42: 043 743 9040
A43: E-mail address | B43: zukiswan@buffalocity.gov.za | C43: E-mail address | D43: lungig@buffalocity.gov.za
A45: Deputy Mayor/Executive Mayor: | C45: Secretary/PA to the Deputy Mayor/Executive Mayor:
A46: Name | C46: Name | D46: LUNGI GOSA
A47: Telephone number | C47: Telephone number | D47: 043 705 1071
A48: Cell number | C48: Cell number | D48: 073 639 9814
A49: Fax number | C49: Fax number | D49: 043 743 9040
A50: E-mail address | C50: E-mail address | D50: lungig@buffalocity.gov.za
A52: D. MANAGEMENT LEADERSHIP
A53: Municipal Manager: | C53: Secretary/PA to the Municipal Manager:
A54: Name | B54: ANDILE FANI | C54: Name | D54: ZUKISWA FATUSE
A55: Telephone number | B55: 043 705 1901 | C55: Telephone number | D55: 043 705 1901
A56: Cell number | B56: 078 586 8738 | C56: Cell number
A57: Fax number | B57: 043 743 1901 | C57: Fax number | D57: 043 743 1901
A58: E-mail address | B58: fania@buffalocity.gov.za | C58: E-mail address | D58: zukiswafa@buffalocity.gov.za
A60: Chief Financial Officer | C60: Secretary/PA to the Chief Financial Officer
A61: Name | B61: VINCENT PILLAY | C61: Name | D61: BERNADINE SCHARNECK
A62: Telephone number | B62: 043 705 1887 | C62: Telephone number | D62: 043 705 1887
A63: Cell number | B63: 082 774 1225 | C63: Cell number | D63: 072 172 7119
A64: Fax number | B64: 043 722 1582 | C64: Fax number | D64: 043 722 1582
A65: E-mail address | B65: vincentp@buffalocity.gov.za | C65: E-mail address | D65: bernadines@buffalocity.gov.za
A67: Official responsible for submitting financial information
A68: Name | B68: DION ODENDAAL
A69: Telephone number | B69: 043 705 3134
A70: Cell number | B70: N/A
A71: Fax number | B71: 043 742 2443
A72: E-mail address | B72: diono@buffalocity.gov.za
A73: Official responsible for submitting financial information
A74: Name
A75: Telephone number
A76: Cell number
A77: Fax number
A78: E-mail address
A79: Official responsible for submitting financial information
A80: Name
A81: Telephone number
A82: Cell number
A83: Fax number
A84: E-mail address

Sheet C1-Sum
A1: =muni& " - "&s71sum& " - "&date -> BUF Buffalo City - Table C1 Monthly Budget Statement Summary - M03 September
A2: =desc -> Description | B2: =Head1 -> 2014/15 | C2: =Head2 -> Budget Year 2015/16
B3: =Head5 -> Audited Outcome | C3: =Head6 -> Original Budget | D3: =Head7 -> Adjusted Budget | E3: =Head38 -> Monthly actual | F3: =Head39 -> YearTD actual | G3: =Head40 -> YearTD budget | H3: =Head41 -> YTD variance | I3: =Head41 -> YTD variance | J3: =Head8 -> Full Year Forecast
A4: R thousands | I4: %
A5: Financial Performance
A6: Property rates | B6: =SUM('C4-FinPerf RE'!C6:C7) -> 0 | C6: =SUM('C4-FinPerf RE'!D6:D7) -> 903413149.8 | D6: =SUM('C4-FinPerf RE'!E6:E7) -> 903413149.8 | E6: =SUM('C4-FinPerf RE'!F6:F7) -> 124598205 | F6: =SUM('C4-FinPerf RE'!G6:G7) -> 280653785.7 | G6: =SUM('C4-FinPerf RE'!H6:H7) -> 222878588.5 | H6: =F6-G6 -> 57775197.27 | I6: =IF(H6=0,"",H6/G6) -> 0.259222735 | J6: =SUM('C4-FinPerf RE'!K6:K7) -> 903413149.8
A7: Service charges | B7: =SUM('C4-FinPerf RE'!C8:C12) -> 0 | C7: =SUM('C4-FinPerf RE'!D8:D12) -> 2686741021 | D7: =SUM('C4-FinPerf RE'!E8:E12) -> 2686741021 | E7: =SUM('C4-FinPerf RE'!F8:F12) -> 195484980.6 | F7: =SUM('C4-FinPerf RE'!G8:G12) -> 685512902.9 | G7: =SUM('C4-FinPerf RE'!H8:H12) -> 657563743.6 | H7: =F7-G7 -> 27949159.32 | I7: =IF(H7=0,"",H7/G7) -> 0.0425041064 | J7: =SUM('C4-FinPerf RE'!K8:K12) -> 2686741021
A8: Investment revenue | B8: ='C4-FinPerf RE'!C14 -> 0 | C8: ='C4-FinPerf RE'!D14 -> 133619907 | D8: ='C4-FinPerf RE'!E14 -> 133619907 | E8: ='C4-FinPerf RE'!F14 -> 13394986.35 | F8: ='C4-FinPerf RE'!G14 -> 34903313.87 | G8: ='C4-FinPerf RE'!H14 -> 33404976.75 | H8: =F8-G8 -> 1498337.12 | I8: =IF(H8=0,"",H8/G8) -> 0.04485370941 | J8: ='C4-FinPerf RE'!K14 -> 133619907
A9: Transfers recognised - operational | B9: ='C4-FinPerf RE'!C20 -> 0 | C9: ='C4-FinPerf RE'!D20 -> 1249333299 | D9: ='C4-FinPerf RE'!E20 -> 1254460473 | E9: ='C4-FinPerf RE'!F20 -> 11594275.45 | F9: ='C4-FinPerf RE'!G20 -> 287621213.9 | G9: ='C4-FinPerf RE'!H20 -> 260327405.7 | H9: =F9-G9 -> 27293808.18 | I9: =IF(H9=0,"",H9/G9) -> 0.10484416 | J9: ='C4-FinPerf RE'!K20 -> 1254460473
A10: Other own revenue | B10: ='C4-FinPerf RE'!C13+'C4-FinPerf RE'!C15+'C4-FinPerf RE'!C16+'C4-FinPerf RE'!C17+'C4-FinPerf RE'!C18+'C4-FinPerf RE'!C19+'C4-FinPerf RE'!C21+'C4-FinPerf RE'!C22 -> 0 | C10: ='C4-FinPerf RE'!D13+'C4-FinPerf RE'!D15+'C4-FinPerf RE'!D16+'C4-FinPerf RE'!D17+'C4-FinPerf RE'!D18+'C4-FinPerf RE'!D19+'C4-FinPerf RE'!D21+'C4-FinPerf RE'!D22 -> 746500114 | D10: ='C4-FinPerf RE'!E13+'C4-FinPerf RE'!E15+'C4-FinPerf RE'!E16+'C4-FinPerf RE'!E17+'C4-FinPerf RE'!E18+'C4-FinPerf RE'!E19+'C4-FinPerf RE'!E21+'C4-FinPerf RE'!E22 -> 746500114 | E10: ='C4-FinPerf RE'!F13+'C4-FinPerf RE'!F15+'C4-FinPerf RE'!F16+'C4-FinPerf RE'!F17+'C4-FinPerf RE'!F18+'C4-FinPerf RE'!F19+'C4-FinPerf RE'!F21+'C4-FinPerf RE'!F22 -> 24832392.5 | F10: ='C4-FinPerf RE'!G13+'C4-FinPerf RE'!G15+'C4-FinPerf RE'!G16+'C4-FinPerf RE'!G17+'C4-FinPerf RE'!G18+'C4-FinPerf RE'!G19+'C4-FinPerf RE'!G21+'C4-FinPerf RE'!G22 -> 195720758.5 | G10: ='C4-FinPerf RE'!H13+'C4-FinPerf RE'!H15+'C4-FinPerf RE'!H16+'C4-FinPerf RE'!H17+'C4-FinPerf RE'!H18+'C4-FinPerf RE'!H19+'C4-FinPerf RE'!H21+'C4-FinPerf RE'!H22 -> 164651375.7 | H10: =F10-G10 -> 31069382.8 | I10: =IF(H10=0,"",H10/G10) -> 0.1886979848 | J10: ='C4-FinPerf RE'!K13+'C4-FinPerf RE'!K15+'C4-FinPerf RE'!K16+'C4-FinPerf RE'!K17+'C4-FinPerf RE'!K18+'C4-FinPerf RE'!K19+'C4-FinPerf RE'!K21+'C4-FinPerf RE'!K22 -> 746500114
A11: Total Revenue (excluding capital transfers and contributions) | B11: =SUM(B6:B10) -> 0 | C11: 5719607491 | D11: 5724734665 | E11: 369904839.9 | F11: 1484411975 | G11: 1338826090 | H11: =F11-G11 -> 145585884.7 | I11: =IF(H11=0,"",H11/G11) -> 0.1087414458 | J11: 5724734665
A12: Employee costs | B12: ='C4-FinPerf RE'!C26 -> 0 | C12: ='C4-FinPerf RE'!D26 -> 1387618913 | D12: ='C4-FinPerf RE'!E26 -> 1387618913 | E12: ='C4-FinPerf RE'!F26 -> 121056972.8 | F12: ='C4-FinPerf RE'!G26 -> 326281756.8 | G12: ='C4-FinPerf RE'!H26 -> 346904728.2 | H12: -20622971.44 | I12: -0.05944851644 | J12: ='C4-FinPerf RE'!K26 -> 1387618913
A13: Remuneration of Councillors | B13: ='C4-FinPerf RE'!C27 -> 0 | C13: ='C4-FinPerf RE'!D27 -> 52910192 | D13: ='C4-FinPerf RE'!E27 -> 52910192 | E13: ='C4-FinPerf RE'!F27 -> 4312357.02 | F13: ='C4-FinPerf RE'!G27 -> 12784375.35 | G13: ='C4-FinPerf RE'!H27 -> 13227548 | H13: -443172.65 | I13: -0.03350376427 | J13: ='C4-FinPerf RE'!K27 -> 52910192
A14: Depreciation & asset impairment | B14: ='C4-FinPerf RE'!C29 -> 0 | C14: ='C4-FinPerf RE'!D29 -> 712213175.6 | D14: ='C4-FinPerf RE'!E29 -> 690929721.6 | E14: ='C4-FinPerf RE'!F29 -> 54030234.5 | F14: ='C4-FinPerf RE'!G29 -> 172732430.5 | G14: ='C4-FinPerf RE'!H29 -> 172732430.4 | H14: 0.09161281586 | I14: 5.303741494e-10 | J14: ='C4-FinPerf RE'!K29 -> 690929721.6
A15: Finance charges | B15: ='C4-FinPerf RE'!C30 -> 0 | C15: ='C4-FinPerf RE'!D30 -> 54313000 | D15: ='C4-FinPerf RE'!E30 -> 54313000 | E15: ='C4-FinPerf RE'!F30 -> 4031476.15 | F15: ='C4-FinPerf RE'!G30 -> 13083642.81 | G15: ='C4-FinPerf RE'!H30 -> 13578250 | H15: -494607.19 | I15: -0.03642643124 | J15: ='C4-FinPerf RE'!K30 -> 54313000
A16: Materials and bulk purchases | B16: =SUM('C4-FinPerf RE'!C31:C32) -> 0 | C16: =SUM('C4-FinPerf RE'!D31:D32) -> 1377011714 | D16: =SUM('C4-FinPerf RE'!E31:E32) -> 1377011714 | E16: =SUM('C4-FinPerf RE'!F31:F32) -> 102629511.5 | F16: =SUM('C4-FinPerf RE'!G31:G32) -> 427908866.7 | G16: =SUM('C4-FinPerf RE'!H31:H32) -> 426831654.9 | H16: 1077211.767 | I16: 0.002523739172 | J16: =SUM('C4-FinPerf RE'!K31:K32) -> 1377011714
A17: Transfers and grants | B17: ='C4-FinPerf RE'!C34 -> 0 | C17: ='C4-FinPerf RE'!D34 -> 258568483.3 | D17: ='C4-FinPerf RE'!E34 -> 258568483.3 | E17: ='C4-FinPerf RE'!F34 -> 31036833.93 | F17: ='C4-FinPerf RE'!G34 -> 51438575.07 | G17: ='C4-FinPerf RE'!H34 -> 14328111.96 | H17: 37110463.11 | I17: 2.590045584 | J17: ='C4-FinPerf RE'!K34 -> 258568483.3
A18: Other expenditure | B18: ='C4-FinPerf RE'!C37-SUM('C1-Sum'!B12:B17) -> 0 | C18: ='C4-FinPerf RE'!D37-SUM('C1-Sum'!C12:C17) -> 1876049846 | D18: ='C4-FinPerf RE'!E37-SUM('C1-Sum'!D12:D17) -> 1902460474 | E18: ='C4-FinPerf RE'!F37-SUM('C1-Sum'!E12:E17) -> 124766507.4 | F18: ='C4-FinPerf RE'!G37-SUM('C1-Sum'!F12:F17) -> 266024529.5 | G18: ='C4-FinPerf RE'!H37-SUM('C1-Sum'!G12:G17) -> 215913746.7 | H18: 50110782.8 | I18: 0.2320870421 | J18: ='C4-FinPerf RE'!K37-SUM('C1-Sum'!J12:J17) -> 1902460474
A19: Total Expenditure | B19: =SUM(B12:B18) -> 0 | C19: 5718685323 | D19: 5723812497 | E19: 441863893.3 | F19: 1270254177 | G19: 1203516470 | H19: 66737706.49 | I19: 0.05545225856 | J19: =SUM(J12:J18) -> 5723812497
A20: Surplus/(Deficit) | B20: =B11-B19 -> 0 | C20: 922167.3897 | D20: 922167.3897 | E20: -71959053.32 | F20: 214157798.3 | G20: 135309620.1 | H20: 78848178.21 | I20: 0.582724112 | J20: =J11-J19 -> 922167.3897
A21: Transfers recognised - capital | B21: ='C4-FinPerf RE'!C40 -> 0 | C21: ='C4-FinPerf RE'!D40 -> 850352600 | D21: ='C4-FinPerf RE'!E40 -> 850352600 | E21: ='C4-FinPerf RE'!F40 -> 30553385.3 | F21: ='C4-FinPerf RE'!G40 -> 63978119.23 | G21: ='C4-FinPerf RE'!H40 -> 64942557.14 | H21: -964437.9098 | I21: -0.01485063035 | J21: ='C4-FinPerf RE'!K40 -> 850352600
A22: Contributions & Contributed assets | B22: =SUM('C4-FinPerf RE'!C41:C42) -> 0 | C22: =SUM('C4-FinPerf RE'!D41:D42) -> 0 | D22: =SUM('C4-FinPerf RE'!E41:E42) -> 0 | E22: =SUM('C4-FinPerf RE'!F41:F42) -> 0 | F22: =SUM('C4-FinPerf RE'!G41:G42) -> 0 | G22: =SUM('C4-FinPerf RE'!H41:H42) -> 0 | H22: 0 | J22: =SUM('C4-FinPerf RE'!K41:K42) -> 0
A23: Surplus/(Deficit) after capital transfers & contributions | B23: =B20+B21+B22 -> 0 | C23: 851274767.4 | D23: 851274767.4 | E23: -41405668.02 | F23: 278135917.5 | G23: 200252177.2 | H23: 77883740.3 | I23: 0.3889283072 | J23: =J20+J21+J22 -> 851274767.4
A24: Share of surplus/ (deficit) of associate | B24: ='C4-FinPerf RE'!C48 -> 0 | C24: ='C4-FinPerf RE'!D48 -> 0 | D24: ='C4-FinPerf RE'!E48 -> 0 | E24: ='C4-FinPerf RE'!F48 -> 0 | F24: ='C4-FinPerf RE'!G48 -> 0 | G24: ='C4-FinPerf RE'!H48 -> 0 | H24: 0 | J24: ='C4-FinPerf RE'!K48 -> 0
A25: Surplus/ (Deficit) for the year | B25: =B23+B24 -> 0 | C25: 851274767.4 | D25: 851274767.4 | E25: -41405668.02 | F25: 278135917.5 | G25: 200252177.2 | H25: 77883740.3 | I25: 0.3889283072 | J25: =J23+J24 -> 851274767.4
A27: Capital expenditure & funds sources
A28: Capital expenditure | B28: ='C5-Capex'!C40 -> 0 | C28: ='C5-Capex'!D40 -> 1275354230 | D28: ='C5-Capex'!E40 -> 1380149467 | E28: ='C5-Capex'!F40 -> 57367266.19 | F28: ='C5-Capex'!G40 -> 99583133.55 | G28: ='C5-Capex'!H40 -> 64942557.14 | H28: =F28-G28 -> 34640576.41 | I28: =IF(H28=0,"",H28/G28) -> 0.5334033327 | J28: ='C5-Capex'!K40 -> 1380149467
A29: Capital transfers recognised | B29: ='C5-Capex'!C70 -> 0 | C29: ='C5-Capex'!D70 -> 850352600 | D29: ='C5-Capex'!E70 -> 850352600 | E29: ='C5-Capex'!F70 -> 30553385 | F29: ='C5-Capex'!G70 -> 63978119 | G29: ='C5-Capex'!H70 -> 40013109.91 | H29: 23965009.09 | I29: 0.5989289298 | J29: ='C5-Capex'!K70 -> 850352600
A30: Public contributions & donations | B30: ='C5-Capex'!C71 -> 0 | C30: ='C5-Capex'!D71 -> 0 | D30: ='C5-Capex'!E71 -> 0 | E30: ='C5-Capex'!F71 -> 0 | F30: ='C5-Capex'!G71 -> 0 | G30: ='C5-Capex'!H71 -> 0 | H30: 0 | J30: ='C5-Capex'!K71 -> 0
A31: Borrowing | B31: ='C5-Capex'!C72 -> 0 | C31: ='C5-Capex'!D72 -> 0 | D31: ='C5-Capex'!E72 -> 0 | E31: ='C5-Capex'!F72 -> 0 | F31: ='C5-Capex'!G72 -> 0 | G31: ='C5-Capex'!H72 -> 0 | H31: 0 | J31: ='C5-Capex'!K72 -> 0
A32: Internally generated funds | B32: ='C5-Capex'!C73 -> 0 | C32: ='C5-Capex'!D73 -> 425001630 | D32: ='C5-Capex'!E73 -> 529796867.1 | E32: ='C5-Capex'!F73 -> 26813881 | F32: ='C5-Capex'!G73 -> 35605014 | G32: ='C5-Capex'!H73 -> 24929447.23 | H32: 10675566.77 | I32: 0.4282311865 | J32: ='C5-Capex'!K73 -> 529796867.1
A33: Total sources of capital funds | B33: =SUM(B29:B32) -> 0 | C33: 1275354230 | D33: 1380149467 | E33: =SUM(E29:E32) -> 57367266 | F33: =SUM(F29:F32) -> 99583133 | G33: =SUM(G29:G32) -> 64942557.14 | H33: 34640575.86 | I33: 0.5334033242 | J33: 1380149467
A35: Financial position
A36: Total current assets | B36: ='C6-FinPos'!C13 -> 0 | C36: ='C6-FinPos'!D13 -> 3250381011 | D36: ='C6-FinPos'!E13 -> 3250382000 | F36: ='C6-FinPos'!F13 -> 3720945274 | J36: ='C6-FinPos'!G13 -> 3250382000
A37: Total non current assets | B37: ='C6-FinPos'!C25 -> 0 | C37: ='C6-FinPos'!D25 -> 11706711423 | D37: ='C6-FinPos'!E25 -> 11706712000 | F37: ='C6-FinPos'!F25 -> 12472197776 | J37: ='C6-FinPos'!G25 -> 11706712000
A38: Total current liabilities | B38: ='C6-FinPos'!C35 -> 0 | C38: ='C6-FinPos'!D35 -> 1026227000 | D38: ='C6-FinPos'!E35 -> 1026227000 | F38: ='C6-FinPos'!F35 -> 1296778701 | J38: ='C6-FinPos'!G35 -> 1026227000
A39: Total non current liabilities | B39: ='C6-FinPos'!C40 -> 0 | C39: ='C6-FinPos'!D40 -> 1099508000 | D39: ='C6-FinPos'!E40 -> 1099508000 | F39: ='C6-FinPos'!F40 -> 952215067 | J39: ='C6-FinPos'!G40 -> 1099508000
A40: Community wealth/Equity | B40: ='C6-FinPos'!C48 -> 0 | C40: ='C6-FinPos'!D48 -> 1.283135743e+10 | D40: ='C6-FinPos'!E48 -> 1.283135777e+10 | F40: ='C6-FinPos'!F48 -> 13944149282 | J40: ='C6-FinPos'!G48 -> 1.283135777e+10
A42: Cash flows
A43: Net cash from (used) operating | B43: ='C7-CFlow'!C18 -> 0 | C43: ='C7-CFlow'!D18 -> 1350928670 | D43: ='C7-CFlow'!E18 -> 1329235043 | E43: ='C7-CFlow'!F18 -> -38956319 | F43: ='C7-CFlow'!G18 -> 529329794 | G43: ='C7-CFlow'!H18 -> 337732167.5 | H43: =G43-F43 -> -191597626.5 | I43: =IF(H43=0,"",H43/G43) -> -0.5673064189 | J43: ='C7-CFlow'!K18 -> 1329235043
A44: Net cash from (used) investing | B44: ='C7-CFlow'!C28 -> 0 | C44: ='C7-CFlow'!D28 -> -1275354230 | D44: ='C7-CFlow'!E28 -> -1380149467 | E44: ='C7-CFlow'!F28 -> -57367266 | F44: ='C7-CFlow'!G28 -> -99583133 | G44: ='C7-CFlow'!H28 -> -318838557.5 | H44: =G44-F44 -> -219255424.5 | I44: =IF(H44=0,"",H44/G44) -> 0.6876691019 | J44: ='C7-CFlow'!K28 -> -1380149467
A45: Net cash from (used) financing | B45: ='C7-CFlow'!C37 -> 0 | C45: ='C7-CFlow'!D37 -> -46097193.9 | D45: ='C7-CFlow'!E37 -> -46097193.9 | E45: ='C7-CFlow'!F37 -> -10369866.03 | F45: ='C7-CFlow'!G37 -> -10369866.03 | G45: ='C7-CFlow'!H37 -> -11524298.48 | H45: =G45-F45 -> -1154432.445 | I45: =IF(H45=0,"",H45/G45) -> 0.1001737717 | J45: ='C7-CFlow'!K37 -> -46097193.9
A46: Cash/cash equivalents at the month/year end | B46: ='C7-CFlow'!C41 -> 0 | C46: ='C7-CFlow'!D41 -> 2383433515 | D46: ='C7-CFlow'!E41 -> 2256944651 | E46: ='C7-CFlow'!F41 -> 0 | F46: ='C7-CFlow'!G41 -> 2618174143 | G46: ='C7-CFlow'!H41 -> 2361325581 | H46: =G46-F46 -> -256848562.9 | I46: =IF(H46=0,"",H46/G46) -> -0.1087730405 | J46: ='C7-CFlow'!K41 -> 2101785731
A48: Debtors & creditors analysis | B48: ='SC3'!C3 -> 0-30 Days | C48: ='SC3'!D3 -> 31-60 Days | D48: ='SC3'!E3 -> 61-90 Days | E48: ='SC3'!F3 -> 91-120 Days | F48: ='SC3'!G3 -> 121-150 Dys | G48: ='SC3'!H3 -> 151-180 Dys | H48: ='SC3'!I3 -> 181 Dys-1 Yr | I48: ='SC3'!J3 -> Over 1Yr | J48: Total
A49: =LEFT('SC3'!A4,20) -> Debtors Age Analysis
A50: ='SC3'!A14 -> Total By Income Source | B50: ='SC3'!C14 -> 267014629.1 | C50: ='SC3'!D14 -> 75336484.59 | D50: ='SC3'!E14 -> 65500795.26 | E50: ='SC3'!F14 -> 45115385.97 | F50: ='SC3'!G14 -> 44379517.06 | G50: ='SC3'!H14 -> 37781007.22 | H50: ='SC3'!I14 -> 196483461.9 | I50: ='SC3'!J14 -> 704969796.8 | J50: ='SC3'!K14 -> 1436581078
A51: =LEFT('SC4'!A5,22) -> Creditors Age Analysis
A52: Total Creditors | B52: ='SC4'!C15 -> 504425478 | C52: ='SC4'!D15 -> 13802331 | D52: ='SC4'!E15 -> 11839774 | E52: ='SC4'!F15 -> 0 | F52: ='SC4'!G15 -> 0 | G52: ='SC4'!H15 -> 0 | H52: ='SC4'!I15 -> 0 | I52: ='SC4'!J15 -> 0 | J52: ='SC4'!K15 -> 530067583

Sheet C2-FinPerf SC
A1: =muni& " - "&S71A& " - "&date -> BUF Buffalo City - Table C2 Monthly Budget Statement - Financial Performance (standard classification) - M03 September
A2: =desc -> Description | B2: =head27 -> Ref | C2: =Head1 -> 2014/15 | D2: =Head2 -> Budget Year 2015/16
C3: =Head5 -> Audited Outcome | D3: =Head6 -> Original Budget | E3: =Head7 -> Adjusted Budget | F3: =Head38 -> Monthly actual | G3: =Head39 -> YearTD actual | H3: =Head40 -> YearTD budget | I3: =Head41 -> YTD variance | J3: =Head41 -> YTD variance | K3: =Head8 -> Full Year Forecast
A4: R thousands | B4: 1 | J4: %
A5: Revenue - Standard
A6: Governance and administration | C6: =SUM(C7:C9) -> 0 | D6: 1974739644 | E6: 1974739644 | F6: 145239557.7 | G6: 616519789.9 | H6: 555576014.2 | I6: =G6-H6 -> 60943775.68 | J6: =IF(I6=0,"",I6/H6) -> 0.1096947567 | K6: =SUM(K7:K9) -> 1974739644
A7: Executive and council | C7: ='C2C'!C7 -> 0 | D7: ='C2C'!D7 -> 37901900 | E7: ='C2C'!E7 -> 37901900 | F7: ='C2C'!F7 -> 2269230.48 | G7: ='C2C'!G7 -> 3955960.65 | H7: ='C2C'!H7 -> 0 | I7: 3955960.65 | J7: =IF(I7=0,"",I7/H7) ->  | K7: ='C2C'!K7 -> 37901900
A8: Budget and treasury office | C8: ='C2C'!C10 -> 0 | D8: ='C2C'!D10 -> 1922818404 | E8: ='C2C'!E10 -> 1922818404 | F8: ='C2C'!F10 -> 142422564 | G8: ='C2C'!G10 -> 611502450 | H8: ='C2C'!H10 -> 555332984.1 | I8: 56169465.86 | J8: 0.1011455604 | K8: ='C2C'!K10 -> 1922818404
A9: Corporate services | C9: ='C2C'!C11 -> 0 | D9: ='C2C'!D11 -> 14019339.96 | E9: ='C2C'!E11 -> 14019339.96 | F9: ='C2C'!F11 -> 547763.2 | G9: ='C2C'!G11 -> 1061379.2 | H9: ='C2C'!H11 -> 243030.03 | I9: 818349.17 | J9: 3.367275929 | K9: ='C2C'!K11 -> 14019339.96
A10: Community and public safety | C10: =SUM(C11:C15) -> 0 | D10: 651122682 | E10: 653618391 | F10: 20486885.94 | G10: 48680086.72 | H10: 19846166.72 | I10: 28833920 | J10: 1.452870996 | K10: =SUM(K11:K15) -> 653618391
A11: Community and social services | C11: ='C2C'!C17 -> 0 | D11: ='C2C'!D17 -> 17737635.01 | E11: ='C2C'!E17 -> 17737635.01 | F11: ='C2C'!F17 -> 797918.04 | G11: ='C2C'!G17 -> 2601889.82 | H11: ='C2C'!H17 -> 2174317.6 | I11: 427572.22 | J11: 0.196646626 | K11: ='C2C'!K17 -> 17737635.01
A12: Sport and recreation | C12: ='C2C'!C26 -> 0 | D12: ='C2C'!D26 -> 5601312.858 | E12: ='C2C'!E26 -> 5601312.858 | F12: ='C2C'!F26 -> 180650 | G12: ='C2C'!G26 -> 323858 | H12: ='C2C'!H26 -> 285911.98 | I12: 37946.02 | J12: 0.1327192376 | K12: ='C2C'!K26 -> 5601312.858
A13: Public safety | C13: ='C2C'!C27 -> 0 | D13: ='C2C'!D27 -> 90035082.28 | E13: ='C2C'!E27 -> 90035082.28 | F13: ='C2C'!F27 -> 10683415 | G13: ='C2C'!G27 -> 35811373 | H13: ='C2C'!H27 -> 16979874.16 | I13: 18831498.84 | J13: 1.109048198 | K13: ='C2C'!K27 -> 90035082.28
A14: Housing | C14: ='C2C'!C33 -> 0 | D14: ='C2C'!D33 -> 535206185.7 | E14: ='C2C'!E33 -> 537701894.7 | F14: ='C2C'!F33 -> 8817614.9 | G14: ='C2C'!G33 -> 9934647.9 | H14: ='C2C'!H33 -> 10998.26 | I14: =G14-H14 -> 9923649.64 | J14: =IF(I14=0,"",I14/H14) -> 902.2926936 | K14: ='C2C'!K33 -> 537701894.7
A15: Health | C15: ='C2C'!C34 -> 0 | D15: ='C2C'!D34 -> 2542466.125 | E15: ='C2C'!E34 -> 2542466.125 | F15: ='C2C'!F34 -> 7288 | G15: ='C2C'!G34 -> 8318 | H15: ='C2C'!H34 -> 395064.72 | I15: -386746.72 | J15: -0.9789452219 | K15: ='C2C'!K34 -> 2542466.125
A16: Economic and environmental services | C16: =SUM(C17:C19) -> 0 | D16: 97751851.89 | E16: 97883316.89 | F16: 4804461.87 | G16: 7302484.02 | H16: 17057708.15 | I16: -9755224.13 | J16: -0.5718953592 | K16: =SUM(K17:K19) -> 97883316.89
A17: Planning and development | C17: ='C2C'!C39 -> 0 | D17: ='C2C'!D39 -> 21271660.85 | E17: ='C2C'!E39 -> 21403125.85 | F17: ='C2C'!F39 -> 4729060.87 | G17: ='C2C'!G39 -> 7054213.87 | H17: ='C2C'!H39 -> 3375771.07 | I17: 3678442.8 | J17: 1.089660028 | K17: ='C2C'!K39 -> 21403125.85
A18: Road transport | C18: ='C2C'!C43 -> 0 | D18: ='C2C'!D43 -> 76095670.34 | E18: ='C2C'!E43 -> 76095670.34 | F18: ='C2C'!F43 -> 63459 | G18: ='C2C'!G43 -> 213025.15 | H18: ='C2C'!H43 -> 13661445.14 | I18: -13448419.99 | J18: -0.9844068363 | K18: ='C2C'!K43 -> 76095670.34
A19: Environmental protection | C19: ='C2C'!C49 -> 0 | D19: ='C2C'!D49 -> 384520.6913 | E19: ='C2C'!E49 -> 384520.6913 | F19: ='C2C'!F49 -> 11942 | G19: ='C2C'!G49 -> 35245 | H19: ='C2C'!H49 -> 20491.94 | I19: 14753.06 | J19: 0.7199445245 | K19: ='C2C'!K49 -> 384520.6913
A20: Trading services | C20: =SUM(C21:C24) -> 0 | D20: =SUM(D21:D24) -> 2972018744 | E20: 2974518744 | F20: 197975045.1 | G20: 808998223.1 | H20: 744790309.5 | I20: 64207913.63 | J20: 0.08620938379 | K20: =SUM(K21:K24) -> 2974518744
A21: Electricity | C21: ='C2C'!C54 -> 0 | D21: ='C2C'!D54 -> 1726439180 | E21: ='C2C'!E54 -> 1726439180 | F21: ='C2C'!F54 -> 117052917 | G21: ='C2C'!G54 -> 455365420 | H21: ='C2C'!H54 -> 425437072 | I21: =G21-H21 -> 29928347.98 | J21: 0.0703472968 | K21: ='C2C'!K54 -> 1726439180
A22: Water | C22: ='C2C'!C57 -> 0 | D22: ='C2C'!D57 -> 492087558.6 | E22: ='C2C'!E57 -> 492087558.6 | F22: ='C2C'!F57 -> 31211608.94 | G22: ='C2C'!G57 -> 134619758.9 | H22: ='C2C'!H57 -> 120758127.1 | I22: =G22-H22 -> 13861631.79 | J22: 0.1147883966 | K22: ='C2C'!K57 -> 492087558.6
A23: Waste water management | C23: ='C2C'!C60 -> 0 | D23: ='C2C'!D60 -> 392459948.9 | E23: ='C2C'!E60 -> 392459948.9 | F23: ='C2C'!F60 -> 25422317.2 | G23: ='C2C'!G60 -> 117234246.2 | H23: ='C2C'!H60 -> 98415442.99 | I23: =G23-H23 -> 18818803.21 | J23: 0.1912179902 | K23: ='C2C'!K60 -> 392459948.9
A24: Waste management | C24: ='C2C'!C64 -> 0 | D24: ='C2C'!D64 -> 361032056.9 | E24: ='C2C'!E64 -> 363532056.9 | F24: ='C2C'!F64 -> 24288202 | G24: ='C2C'!G64 -> 101778798 | H24: ='C2C'!H64 -> 100179667.3 | I24: =G24-H24 -> 1599130.65 | J24: 0.01596262687 | K24: ='C2C'!K64 -> 363532056.9
A25: Other | B25: 4 | C25: ='C2C'!C66 -> 0 | D25: ='C2C'!D66 -> 874327168.8 | E25: ='C2C'!E66 -> 874327168.8 | F25: ='C2C'!F66 -> 31952273.37 | G25: ='C2C'!G66 -> 66889510.3 | H25: ='C2C'!H66 -> 66498448.85 | I25: =G25-H25 -> 391061.4502 | J25: 0.005880760483 | K25: ='C2C'!K66 -> 874327168.8
A26: Total Revenue - Standard | B26: 2 | C26: =C6+C10+C16+C20+C25 -> 0 | D26: =D6+D10+D16+D20+D25 -> 6569960091 | E26: 6575087265 | F26: 400458224 | G26: 1548390094 | H26: 1403768647 | I26: 144621446.6 | J26: 0.1030237047 | K26: =K6+K10+K16+K20+K25 -> 6575087265
A28: Expenditure - Standard
A29: =A6 -> Governance and administration | C29: =SUM(C30:C32) -> 0 | D29: 1087761718 | E29: 1103479266 | F29: 84781546.61 | G29: 224771639 | H29: 343913949.6 | I29: =G29-H29 -> -119142310.6 | J29: =IF(I29=0,"",I29/H29) -> -0.3464305845 | K29: =SUM(K30:K32) -> 1103479266
A30: =A7 -> Executive and council | C30: ='C2C'!C79 -> 0 | D30: ='C2C'!D79 -> 194037302.9 | E30: ='C2C'!E79 -> 194037302.9 | F30: ='C2C'!F79 -> 13045500.57 | G30: ='C2C'!G79 -> 45942077 | H30: ='C2C'!H79 -> 47690538.35 | I30: -1748461.347 | J30: =IF(I30=0,"",I30/H30) -> -0.03666264645 | K30: ='C2C'!K79 -> 194037302.9
A31: Budget and treasury office | C31: ='C2C'!C82 -> 0 | D31: ='C2C'!D82 -> 466957798.5 | E31: ='C2C'!E82 -> 470923101.5 | F31: ='C2C'!F82 -> 39870248.43 | G31: ='C2C'!G82 -> 100433576 | H31: ='C2C'!H82 -> 233089534.2 | I31: -132655958.2 | J31: -0.5691201824 | K31: ='C2C'!K82 -> 470923101.5
A32: Corporate services | C32: ='C2C'!C83 -> 0 | D32: ='C2C'!D83 -> 426766616.8 | E32: ='C2C'!E83 -> 438518861.8 | F32: ='C2C'!F83 -> 31865797.61 | G32: ='C2C'!G83 -> 78395986 | H32: ='C2C'!H83 -> 63133876.99 | I32: 15262109.01 | J32: 0.2417419891 | K32: ='C2C'!K83 -> 438518861.8
A33: Community and public safety | C33: =SUM(C34:C38) -> 0 | D33: 989070416 | E33: 991566125 | F33: 64780649.23 | G33: 140796294 | H33: 109928049.4 | I33: 30868244.55 | J33: 0.2808040778 | K33: =SUM(K34:K38) -> 991566125
A34: Community and social services | C34: ='C2C'!C89 -> 0 | D34: ='C2C'!D89 -> 93319599.05 | E34: ='C2C'!E89 -> 93319599.05 | F34: ='C2C'!F89 -> 9278703 | G34: ='C2C'!G89 -> 21642597 | H34: ='C2C'!H89 -> 14531211.48 | I34: 7111385.52 | J34: 0.4893869675 | K34: ='C2C'!K89 -> 93319599.05
A35: Sport and recreation | C35: ='C2C'!C98 -> 0 | D35: ='C2C'!D98 -> 74146715.21 | E35: ='C2C'!E98 -> 74146715.21 | F35: ='C2C'!F98 -> 7708802 | G35: ='C2C'!G98 -> 16829488 | H35: ='C2C'!H98 -> 10459443.48 | I35: 6370044.52 | J35: 0.6090232747 | K35: ='C2C'!K98 -> 74146715.21
A36: Public safety | C36: ='C2C'!C99 -> 0 | D36: ='C2C'!D99 -> 219274864.4 | E36: ='C2C'!E99 -> 219274864.4 | F36: ='C2C'!F99 -> 23430751.42 | G36: ='C2C'!G99 -> 60551428 | H36: ='C2C'!H99 -> 57418310.8 | I36: 3133117.203 | J36: 0.05456651649 | K36: ='C2C'!K99 -> 219274864.4
A37: Housing | C37: ='C2C'!C105 -> 0 | D37: ='C2C'!D105 -> 571730768.2 | E37: ='C2C'!E105 -> 574226477.2 | F37: ='C2C'!F105 -> 21418979.81 | G37: ='C2C'!G105 -> 34715863 | H37: ='C2C'!H105 -> 23307220.95 | I37: 11408642.05 | J37: 0.489489591 | K37: ='C2C'!K105 -> 574226477.2
A38: Health | C38: ='C2C'!C106 -> 0 | D38: ='C2C'!D106 -> 30598469.23 | E38: ='C2C'!E106 -> 30598469.23 | F38: ='C2C'!F106 -> 2943413 | G38: ='C2C'!G106 -> 7056918 | H38: ='C2C'!H106 -> 4211862.74 | I38: 2845055.26 | J38: 0.6754862244 | K38: ='C2C'!K106 -> 30598469.23
A39: Economic and environmental services | C39: =SUM(C40:C42) -> 0 | D39: 843333063.8 | E39: 822181075.8 | F39: 112632346 | G39: 168238088 | H39: 117268529.4 | I39: 50969558.55 | J39: 0.4346397008 | K39: =SUM(K40:K42) -> 822181075.8
A40: Planning and development | C40: ='C2C'!C111 -> 0 | D40: ='C2C'!D111 -> 213708166.2 | E40: ='C2C'!E111 -> 213839632.2 | F40: ='C2C'!F111 -> 17465363.99 | G40: ='C2C'!G111 -> 47746304 | H40: ='C2C'!H111 -> 49443739.69 | I40: -1697435.694 | J40: -0.03433064943 | K40: ='C2C'!K111 -> 213839632.2
A41: Road transport | C41: ='C2C'!C115 -> 0 | D41: ='C2C'!D115 -> 527885673.5 | E41: ='C2C'!E115 -> 506602219.5 | F41: ='C2C'!F115 -> 84319870 | G41: ='C2C'!G115 -> 95459489 | H41: ='C2C'!H115 -> 53972098.89 | I41: 41487390.11 | J41: 0.7686821702 | K41: ='C2C'!K115 -> 506602219.5
A42: Environmental protection | C42: ='C2C'!C121 -> 0 | D42: ='C2C'!D121 -> 101739224 | E42: ='C2C'!E121 -> 101739224 | F42: ='C2C'!F121 -> 10847112 | G42: ='C2C'!G121 -> 25032295 | H42: ='C2C'!H121 -> 13852690.86 | I42: 11179604.14 | J42: 0.8070348392 | K42: ='C2C'!K121 -> 101739224
A43: Trading services | C43: =SUM(C44:C47) -> 0 | D43: =SUM(D44:D47) -> 2781668822 | E43: 2789734727 | F43: 177690126.2 | G43: 732990673 | H43: 630685536.8 | I43: 102305136.2 | J43: 0.1622125929 | K43: =SUM(K44:K47) -> 2789734727
A44: Electricity | C44: ='C2C'!C126 -> 0 | D44: ='C2C'!D126 -> 1625903570 | E44: ='C2C'!E126 -> 1625903570 | F44: ='C2C'!F126 -> 73109384.26 | G44: ='C2C'!G126 -> 480336984 | H44: ='C2C'!H126 -> 408260248.9 | I44: 72076735.08 | J44: 0.1765460519 | K44: ='C2C'!K126 -> 1625903570
A45: Water | C45: ='C2C'!C129 -> 0 | D45: ='C2C'!D129 -> 503337345.9 | E45: ='C2C'!E129 -> 503337345.9 | F45: ='C2C'!F129 -> 40858673.47 | G45: ='C2C'!G129 -> 120580749 | H45: ='C2C'!H129 -> 91069407.86 | I45: 29511341.14 | J45: 0.3240532889 | K45: ='C2C'!K129 -> 503337345.9
A46: Waste water management | C46: ='C2C'!C132 -> 0 | D46: ='C2C'!D132 -> 362232303.9 | E46: ='C2C'!E132 -> 362232303.9 | F46: ='C2C'!F132 -> 40680030.09 | G46: ='C2C'!G132 -> 76840441 | H46: ='C2C'!H132 -> 51568836.11 | I46: 25271604.89 | J46: 0.4900557547 | K46: ='C2C'!K132 -> 362232303.9
A47: Waste management | C47: ='C2C'!C136 -> 0 | D47: ='C2C'!D136 -> 290195602.8 | E47: ='C2C'!E136 -> 298261507.8 | F47: ='C2C'!F136 -> 23042038.35 | G47: ='C2C'!G136 -> 55232499 | H47: ='C2C'!H136 -> 79787043.88 | I47: -24554544.88 | J47: -0.3077510293 | K47: ='C2C'!K136 -> 298261507.8
A48: Other | C48: ='C2C'!C138 -> 0 | D48: ='C2C'!D138 -> 17005220.31 | E48: ='C2C'!E138 -> 16851303.15 | F48: ='C2C'!F138 -> 1979225 | G48: ='C2C'!G138 -> 3457483 | H48: ='C2C'!H138 -> 1720404.94 | I48: 1737078.06 | J48: 1.009691393 | K48: ='C2C'!K138 -> 16851303.15
A49: Total Expenditure - Standard | B49: 3 | C49: =C29+C33+C39+C43+C48 -> 0 | D49: =D29+D33+D39+D43+D48 -> 5718839240 | E49: 5723812497 | F49: 441863893 | G49: 1270254177 | H49: 1203516470 | I49: 66737706.82 | J49: 0.05545225884 | K49: =K29+K33+K39+K43+K48 -> 5723812497
A50: Surplus/ (Deficit) for the year | C50: =C26-C49 -> 0 | D50: 851120850.2 | E50: 851274767.4 | F50: -41405669 | G50: 278135917 | H50: 200252177.2 | I50: =I26-I49 -> 77883739.82 | J50: =IF(I50=0,"",I50/H50) -> 0.3889283048 | K50: =K26-K49 -> 851274767.4
A51: =head27a -> References
A52: 1. Government Finance Statistics Functions and Sub-functions are standardised to assist the compilation of national and international accounts for comparison purposes
A53: 2. Total Revenue by standard classification must reconcile to Total Operating Revenue shown in the Financial Performance Statement
A54: 3. Total Expenditure by standard classification must reconcile to total operating expenditure shown in 'Financial Performance Statement'
A55: 4. All amounts must be classified under a standard classification (modified GFS). The GFS function 'Other' is only for Abbatoirs, Air Transport, Markets and Tourism - and if used must be supported by footnotes. Nothing else may be placed under 'Other'. Assign associate share to relevant classification

Sheet C2C
A1: =muni& " - "&S71A& " - "&date -> BUF Buffalo City - Table C2 Monthly Budget Statement - Financial Performance (standard classification) - M03 September
A2: =desc -> Description | B2: =head27 -> Ref | C2: =Head1 -> 2014/15 | D2: =Head2 -> Budget Year 2015/16
C3: =Head5 -> Audited Outcome | D3: =Head6 -> Original Budget | E3: =Head7 -> Adjusted Budget | F3: =Head38 -> Monthly actual | G3: =Head39 -> YearTD actual | H3: =Head40 -> YearTD budget | I3: =Head41 -> YTD variance | J3: =Head41 -> YTD variance | K3: =Head8 -> Full Year Forecast | M3: YTD Budget | O3: YearTD actual
A4: R thousands | B4: 1 | J4: %
A5: Revenue - Standard
A6: Municipal governance and administration | C6: =C7+C10+C11 -> 0 | D6: =D7+D10+D11 -> 1974739644 | E6: 1974739644 | F6: 145239557.7 | G6: 616519789.9 | H6: 555576014.2 | I6: =G6-H6 -> 60943775.68 | J6: =IF(I6=0,"",I6/H6) -> 0.1096947567 | K6: 1974739644 | O6: 471280232.2
A7: Executive and council | C7: =SUM(C8:C9) -> 0 | D7: =SUM(D8:D9) -> 37901900 | E7: 37901900 | F7: 2269230.48 | G7: 3955960.65 | H7: 0 | I7: =G7-H7 -> 3955960.65 | J7: =IF(I7=0,"",I7/H7) ->  | K7: 37901900 | O7: 1686730.17
A8: Mayor and Council | D8: 0 | E8: 0 | F8: 0 | H8: 0 | I8: 0 | K8: 0 | M8: =D8/$D$7*$M$7 -> 0 | O8: 0 | P8: =G8-O8 -> 0
A9: Municipal Manager | D9: 37901900 | E9: 37901900 | F9: 2269230.48 | G9: 3955960.65 | H9: 0 | I9: 3955960.65 | K9: 37901900 | M9: =D9/$D$7*$M$7 -> 0 | O9: 1686730.17 | P9: =G9-O9 -> 2269230.48
A10: Budget and treasury office | D10: 1922818404 | E10: 1922818404 | F10: 142422564 | G10: 611502450 | H10: =443065750.89+97658790.8566699-175835.22+14784277.61 -> 555332984.1 | I10: 56169465.86 | J10: 0.1011455604 | K10: 1922818404 | O10: 469079886 | P10: 142422564
A11: Corporate services | C11: =SUM(C12:C15) -> 0 | D11: =SUM(D12:D15) -> 14019339.96 | E11: 14019339.96 | F11: 547763.2 | G11: 1061379.2 | H11: 243030.03 | I11: 818349.17 | J11: 3.367275929 | K11: 14019339.96 | M11: 243030.03 | O11: 513616 | P11: 547763.2
A12: Human Resources | D12: 11850780 | E12: 11850780 | F12: 322251.03 | G12: 376646.03 | H12: 205437.305 | I12: 171208.725 | J12: 0.8333867359 | K12: 11850780 | M12: =D12/$D$11*$M$11 -> 205437.305 | O12: 54395 | P12: 322251.03
A13: Information Technology | D13: 0 | E13: 0 | F13: 0 | H13: 0 | I13: 0 | K13: 0 | M13: =D13/$D$11*$M$11 -> 0 | O13: 0 | P13: 0
A14: Property Services | D14: 1147645.229 | E14: 1147645.229 | F14: 110123.17 | G14: 330503.17 | H14: 19894.82068 | I14: 310608.3493 | J14: 15.6125232 | K14: 1147645.229 | M14: 19894.82068 | O14: 220380 | P14: 110123.17
A15: Other Admin | D15: 1020914.731 | E15: 1020914.731 | F15: 115389 | G15: 354230 | H15: 17697.90435 | I15: 336532.0957 | J15: 19.01536414 | K15: 1020914.731 | M15: 17697.90435 | O15: 238841 | P15: 115389
A16: Community and public safety | C16: =C17+C26+C27+C33+C34 -> 0 | D16: =D17+D26+D27+D33+D34 -> 651122682 | E16: 653618391 | F16: 20486885.94 | G16: 48680086.72 | H16: 19846166.72 | I16: 28833920 | J16: 1.452870996 | K16: 653618391 | O16: 28193200.78 | P16: 20486885.94
A17: Community and social services | C17: =SUM(C18:C25) -> 0 | D17: =SUM(D18:D25) -> 17737635.01 | E17: 17737635.01 | F17: 797918.04 | G17: 2601889.82 | H17: 2174317.6 | I17: 427572.22 | J17: 0.196646626 | K17: 17737635.01 | M17: 2174317.6 | O17: 1803971.78 | P17: 797918.04
A18: Libraries and Archives | D18: 4360898.891 | E18: 4360898.891 | F18: 31914.11 | G18: 79866.11 | H18: 534568.4025 | I18: -454702.2925 | J18: -0.8505970244 | K18: 4360898.891 | M18: =D18/$D$17*$M$17 -> 534568.4025 | O18: 47952 | P18: 31914.11
A19: Museums & Art Galleries etc | D19: 1596 | E19: 1596 | F19: 0 | H19: 195.6411262 | I19: -195.6411262 | J19: -1 | K19: 1596 | M19: =D19/$D$17*$M$17 -> 195.6411262 | O19: 0 | P19: 0
A20: Community halls and Facilities | D20: 2481628.425 | E20: 2481628.425 | F20: 101536.74 | G20: 299639.27 | H20: 304203.3709 | I20: -4564.100862 | J20: -0.01500345262 | K20: 2481628.425 | M20: 304203.3709 | O20: 198102.53 | P20: 101536.74
A21: Cemeteries & Crematoriums | D21: 8909957.931 | E21: 8909957.931 | F21: 596519.75 | G21: 1989986 | H21: 1092201.882 | I21: 897784.1176 | J21: 0.8219946624 | K21: 8909957.931 | M21: 1092201.882 | O21: 1393466.25 | P21: 596519.75
A22: Child Care | D22: 0 | E22: 0 | F22: 0 | H22: 0 | I22: 0 | K22: 0 | M22: 0 | O22: 0 | P22: 0
A23: Aged Care | D23: 0 | E23: 0 | F23: 0 | H23: 0 | I23: 0 | K23: 0 | M23: 0 | O23: 0 | P23: 0
A24: Other Community | D24: 7253 | E24: 7253 | F24: 0 | H24: 889.0884014 | I24: -889.0884014 | J24: -1 | K24: 7253 | M24: 889.0884014 | O24: 0 | P24: 0
A25: Other Social | D25: 1976300.761 | E25: 1976300.761 | F25: 67947.44 | G25: 232398.44 | H25: 242259.2147 | I25: -9860.774669 | J25: -0.04070340393 | K25: 1976300.761 | M25: 242259.2147 | O25: 164451 | P25: 67947.44
A26: Sport and recreation | D26: 5601312.858 | E26: 5601312.858 | F26: 180650 | G26: 323858 | H26: 285911.98 | I26: 37946.02 | J26: 0.1327192376 | K26: 5601312.858 | O26: 143208 | P26: 180650
A27: Public safety | C27: =SUM(C28:C32) -> 0 | D27: =SUM(D28:D32) -> 90035082.28 | E27: 90035082.28 | F27: 10683415 | G27: 35811373 | H27: 16979874.16 | I27: 18831498.84 | J27: 1.109048198 | K27: 90035082.28 | M27: 16979874.16 | O27: 25127958 | P27: 10683415
A28: Police | D28: 10228856.73 | E28: 10228856.73 | F28: 5339655 | G28: 13350696 | H28: 1929078.041 | I28: 11421617.96 | J28: 5.92076511 | K28: 10228856.73 | M28: =D28/$D$27*$M$27 -> 1929078.041 | O28: 8011041 | P28: 5339655
A29: Fire | D29: 77837506.71 | E29: 77837506.71 | F29: 5343760 | G29: 22460677 | H29: 14679511.98 | I29: 7781165.021 | J29: 0.5300697347 | K29: 77837506.71 | M29: =D29/$D$27*$M$27 -> 14679511.98 | O29: 17116917 | P29: 5343760
A30: Civil Defence | D30: 0 | E30: 0 | F30: 0 | G30: 0 | H30: 0 | I30: 0 | K30: 0 | M30: 0 | O30: 0 | P30: 0
A31: Street Lighting | D31: 0 | E31: 0 | F31: 0 | G31: 0 | H31: 0 | I31: 0 | K31: 0 | M31: 0 | O31: 0 | P31: 0
A32: Other | D32: 1968718.834 | E32: 1968718.834 | F32: 0 | G32: 0 | H32: 371284.1395 | I32: -371284.1395 | J32: -1 | K32: 1968718.834 | M32: 371284.1395 | O32: 0 | P32: 0
A33: Housing | D33: 535206185.7 | E33: 537701894.7 | F33: 8817614.9 | G33: 9934647.9 | H33: 10998.26 | I33: 9923649.64 | J33: 902.2926936 | K33: 537701894.7 | O33: 1117033 | P33: 8817614.9
A34: Health | C34: =SUM(C35:C37) -> 0 | D34: =SUM(D35:D37) -> 2542466.125 | E34: 2542466.125 | F34: 7288 | G34: 8318 | H34: 395064.72 | I34: -386746.72 | J34: -0.9789452219 | K34: 2542466.125 | M34: 395064.72 | O34: 1030 | P34: 7288
A35: Clinics | D35: 0 | E35: 0 | F35: 0 | G35: 0 | H35: 0 | I35: 0 | K35: 0 | M35: =D35/$D$34*$M$34 -> 0 | O35: 0 | P35: 0
A36: Ambulance | D36: 0 | E36: 0 | F36: 0 | G36: 0 | H36: 0 | I36: 0 | K36: 0 | M36: =D36/$D$34*$M$34 -> 0 | O36: 0 | P36: 0
A37: Other | D37: 2542466.125 | E37: 2542466.125 | F37: 7288 | G37: 8318 | H37: 395064.72 | I37: -386746.72 | J37: -0.9789452219 | K37: 2542466.125 | M37: 395064.72 | O37: 1030 | P37: 7288
A38: Economic and environmental services | C38: =C39+C43+C49 -> 0 | D38: =D39+D43+D49 -> 97751851.89 | E38: 97883316.89 | F38: 4804461.87 | G38: 7302484.02 | H38: 17057708.15 | I38: -9755224.13 | J38: -0.5718953592 | K38: 97883316.89 | O38: 2498022.15 | P38: 4804461.87
A39: Planning and development | C39: =SUM(C40:C42) -> 0 | D39: =SUM(D40:D42) -> 21271660.85 | E39: 21403125.85 | F39: 4729060.87 | G39: 7054213.87 | H39: 3375771.07 | I39: 3678442.8 | J39: 1.089660028 | K39: 21403125.85 | M39: 3375771.07 | O39: 2325153 | P39: 4729060.87
A40: Economic Development/Planning | D40: 19657049.96 | E40: 19788514.96 | F40: 1874474 | G40: 3895112 | H40: 3119535.472 | I40: 775576.5285 | J40: 0.2486192369 | K40: 19788514.96 | M40: =D40/$D$39*$M$39 -> 3119535.472 | O40: 2020638 | P40: 1874474
A41: Town Planning/Building enforcement | D41: 1614610.895 | E41: 1614610.895 | F41: 2854586.87 | G41: 3159101.87 | H41: 256235.5985 | I41: 2902866.272 | J41: 11.32889532 | K41: 1614610.895 | M41: =D41/$D$39*$M$39 -> 256235.5985 | O41: 304515 | P41: 2854586.87
A42: Licensing & Regulation | D42: 0 | E42: 0 | F42: 0 | H42: 0 | I42: 0 | K42: 0 | M42: 0 | P42: 0
A43: Road transport | C43: =SUM(C44:C48) -> 0 | D43: =SUM(D44:D48) -> 76095670.34 | E43: 76095670.34 | F43: 63459 | G43: 213025.15 | H43: 13661445.14 | I43: -13448419.99 | J43: -0.9844068363 | K43: 76095670.34 | M43: 13661445.14 | O43: 149566.15 | P43: 63459
A44: Roads | D44: 2943308.623 | E44: 2943308.623 | F44: 6667 | G44: 38586 | H44: 528411.7888 | I44: -489825.7888 | J44: -0.9269774051 | K44: 2943308.623 | M44: =D44/$D$43*$M$43 -> 528411.7888 | O44: 31919 | P44: 6667
A45: Public Buses | D45: 8302584.726 | E45: 8302584.726 | F45: 56792 | G45: 174439.15 | H45: 1490561.884 | I45: -1316122.734 | J45: -0.882970877 | K45: 8302584.726 | M45: =D45/$D$43*$M$43 -> 1490561.884 | O45: 117647.15 | P45: 56792
A46: Parking Garages | D46: 150896.1564 | E46: 150896.1564 | F46: 0 | G46: 0 | H46: 27090.36602 | I46: -27090.36602 | J46: -1 | K46: 150896.1564 | M46: 27090.36602 | O46: 0 | P46: 0
A47: Vehicle Licensing and Testing | D47: 64698880.84 | E47: 64698880.84 | F47: 0 | G47: 0 | H47: 11615381.1 | I47: -11615381.1 | J47: -1 | K47: 64698880.84 | M47: 11615381.1 | O47: 0 | P47: 0
A48: Other | D48: 0 | E48: 0 | F48: 0 | H48: 0 | I48: 0 | K48: 0 | M48: 0 | P48: 0
A49: Environmental protection | C49: =SUM(C50:C52) -> 0 | D49: =SUM(D50:D52) -> 384520.6913 | E49: 384520.6913 | F49: 11942 | G49: 35245 | H49: 20491.94 | I49: 14753.06 | J49: 0.7199445245 | K49: 384520.6913 | O49: 23303 | P49: 11942
A50: Pollution Control | D50: 0 | E50: 0 | F50: 0 | H50: 0 | I50: 0 | K50: 0 | P50: 0
A51: Biodiversity & Landscape | D51: 0 | E51: 0 | F51: 0 | H51: 0 | I51: 0 | K51: 0 | P51: 0
A52: Other | D52: 384520.6913 | E52: 384520.6913 | F52: 11942 | G52: 35245 | H52: 20491.94 | I52: 14753.06 | J52: 0.7199445245 | K52: 384520.6913 | O52: 23303 | P52: 11942
A53: Trading services | C53: =C54+C57+C60+C64 -> 0 | D53: =D54+D57+D60+D64 -> 2972018744 | E53: 2974518744 | F53: 197975045.1 | G53: 808998223.1 | H53: 744790309.5 | I53: 64207913.63 | J53: 0.08620938379 | K53: =K54+K57+K60+K64 -> 2974518744 | O53: 611023178 | P53: 197975045.1
A54: Electricity | C54: =SUM(C55:C56) -> 0 | D54: =SUM(D55:D56) -> 1726439180 | E54: 1726439180 | F54: 117052917 | G54: 455365420 | H54: 425437072 | I54: 29928347.98 | J54: 0.0703472968 | K54: 1726439180 | O54: 338312503 | P54: 117052917
A55: Electricity Distribution | D55: 1726439180 | E55: 1726439180 | F55: 117052917 | G55: 455365420 | H55: =286800868.68+138636203.34342 -> 425437072 | I55: 29928347.98 | J55: 0.0703472968 | K55: 1726439180 | O55: 338312503 | P55: 117052917
A56: Electricity Generation | E56: 0 | I56: 0 | K56: 0 | P56: 0
A57: Water | C57: =SUM(C58:C59) -> 0 | D57: =SUM(D58:D59) -> 492087558.6 | E57: 492087558.6 | F57: 31211608.94 | G57: 134619758.9 | H57: 120758127.1 | I57: 13861631.79 | J57: 0.1147883966 | K57: 492087558.6 | M57: 96839499.96 | O57: 103408150 | P57: 31211608.94
A58: Water Distribution | D58: 491976622.6 | E58: 491976622.6 | F58: 31211608.94 | G58: 134619758.9 | H58: =96817668.5062683+23918627.1853953 -> 120736295.7 | I58: 13883463.25 | J58: 0.1149899719 | K58: 491976622.6 | M58: =D58/$D$57*$M$57 -> 96817668.51 | O58: 103408150 | P58: 31211608.94
A59: Water Storage | D59: 110936 | E59: 110936 | H59: 21831.45373 | I59: -21831.45373 | J59: -1 | K59: 110936 | M59: =D59/$D$57*$M$57 -> 21831.45373 | P59: 0
A60: Waste water management | C60: =SUM(C61:C63) -> 0 | D60: =SUM(D61:D63) -> 392459948.9 | E60: 392459948.9 | F60: 25422317.2 | G60: 117234246.2 | H60: 98415442.99 | I60: 18818803.21 | J60: 0.1912179902 | K60: 392459948.9 | O60: 91811929 | P60: 25422317.2
A61: Sewerage | D61: 392459948.9 | E61: 392459948.9 | F61: 25422317.2 | G61: 117234246.2 | H61: =284422667.68-186007224.693565 -> 98415442.99 | I61: 18818803.21 | J61: 0.1912179902 | K61: 392459948.9 | O61: 91811929 | P61: 25422317.2
A62: Storm Water Management | I62: 0 | P62: 0
A63: Public Toilets | I63: 0 | P63: 0
A64: Waste management | C64: =SUM(C65) -> 0 | D64: =SUM(D65) -> 361032056.9 | E64: 363532056.9 | F64: 24288202 | G64: 101778798 | H64: 100179667.3 | I64: 1599130.65 | J64: 0.01596262687 | K64: 363532056.9 | O64: 77490596 | P64: 24288202
A65: Solid Waste | D65: 361032056.9 | E65: 363532056.9 | F65: 24288202 | G65: 101778798 | H65: =72499328.11+27680339.24 -> 100179667.3 | I65: 1599130.65 | J65: 0.01596262687 | K65: 363532056.9 | O65: 77490596 | P65: 24288202
A66: Other | C66: =SUM(C67:C74) -> 0 | D66: =SUM(D67:D74) -> 874327168.8 | E66: =SUM(E67:E74) -> 874327168.8 | F66: 31952273.37 | G66: 66889510.3 | H66: 66498448.85 | I66: 391061.4502 | J66: 0.005880760483 | K66: =SUM(K67:K74) -> 874327168.8 | M66: 1555891.71 | O66: 34937236.93 | P66: 31952273.37
A67: Air Transport | D67: 0 | E67: 0 | F67: 0 | G67: 0 | H67: 0 | I67: 0 | K67: 0 | M67: =D67/$D$66*$M$66 -> 0 | O67: 0 | P67: 0
A68: Abattoirs | D68: 0 | E68: 0 | F68: 0 | G68: 0 | H68: 0 | I68: 0 | K68: 0 | M68: =D68/$D$66*$M$66 -> 0 | O68: 0 | P68: 0
A69: Tourism | D69: 0 | E69: 0 | F69: 0 | G69: 0 | H69: 0 | I69: 0 | K69: 0 | M69: 0 | O69: 0 | P69: 0
A70: Forestry | D70: 0 | E70: 0 | F70: 0 | G70: 0 | H70: 0 | I70: 0 | K70: 0 | M70: 0 | O70: 0 | P70: 0
A71: Markets | D71: 23974568.77 | E71: 23974568.77 | F71: 1398888.07 | G71: 2911391.07 | H71: 42663.47213 | I71: =G71-H71 -> 2868727.598 | J71: =IF(I71=0,"",I71/H71) -> 67.24083753 | K71: 23974568.77 | M71: 42663.47213 | O71: 1512503 | P71: 1398888.07
A72: Transfers to/from other reserves | D72: 0 | E72: 0 | F72: 0 | G72: 0 | H72: 0 | I72: =G72-H72 -> 0 | J72: =IF(I72=0,"",I72/H72) ->  | K72: 0 | M72: 0 | O72: 0 | P72: 0
A73: Transfers Recognised - Capital | D73: 850352600 | E73: 850352600 | F73: 30553385.3 | G73: 63978119.23 | H73: =1513228.23786976+64942557.1398405 -> 66455785.38 | I73: -2477666.148 | J73: -0.03728292629 | K73: 850352600 | M73: 1513228.238 | O73: 33424733.93 | P73: =G73-O73 -> 30553385.3
A74: Contributions Recognised - Capital | D74: 0 | E74: 0 | F74: 0 | G74: 0 | H74: 0 | I74: 0 | K74: 0 | M74: 0 | O74: 0 | P74: 0
A75: ="Total "&A5 -> Total Revenue - Standard | B75: 2 | C75: =C6+C16+C38+C53+C66 -> 0 | D75: 6569960091 | E75: 6575087265 | F75: 400458224 | G75: 1548390094 | H75: 1403768647 | I75: =G75-H75 -> 144621446.6 | J75: =IF(I75=0,"",I75/H75) -> 0.1030237047 | K75: =K6+K16+K38+K53+K66 -> 6575087265 | O75: 1147931870 | P75: 400458224
P76: 0
A77: Expenditure - Standard | P77: 0
A78: =A6 -> Municipal governance and administration | C78: =C79+C82+C83 -> 0 | D78: 1087761718 | E78: 1103479266 | F78: 84781546.61 | G78: 224771639 | H78: 343913949.6 | I78: =G78-H78 -> -119142310.6 | J78: =IF(I78=0,"",I78/H78) -> -0.3464305845 | K78: 1103479266 | O78: 139990092.4 | P78: 84781546.61
A79: =A7 -> Executive and council | C79: =SUM(C80:C81) -> 0 | D79: 194037302.9 | E79: 194037302.9 | F79: 13045500.57 | G79: 45942077 | H79: 47690538.35 | I79: -1748461.347 | J79: -0.03666264645 | K79: 194037302.9 | M79: =32505830.51+5897408.80030931+2748989.9695232+5691909.9+480391.322822666+366007.843875164 -> 47690538.35 | O79: 32896576.43 | P79: 13045500.57
A80: Mayor and Council | D80: 91913486.42 | E80: 91913486.42 | F80: 6306028.463 | G80: 18450689 | H80: 22590520.4 | I80: -4139831.398 | J80: -0.1832552471 | K80: 91913486.42 | M80: =D80/$D$79*$M$79 -> 22590520.4 | O80: 12144660.54 | P80: 6306028.463
A81: Municipal Manager | D81: 102123816.5 | E81: 102123816.5 | F81: 6739472.109 | G81: 27491388 | H81: 25100017.95 | I81: 2391370.051 | J81: 0.09527363909 | K81: 102123816.5 | M81: =D81/$D$79*$M$79 -> 25100017.95 | O81: 20751915.89 | P81: 6739472.109
A82: Budget and treasury office | D82: 466957798.5 | E82: 470923101.5 | F82: 39870248.43 | G82: 100433576 | H82: =52439059.65+22576713.9772941+10606711.4843546+474358.177171604+146992690.95291 -> 233089534.2 | I82: -132655958.2 | J82: -0.5691201824 | K82: 470923101.5 | O82: 60563327.57 | P82: 39870248.43
A83: Corporate services | C83: =SUM(C84:C87) -> 0 | D83: 426766616.8 | E83: 438518861.8 | F83: 31865797.61 | G83: 78395986 | H83: 63133876.99 | I83: 15262109.01 | J83: 0.2417419891 | K83: 438518861.8 | M83: =44266107.56+14659284.708397+4208484.72634398 -> 63133876.99 | O83: 46530188.39 | P83: 31865797.61
A84: Human Resources | D84: 72354595.2 | E84: 72479222.2 | F84: 6254639 | G84: 17123834 | H84: 10703803.75 | I84: 6420030.249 | J84: 0.5997896074 | K84: 72479222.2 | M84: =D84/$D$83*$M$83 -> 10703803.75 | O84: 10869195 | P84: 6254639
A85: Information Technology | D85: 62288691.66 | E85: 69836078.66 | F85: -2831374.391 | H85: 9214700.595 | I85: -9214700.595 | J85: -1 | K85: 69836078.66 | M85: =D85/$D$83*$M$83 -> 9214700.595 | O85: 2831374.391 | P85: -2831374.391
A86: Property Services | D86: 176408.7 | E86: 176408.7 | F86: 1153163 | G86: 1153163 | H86: 26097.08616 | I86: 1127065.914 | J86: 43.18742357 | K86: 176408.7 | M86: 26097.08616 | P86: 1153163
A87: Other Admin | D87: 291946921.2 | E87: 296027152.2 | F87: 27289370 | G87: 60118989 | H87: 43189275.56 | I87: 16929713.44 | J87: 0.3919888263 | K87: 296027152.2 | M87: 43189275.56 | O87: 32829619 | P87: 27289370
A88: Community and public safety | C88: =C89+C98+C99+C105+C106 -> 0 | D88: 989070416 | E88: 991566125 | F88: 64780649.23 | G88: 140796294 | H88: 109928049.4 | I88: 30868244.55 | J88: 0.2808040778 | K88: 991566125 | O88: 76015644.77 | P88: 64780649.23
A89: Community and social services | C89: =SUM(C90:C97) -> 0 | D89: 93319599.05 | E89: 93319599.05 | F89: 9278703 | G89: 21642597 | H89: 14531211.48 | I89: 7111385.52 | J89: 0.4893869675 | K89: 93319599.05 | M89: 14531211.48 | O89: 12363894 | P89: 9278703
A90: Libraries and Archives | D90: 24610032.02 | E90: 24610032.02 | F90: 1809814 | G90: 4518419 | H90: 3832137.98 | I90: 686281.0198 | J90: 0.1790856757 | K90: 24610032.02 | M90: =D90/$D$89*$M$89 -> 3832137.98 | O90: 2708605 | P90: 1809814
A91: Museums & Art Galleries etc | D91: 430594.8862 | E91: 430594.8862 | F91: 0 | H91: 67049.85253 | I91: -67049.85253 | J91: -1 | K91: 430594.8862 | M91: =D91/$D$89*$M$89 -> 67049.85253 | P91: 0
A92: Community halls and Facilities | D92: 16872826 | E92: 16872826 | F92: 1633530 | G92: 3689730 | H92: 2627343.08 | I92: 1062386.92 | J92: 0.4043578959 | K92: 16872826 | M92: 2627343.08 | O92: 2056200 | P92: 1633530
A93: Cemeteries & Crematoriums | D93: 28613867.03 | E93: 28613867.03 | F93: 3015119 | G93: 6630056 | H93: 4455593.009 | I93: 2174462.991 | J93: 0.4880299855 | K93: 28613867.03 | M93: 4455593.009 | O93: 3614937 | P93: 3015119
A94: Child Care | D94: 0 | E94: 0 | F94: 0 | H94: 0 | I94: 0 | K94: 0 | M94: 0 | P94: 0
A95: Aged Care | D95: 0 | E95: 0 | F95: 0 | H95: 0 | I95: 0 | K95: 0 | M95: 0 | P95: 0
A96: Other Community | D96: 15122712.56 | E96: 15122712.56 | F96: 970366 | G96: 2569961 | H96: 2354825.102 | I96: 215135.8978 | J96: 0.09135960781 | K96: 15122712.56 | M96: 2354825.102 | O96: 1599595 | P96: 970366
A97: Other Social | D97: 7669566.555 | E97: 7669566.555 | F97: 1849874 | G97: 4234431 | H97: 1194262.456 | I97: 3040168.544 | J97: 2.545645246 | K97: 7669566.555 | M97: 1194262.456 | O97: 2384557 | P97: 1849874
A98: Sport and recreation | D98: 74146715.21 | E98: 74146715.21 | F98: 7708802 | G98: 16829488 | H98: 10459443.48 | I98: 6370044.52 | J98: 0.6090232747 | K98: 74146715.21 | O98: 9120686 | P98: 7708802
A99: Public safety | C99: =SUM(C100:C104) -> 0 | D99: 219274864.4 | E99: 219274864.4 | F99: 23430751.42 | G99: 60551428 | H99: 57418310.8 | I99: 3133117.203 | J99: 0.05456651649 | K99: 219274864.4 | M99: =28238957.2+26430931.9184401+761917.495661456+1986504.182714 -> 57418310.8 | O99: 37120676.58 | P99: 23430751.42
A100: Police | D100: 130895967 | E100: 130895967 | F100: 16399445 | G100: 41636903 | H100: 34275817.87 | I100: 7361085.132 | J100: 0.2147603059 | K100: 130895967 | M100: =D100/$D$99*$M$99 -> 34275817.87 | O100: 25237458 | P100: 16399445
A101: Fire | D101: 83920855.11 | E101: 83920855.11 | F101: 6784733.419 | G101: 18215014 | H101: 21975130.41 | I101: -3760116.414 | J101: -0.1711078089 | K101: 83920855.11 | M101: =D101/$D$99*$M$99 -> 21975130.41 | O101: 11430280.58 | P101: 6784733.419
A102: Civil Defence | D102: 0 | E102: 0 | F102: 0 | H102: 0 | I102: 0 | K102: 0 | M102: 0 | P102: 0
A103: Street Lighting | D103: 0 | E103: 0 | F103: 0 | H103: 0 | I103: 0 | K103: 0 | M103: 0 | P103: 0
A104: Other | D104: 4458042.275 | E104: 4458042.275 | F104: 246573 | G104: 699511 | H104: 1167362.514 | I104: -467851.514 | J104: -0.400776544 | K104: 4458042.275 | M104: 1167362.514 | O104: 452938 | P104: 246573
A105: Housing | D105: 571730768.2 | E105: 574226477.2 | F105: 21418979.81 | G105: 34715863 | H105: =19097584.17+2304977.46182475+1904659.317395 -> 23307220.95 | I105: 11408642.05 | J105: 0.489489591 | K105: 574226477.2 | O105: 13296883.19 | P105: 21418979.81
A106: Health | C106: =SUM(C107:C109) -> 0 | D106: 30598469.23 | E106: 30598469.23 | F106: 2943413 | G106: 7056918 | H106: 4211862.74 | I106: 2845055.26 | J106: 0.6754862244 | K106: 30598469.23 | M106: 4211862.74 | O106: 4113505 | P106: 2943413
A107: Clinics | D107: 1638643.908 | E107: 1638643.908 | F107: 0 | G107: 0 | H107: 225558.4476 | I107: -225558.4476 | J107: -1 | K107: 1638643.908 | M107: =D107/$D$106*$M$106 -> 225558.4476 | O107: 0 | P107: 0
A108: Ambulance | D108: 0 | E108: 0 | F108: 0 | G108: 0 | H108: 0 | I108: 0 | K108: 0 | M108: =D108/$D$106*$M$106 -> 0 | O108: 0 | P108: 0
A109: Other | D109: 28959825.32 | E109: 28959825.32 | F109: 2943413 | G109: 7056918 | H109: 3986304.292 | I109: 3070613.708 | J109: 0.7702908465 | K109: 28959825.32 | M109: 3986304.292 | O109: 4113505 | P109: 2943413
A110: Economic and environmental services | C110: =C111+C115+C121 -> 0 | D110: 843333063.8 | E110: 822181075.8 | F110: 112632346 | G110: 168238088 | H110: 117268529.4 | I110: 50969558.55 | J110: 0.4346397008 | K110: 822181075.8 | O110: 55605742.01 | P110: 112632346
A111: Planning and development | C111: =SUM(C112:C114) -> 0 | D111: 213708166.2 | E111: 213839632.2 | F111: 17465363.99 | G111: 47746304 | H111: 49443739.69 | I111: -1697435.694 | J111: -0.03433064943 | K111: 213839632.2 | M111: =15818817.33+11931736.8175783+21693185.5463656 -> 49443739.69 | O111: 30280940.01 | P111: 17465363.99
A112: Economic Development/Planning | D112: 190873074.2 | E112: 191004540.2 | F112: 15925629.99 | G112: 43709145 | H112: 44160589.46 | I112: -451444.4602 | J112: -0.01022279063 | K112: 191004540.2 | M112: =D112/$D$111*$M$111 -> 44160589.46 | O112: 27783515.01 | P112: 15925629.99
A113: Town Planning/Building enforcement | D113: 22835092.07 | E113: 22835092.07 | F113: 1539734 | G113: 4037159 | H113: 5283150.234 | I113: -1245991.234 | J113: -0.2358424763 | K113: 22835092.07 | M113: =D113/$D$111*$M$111 -> 5283150.234 | O113: 2497425 | P113: 1539734
A114: Licensing & Regulation | D114: 0 | E114: 0 | F114: 0 | G114: 0 | H114: 0 | I114: 0 | K114: 0 | M114: 0 | O114: 0 | P114: 0
A115: Road transport | C115: =SUM(C116:C120) -> 0 | D115: 527885673.5 | E115: 506602219.5 | F115: 84319870 | G115: 95459489 | H115: 53972098.89 | I115: 41487390.11 | J115: 0.7686821702 | K115: 506602219.5 | M115: =25086334.16+4964272.57788885+23921492.1539509 -> 53972098.89 | O115: 11139619 | P115: 84319870
A116: Roads | D116: 483495128.2 | E116: 462211674.2 | F116: 81968264 | G116: 91459258 | H116: 49433519.76 | I116: 42025738.24 | J116: 0.8501465896 | K116: 462211674.2 | M116: =D116/$D$115*$M$115 -> 49433519.76 | O116: 9490994 | P116: 81968264
A117: Public Buses | D117: 15986477.53 | E117: 15986477.53 | F117: 2351606 | G117: 4000231 | H117: 1634489.795 | I117: 2365741.205 | J117: 1.447388178 | K117: 15986477.53 | M117: =D117/$D$115*$M$115 -> 1634489.795 | O117: 1648625 | P117: 2351606
A118: Parking Garages | D118: 7265942.516 | E118: 7265942.516 | F118: 0 | G118: 0 | H118: 742884.658 | I118: -742884.658 | J118: -1 | K118: 7265942.516 | M118: 742884.658 | O118: 0 | P118: 0
A119: Vehicle Licensing and Testing | D119: 21138125.26 | E119: 21138125.26 | F119: 0 | G119: 0 | H119: 2161204.678 | I119: -2161204.678 | J119: -1 | K119: 21138125.26 | M119: 2161204.678 | O119: 0 | P119: 0
A120: Other | D120: 0 | E120: 0 | F120: 0 | G120: 0 | H120: 0 | I120: 0 | K120: 0 | M120: 0 | O120: 0 | P120: 0
A121: Environmental protection | C121: =SUM(C122:C124) -> 0 | D121: 101739224 | E121: 101739224 | F121: 10847112 | G121: 25032295 | H121: 13852690.86 | I121: 11179604.14 | J121: 0.8070348392 | K121: 101739224 | O121: 14185183 | P121: 10847112
A122: Pollution Control | D122: 0 | E122: 0 | F122: 0 | G122: 0 | H122: 0 | I122: 0 | K122: 0 | O122: 0 | P122: 0
A123: Biodiversity & Landscape | D123: 0 | E123: 0 | F123: 0 | G123: 0 | H123: 0 | I123: 0 | K123: 0 | O123: 0 | P123: 0
A124: Other | D124: 101739224 | E124: 101739224 | F124: 10847112 | G124: 25032295 | H124: 13852690.86 | I124: 11179604.14 | J124: 0.8070348392 | K124: 101739224 | O124: 14185183 | P124: 10847112
A125: Trading services | C125: =C126+C129+C132+C136 -> 0 | D125: =D126+D129+D132+D136 -> 2781668822 | E125: 2789734727 | F125: 177690126.2 | G125: 732990673 | H125: 630685536.8 | I125: 102305136.2 | J125: 0.1622125929 | K125: =K126+K129+K132+K136 -> 2789734727 | O125: 555300546.8 | P125: 177690126.2
A126: Electricity | C126: =SUM(C127:C128) -> 0 | D126: 1625903570 | E126: 1625903570 | F126: 73109384.26 | G126: 480336984 | H126: 408260248.9 | I126: 72076735.08 | J126: 0.1765460519 | K126: 1625903570 | O126: 407227599.7 | P126: 73109384.26
A127: Electricity Distribution | D127: 1625903570 | E127: 1625903570 | F127: 73109384.26 | G127: 480336984 | H127: =288145328.93+27408125.2361455+15932477.5797294+76774317.1706697 -> 408260248.9 | I127: 72076735.08 | J127: 0.1765460519 | K127: 1625903570 | O127: 407227599.7 | P127: 73109384.26
A128: Electricity Generation | I128: 0 | P128: 0
A129: Water | C129: =SUM(C130:C131) -> 0 | D129: 503337345.9 | E129: 503337345.9 | F129: 40858673.47 | G129: 120580749 | H129: 91069407.86 | I129: 29511341.14 | J129: 0.3240532889 | K129: 503337345.9 | M129: =54557654.31+7812147.44880079+4932279.58158773+23767326.5238428 -> 91069407.86 | O129: 79722075.53 | P129: 40858673.47
A130: Water Distribution | D130: 421807260.2 | E130: 421807260.2 | F130: 37972266.47 | G130: 112853409 | H130: 76318075.22 | I130: 36535333.78 | J130: 0.4787245182 | K130: 421807260.2 | M130: =D130/$D$129*$M$129 -> 76318075.22 | O130: 74881142.53 | P130: 37972266.47
A131: Water Storage | D131: 81530085.65 | E131: 81530085.65 | F131: 2886407 | G131: 7727340 | H131: 14751332.65 | I131: -7023992.649 | J131: -0.4761598708 | K131: 81530085.65 | M131: =D131/$D$129*$M$129 -> 14751332.65 | O131: 4840933 | P131: 2886407
A132: Waste water management | C132: =SUM(C133:C135) -> 0 | D132: 362232303.9 | E132: 362232303.9 | F132: 40680030.09 | G132: 76840441 | H132: 51568836.11 | I132: 25271604.89 | J132: 0.4900557547 | K132: 362232303.9 | O132: 36160410.91 | P132: 40680030.09
A133: Sewerage | D133: 362232303.9 | E133: 362232303.9 | F133: 40680030.09 | G133: 76840441 | H133: =24684339.22+6230507.02084381+3549569.7088001+17104420.1555656 -> 51568836.11 | I133: 25271604.89 | J133: 0.4900557547 | K133: 362232303.9 | O133: 36160410.91 | P133: 40680030.09
A134: Storm Water Management | I134: 0 | P134: 0
A135: Public Toilets | I135: 0 | P135: 0
A136: Waste management | C136: =SUM(C137) -> 0 | D136: 290195602.8 | E136: 298261507.8 | F136: 23042038.35 | G136: 55232499 | H136: 79787043.88 | I136: -24554544.88 | J136: -0.3077510293 | K136: 298261507.8 | O136: 32190460.65 | P136: 23042038.35
A137: Solid Waste | D137: 290195602.8 | E137: 298261507.8 | F137: 23042038.35 | G137: 55232499 | H137: =35138110.66+37311826.5308433+3582251.39947779+3754855.28766965 -> 79787043.88 | I137: -24554544.88 | J137: -0.3077510293 | K137: 298261507.8 | O137: 32190460.65 | P137: =G137-O137 -> 23042038.35
A138: Other | C138: =SUM(C139:C146) -> 0 | D138: =SUM(D139:D146) -> 17005220.31 | E138: =SUM(E139:E146) -> 16851303.15 | F138: 1979225 | G138: 3457483 | H138: 1720404.94 | I138: 1737078.06 | J138: 1.009691393 | K138: =SUM(K139:K146) -> 16851303.15 | O138: 1478258 | P138: 1979225
A139: Air Transport | D139: 0 | E139: 0 | H139: 0 | I139: 0 | K139: 0 | P139: 0
A140: Abattoirs | D140: 0 | E140: 0 | H140: 0 | I140: 0 | K140: 0 | P140: 0
A141: Tourism | D141: 0 | E141: 0 | H141: 0 | I141: 0 | K141: 0 | P141: 0
A142: Forestry | D142: 0 | E142: 0 | H142: 0 | I142: =G142-H142 -> 0 | J142: =IF(I142=0,"",I142/H142) ->  | K142: 0 | P142: 0
A143: =A71 -> Markets | D143: 17005220.31 | E143: 17005220.31 | F143: 1979225 | G143: 3457483 | H143: 1720404.94 | I143: =G143-H143 -> 1737078.06 | J143: =IF(I143=0,"",I143/H143) -> 1.009691393 | K143: 17005220.31 | O143: 1478258 | P143: 1979225
A144: Transfers to/from other reserves | D144: 0 | E144: -153917.1662 | H144: 0 | I144: =G144-H144 -> 0 | J144: =IF(I144=0,"",I144/H144) ->  | K144: -153917.1662 | P144: 0
A145: Transfers Recognised - Capital | D145: 0 | E145: 0 | H145: 0 | I145: 0 | K145: 0 | P145: 0
A146: Contributions Recognised - Capital | D146: 0 | E146: 0 | H146: 0 | I146: 0 | K146: 0 | P146: 0
A147: ="Total "&A77 -> Total Expenditure - Standard | B147: 3 | C147: =C78+C88+C110+C125+C138 -> 0 | D147: =D78+D88+D110+D125+D138 -> 5718839240 | E147: 5723812497 | F147: 441863893 | G147: 1270254177 | H147: 1203516470 | I147: 66737706.82 | J147: =IF(I147=0,"",I147/H147) -> 0.05545225884 | K147: =K78+K88+K110+K125+K138 -> 5723812497 | O147: 828390284 | P147: 441863893
A148: =result -> Surplus/ (Deficit) for the year | C148: =C75-C147 -> 0 | D148: 851120850.2 | E148: 851274767.4 | F148: -41405669 | G148: 278135917 | H148: 200252177.2 | I148: =G148-H148 -> 77883739.82 | J148: =IF(I148=0,"",I148/H148) -> 0.3889283048 | K148: 851274767.4 | O148: 319541586 | P148: -41405669
A149: =head27a -> References
A150: 1. Government Finance Statistics Functions and Sub-functions are standardised to assist national and international accounts and comparison
A151: 2. Total Revenue by Standard Classification must reconcile to total operating revenue shown in Financial Performance (revenue and expenditure)
A152: 3. Total Expenditure by Standard Classification must reconcile to total operating expenditure shown in Financial Performance (revenue and expenditure)
A153: 4. All amounts must be classified under a Standard (modified GFS) classification. The GFS function 'Other' is only for Abbatoirs, Air Transport, Markets and Tourism - and if used must be supported by footnotes. Nothing else may be placed under 'Other'. Assign associate share to relevant classification
A156: check oprev balance | C156: =C75 -> 0 | D156: 0 | E156: 0 | F156: 0 | G156: 0 | H156: 0 | I156: 0 | K156: 0 | O156: 0
A157: check opexp balance | C157: 0 | D157: 0 | E157: 0 | F157: 0 | G157: 0 | H157: 0 | I157: 0 | K157: 0 | O157: 0

Sheet C3-FinPerf V
A1: =muni& " - "&S71C& " - "&date -> BUF Buffalo City - Table C3 Monthly Budget Statement - Financial Performance (revenue and expenditure by municipal vote) - M03 September
A2: =Vdesc -> Vote Description | B2: =head27 -> Ref | C2: =Head1 -> 2014/15 | D2: =Head2 -> Budget Year 2015/16
C3: =Head5 -> Audited Outcome | D3: =Head6 -> Original Budget | E3: =Head7 -> Adjusted Budget | F3: =Head38 -> Monthly actual | G3: =Head39 -> YearTD actual | H3: =Head40 -> YearTD budget | I3: =Head41 -> YTD variance | J3: =Head41 -> YTD variance | K3: =Head8 -> Full Year Forecast
A4: R thousands | J4: %
A5: Revenue by Vote | B5: 1
A6: ='Org structure'!A2 -> Vote 1 - Directorate - Executive Support Services | C6: ='C3C'!C6 -> 0 | D6: ='C3C'!D6 -> 0 | E6: ='C3C'!E6 -> 131465 | F6: ='C3C'!F6 -> 0 | G6: ='C3C'!G6 -> 0 | H6: ='C3C'!H6 -> 0 | I6: =G6-H6 -> 0 | J6: =IF(I6=0,"",I6/H6) ->  | K6: ='C3C'!K6 -> 131465
A7: ='Org structure'!A3 -> Vote 2 - Directorate - City Manager | C7: ='C3C'!C20 -> 0 | D7: ='C3C'!D20 -> 37901900 | E7: ='C3C'!E20 -> 37901900 | F7: ='C3C'!F20 -> 2269230.65 | G7: ='C3C'!G20 -> 3955960.65 | H7: ='C3C'!H20 -> 779770.2 | I7: =G7-H7 -> 3176190.45 | J7: =IF(I7=0,"",I7/H7) -> 4.073239077 | K7: ='C3C'!K20 -> 37901900
A8: ='Org structure'!A4 -> Vote 3 - Directorate - Human Settlements | C8: ='C3C'!C25 -> 0 | D8: ='C3C'!D25 -> 535206185.7 | E8: ='C3C'!E25 -> 537701894.7 | F8: ='C3C'!F25 -> 8932487.16 | G8: ='C3C'!G25 -> 10273327.16 | H8: ='C3C'!H25 -> 29340 | I8: 10243987.16 | J8: 349.1474833 | K8: ='C3C'!K25 -> 537701894.7
A9: ='Org structure'!A5 -> Vote 4 - Directorate - Finance | C9: ='C3C'!C30 -> 0 | D9: ='C3C'!D30 -> 1922818404 | E9: ='C3C'!E30 -> 1922818404 | F9: ='C3C'!F30 -> 142422565.2 | G9: ='C3C'!G30 -> 611502450.2 | H9: ='C3C'!H30 -> 691768171 | I9: -80265720.82 | J9: -0.1160297975 | K9: ='C3C'!K30 -> 1922818404
A10: ='Org structure'!A6 -> Vote 5 - Directorate - Corporate Services | C10: ='C3C'!C43 -> 0 | D10: ='C3C'!D43 -> 11851356.43 | E10: ='C3C'!E43 -> 11851356.43 | F10: ='C3C'!F43 -> 322251.03 | G10: ='C3C'!G43 -> 376646.03 | H10: ='C3C'!H43 -> 192456.29 | I10: 184189.74 | J10: 0.95704713 | K10: ='C3C'!K43 -> 11851356.43
A11: ='Org structure'!A7 -> Vote 6 - Directorate - Infrastructure Services | C11: ='C3C'!C55 -> 0 | D11: ='C3C'!D55 -> 2614131689 | E11: ='C3C'!E55 -> 2614131689 | F11: ='C3C'!F55 -> 173694026.8 | G11: ='C3C'!G55 -> 707273561.8 | H11: ='C3C'!H55 -> 480255829.4 | I11: 227017732.4 | J11: 0.4727016697 | K11: ='C3C'!K55 -> 2614131689
A12: ='Org structure'!A8 -> Vote 7 - Directorate - Development Planning | C12: ='C3C'!C103 -> 0 | D12: ='C3C'!D103 -> 55515104.71 | E12: ='C3C'!E103 -> 55515104.71 | F12: ='C3C'!F103 -> 6294864.46 | G12: ='C3C'!G103 -> 10470547.46 | H12: ='C3C'!H103 -> 6613115.23 | I12: 3857432.23 | J12: 0.58330032 | K12: ='C3C'!K103 -> 55515104.71
A13: ='Org structure'!A9 -> Vote 8 - Directorate - Health / Public Safety & Emergency Services | C13: ='C3C'!C140 -> 0 | D13: ='C3C'!D140 -> 157427325.4 | E13: ='C3C'!E140 -> 157427325.4 | F13: ='C3C'!F140 -> 10690703.26 | G13: ='C3C'!G140 -> 35819691.26 | H13: ='C3C'!H140 -> 36922075.8 | I13: -1102384.54 | J13: -0.0298570575 | K13: ='C3C'!K140 -> 157427325.4
A14: ='Org structure'!A10 -> Vote 9 - Directorate - Municipal Services | C14: ='C3C'!C165 -> 0 | D14: ='C3C'!D165 -> 384755525.5 | E14: ='C3C'!E165 -> 387255525.5 | F14: ='C3C'!F165 -> 25278711.42 | G14: ='C3C'!G165 -> 104739790.4 | H14: ='C3C'!H165 -> 122265332.3 | I14: -17525541.93 | J14: -0.1433402388 | K14: ='C3C'!K165 -> 387255525.5
A15: ='Org structure'!A11 -> Vote 10 - Directorate - Miscellaneous | C15: ='C3C'!C193 -> 0 | D15: ='C3C'!D193 -> 850352600 | E15: ='C3C'!E193 -> 850352600 | F15: ='C3C'!F193 -> 30553385.3 | G15: ='C3C'!G193 -> 63978119.23 | H15: ='C3C'!H193 -> 64942557.14 | I15: -964437.9098 | J15: -0.01485063035 | K15: ='C3C'!K193 -> 850352600
A16: ='Org structure'!A15 -> Vote 11 - [NAME OF VOTE 11] | C16: ='C3C'!C207 -> 0 | D16: ='C3C'!D207 -> 0 | E16: ='C3C'!E207 -> 0 | F16: ='C3C'!F207 -> 0 | G16: ='C3C'!G207 -> 0 | H16: ='C3C'!H207 -> 0 | I16: 0 | K16: ='C3C'!K207 -> 0
A17: ='Org structure'!A16 -> Vote 12 - [NAME OF VOTE 12] | C17: ='C3C'!C218 -> 0 | D17: ='C3C'!D218 -> 0 | E17: ='C3C'!E218 -> 0 | F17: ='C3C'!F218 -> 0 | G17: ='C3C'!G218 -> 0 | H17: ='C3C'!H218 -> 0 | I17: 0 | K17: ='C3C'!K218 -> 0
A18: ='Org structure'!A17 -> Vote 13 - [NAME OF VOTE 13] | C18: ='C3C'!C229 -> 0 | D18: ='C3C'!D229 -> 0 | E18: ='C3C'!E229 -> 0 | F18: ='C3C'!F229 -> 0 | G18: ='C3C'!G229 -> 0 | H18: ='C3C'!H229 -> 0 | I18: 0 | K18: ='C3C'!K229 -> 0
A19: ='Org structure'!A18 -> Vote 14 - [NAME OF VOTE 14] | C19: ='C3C'!C240 -> 0 | D19: ='C3C'!D240 -> 0 | E19: ='C3C'!E240 -> 0 | F19: ='C3C'!F240 -> 0 | G19: ='C3C'!G240 -> 0 | H19: ='C3C'!H240 -> 0 | I19: 0 | K19: ='C3C'!K240 -> 0
A20: ='Org structure'!A19 -> Vote 15 - [NAME OF VOTE 15] | C20: ='C3C'!C251 -> 0 | D20: ='C3C'!D251 -> 0 | E20: ='C3C'!E251 -> 0 | F20: ='C3C'!F251 -> 0 | G20: ='C3C'!G251 -> 0 | H20: ='C3C'!H251 -> 0 | I20: 0 | K20: ='C3C'!K251 -> 0
A21: Total Revenue by Vote | B21: 2 | C21: =SUM(C6:C20) -> 0 | D21: =SUM(D6:D20) -> 6569960091 | E21: 6575087265 | F21: 400458225.3 | G21: 1548390094 | H21: 1403768647 | I21: 144621446.8 | J21: 0.1030237048 | K21: =SUM(K6:K20) -> 6575087265
A23: Expenditure by Vote | B23: 1
A24: ='Org structure'!A2 -> Vote 1 - Directorate - Executive Support Services | C24: ='C3C'!C265 -> 0 | D24: ='C3C'!D265 -> 164413635.2 | E24: ='C3C'!E265 -> 181432982.2 | F24: ='C3C'!F265 -> 18272112.72 | G24: ='C3C'!G265 -> 42424371.26 | H24: ='C3C'!H265 -> 41782297.99 | I24: =G24-H24 -> 642073.2669 | J24: =IF(I24=0,"",I24/H24) -> 0.01536711233 | K24: ='C3C'!K265 -> 181432982.2
A25: ='Org structure'!A3 -> Vote 2 - Directorate - City Manager | C25: ='C3C'!C279 -> 0 | D25: ='C3C'!D279 -> 102123816.5 | E25: ='C3C'!E279 -> 102123816.5 | F25: ='C3C'!F279 -> 6370117.329 | G25: ='C3C'!G279 -> 26789679.16 | H25: ='C3C'!H279 -> 26405504.48 | I25: 384174.6766 | J25: 0.01454903756 | K25: ='C3C'!K279 -> 102123816.5
A26: ='Org structure'!A4 -> Vote 3 - Directorate - Human Settlements | C26: ='C3C'!C284 -> 0 | D26: ='C3C'!D284 -> 582205269.3 | E26: ='C3C'!E284 -> 584700978.3 | F26: ='C3C'!F284 -> 21958630.04 | G26: ='C3C'!G284 -> 35917682.23 | H26: ='C3C'!H284 -> 21234360.33 | I26: 14683321.9 | J26: 0.6914887792 | K26: ='C3C'!K284 -> 584700978.3
A27: ='Org structure'!A5 -> Vote 4 - Directorate - Finance | C27: ='C3C'!C289 -> 0 | D27: ='C3C'!D289 -> 466957798.5 | E27: ='C3C'!E289 -> 470923101.5 | F27: ='C3C'!F289 -> 39870248.73 | G27: ='C3C'!G289 -> 100433576.3 | H27: ='C3C'!H289 -> 241191343.9 | I27: -140757767.6 | J27: -0.583593778 | K27: ='C3C'!K289 -> 470923101.5
A28: ='Org structure'!A6 -> Vote 5 - Directorate - Corporate Services | C28: ='C3C'!C302 -> 0 | D28: ='C3C'!D302 -> 214533033.5 | E28: ='C3C'!E302 -> 222205047.5 | F28: ='C3C'!F302 -> 12014740.46 | G28: ='C3C'!G302 -> 32612658.85 | H28: ='C3C'!H302 -> 41720994.6 | I28: -9108335.755 | J28: -0.2183154031 | K28: ='C3C'!K302 -> 222205047.5
A29: ='Org structure'!A7 -> Vote 6 - Directorate - Infrastructure Services | C29: ='C3C'!C314 -> 0 | D29: ='C3C'!D314 -> 3046353694 | E29: ='C3C'!E314 -> 3025070240 | F29: ='C3C'!F314 -> 240373075.1 | G29: ='C3C'!G314 -> 780828033.3 | H29: ='C3C'!H314 -> 543631658 | I29: 237196375.3 | J29: 0.4363181794 | K29: ='C3C'!K314 -> 3025070240
A30: ='Org structure'!A8 -> Vote 7 - Directorate - Development Planning | C30: ='C3C'!C362 -> 0 | D30: ='C3C'!D362 -> 274507665.5 | E30: ='C3C'!E362 -> 274507665.5 | F30: ='C3C'!F362 -> 25551730.1 | G30: ='C3C'!G362 -> 62616913.11 | H30: ='C3C'!H362 -> 64773511.36 | I30: -2156598.254 | J30: =IF(I30=0,"",I30/H30) -> -0.0332944472 | K30: ='C3C'!K362 -> 274507665.5
A31: ='Org structure'!A9 -> Vote 8 - Directorate - Health / Public Safety & Emergency Services | C31: ='C3C'!C399 -> 0 | D31: ='C3C'!D399 -> 283787108.7 | E31: ='C3C'!E399 -> 283787108.7 | F31: ='C3C'!F399 -> 26596529.83 | G31: ='C3C'!G399 -> 68107395.41 | H31: ='C3C'!H399 -> 79620806.55 | I31: -11513411.14 | J31: -0.1446030458 | K31: ='C3C'!K399 -> 283787108.7
A32: ='Org structure'!A10 -> Vote 9 - Directorate - Municipal Services | C32: ='C3C'!C424 -> 0 | D32: ='C3C'!D424 -> 582238547.1 | E32: ='C3C'!E424 -> 577496802.1 | F32: ='C3C'!F424 -> 50856708.41 | G32: ='C3C'!G424 -> 120523867.1 | H32: ='C3C'!H424 -> 143155993 | I32: -22632125.92 | J32: -0.1580941562 | K32: ='C3C'!K424 -> 577496802.1
A33: ='Org structure'!A11 -> Vote 10 - Directorate - Miscellaneous | C33: ='C3C'!C452 -> 0 | D33: ='C3C'!D452 -> 1564754.834 | E33: ='C3C'!E452 -> 1564754.834 | F33: ='C3C'!F452 -> 0 | G33: ='C3C'!G452 -> 0 | H33: ='C3C'!H452 -> 0 | I33: 0 | J33: =IF(I33=0,"",I33/H33) ->  | K33: ='C3C'!K452 -> 1564754.834
A34: ='Org structure'!A15 -> Vote 11 - [NAME OF VOTE 11] | C34: ='C3C'!C466 -> 0 | D34: ='C3C'!D466 -> 0 | E34: ='C3C'!E466 -> 0 | F34: ='C3C'!F466 -> 0 | G34: ='C3C'!G466 -> 0 | H34: ='C3C'!H466 -> 0 | I34: 0 | J34: =IF(I34=0,"",I34/H34) ->  | K34: ='C3C'!K466 -> 0
A35: ='Org structure'!A16 -> Vote 12 - [NAME OF VOTE 12] | C35: ='C3C'!C477 -> 0 | D35: ='C3C'!D477 -> 0 | E35: ='C3C'!E477 -> 0 | F35: ='C3C'!F477 -> 0 | G35: ='C3C'!G477 -> 0 | H35: ='C3C'!H477 -> 0 | I35: 0 | J35: =IF(I35=0,"",I35/H35) ->  | K35: ='C3C'!K477 -> 0
A36: ='Org structure'!A17 -> Vote 13 - [NAME OF VOTE 13] | C36: ='C3C'!C488 -> 0 | D36: ='C3C'!D488 -> 0 | E36: ='C3C'!E488 -> 0 | F36: ='C3C'!F488 -> 0 | G36: ='C3C'!G488 -> 0 | H36: ='C3C'!H488 -> 0 | I36: 0 | J36: =IF(I36=0,"",I36/H36) ->  | K36: ='C3C'!K488 -> 0
A37: ='Org structure'!A18 -> Vote 14 - [NAME OF VOTE 14] | C37: ='C3C'!C499 -> 0 | D37: ='C3C'!D499 -> 0 | E37: ='C3C'!E499 -> 0 | F37: ='C3C'!F499 -> 0 | G37: ='C3C'!G499 -> 0 | H37: ='C3C'!H499 -> 0 | I37: 0 | J37: =IF(I37=0,"",I37/H37) ->  | K37: ='C3C'!K499 -> 0
A38: ='Org structure'!A19 -> Vote 15 - [NAME OF VOTE 15] | C38: ='C3C'!C510 -> 0 | D38: ='C3C'!D510 -> 0 | E38: ='C3C'!E510 -> 0 | F38: ='C3C'!F510 -> 0 | G38: ='C3C'!G510 -> 0 | H38: ='C3C'!H510 -> 0 | I38: 0 | K38: ='C3C'!K510 -> 0
A39: Total Expenditure by Vote | B39: 2 | C39: =SUM(C24:C38) -> 0 | D39: =SUM(D24:D38) -> 5718685323 | E39: 5723812497 | F39: 441863892.7 | G39: 1270254177 | H39: 1203516470 | I39: 66737706.49 | J39: =IF(I39=0,"",I39/H39) -> 0.05545225856 | K39: =SUM(K24:K38) -> 5723812497
A40: =result -> Surplus/ (Deficit) for the year | B40: 2 | C40: =C21-C39 -> 0 | D40: 851274767.4 | E40: 851274767.4 | F40: -41405667.48 | G40: 278135917.5 | H40: 200252177.2 | I40: =I21-I39 -> 77883740.3 | J40: =IF(I40=0,"",I40/H40) -> 0.3889283072 | K40: =K21-K39 -> 851274767.4
A41: =head27a -> References
A42: 1. Insert 'Vote'; e.g. Department, if different to standard classification structure
A43: 2. Must reconcile to Monthly Budget Statement - Financial Performance Statement (standard classification)

Sheet C3C
A1: =muni& " - "&S71C& " - "&"A"& " - "&date -> BUF Buffalo City - Table C3 Monthly Budget Statement - Financial Performance (revenue and expenditure by municipal vote) - A - M03 September
A2: =Vdesc -> Vote Description | B2: =head27 -> Ref | C2: =Head1 -> 2014/15 | D2: =Head2 -> Budget Year 2015/16 | L2: =Head4 -> 
A3: R thousand | C3: =Head5 -> Audited Outcome | D3: =Head6 -> Original Budget | E3: =Head7 -> Adjusted Budget | F3: =Head38 -> Monthly actual | G3: =Head39 -> YearTD actual | H3: =Head40 -> YearTD budget | I3: =Head41 -> YTD variance | J3: =Head41 -> YTD variance | K3: =Head8 -> Full Year Forecast | L3: =Head12 -> Forecast 2010/11 | M3: =Head13 -> Forecast 2011/12 | N3: =Head14 -> Forecast 2012/13 | O3: =Head15 -> Forecast 2013/14 | P3: =Head16 -> Forecast 2014/15 | Q3: =Head17 -> Forecast 2015/16 | R3: =Head18 -> Forecast 2016/17 | S3: =Head19 -> Forecast 2017/18 | T3: =Head20 -> Forecast 2018/19 | U3: =Head21 -> Forecast 2019/20 | V3: =Head22 -> Forecast 2020/21 | W3: =Head23 -> Forecast 2021/22 | Y3: YTD Budget | AA3: YearTD actual
J4: %
A5: Revenue by Vote | B5: 1
A6: ='Org structure'!A2 -> Vote 1 - Directorate - Executive Support Services | C6: =SUM(C7:C19) -> 0 | D6: =SUM(D7:D19) -> 0 | E6: 131465 | F6: 0 | G6: 0 | H6: 0 | I6: =G6-H6 -> 0 | J6: =IF(I6=0,"",I6/H6) ->  | K6: 131465 | AA6: 0
A7: ='Org structure'!E3 -> 1.1 - Office of The Director of Executive Support | D7: 0 | E7: 0 | F7: 0 | G7: 0 | H7: 0 | I7: 0 | K7: 0 | Y7: =D7/$D$6*$Y$6 ->  | AA7: 0 | AB7: =G7-AA7 -> 0
A8: ='Org structure'!E4 -> 1.2 - Executive Mayor, Speaker & Mayoral Committee | D8: 0 | E8: 0 | F8: 0 | G8: 0 | H8: 0 | I8: 0 | K8: 0 | Y8: =D8/$D$6*$Y$6 ->  | AA8: 0 | AB8: =G8-AA8 -> 0
A9: ='Org structure'!E5 -> 1.3 - Councillors | D9: 0 | E9: 0 | F9: 0 | G9: 0 | H9: 0 | I9: 0 | K9: 0 | AA9: 0 | AB9: 0
A10: ='Org structure'!E6 -> 1.4 - Grants-In-Aid | D10: 0 | E10: 0 | F10: 0 | G10: 0 | H10: 0 | I10: 0 | K10: 0 | AA10: 0 | AB10: 0
A11: ='Org structure'!E7 -> 1.5 - Public Participation & Ward Committees | D11: 0 | E11: 0 | F11: 0 | G11: 0 | H11: 0 | I11: 0 | K11: 0 | AA11: 0 | AB11: 0
A12: ='Org structure'!E8 -> 1.6 - Strategic Support | D12: 0 | E12: 0 | F12: 0 | G12: 0 | H12: 0 | I12: 0 | K12: 0 | AA12: 0 | AB12: 0
A13: ='Org structure'!E9 -> 1.7 - Special Programmes | D13: 0 | E13: 0 | F13: 0 | G13: 0 | H13: 0 | I13: 0 | K13: 0 | AA13: 0 | AB13: 0
A14: ='Org structure'!E10 -> 1.8 - City Hall | D14: 0 | E14: 0 | F14: 0 | G14: 0 | H14: 0 | I14: 0 | K14: 0 | AA14: 0 | AB14: 0
A15: ='Org structure'!E11 -> 1.9 - IDP | D15: 0 | E15: 0 | F15: 0 | G15: 0 | H15: 0 | I15: 0 | K15: 0 | AA15: 0 | AB15: 0
A16: ='Org structure'!E12 -> 1.10 - G I S Unit | D16: 0 | E16: 0 | F16: 0 | G16: 0 | H16: 0 | I16: 0 | K16: 0 | AA16: 0 | AB16: 0
A17: ='Org structure'!E13 -> 1.11 - Development Co-Operation | D17: 0 | E17: 131465 | F17: 0 | G17: 0 | H17: 0 | I17: 0 | K17: 131465 | AA17: 0 | AB17: 0
A18: ='Org structure'!E14 -> 1.12 - Public Relations & International Events | D18: 0 | E18: 0 | F18: 0 | G18: 0 | H18: 0 | I18: 0 | K18: 0 | AA18: 0 | AB18: 0
A19: ='Org structure'!E15 -> 1.13 - Research Policy & Knowledge Management Unit | D19: 0 | E19: 0 | F19: 0 | G19: 0 | H19: 0 | I19: 0 | K19: 0 | AA19: 0 | AB19: 0
A20: ='Org structure'!A3 -> Vote 2 - Directorate - City Manager | C20: =SUM(C21:C24) -> 0 | D20: 37901900 | E20: 37901900 | F20: 2269230.65 | G20: 3955960.65 | H20: 779770.2 | I20: 3176190.45 | J20: 4.073239077 | K20: =SUM(K21:K24) -> 37901900 | Y20: 779770.2 | AA20: 1686730 | AB20: 2269230.65
A21: ='Org structure'!E17 -> 2.1 - Office of The Municipal Manager & Support Services | D21: 37901900 | E21: 37901900 | F21: 2269230.65 | G21: 3955960.65 | H21: 779770.2 | I21: 3176190.45 | J21: 4.073239077 | K21: 37901900 | Y21: =D21/$D$20*$Y$20 -> 779770.2 | AA21: 1686730 | AB21: 2269230.65
A22: ='Org structure'!E18 -> 2.2 - Internal Audit | D22: 0 | E22: 0 | F22: 0 | G22: 0 | H22: 0 | I22: 0 | K22: 0 | Y22: =D22/$D$20*$Y$20 -> 0 | AA22: 0 | AB22: 0
A23: ='Org structure'!E19 -> 2.3 - Legal Services | D23: 0 | E23: 0 | F23: 0 | G23: 0 | H23: 0 | I23: 0 | K23: 0 | Y23: 0 | AA23: 0 | AB23: 0
A24: ='Org structure'!E20 -> 2.4 - Municipal Public Accounts Committee | D24: 0 | E24: 0 | F24: 0 | G24: 0 | H24: 0 | I24: 0 | K24: 0 | Y24: 0 | AA24: 0 | AB24: 0
A25: ='Org structure'!A4 -> Vote 3 - Directorate - Human Settlements | C25: =SUM(C26:C29) -> 0 | D25: 535206185.7 | E25: 537701894.7 | F25: 8932487.16 | G25: 10273327.16 | H25: 29340 | I25: 10243987.16 | J25: 349.1474833 | K25: =SUM(K26:K29) -> 537701894.7 | Y25: 29340 | AA25: 1340840 | AB25: 8932487.16
A26: ='Org structure'!E28 -> 3.1 - Mdantsane Urban Renewal Unit | D26: 0 | E26: 0 | F26: 0 | H26: 0 | I26: 0 | K26: 0 | Y26: =D26/$D$25*$Y$25 -> 0 | AA26: 0 | AB26: 0
A27: ='Org structure'!E29 -> 3.2 - Office of The Chief Operations Officer | D27: 0 | E27: 0 | F27: 114872.26 | G27: 338679.26 | H27: 0 | I27: 338679.26 | K27: 0 | Y27: =D27/$D$25*$Y$25 -> 0 | AA27: 223807 | AB27: 114872.26
A28: ='Org structure'!E30 -> 3.3 - Housing Department | D28: 535206185.7 | E28: 537701894.7 | F28: 8817614.9 | G28: 9934647.9 | H28: 29340 | I28: 9905307.9 | J28: 337.6042229 | K28: 537701894.7 | Y28: 29340 | AA28: 1117033 | AB28: 8817614.9
A29: ='Org structure'!E31 -> 3.4 - Mdantsane Urban Renewal Unit | D29: 0 | E29: 0 | F29: 0 | H29: 0 | I29: 0 | K29: 0 | Y29: 0 | AA29: 0 | AB29: 0
A30: ='Org structure'!A5 -> Vote 4 - Directorate - Finance | C30: =SUM(C31:C42) -> 0 | D30: 1922818404 | E30: 1922818404 | F30: 142422565.2 | G30: 611502450.2 | H30: 691768171 | I30: -80265720.82 | J30: -0.1160297975 | K30: =SUM(K31:K42) -> 1922818404 | Y30: 979500937.8 | AA30: 469079885 | AB30: 142422565.2
A31: ='Org structure'!E39 -> 4.1 - Office of The Director of Finance | D31: 578080907 | E31: 578080907 | F31: 13394985.87 | G31: 158390313.9 | H31: =294479597.965198-100000000 -> 194479598 | I31: -36089284.1 | J31: -0.1855684836 | K31: 578080907 | Y31: =D31/$D$30*$Y$30 -> 294479598 | AA31: 144995328 | AB31: 13394985.87
A32: ='Org structure'!E40 -> 4.2 - Support Services Office | D32: 0 | E32: 0 | F32: 0 | H32: 0 | I32: 0 | K32: 0 | Y32: =D32/$D$30*$Y$30 -> 0 | AA32: 0 | AB32: 0
A33: ='Org structure'!E41 -> 4.3 - Budget Office | D33: 1300000 | E33: 1300000 | F33: 73635.3 | G33: 73635.3 | H33: 662231.6577 | I33: -588596.3577 | J33: -0.8888073393 | K33: 1300000 | Y33: 662231.6577 | AA33: 0 | AB33: 73635.3
A34: ='Org structure'!E42 -> 4.4 - Asset Risk & Financial Services | D34: 1922000 | E34: 1922000 | F34: 93307.62 | G34: 372028.62 | H34: 979084.0355 | I34: -607055.4155 | J34: -0.6200238115 | K34: 1922000 | Y34: 979084.0355 | AA34: 278721 | AB34: 93307.62
A35: ='Org structure'!E43 -> 4.5 - Supply Chain Management | D35: 457624.8364 | E35: 457624.8364 | F35: 8196.3 | G35: 76319.3 | H35: 233118.1954 | I35: -156798.8954 | J35: -0.6726154307 | K35: 457624.8364 | Y35: 233118.1954 | AA35: 68123 | AB35: 8196.3
A36: ='Org structure'!E44 -> 4.6 - Expenditure Office | D36: 0 | E36: 0 | F36: 37278.93 | G36: 112253.93 | H36: 0 | I36: 112253.93 | K36: 0 | Y36: 0 | AA36: 74975 | AB36: 37278.93
A37: ='Org structure'!E45 -> 4.7 - Salary Office | D37: 1913032.471 | E37: 1913032.471 | F37: 145992.75 | G37: 431414.75 | H37: 974515.8956 | I37: -543101.1456 | J37: -0.5573035269 | K37: 1913032.471 | Y37: 974515.8956 | AA37: 285422 | AB37: 145992.75
A38: ='Org structure'!E46 -> 4.8 - Rates and Valuations Office | D38: 965707451.8 | E38: 965707451.8 | F38: 124598184.5 | G38: 306294007.5 | H38: =491940035.934047+97658790.8566699-175835.22-300000000 -> 289422991.6 | I38: 16871015.93 | J38: 0.05829189947 | K38: 965707451.8 | Y38: 491940035.9 | AA38: 181695823 | AB38: 124598184.5
A39: ='Org structure'!E47 -> 4.9 - Consolidated Billing & Miscellaneous Revenue Office | D39: 355077734.4 | E39: 355077734.4 | F39: 2455322.45 | G39: 141459135.4 | H39: =180879782.048377+14784277.61 -> 195664059.7 | I39: -54204924.21 | J39: -0.277030561 | K39: 355077734.4 | Y39: 180879782 | AA39: 139003813 | AB39: 2455322.45
A40: ='Org structure'!E48 -> 4.10 - Debtors Management Office | D40: 18359653.31 | E40: 18359653.31 | F40: 1615661.48 | G40: 4293341.48 | H40: 9352572.038 | I40: -5059230.558 | J40: -0.5409453718 | K40: 18359653.31 | Y40: 9352572.038 | AA40: 2677680 | AB40: 1615661.48
A41: ='Org structure'!E49 -> 4.11 - Customer Care Office | D41: 0 | E41: 0 | F41: 0 | G41: 0 | H41: 0 | I41: 0 | K41: 0 | Y41: 0 | AA41: 0 | AB41: 0
A42: ='Org structure'!E50 -> 4.12 - Pre-Payment Vending Office | D42: 0 | E42: 0 | F42: 0 | G42: 0 | H42: 0 | I42: 0 | K42: 0 | Y42: 0 | AA42: 0 | AB42: 0
A43: ='Org structure'!A6 -> Vote 5 - Directorate - Corporate Services | C43: =SUM(C44:C54) -> 0 | D43: 11851356.43 | E43: 11851356.43 | F43: 322251.03 | G43: 376646.03 | H43: 192456.29 | I43: 184189.74 | J43: 0.95704713 | K43: =SUM(K44:K54) -> 11851356.43 | Y43: 192456.29 | AA43: 54395 | AB43: 322251.03
A44: ='Org structure'!E52 -> 5.1 - Office of The Director of Corporate Services | D44: 0 | E44: 0 | F44: 0 | G44: 0 | H44: 0 | I44: 0 | K44: 0 | Y44: =D44/$D$43*$Y$43 -> 0 | AA44: 0 | AB44: 0
A45: ='Org structure'!E53 -> 5.2 - Support Services Office | D45: 0 | E45: 0 | F45: 0 | G45: 0 | H45: 0 | I45: 0 | K45: 0 | Y45: =D45/$D$43*$Y$43 -> 0 | AA45: 0 | AB45: 0
A46: ='Org structure'!E54 -> 5.3 - Administrative & Council Support | D46: 576.430995 | E46: 576.430995 | F46: 0 | G46: 0 | H46: 9.360765697 | I46: -9.360765697 | J46: -1 | K46: 576.430995 | Y46: 9.360765697 | AA46: 0 | AB46: 0
A47: ='Org structure'!E55 -> 5.4 - Auxilliary & Telecommunication Support | D47: 0 | E47: 0 | F47: 0 | G47: 0 | H47: 0 | I47: 0 | K47: 0 | Y47: 0 | AA47: 0 | AB47: 0
A48: ='Org structure'!E56 -> 5.5 - General Admin & Telecomm Services | D48: 0 | E48: 0 | F48: 0 | G48: 0 | H48: 0 | I48: 0 | K48: 0 | Y48: 0 | AA48: 0 | AB48: 0
A49: ='Org structure'!E57 -> 5.6 - Management Information Services | D49: 0 | E49: 0 | F49: 0 | G49: 0 | H49: 0 | I49: 0 | K49: 0 | Y49: 0 | AA49: 0 | AB49: 0
A50: ='Org structure'!E58 -> 5.7 - H.R. Administration | D50: 8400000 | E50: 8400000 | F50: 322251.03 | G50: 376646.03 | H50: 136409.0976 | I50: 240236.9324 | J50: 1.761150368 | K50: 8400000 | Y50: 136409.0976 | AA50: 54395 | AB50: 322251.03
A51: ='Org structure'!E59 -> 5.8 - Occupational Risk Management | D51: 0 | E51: 0 | F51: 0 | G51: 0 | H51: 0 | I51: 0 | K51: 0 | Y51: 0 | AA51: 0 | AB51: 0
A52: ='Org structure'!E60 -> 5.9 - Labour Relations | D52: 0 | E52: 0 | F52: 0 | G52: 0 | H52: 0 | I52: 0 | K52: 0 | Y52: 0 | AA52: 0 | AB52: 0
A53: ='Org structure'!E61 -> 5.10 - Organisational Development | D53: 3450780 | E53: 3450780 | F53: 0 | G53: 0 | H53: 56037.83164 | I53: -56037.83164 | J53: -1 | K53: 3450780 | Y53: 56037.83164 | AA53: 0 | AB53: 0
A54: ='Org structure'!E62 -> 5.11 - Research Policy & Knowledge Management Unit | D54: 0 | E54: 0 | F54: 0 | G54: 0 | H54: 0 | I54: 0 | K54: 0 | Y54: 0 | AA54: 0 | AB54: 0
A55: ='Org structure'!A7 -> Vote 6 - Directorate - Infrastructure Services | C55: =SUM(C56:C102) -> 0 | D55: =SUM(D56:D102) -> 2614131689 | E55: 2614131689 | F55: 173694026.8 | G55: 707273561.8 | H55: 480255829.4 | I55: 227017732.4 | J55: 0.4727016697 | K55: 2614131689 | Y55: =103708223.53-186007224.693565+23918627.1853953+138636203.34342+400000000 -> 480255829.4 | AA55: 533579535 | AB55: 173694026.8
A56: ='Org structure'!E64 -> 6.1 - Office of The Director of Engineering Services | D56: 201693.1666 | E56: 201693.1666 | F56: 516.4 | G56: 15550.4 | H56: 37054.10842 | I56: -21503.70842 | J56: -0.5803326362 | K56: 201693.1666 | Y56: =D56/$D$55*$Y$55 -> 37054.10842 | AA56: 15034 | AB56: 516.4
A57: ='Org structure'!E65 -> 6.2 - City Engineering Building | D57: 0 | E57: 0 | F57: 0 | H57: 0 | I57: 0 | K57: 0 | Y57: =D57/$D$55*$Y$55 -> 0 | AA57: 0 | AB57: 0
A58: ='Org structure'!E66 -> 6.3 - Chiselhurst Beacon Bay & Kwt Depot | D58: 0 | E58: 0 | F58: 0 | H58: 0 | I58: 0 | K58: 0 | Y58: =D58/$D$55*$Y$55 -> 0 | AA58: 0 | AB58: 0
A59: ='Org structure'!E67 -> 6.4 - Beacon Bay Civic Centre | D59: 0 | E59: 0 | F59: 0 | H59: 0 | I59: 0 | K59: 0 | Y59: 0 | AA59: 0 | AB59: 0
A60: ='Org structure'!E68 -> 6.5 - Scientific Services | D60: 110936 | E60: 110936 | F60: 0 | G60: 0 | H60: 20380.63381 | I60: -20380.63381 | J60: -1 | K60: 110936 | Y60: 20380.63381 | AA60: 0 | AB60: 0
A61: ='Org structure'!E69 -> 6.6 - Night Soil Removal - Coastal | D61: 674735 | E61: 674735 | F61: 0 | H61: 123959.1021 | I61: -123959.1021 | J61: -1 | K61: 674735 | Y61: 123959.1021 | AA61: 0 | AB61: 0
A62: ='Org structure'!E70 -> 6.7 - Night Soil Removal - Central | D62: 0 | E62: 0 | F62: 0 | H62: 0 | I62: 0 | K62: 0 | Y62: 0 | AA62: 0 | AB62: 0
A63: ='Org structure'!E71 -> 6.8 - Night Soil Removal - Inland | D63: 0 | E63: 0 | F63: 0 | H63: 0 | I63: 0 | K63: 0 | Y63: 0 | AA63: 0 | AB63: 0
A64: ='Org structure'!E72 -> 6.9 - Sewerage Admin | D64: 391785213.9 | E64: 391785213.9 | F64: 25422317.2 | G64: 117234246.2 | H64: 71976914.41 | I64: 45257331.79 | J64: 0.6287756589 | K64: 391785213.9 | Y64: 71976914.41 | AA64: 91811929 | AB64: 25422317.2
A65: ='Org structure'!E73 -> 6.10 - Sewerage Pump Station - Coastal | D65: 0 | E65: 0 | F65: 0 | H65: 0 | I65: 0 | K65: 0 | Y65: 0 | AA65: 0 | AB65: 0
A66: ='Org structure'!E74 -> 6.11 - Sewerage Pump Station - Central | D66: 0 | E66: 0 | F66: 0 | H66: 0 | I66: 0 | K66: 0 | Y66: 0 | AA66: 0 | AB66: 0
A67: ='Org structure'!E75 -> 6.12 - Sewerage Pump Station - Inland | D67: 0 | E67: 0 | F67: 0 | H67: 0 | I67: 0 | K67: 0 | Y67: 0 | AA67: 0 | AB67: 0
A68: ='Org structure'!E76 -> 6.13 - Sewerage Treatment - Coastal | D68: 0 | E68: 0 | F68: 0 | H68: 0 | I68: 0 | K68: 0 | Y68: 0 | AA68: 0 | AB68: 0
A69: ='Org structure'!E77 -> 6.14 - Sewerage Treatment - Central | D69: 0 | E69: 0 | F69: 0 | H69: 0 | I69: 0 | K69: 0 | Y69: 0 | AA69: 0 | AB69: 0
A70: ='Org structure'!E78 -> 6.15 - Sewerage Treatment - Inland | D70: 0 | E70: 0 | F70: 0 | H70: 0 | I70: 0 | K70: 0 | Y70: 0 | AA70: 0 | AB70: 0
A71: ='Org structure'!E79 -> 6.16 - Sewerage Reticulation - Coastal | D71: 0 | E71: 0 | F71: 0 | H71: 0 | I71: 0 | K71: 0 | Y71: 0 | AA71: 0 | AB71: 0
A72: ='Org structure'!E80 -> 6.17 - Sewerage Reticulation - Central | D72: 0 | E72: 0 | F72: 0 | H72: 0 | I72: 0 | K72: 0 | Y72: 0 | AA72: 0 | AB72: =G72-AA72 -> 0
A73: ='Org structure'!E81 -> 6.18 - Sewerage Reticulation - Inland | D73: 0 | E73: 0 | F73: 0 | H73: 0 | I73: 0 | K73: 0 | Y73: 0 | AA73: 0 | AB73: 0
A74: ='Org structure'!E82 -> 6.19 - Sewerage Interceptors | D74: 0 | E74: 0 | F74: 0 | H74: 0 | I74: 0 | K74: 0 | Y74: 0 | AA74: 0 | AB74: 0
A75: ='Org structure'!E83 -> 6.20 - Water Administration | D75: 491976622.6 | E75: 491976622.6 | F75: 31211608.94 | G75: 134619758.9 | H75: 90383603.06 | I75: 44236155.88 | J75: 0.4894267808 | K75: 491976622.6 | Y75: 90383603.06 | AA75: 103408150 | AB75: 31211608.94
A76: ='Org structure'!E84 -> 6.21 - Water Miscellaneous | D76: 0 | E76: 0 | F76: 0 | H76: 0 | I76: 0 | K76: 0 | Y76: 0 | AA76: 0 | AB76: 0
A77: ='Org structure'!E85 -> 6.22 - Maden Dam | D77: 0 | E77: 0 | F77: 0 | H77: 0 | I77: 0 | K77: 0 | Y77: 0 | AA77: 0 | AB77: 0
A78: ='Org structure'!E86 -> 6.23 - Bridle Drift Dam | D78: 0 | E78: 0 | F78: 0 | H78: 0 | I78: 0 | K78: 0 | Y78: 0 | AA78: 0 | AB78: 0
A79: ='Org structure'!E87 -> 6.24 - Bulk Pumping Stations | D79: 0 | E79: 0 | F79: 0 | H79: 0 | I79: 0 | K79: 0 | Y79: 0 | AA79: 0 | AB79: 0
A80: ='Org structure'!E88 -> 6.25 - Water Treatment Works | D80: 0 | E80: 0 | F80: 0 | H80: 0 | I80: 0 | K80: 0 | Y80: 0 | AA80: 0 | AB80: 0
A81: ='Org structure'!E89 -> 6.26 - Umzonyana Water Treatment Works | D81: 0 | E81: 0 | F81: 0 | H81: 0 | I81: 0 | K81: 0 | Y81: 0 | AA81: 0 | AB81: 0
A82: ='Org structure'!E90 -> 6.27 - Needs Camp Water Treatment Works | D82: 0 | E82: 0 | F82: 0 | H82: 0 | I82: 0 | K82: 0 | Y82: 0 | AA82: 0 | AB82: 0
A83: ='Org structure'!E91 -> 6.28 - KWT Water Treatment Works | D83: 0 | E83: 0 | F83: 0 | H83: 0 | I83: 0 | K83: 0 | Y83: 0 | AA83: 0 | AB83: 0
A84: ='Org structure'!E92 -> 6.29 - Mdantsane Bulk Pumping | D84: 0 | E84: 0 | F84: 0 | H84: 0 | I84: 0 | K84: 0 | Y84: 0 | AA84: 0 | AB84: 0
A85: ='Org structure'!E93 -> 6.30 - Water Ops and Maint. - Inland | D85: 0 | E85: 0 | F85: 0 | H85: 0 | I85: 0 | K85: 0 | Y85: 0 | AA85: 0 | AB85: 0
A86: ='Org structure'!E94 -> 6.31 - Water Ops and Maint. - Midland | D86: 0 | E86: 0 | F86: 0 | H86: 0 | I86: 0 | K86: 0 | Y86: 0 | AA86: 0 | AB86: 0
A87: ='Org structure'!E95 -> 6.32 - Water Ops and Maint. - Coastal | D87: 0 | E87: 0 | F87: 0 | H87: 0 | I87: 0 | K87: 0 | Y87: 0 | AA87: 0 | AB87: 0
A88: ='Org structure'!E96 -> 6.33 - Construction Distribution | D88: 2414 | E88: 2414 | F88: -0.31 | G88: 27467.69 | H88: 443.4885882 | I88: 27024.20141 | J88: 60.93550574 | K88: 2414 | Y88: 443.4885882 | AA88: 27468 | AB88: -0.31
A89: ='Org structure'!E97 -> 6.34 - Roads Administration | D89: 639430.3131 | E89: 639430.3131 | F89: 6667.54 | G89: 11118.54 | H89: 117473.0931 | I89: -106354.5531 | J89: -0.9053524539 | K89: 639430.3131 | Y89: 117473.0931 | AA89: 4451 | AB89: 6667.54
A90: ='Org structure'!E98 -> 6.35 - Roads Design | D90: 0 | E90: 0 | F90: 0 | H90: 0 | I90: 0 | K90: 0 | Y90: 0 | AA90: 0 | AB90: 0
A91: ='Org structure'!E99 -> 6.36 - Roads and Stormwater Drainage | D91: 430670.3099 | E91: 430670.3099 | F91: 0 | H91: 79120.69913 | I91: -79120.69913 | J91: -1 | K91: 430670.3099 | Y91: 79120.69913 | AA91: 0 | AB91: 0
A92: ='Org structure'!E100 -> 6.37 - Provincial Main Roads | D92: 1870794 | E92: 1870794 | F92: 0 | H92: 343693.3678 | I92: -343693.3678 | J92: -1 | K92: 1870794 | Y92: 343693.3678 | AA92: 0 | AB92: 0
A93: ='Org structure'!E101 -> 6.38 - Project Management and Implementation Branch | D93: 0 | E93: 0 | F93: 0 | H93: 0 | I93: 0 | K93: 0 | Y93: 0 | AA93: 0 | AB93: 0
A94: ='Org structure'!E102 -> 6.39 - Project Management Unit | D94: 0 | E94: 0 | F94: 0 | H94: 0 | I94: 0 | K94: 0 | Y94: 0 | AA94: 0 | AB94: 0
A95: ='Org structure'!E103 -> 6.40 - Mechanical Workshop - Westbank | D95: 0 | E95: 0 | F95: 0 | H95: 0 | I95: 0 | K95: 0 | Y95: 0 | AA95: 0 | AB95: 0
A96: ='Org structure'!E104 -> 6.41 - Fleet Management - Westbank | D96: 0 | E96: 0 | F96: 0 | H96: 0 | I96: 0 | K96: 0 | Y96: 0 | AA96: 0 | AB96: 0
A97: ='Org structure'!E105 -> 6.42 - Mechanical Workshop - Braelyn | D97: 0 | E97: 0 | F97: 0 | H97: 0 | I97: 0 | K97: 0 | Y97: 0 | AA97: 0 | AB97: 0
A98: ='Org structure'!E106 -> 6.43 - Fleet Management - Braelyn | D98: 0 | E98: 0 | F98: 0 | H98: 0 | I98: 0 | K98: 0 | Y98: 0 | AA98: 0 | AB98: 0
A99: ='Org structure'!E107 -> 6.44 - Electricity Administration | D99: 1726439180 | E99: 1726439180 | F99: 116407444.4 | G99: 453381290.4 | H99: 317173187.4 | I99: 136208103 | J99: 0.4294439393 | K99: 1726439180 | Y99: 317173187.4 | AA99: 336973846 | AB99: 116407444.4
A100: ='Org structure'!E108 -> 6.45 - Electricity Distribution Supervisory Staff | D100: 0 | E100: 0 | F100: 645472.57 | G100: 1984129.57 | H100: 0 | I100: =G100-H100 -> 1984129.57 | J100: =IF(I100=0,"",I100/H100) ->  | K100: 0 | Y100: 0 | AA100: 1338657 | AB100: 645472.57
A101: ='Org structure'!E109 -> 6.46 - Electricity Planning & Design | D101: 0 | E101: 0 | F101: 0 | H101: 0 | I101: 0 | K101: 0 | Y101: 0 | AA101: 0 | AB101: 0
A102: ='Org structure'!E110 -> 6.47 - Revenue Protection | D102: 0 | E102: 0 | F102: 0 | H102: 0 | I102: 0 | K102: 0 | Y102: 0 | AA102: 0 | AB102: 0
A103: ='Org structure'!A8 -> Vote 7 - Directorate - Development Planning | C103: =SUM(C104:C139) -> 0 | D103: 55515104.71 | E103: 55515104.71 | F103: 6294864.46 | G103: 10470547.46 | H103: 6613115.23 | I103: =G103-H103 -> 3857432.23 | J103: =IF(I103=0,"",I103/H103) -> 0.58330032 | K103: =SUM(K104:K139) -> 55515104.71 | Y103: 6613115.23 | AA103: 4175683 | AB103: 6294864.46
A104: ='Org structure'!E112 -> 7.1 - Office of The Director of Planning & Economic Dev. | D104: 0 | E104: 0 | F104: 0 | H104: 0 | I104: 0 | K104: 0 | Y104: =D104/$D$103*$Y$103 -> 0 | AA104: 0 | AB104: 0
A105: ='Org structure'!E113 -> 7.2 - Development Planning Administration | D105: 0 | E105: 0 | F105: 0 | H105: 0 | I105: 0 | K105: 0 | Y105: =D105/$D$103*$Y$103 -> 0 | AA105: 0 | AB105: 0
A106: ='Org structure'!E114 -> 7.3 - Housing Department | D106: 0 | E106: 0 | F106: 0 | H106: 0 | I106: 0 | K106: 0 | Y106: 0 | AA106: 0 | AB106: 0
A107: ='Org structure'!E115 -> 7.4 - Berlin Transit Camp | D107: 558.37992 | E107: 558.37992 | F107: 0 | H107: 66.51578471 | I107: -66.51578471 | J107: -1 | K107: 558.37992 | Y107: 66.51578471 | AA107: 0 | AB107: 0
A108: ='Org structure'!E116 -> 7.5 - Garcia Flats | D108: 342380.7565 | E108: 342380.7565 | F108: 0 | H108: 40785.35756 | I108: -40785.35756 | J108: -1 | K108: 342380.7565 | Y108: 40785.35756 | AA108: 0 | AB108: 0
A109: ='Org structure'!E117 -> 7.6 - Gompo Hostel | D109: 21989.81957 | E109: 21989.81957 | F109: 0 | H109: 2619.489082 | I109: -2619.489082 | J109: -1 | K109: 21989.81957 | Y109: 2619.489082 | AA109: 0 | AB109: 0
A110: ='Org structure'!E118 -> 7.7 - Gonubie Sub-Economic Scheme 1 | D110: 12912.53565 | E110: 12912.53565 | F110: 0 | H110: 1538.177521 | I110: -1538.177521 | J110: -1 | K110: 12912.53565 | Y110: 1538.177521 | AA110: 0 | AB110: 0
A111: ='Org structure'!E119 -> 7.8 - Gonubie Sub-Economic Scheme 2 | D111: 0 | E111: 0 | F111: 0 | H111: 0 | I111: 0 | K111: 0 | Y111: 0 | AA111: 0 | AB111: 0
A112: ='Org structure'!E120 -> 7.9 - Pefferville 619 | D112: 713558.9948 | E112: 713558.9948 | F112: 0 | H112: 85001.15204 | I112: -85001.15204 | J112: -1 | K112: 713558.9948 | Y112: 85001.15204 | AA112: 0 | AB112: 0
A113: ='Org structure'!E121 -> 7.10 - Kwt Housing Staff and Rents and Leases | D113: 56244.74289 | E113: 56244.74289 | F113: 0 | H113: 6700.03178 | I113: -6700.03178 | J113: -1 | K113: 56244.74289 | Y113: 6700.03178 | AA113: 0 | AB113: 0
A114: ='Org structure'!E122 -> 7.11 - City Planning | D114: 1614610.895 | E114: 1614610.895 | F114: 2854586.87 | G114: 3159101.87 | H114: 192336.9857 | I114: 2966764.884 | J114: 15.4248278 | K114: 1614610.895 | Y114: 192336.9857 | AA114: 304515 | AB114: 2854586.87
A115: ='Org structure'!E123 -> 7.12 - Architecture | D115: 10174738.73 | E115: 10174738.73 | F115: 1285286.05 | G115: 2347491.05 | H115: 1212043.461 | I115: 1135447.589 | J115: 0.9368043514 | K115: 10174738.73 | Y115: 1212043.461 | AA115: 1062205 | AB115: 1285286.05
A116: ='Org structure'!E124 -> 7.13 - Land Administration | D116: 7628474.55 | E116: 7628474.55 | F116: 587579.15 | G116: 1545377.15 | H116: 908725.3189 | I116: 636651.8311 | J116: 0.7005987595 | K116: 7628474.55 | Y116: 908725.3189 | AA116: 957798 | AB116: 587579.15
A117: ='Org structure'!E125 -> 7.14 - Land Surveying | D117: 107406 | E117: 107406 | F117: 1609 | G117: 2244 | H117: 12794.50445 | I117: -10550.50445 | J117: -0.8246121991 | K117: 107406 | Y117: 12794.50445 | AA117: 635 | AB117: 1609
A118: ='Org structure'!E126 -> 7.15 - Property Administrarion | D118: 0 | E118: 0 | F118: 110123.17 | G118: 330503.17 | H118: 0 | I118: 330503.17 | K118: 0 | Y118: 0 | AA118: 220380 | AB118: 110123.17
A119: ='Org structure'!E127 -> 7.16 - Building Maintenance - Coastal / Central | D119: 0 | E119: 0 | F119: 0 | H119: 0 | I119: 0 | K119: 0 | Y119: 0 | AA119: 0 | AB119: 0
A120: ='Org structure'!E128 -> 7.17 - Electricity House | D120: 0 | E120: 0 | F120: 0 | H120: 0 | I120: 0 | K120: 0 | Y120: 0 | AA120: 0 | AB120: 0
A121: ='Org structure'!E129 -> 7.18 - Buxton House | D121: 0 | E121: 0 | F121: 0 | H121: 0 | I121: 0 | K121: 0 | Y121: 0 | AA121: 0 | AB121: 0
A122: ='Org structure'!E130 -> 7.19 - Munifin Centre | D122: 0 | E122: 0 | F122: 0 | H122: 0 | I122: 0 | K122: 0 | Y122: 0 | AA122: 0 | AB122: 0
A123: ='Org structure'!E131 -> 7.20 - Braelyn Depot | D123: 0 | E123: 0 | F123: 0 | H123: 0 | I123: 0 | K123: 0 | Y123: 0 | AA123: 0 | AB123: 0
A124: ='Org structure'!E132 -> 7.21 - Chiselhurst Beacon Bay & Kwt Depot | D124: 0 | E124: 0 | F124: 0 | H124: 0 | I124: 0 | K124: 0 | Y124: 0 | AA124: 0 | AB124: 0
A125: ='Org structure'!E133 -> 7.22 - Gonubie Public & Council Buildings | D125: 0 | E125: 0 | F125: 0 | H125: 0 | I125: 0 | K125: 0 | Y125: 0 | AA125: 0 | AB125: 0
A126: ='Org structure'!E134 -> 7.23 - Mdantsane Zone Office | D126: 0 | E126: 0 | F126: 0 | H126: 0 | I126: 0 | K126: 0 | Y126: 0 | AA126: 0 | AB126: 0
A127: ='Org structure'!E135 -> 7.24 - KWT Civic (Admin) Buildings | D127: 0 | E127: 0 | F127: 0 | H127: 0 | I127: 0 | K127: 0 | Y127: 0 | AA127: 0 | AB127: 0
A128: ='Org structure'!E136 -> 7.25 - Miscellaneous | D128: 0 | E128: 0 | F128: 0 | H128: 0 | I128: 0 | K128: 0 | Y128: 0 | AA128: 0 | AB128: 0
A129: ='Org structure'!E137 -> 7.26 - Ilitha Small Business Centre | D129: 0 | E129: 0 | F129: 0 | H129: 0 | I129: 0 | K129: 0 | Y129: 0 | AA129: 0 | AB129: 0
A130: ='Org structure'!E138 -> 7.27 - Phakamisa Small Business Centre | D130: 0 | E130: 0 | F130: 0 | H130: 0 | I130: 0 | K130: 0 | Y130: 0 | AA130: 0 | AB130: 0
A131: ='Org structure'!E139 -> 7.28 - Signage Control | D131: 1746430.676 | E131: 1746430.676 | F131: 0 | H131: 208039.7283 | I131: -208039.7283 | J131: -1 | K131: 1746430.676 | Y131: 208039.7283 | AA131: 0 | AB131: 0
A132: ='Org structure'!E140 -> 7.29 - Old Mutual Building | D132: 818645.133 | E132: 818645.133 | F132: 0 | H132: 97519.30804 | I132: -97519.30804 | J132: -1 | K132: 818645.133 | Y132: 97519.30804 | AA132: 0 | AB132: 0
A133: ='Org structure'!E141 -> 7.30 - Transport Planning & Operations Admin | D133: 0 | E133: 0 | F133: 0 | G133: 0 | H133: 0 | I133: 0 | K133: 0 | Y133: 0 | AA133: 0 | AB133: 0
A134: ='Org structure'!E142 -> 7.31 - Traffic Engineering | D134: 0 | E134: 0 | F134: 0 | H134: 0 | I134: 0 | K134: 0 | Y134: 0 | AA134: 0 | AB134: 0
A135: ='Org structure'!E143 -> 7.32 - Traffic Signal Maintenance | D135: 0 | E135: 0 | F135: 174439.15 | G135: 174439.15 | H135: 0 | I135: 174439.15 | K135: 0 | Y135: 0 | AA135: 0 | AB135: 174439.15
A136: ='Org structure'!E144 -> 7.33 - Buffalo City Bus Services | D136: 8302584.726 | E136: 8302584.726 | F136: -117647 | H136: 989027.2168 | I136: -989027.2168 | J136: -1 | K136: 8302584.726 | Y136: 989027.2168 | AA136: 117647 | AB136: =G136-AA136 -> -117647
A137: ='Org structure'!E145 -> 7.34 - BCMET | D137: 0 | E137: 0 | F137: 0 | H137: 0 | I137: 0 | K137: 0 | Y137: 0 | AA137: 0 | AB137: 0
A138: ='Org structure'!E146 -> 7.35 - Local Economic Development | D138: 0 | E138: 0 | F138: 0 | H138: 0 | I138: 0 | K138: 0 | Y138: 0 | AA138: 0 | AB138: 0
A139: ='Org structure'!E147 -> 7.36 - Market | D139: 23974568.77 | E139: 23974568.77 | F139: 1398888.07 | G139: 2911391.07 | H139: 2855917.983 | I139: 55473.08725 | J139: 0.01942390769 | K139: 23974568.77 | Y139: 2855917.983 | AA139: 1512503 | AB139: 1398888.07
A140: ='Org structure'!A9 -> Vote 8 - Directorate - Health / Public Safety & Emergency Services | C140: =SUM(C141:C164) -> 0 | D140: 157427325.4 | E140: 157427325.4 | F140: 10690703.26 | G140: 35819691.26 | H140: 36922075.8 | I140: -1102384.54 | J140: -0.0298570575 | K140: =SUM(K141:K164) -> 157427325.4 | Y140: 36922075.8 | AA140: 25128988 | AB140: 10690703.26
A141: ='Org structure'!E149 -> 8.1 - Office of The Director of Health & Public Safety | D141: 0 | E141: 0 | F141: 0 | H141: 0 | I141: 0 | K141: 0 | Y141: =D141/$D$140*$Y$140 -> 0 | AA141: 0 | AB141: 0
A142: ='Org structure'!E150 -> 8.2 - Support Services | D142: 0 | E142: 0 | F142: 0 | H142: 0 | I142: 0 | K142: 0 | Y142: =D142/$D$140*$Y$140 -> 0 | AA142: 0 | AB142: 0
A143: ='Org structure'!E151 -> 8.3 - Health Administration | D143: 1312 | E143: 1312 | F143: 7288 | G143: 8318 | H143: 307.7087369 | I143: 8010.291263 | J143: 26.03205663 | K143: 1312 | Y143: 307.7087369 | AA143: 1030 | AB143: 7288
A144: ='Org structure'!E152 -> 8.4 - Health Support | D144: 0 | E144: 0 | F144: 0 | H144: 0 | I144: 0 | K144: 0 | Y144: 0 | AA144: 0 | AB144: 0
A145: ='Org structure'!E153 -> 8.5 - Pharmacy | D145: 0 | E145: 0 | F145: 0 | H145: 0 | I145: 0 | K145: 0 | Y145: 0 | AA145: 0 | AB145: 0
A146: ='Org structure'!E154 -> 8.6 - Clinics | D146: 0 | E146: 0 | F146: 0 | H146: 0 | I146: 0 | K146: 0 | Y146: 0 | AA146: 0 | AB146: 0
A147: ='Org structure'!E155 -> 8.7 - Aids Training Information Centre | D147: 2521877.82 | E147: 2521877.82 | F147: 0 | H147: 591466.3404 | I147: -591466.3404 | J147: -1 | K147: 2521877.82 | Y147: 591466.3404 | AA147: 0 | AB147: 0
A148: ='Org structure'!E156 -> 8.8 - Environmental Health | D148: 0 | E148: 0 | F148: 0 | H148: 0 | I148: 0 | K148: 0 | Y148: 0 | AA148: 0 | AB148: 0
A149: ='Org structure'!E157 -> 8.9 - Pest Control | D149: 12124.30537 | E149: 12124.30537 | F149: 0 | H149: 2843.563028 | I149: -2843.563028 | J149: -1 | K149: 12124.30537 | Y149: 2843.563028 | AA149: 0 | AB149: 0
A150: ='Org structure'!E158 -> 8.10 - Pollution Control | D150: 0 | E150: 0 | F150: 0 | H150: 0 | I150: 0 | K150: 0 | Y150: 0 | AA150: 0 | AB150: 0
A151: ='Org structure'!E159 -> 8.11 - Educare Centre | D151: 7152 | E151: 7152 | F151: 0 | H151: 1677.387871 | I151: -1677.387871 | J151: -1 | K151: 7152 | Y151: 1677.387871 | AA151: 0 | AB151: 0
A152: ='Org structure'!E160 -> 8.12 - Public Safety Administration | D152: 0 | E152: 0 | F152: 0 | H152: 0 | I152: 0 | K152: 0 | Y152: 0 | AA152: 0 | AB152: 0
A153: ='Org structure'!E161 -> 8.13 - Fire and Rescue Services | D153: 77837506.71 | E153: 77837506.71 | F153: 5343759.99 | G153: 22460676.99 | H153: 18255549.45 | I153: 4205127.544 | J153: 0.2303479036 | K153: 77837506.71 | Y153: 18255549.45 | AA153: 17116917 | AB153: 5343759.99
A154: ='Org structure'!E162 -> 8.14 - Security Services | D154: 19378 | E154: 19378 | F154: 3369.97 | G154: 6509.97 | H154: 4544.801755 | I154: 1965.168245 | J154: 0.4323991123 | K154: 19378 | Y154: 4544.801755 | AA154: 3140 | AB154: 3369.97
A155: ='Org structure'!E163 -> 8.15 - Traffic Administration | D155: 23269.61258 | E155: 23269.61258 | F155: -548.7 | G155: 3919.3 | H155: 5457.517603 | I155: -1538.217603 | J155: -0.2818529805 | K155: 23269.61258 | Y155: 5457.517603 | AA155: 4468 | AB155: -548.7
A156: ='Org structure'!E164 -> 8.16 - Traffic Control | D156: 0 | E156: 0 | F156: 5336834 | G156: 13340267 | H156: 0 | I156: 13340267 | K156: 0 | Y156: 0 | AA156: 8003433 | AB156: 5336834
A157: ='Org structure'!E165 -> 8.17 - Criminal Process | D157: 10186209.12 | E157: 10186209.12 | F157: 0 | H157: 2389013.371 | I157: -2389013.371 | J157: -1 | K157: 10186209.12 | Y157: 2389013.371 | AA157: 0 | AB157: 0
A158: ='Org structure'!E166 -> 8.18 - Vehicle Test Station / Examination | D158: 1125663.841 | E158: 1125663.841 | F158: 0 | H158: 264006.5539 | I158: -264006.5539 | J158: -1 | K158: 1125663.841 | Y158: 264006.5539 | AA158: 0 | AB158: 0
A159: ='Org structure'!E167 -> 8.19 - Vehicle Registration | D159: 42425399.45 | E159: 42425399.45 | F159: 0 | H159: 9950202.803 | I159: -9950202.803 | J159: -1 | K159: 42425399.45 | Y159: 9950202.803 | AA159: 0 | AB159: 0
A160: ='Org structure'!E168 -> 8.20 - Drivers License Testing | D160: 21147817.54 | E160: 21147817.54 | F160: 0 | H160: 4959884.317 | I160: -4959884.317 | J160: -1 | K160: 21147817.54 | Y160: 4959884.317 | AA160: 0 | AB160: 0
A161: ='Org structure'!E169 -> 8.21 - Traffic Technical Services | D161: 0 | E161: 0 | F161: 0 | H161: 0 | I161: 0 | K161: 0 | Y161: 0 | AA161: 0 | AB161: 0
A162: ='Org structure'!E170 -> 8.22 - Parking Areas / Meters | D162: 150896.1564 | E162: 150896.1564 | F162: 0 | H162: 35390.29396 | I162: -35390.29396 | J162: -1 | K162: 150896.1564 | Y162: 35390.29396 | AA162: 0 | AB162: 0
A163: ='Org structure'!E171 -> 8.23 - Disaster Management | D163: 0 | E163: 0 | F163: 0 | H163: 0 | I163: 0 | K163: 0 | Y163: 0 | AA163: 0 | AB163: 0
A164: ='Org structure'!E172 -> 8.24 - Dog Tax Office | D164: 1968718.834 | E164: 1968718.834 | F164: 0 | H164: 461731.6963 | I164: -461731.6963 | J164: -1 | K164: 1968718.834 | Y164: 461731.6963 | AA164: 0 | AB164: 0
A165: ='Org structure'!A10 -> Vote 9 - Directorate - Municipal Services | C165: =SUM(C166:C192) -> 0 | D165: 384755525.5 | E165: 387255525.5 | F165: 25278711.42 | G165: 104739790.4 | H165: 122265332.3 | I165: -17525541.93 | J165: -0.1433402388 | K165: =SUM(K166:K192) -> 387255525.5 | Y165: 94584993.11 | AA165: 79461079 | AB165: 25278711.42
A166: ='Org structure'!E174 -> 9.1 - Office of The Director of Community Services | D166: 0 | E166: 0 | F166: 0 | H166: 0 | I166: 0 | K166: 0 | Y166: =D166/$D$165*$Y$165 -> 0 | AA166: 0 | AB166: 0
A167: ='Org structure'!E175 -> 9.2 - Cleansing Administration Support | D167: 1848 | E167: 1848 | F167: 0 | H167: 454.2964446 | I167: -454.2964446 | J167: -1 | K167: 1848 | Y167: =D167/$D$165*$Y$165 -> 454.2964446 | AA167: 0 | AB167: 0
A168: ='Org structure'!E176 -> 9.3 - Environmental Administration Support | D168: 0 | E168: 0 | F168: 0 | H168: 0 | I168: 0 | K168: 0 | Y168: 0 | AA168: 0 | AB168: 0
A169: ='Org structure'!E177 -> 9.4 - Environmental Services | D169: 384520.6913 | E169: 384520.6913 | F169: 0 | H169: 94527.26348 | I169: -94527.26348 | J169: -1 | K169: 384520.6913 | Y169: 94527.26348 | AA169: 0 | AB169: 0
A170: ='Org structure'!E178 -> 9.5 - Environmental Conservation | D170: 0 | E170: 0 | F170: 67947.44 | G170: 232398.44 | H170: 0 | I170: 232398.44 | K170: 0 | Y170: 0 | AA170: 164451 | AB170: 67947.44
A171: ='Org structure'!E179 -> 9.6 - Environmental Workshop | D171: 0 | E171: 0 | F171: 0 | H171: 0 | I171: 0 | K171: 0 | Y171: 0 | AA171: 0 | AB171: 0
A172: ='Org structure'!E180 -> 9.7 - Interments | D172: 8909957.931 | E172: 8909957.931 | F172: 596519.96 | G172: 1989985.96 | H172: 2190347.516 | I172: -200361.5559 | J172: -0.09147477945 | K172: 8909957.931 | Y172: 2190347.516 | AA172: 1393466 | AB172: 596519.96
A173: ='Org structure'!E181 -> 9.8 - Gompo Admin Building | D173: 0 | E173: 0 | F173: 0 | H173: 0 | I173: 0 | K173: 0 | Y173: 0 | AA173: 0 | AB173: 0
A174: ='Org structure'!E182 -> 9.9 - Integrated Environmental Management | D174: 0 | E174: 0 | F174: 0 | H174: 0 | I174: 0 | K174: 0 | Y174: 0 | AA174: 0 | AB174: 0
A175: ='Org structure'!E183 -> 9.10 - Arts & Cultural Services Admin | D175: 5405 | E175: 5405 | F175: 139076.39 | G175: 260349.39 | H175: 1328.718768 | I175: 259020.6712 | J175: 194.9401766 | K175: 5405 | Y175: 1328.718768 | AA175: 121273 | AB175: 139076.39
A176: ='Org structure'!E184 -> 9.11 - Libraries | D176: 4360898.891 | E176: 4360898.891 | F176: 31914.11 | G176: 79866.11 | H176: 1072045.921 | I176: -992179.8107 | J176: -0.925501223 | K176: 4360898.891 | Y176: 1072045.921 | AA176: 47952 | AB176: 31914.11
A177: ='Org structure'!E185 -> 9.12 - Art Gallery | D177: 1596 | E177: 1596 | F177: 0 | H177: 392.3469294 | I177: -392.3469294 | J177: -1 | K177: 1596 | Y177: 392.3469294 | AA177: 0 | AB177: 0
A178: ='Org structure'!E186 -> 9.13 - Art Centres | D178: 0 | E178: 0 | F178: 0 | H178: 0 | I178: 0 | K178: 0 | Y178: 0 | AA178: 0 | AB178: 0
A179: ='Org structure'!E187 -> 9.14 - Halls | D179: 2481628.425 | E179: 2481628.425 | F179: 101536.27 | G179: 299639.27 | H179: 610062.2133 | I179: -310422.9433 | J179: -0.508838175 | K179: 2481628.425 | Y179: 610062.2133 | AA179: 198103 | AB179: 101536.27
A180: ='Org structure'!E188 -> 9.15 - Amenities Administration Support | D180: 0 | E180: 0 | F180: 0 | H180: 0 | I180: 0 | K180: 0 | Y180: 0 | AA180: 0 | AB180: 0
A181: ='Org structure'!E189 -> 9.16 - Sportsfields | D181: 140601.0266 | E181: 140601.0266 | F181: 41573.48 | G181: 63508.48 | H181: 34564.14853 | I181: 28944.33147 | J181: 0.8374090698 | K181: 140601.0266 | Y181: 34564.14853 | AA181: 21935 | AB181: 41573.48
A182: ='Org structure'!E190 -> 9.17 - Swimming Pools | D182: 497683.158 | E182: 497683.158 | F182: 0 | H182: 122346.1522 | I182: -122346.1522 | J182: -1 | K182: 497683.158 | Y182: 122346.1522 | AA182: 0 | AB182: 0
A183: ='Org structure'!E191 -> 9.18 - Aquarium | D183: 572721.3263 | E183: 572721.3263 | F183: 0 | H183: 140792.8909 | I183: -140792.8909 | J183: -1 | K183: 572721.3263 | Y183: 140792.8909 | AA183: 0 | AB183: 0
A184: ='Org structure'!E192 -> 9.19 - Zoo | D184: 1976300.761 | E184: 1976300.761 | F184: 0 | H184: 485836.8014 | I184: -485836.8014 | J184: -1 | K184: 1976300.761 | Y184: 485836.8014 | AA184: 0 | AB184: 0
A185: ='Org structure'!E193 -> 9.20 - Beaches | D185: 665720.7362 | E185: 665720.7362 | F185: 0 | H185: 163655.0669 | I185: -163655.0669 | J185: -1 | K185: 665720.7362 | Y185: 163655.0669 | AA185: 0 | AB185: 0
A186: ='Org structure'!E194 -> 9.21 - Resorts | D186: 3724586.611 | E186: 3724586.611 | F186: 11941.63 | G186: 35244.63 | H186: 915620.3761 | I186: -880375.7461 | J186: -0.9615073769 | K186: 3724586.611 | Y186: 915620.3761 | AA186: 23303 | AB186: 11941.63
A187: ='Org structure'!E195 -> 9.22 - Cleansing Administration Support | D187: 1294 | E187: 1294 | F187: 0 | H187: 318.1058438 | I187: -318.1058438 | J187: -1 | K187: 1294 | Y187: 318.1058438 | AA187: 0 | AB187: 0
A188: ='Org structure'!E196 -> 9.23 - Refuse Removal | D188: 355723573.5 | E188: 355723573.5 | F188: 24008181.41 | G188: 100940985.4 | H188: =87448027.4482847+27680339.24 -> 115128366.7 | I188: -14187381.28 | J188: -0.1232309785 | K188: 355723573.5 | Y188: 87448027.45 | AA188: 76932804 | AB188: 24008181.41
A189: ='Org structure'!E197 -> 9.24 - Waste Disposal Sites | D189: 5307189.376 | E189: 5307189.376 | F189: 0 | H189: 1304673.844 | I189: -1304673.844 | J189: -1 | K189: 5307189.376 | Y189: 1304673.844 | AA189: 0 | AB189: 0
A190: ='Org structure'!E198 -> 9.25 - Street Sweeping | D190: 0 | E190: 0 | F190: 0 | H190: 0 | I190: 0 | K190: 0 | Y190: 0 | AA190: 0 | AB190: 0
A191: ='Org structure'!E199 -> 9.26 - Public Conveniences | D191: 0 | E191: 0 | F191: 0 | H191: 0 | I191: 0 | K191: 0 | Y191: 0 | AA191: 0 | AB191: 0
A192: ='Org structure'!E200 -> 9.27 - E.L Regional Waste Disposal Site & Transfer Station | D192: 0 | E192: 2500000 | F192: 280020.73 | G192: 837812.73 | H192: 0 | I192: 837812.73 | K192: 2500000 | Y192: 0 | AA192: 557792 | AB192: 280020.73
A193: ='Org structure'!A11 -> Vote 10 - Directorate - Miscellaneous | C193: =SUM(C194:C206) -> 0 | D193: 850352600 | E193: 850352600 | F193: 30553385.3 | G193: 63978119.23 | H193: 64942557.14 | I193: -964437.9098 | J193: -0.01485063035 | K193: =SUM(K194:K206) -> 850352600 | Y193: 0 | AA193: 33424733.93 | AB193: 30553385.3
A194: ='Org structure'!E202 -> 10.1 - IDP | D194: 0 | E194: 0 | F194: 0 | G194: 0 | H194: 0 | I194: 0 | K194: 0 | Y194: =D194/$D$193*$Y$193 -> 0 | AA194: 0 | AB194: 0
A195: ='Org structure'!E203 -> 10.2 - Development Co-Operation | D195: 0 | E195: 0 | F195: 0 | G195: 0 | H195: 0 | I195: 0 | K195: 0 | Y195: =D195/$D$193*$Y$193 -> 0 | AA195: 0 | AB195: 0
A196: ='Org structure'!E204 -> 10.3 - Strategic Support | D196: 0 | E196: 0 | F196: 0 | G196: 0 | H196: 0 | I196: 0 | K196: 0 | Y196: 0 | AA196: 0 | AB196: 0
A197: ='Org structure'!E205 -> 10.4 - Local Economic Development | D197: 0 | E197: 0 | F197: 0 | G197: 0 | H197: 0 | I197: 0 | K197: 0 | Y197: 0 | AA197: 0 | AB197: 0
A198: ='Org structure'!E206 -> 10.5 - Integrated Environmental Management | D198: 0 | E198: 0 | F198: 0 | G198: 0 | H198: 0 | I198: 0 | K198: 0 | Y198: 0 | AA198: 0 | AB198: 0
A199: ='Org structure'!E207 -> 10.6 - Market | D199: 0 | E199: 0 | F199: 0 | G199: 0 | H199: 0 | I199: 0 | K199: 0 | Y199: 0 | AA199: 0 | AB199: 0
A200: ='Org structure'!E208 -> 10.7 - BCMM Restated | D200: 0 | E200: 0 | F200: 0 | G200: 0 | H200: 0 | I200: 0 | K200: 0 | Y200: 0 | AA200: 0 | AB200: =G200-AA200 -> 0
... 329 more rows

Sheet C4-FinPerf RE
A1: =muni& " - "&S71B& " - "&date -> BUF Buffalo City - Table C4 Monthly Budget Statement - Financial Performance (revenue and expenditure) - M03 September
A2: =desc -> Description | B2: =head27 -> Ref | C2: =Head1 -> 2014/15 | D2: =Head2 -> Budget Year 2015/16
C3: =Head5 -> Audited Outcome | D3: =Head6 -> Original Budget | E3: =Head7 -> Adjusted Budget | F3: =Head38 -> Monthly actual | G3: =Head39 -> YearTD actual | H3: =Head40 -> YearTD budget | I3: =Head41 -> YTD variance | J3: =Head41 -> YTD variance | K3: =Head8 -> Full Year Forecast
A4: R thousands | J4: %
A5: Revenue By Source
A6: Property rates | D6: 902841979.6 | E6: 902841979.6 | F6: 124598205 | G6: 280653785.7 | H6: 222878588.5 | I6: =G6-H6 -> 57775197.27 | J6: =IF(I6=0,"",I6/H6) -> 0.259222735 | K6: 902841979.6
A7: Property rates - penalties & collection charges | D7: 571170.23 | E7: 571170.23 | F7: 0 | G7: 0 | H7: 0 | I7: 0 | K7: 571170.23
A8: Service charges - electricity revenue | D8: 1658671213 | E8: 1658671213 | F8: 117198588.2 | G8: 423748175.3 | H8: 402393186.2 | I8: 21354989.12 | J8: 0.05306995707 | K8: 1658671213
A9: Service charges - water revenue | D9: 411380727.5 | E9: 411380727.5 | F9: 29856360.69 | G9: 101343638.6 | H9: 93064122.47 | I9: 8279516.105 | J9: 0.08896571402 | K9: 411380727.5
A10: Service charges - sanitation revenue | D10: 314570625.1 | E10: 314570625.1 | F10: 24428796.53 | G10: 83730888.72 | H10: 78642656.29 | I10: 5088232.434 | J10: 0.06470066849 | K10: 314570625.1
A11: Service charges - refuse revenue | D11: 286062520.5 | E11: 286062520.5 | F11: 24001235.16 | G11: 71907808.63 | H11: 71515630.25 | I11: 392178.38 | J11: 0.005483813519 | K11: 286062520.5
A12: Service charges - other | D12: 16055934.85 | E12: 16055934.85 | F12: 0 | G12: 4782391.7 | H12: 11948148.41 | I12: -7165756.71 | J12: -0.5997378392 | K12: 16055934.85
A13: Rental of facilities and equipment | D13: 18629261.76 | E13: 18629261.76 | F13: 3718172.91 | G13: 4163608.56 | H13: 2450457.88 | I13: 1713150.68 | J13: 0.6991145181 | K13: 18629261.76
A14: Interest earned - external investments | D14: 133619907 | E14: 133619907 | F14: 13394986.35 | G14: 34903313.87 | H14: 33404976.75 | I14: 1498337.12 | J14: 0.04485370941 | K14: 133619907
A15: Interest earned - outstanding debtors | D15: 32174551.37 | E15: 32174551.37 | F15: 2430687.07 | G15: 7178155.6 | H15: 5039801.76 | I15: 2138353.84 | J15: 0.4242932444 | K15: 32174551.37
A16: Dividends received | D16: 0 | E16: 0 | F16: 0 | G16: 0 | H16: 0 | I16: 0 | K16: 0
A17: Fines | D17: 10293009.38 | E17: 10293009.38 | F17: 680012.34 | G17: 1954796.5 | H17: 820093.5 | I17: 1134703 | J17: 1.383626379 | K17: 10293009.38
A18: Licences and permits | D18: 22472368.12 | E18: 22472368.12 | F18: 295863.37 | G18: 988326.45 | H18: 2659698.49 | I18: -1671372.04 | J18: -0.628406583 | K18: 22472368.12
A19: Agency services | D19: 0 | E19: 0 | F19: 0 | G19: 0 | H19: 0 | I19: 0 | K19: 0
A20: Transfers recognised - operational | D20: 1249333299 | E20: 1254460473 | F20: 11594275.45 | G20: 287621213.9 | H20: 260327405.7 | I20: 27293808.18 | J20: 0.10484416 | K20: 1254460473
A21: Other revenue | D21: 662930923.4 | E21: 662930923.4 | F21: 17707656.81 | G21: 181435871.4 | H21: 153681324.1 | I21: 27754547.32 | J21: 0.1805980491 | K21: 662930923.4
A22: Gains on disposal of PPE | D22: 0 | E22: 0 | F22: 0 | G22: 0 | H22: 0 | I22: 0 | K22: 0
A23: Total Revenue (excluding capital transfers and contributions) | C23: =SUM(C6:C22) -> 0 | D23: 5719607491 | E23: 5724734665 | F23: 369904839.9 | G23: 1484411975 | H23: 1338826090 | I23: 145585884.7 | J23: 0.1087414458 | K23: =SUM(K6:K22) -> 5724734665
A25: Expenditure By Type
A26: Employee related costs | D26: 1387618913 | E26: 1387618913 | F26: 121056972.8 | G26: 326281756.8 | H26: 346904728.2 | I26: =G26-H26 -> -20622971.44 | J26: =IF(I26=0,"",I26/H26) -> -0.05944851644 | K26: 1387618913
A27: Remuneration of councillors | D27: 52910192 | E27: 52910192 | F27: 4312357.02 | G27: 12784375.35 | H27: 13227548 | I27: -443172.65 | J27: -0.03350376427 | K27: 52910192
A28: Debt impairment | D28: 245009326.3 | E28: 245009326.3 | F28: 20417443.83 | G28: 61252331.49 | H28: 61252331.59 | I28: -0.09750000387 | J28: -1.591776204e-09 | K28: 245009326.3
A29: Depreciation & asset impairment | D29: 712213175.6 | E29: 690929721.6 | F29: 54030234.5 | G29: 172732430.5 | H29: 172732430.4 | I29: 0.09161281586 | J29: 5.303741494e-10 | K29: 690929721.6
A30: Finance charges | D30: 54313000 | E30: 54313000 | F30: 4031476.15 | G30: 13083642.81 | H30: 13578250 | I30: -494607.19 | J30: -0.03642643124 | K30: 54313000
A31: Bulk purchases | D31: 1377011714 | E31: 1377011714 | F31: 102629511.5 | G31: 427908866.7 | H31: 426831654.9 | I31: 1077211.767 | J31: 0.002523739172 | K31: 1377011714
A32: Other materials | D32: 0 | E32: 0 | F32: 0 | G32: 0 | H32: 0 | I32: 0 | K32: 0
A33: Contracted services | D33: 21621595.55 | E33: 21621595.55 | F33: 1714639.2 | G33: 2360879.58 | H33: 2295646.37 | I33: 65233.21 | J33: 0.02841605347 | K33: 21621595.55
A34: Transfers and grants | D34: 258568483.3 | E34: 258568483.3 | F34: 31036833.93 | G34: 51438575.07 | H34: 14328111.96 | I34: 37110463.11 | J34: 2.590045584 | K34: 258568483.3
A35: Other expenditure | D35: 1609418924 | E35: 1635829552 | F35: 102634424.4 | G35: 202411318.4 | H35: 152365768.7 | I35: 50045549.69 | J35: 0.3284566482 | K35: 1635829552
A36: Loss on disposal of PPE | D36: 0 | E36: 0 | F36: 0 | G36: 0 | H36: 0 | I36: 0 | K36: 0
A37: Total Expenditure | C37: =SUM(C26:C36) -> 0 | D37: =SUM(D26:D36) -> 5718685323 | E37: =SUM(E26:E36) -> 5723812497 | F37: 441863893.3 | G37: 1270254177 | H37: 1203516470 | I37: 66737706.49 | J37: 0.05545225856 | K37: 5723812497
A39: Surplus/(Deficit) | C39: =C23-C37 -> 0 | D39: 922167.3897 | E39: 922167.3897 | F39: -71959053.32 | G39: 214157798.3 | H39: 135309620.1 | I39: =I23-I37 -> 78848178.21 | J39: 0.582724112 | K39: =K23-K37 -> 922167.3897
A40: Transfers recognised - capital | D40: 850352600 | E40: 850352600 | F40: 30553385.3 | G40: 63978119.23 | H40: 64942557.14 | I40: =G40-H40 -> -964437.9098 | J40: -0.01485063035 | K40: 850352600
A41: Contributions recognised - capital | D41: 0 | E41: 0 | F41: 0 | G41: 0 | H41: 0 | I41: =G41-H41 -> 0 | K41: 0
A42: Contributed assets | D42: 0 | E42: 0 | F42: 0 | G42: 0 | H42: 0 | I42: =G42-H42 -> 0 | K42: 0
A43: Surplus/(Deficit) after capital transfers & contributions | C43: =C39+SUM(C40:C42) -> 0 | D43: 851274767.4 | E43: 851274767.4 | F43: -41405668.02 | G43: 278135917.5 | H43: 200252177.2 | K43: =K39+SUM(K40:K42) -> 851274767.4
A44: Taxation | D44: 0 | E44: 0 | F44: 0 | G44: 0 | H44: 0 | I44: =G44-H44 -> 0 | J44: =IF(I44=0,"",I44/H44) ->  | K44: 0
A45: Surplus/(Deficit) after taxation | C45: =C43-C44 -> 0 | D45: 851274767.4 | E45: 851274767.4 | F45: -41405668.02 | G45: 278135917.5 | H45: 200252177.2 | K45: =K43-K44 -> 851274767.4
A46: Attributable to minorities | D46: 0 | E46: 0 | F46: 0 | G46: 0 | H46: 0 | K46: 0
A47: Surplus/(Deficit) attributable to municipality | C47: =SUM(C45:C46) -> 0 | D47: 851274767.4 | E47: 851274767.4 | F47: -41405668.02 | G47: 278135917.5 | H47: 200252177.2 | K47: =SUM(K45:K46) -> 851274767.4
A48: Share of surplus/ (deficit) of associate | D48: 0 | E48: 0 | F48: 0 | G48: 0 | H48: 0 | K48: 0
A49: Surplus/ (Deficit) for the year | C49: =C47+C48 -> 0 | D49: 851274767.4 | E49: 851274767.4 | F49: -41405668.02 | G49: 278135917.5 | H49: 200252177.2 | K49: =K47+K48 -> 851274767.4
A50: =head27a -> References
A51: 1. Material variances to be explained on Table SC1
A54: =A23&" including capital transfers/contributions etc" -> Total Revenue (excluding capital transfers and contributions) including capital transfers/contributions etc | C54: =C23+SUM(C40:C42) -> 0 | D54: 6569960091 | E54: 6575087265 | F54: 400458225.2 | G54: 1548390094 | H54: 1403768647 | K54: =K23+SUM(K40:K42) -> 6575087265

Sheet C5-Capex
A1: =muni& " - "&S71D& " - "&date -> BUF Buffalo City - Table C5 Monthly Budget Statement - Capital Expenditure (municipal vote, standard classification and funding) - M03 September
A2: =Vdesc -> Vote Description | B2: =head27 -> Ref | C2: =Head1 -> 2014/15 | D2: =Head2 -> Budget Year 2015/16
C3: =Head5 -> Audited Outcome | D3: =Head6 -> Original Budget | E3: =Head7 -> Adjusted Budget | F3: =Head38 -> Monthly actual | G3: =Head39 -> YearTD actual | H3: =Head40 -> YearTD budget | I3: =Head41 -> YTD variance | J3: =Head41 -> YTD variance | K3: =Head8 -> Full Year Forecast
A4: R thousands | B4: 1 | J4: %
A5: Multi-Year expenditure appropriation | B5: 2
A6: ='Org structure'!A2 -> Vote 1 - Directorate - Executive Support Services | C6: ='C5C'!C7 -> 0 | D6: ='C5C'!D7 -> 6200000 | E6: ='C5C'!E7 -> 7439297.35 | F6: ='C5C'!F7 -> 334659.51 | G6: ='C5C'!G7 -> 342070.11 | H6: ='C5C'!H7 -> 1366780.818 | I6: =G6-H6 -> -1024710.708 | J6: =IF(I6=0,"",I6/H6) -> -0.7497257019 | K6: ='C5C'!K7 -> 7439297.35
A7: ='Org structure'!A3 -> Vote 2 - Directorate - City Manager | C7: ='C5C'!C21 -> 0 | D7: ='C5C'!D21 -> 21500000 | E7: ='C5C'!E21 -> 21500000 | F7: ='C5C'!F21 -> 0 | G7: ='C5C'!G21 -> 0 | H7: ='C5C'!H21 -> 37248.37253 | I7: =G7-H7 -> -37248.37253 | J7: =IF(I7=0,"",I7/H7) -> -1 | K7: ='C5C'!K21 -> 21500000
A8: ='Org structure'!A4 -> Vote 3 - Directorate - Human Settlements | C8: ='C5C'!C26 -> 0 | D8: ='C5C'!D26 -> 211424000 | E8: ='C5C'!E26 -> 211784513 | F8: ='C5C'!F26 -> 10110383.74 | G8: ='C5C'!G26 -> 41752036.92 | H8: ='C5C'!H26 -> 7691287.025 | I8: =G8-H8 -> 34060749.9 | J8: =IF(I8=0,"",I8/H8) -> 4.428485088 | K8: ='C5C'!K26 -> 211784513
A9: ='Org structure'!A5 -> Vote 4 - Directorate - Finance | C9: ='C5C'!C31 -> 0 | D9: ='C5C'!D31 -> 10000000 | E9: ='C5C'!E31 -> 10631902 | F9: ='C5C'!F31 -> 31680 | G9: ='C5C'!G31 -> 31680 | H9: ='C5C'!H31 -> 650061.2368 | I9: -618381.2368 | J9: -0.9512661297 | K9: ='C5C'!K31 -> 10631902
A10: ='Org structure'!A6 -> Vote 5 - Directorate - Corporate Services | C10: ='C5C'!C44 -> 0 | D10: ='C5C'!D44 -> 21600000 | E10: ='C5C'!E44 -> 39538409.09 | F10: ='C5C'!F44 -> 1349205.07 | G10: ='C5C'!G44 -> 1388325.76 | H10: ='C5C'!H44 -> 188299.4107 | I10: 1200026.349 | J10: 6.372969224 | K10: ='C5C'!K44 -> 39538409.09
A11: ='Org structure'!A7 -> Vote 6 - Directorate - Infrastructure Services | C11: ='C5C'!C56 -> 0 | D11: ='C5C'!D56 -> 820555969 | E11: ='C5C'!E56 -> 859351526.7 | F11: ='C5C'!F56 -> 33463861.5 | G11: ='C5C'!G56 -> 41824320.11 | H11: ='C5C'!H56 -> 43751085.32 | I11: -1926765.214 | J11: -0.04403925525 | K11: ='C5C'!K56 -> 859351526.7
A12: ='Org structure'!A8 -> Vote 7 - Directorate - Development Planning | C12: ='C5C'!C104 -> 0 | D12: ='C5C'!D104 -> 68220661 | E12: ='C5C'!E104 -> 69652869 | F12: ='C5C'!F104 -> 2793019.27 | G12: ='C5C'!G104 -> 3430842.57 | H12: ='C5C'!H104 -> 4153593.058 | I12: -722750.4884 | J12: -0.1740060902 | K12: ='C5C'!K104 -> 69652869
A13: ='Org structure'!A9 -> Vote 8 - Directorate - Health / Public Safety & Emergency Services | C13: ='C5C'!C141 -> 0 | D13: ='C5C'!D141 -> 21650000 | E13: ='C5C'!E141 -> 32265057 | F13: ='C5C'!F141 -> 222078.12 | G13: ='C5C'!G141 -> 1711479.1 | H13: ='C5C'!H141 -> 4360792.748 | I13: -2649313.648 | J13: -0.607530282 | K13: ='C5C'!K141 -> 32265057
A14: ='Org structure'!A10 -> Vote 9 - Directorate - Municipal Services | C14: ='C5C'!C166 -> 0 | D14: ='C5C'!D166 -> 94203600 | E14: ='C5C'!E166 -> 127985893 | F14: ='C5C'!F166 -> 9062378.98 | G14: ='C5C'!G166 -> 9102378.98 | H14: ='C5C'!H166 -> 2743409.147 | I14: 6358969.833 | J14: 2.317907936 | K14: ='C5C'!K166 -> 127985893
A15: ='Org structure'!A11 -> Vote 10 - Directorate - Miscellaneous | C15: ='C5C'!C194 -> 0 | D15: ='C5C'!D194 -> 0 | E15: ='C5C'!E194 -> 0 | F15: ='C5C'!F194 -> 0 | G15: ='C5C'!G194 -> 0 | H15: ='C5C'!H194 -> 0 | I15: 0 | K15: ='C5C'!K194 -> 0
A16: ='Org structure'!A15 -> Vote 11 - [NAME OF VOTE 11] | C16: ='C5C'!C208 -> 0 | D16: ='C5C'!D208 -> 0 | E16: ='C5C'!E208 -> 0 | F16: ='C5C'!F208 -> 0 | G16: ='C5C'!G208 -> 0 | H16: ='C5C'!H208 -> 0 | I16: 0 | K16: ='C5C'!K208 -> 0
A17: ='Org structure'!A16 -> Vote 12 - [NAME OF VOTE 12] | C17: ='C5C'!C219 -> 0 | D17: ='C5C'!D219 -> 0 | E17: ='C5C'!E219 -> 0 | F17: ='C5C'!F219 -> 0 | G17: ='C5C'!G219 -> 0 | H17: ='C5C'!H219 -> 0 | I17: 0 | K17: ='C5C'!K219 -> 0
A18: ='Org structure'!A17 -> Vote 13 - [NAME OF VOTE 13] | C18: ='C5C'!C230 -> 0 | D18: ='C5C'!D230 -> 0 | E18: ='C5C'!E230 -> 0 | F18: ='C5C'!F230 -> 0 | G18: ='C5C'!G230 -> 0 | H18: ='C5C'!H230 -> 0 | I18: =G18-H18 -> 0 | J18: =IF(I18=0,"",I18/H18) ->  | K18: ='C5C'!K230 -> 0
A19: ='Org structure'!A18 -> Vote 14 - [NAME OF VOTE 14] | C19: ='C5C'!C241 -> 0 | D19: ='C5C'!D241 -> 0 | E19: ='C5C'!E241 -> 0 | F19: ='C5C'!F241 -> 0 | G19: ='C5C'!G241 -> 0 | H19: ='C5C'!H241 -> 0 | I19: =G19-H19 -> 0 | J19: =IF(I19=0,"",I19/H19) ->  | K19: ='C5C'!K241 -> 0
A20: ='Org structure'!A19 -> Vote 15 - [NAME OF VOTE 15] | C20: ='C5C'!C252 -> 0 | D20: ='C5C'!D252 -> 0 | E20: ='C5C'!E252 -> 0 | F20: ='C5C'!F252 -> 0 | G20: ='C5C'!G252 -> 0 | H20: ='C5C'!H252 -> 0 | I20: =G20-H20 -> 0 | J20: =IF(I20=0,"",I20/H20) ->  | K20: ='C5C'!K252 -> 0
A21: Total Capital Multi-year expenditure | B21: 4,7 | C21: =SUM(C6:C20) -> 0 | D21: =SUM(D6:D20) -> 1275354230 | E21: 1380149467 | F21: 57367266.19 | G21: 99583133.55 | H21: 64942557.14 | I21: 34640576.41 | J21: =IF(I21=0,"",I21/H21) -> 0.5334033327 | K21: =SUM(K6:K20) -> 1380149467
A23: Single Year expenditure appropriation | B23: 2
A24: ='Org structure'!A2 -> Vote 1 - Directorate - Executive Support Services | C24: ='C5C'!C267 -> 0 | D24: ='C5C'!D267 -> 0 | E24: ='C5C'!E267 -> 0 | F24: ='C5C'!F267 -> 0 | G24: ='C5C'!G267 -> 0 | H24: ='C5C'!H267 -> 0 | I24: ='C5C'!I267 -> 0 | J24: =IF(I24=0,"",I24/H24) ->  | K24: ='C5C'!K267 -> 0
A25: ='Org structure'!A3 -> Vote 2 - Directorate - City Manager | C25: ='C5C'!C281 -> 0 | D25: ='C5C'!D281 -> 0 | E25: ='C5C'!E281 -> 0 | F25: ='C5C'!F281 -> 0 | G25: ='C5C'!G281 -> 0 | H25: ='C5C'!H281 -> 0 | I25: ='C5C'!I281 -> 0 | J25: =IF(I25=0,"",I25/H25) ->  | K25: ='C5C'!K281 -> 0
A26: ='Org structure'!A4 -> Vote 3 - Directorate - Human Settlements | C26: ='C5C'!C286 -> 0 | D26: ='C5C'!D286 -> 0 | E26: ='C5C'!E286 -> 0 | F26: ='C5C'!F286 -> 0 | G26: ='C5C'!G286 -> 0 | H26: ='C5C'!H286 -> 0 | I26: ='C5C'!I286 -> 0 | K26: ='C5C'!K286 -> 0
A27: ='Org structure'!A5 -> Vote 4 - Directorate - Finance | C27: ='C5C'!C291 -> 0 | D27: ='C5C'!D291 -> 0 | E27: ='C5C'!E291 -> 0 | F27: ='C5C'!F291 -> 0 | G27: ='C5C'!G291 -> 0 | H27: ='C5C'!H291 -> 0 | I27: ='C5C'!I291 -> 0 | K27: ='C5C'!K291 -> 0
A28: ='Org structure'!A6 -> Vote 5 - Directorate - Corporate Services | C28: ='C5C'!C304 -> 0 | D28: ='C5C'!D304 -> 0 | E28: ='C5C'!E304 -> 0 | F28: ='C5C'!F304 -> 0 | G28: ='C5C'!G304 -> 0 | H28: ='C5C'!H304 -> 0 | I28: ='C5C'!I304 -> 0 | K28: ='C5C'!K304 -> 0
A29: ='Org structure'!A7 -> Vote 6 - Directorate - Infrastructure Services | C29: ='C5C'!C316 -> 0 | D29: ='C5C'!D316 -> 0 | E29: ='C5C'!E316 -> 0 | F29: ='C5C'!F316 -> 0 | G29: ='C5C'!G316 -> 0 | H29: ='C5C'!H316 -> 0 | I29: ='C5C'!I316 -> 0 | K29: ='C5C'!K316 -> 0
A30: ='Org structure'!A8 -> Vote 7 - Directorate - Development Planning | C30: ='C5C'!C364 -> 0 | D30: ='C5C'!D364 -> 0 | E30: ='C5C'!E364 -> 0 | F30: ='C5C'!F364 -> 0 | G30: ='C5C'!G364 -> 0 | H30: ='C5C'!H364 -> 0 | I30: ='C5C'!I364 -> 0 | K30: ='C5C'!K364 -> 0
A31: ='Org structure'!A9 -> Vote 8 - Directorate - Health / Public Safety & Emergency Services | C31: ='C5C'!C401 -> 0 | D31: ='C5C'!D401 -> 0 | E31: ='C5C'!E401 -> 0 | F31: ='C5C'!F401 -> 0 | G31: ='C5C'!G401 -> 0 | H31: ='C5C'!H401 -> 0 | I31: ='C5C'!I401 -> 0 | K31: ='C5C'!K401 -> 0
A32: ='Org structure'!A10 -> Vote 9 - Directorate - Municipal Services | C32: ='C5C'!C426 -> 0 | D32: ='C5C'!D426 -> 0 | E32: ='C5C'!E426 -> 0 | F32: ='C5C'!F426 -> 0 | G32: ='C5C'!G426 -> 0 | H32: ='C5C'!H426 -> 0 | I32: ='C5C'!I426 -> 0 | K32: ='C5C'!K426 -> 0
A33: ='Org structure'!A11 -> Vote 10 - Directorate - Miscellaneous | C33: ='C5C'!C454 -> 0 | D33: ='C5C'!D454 -> 0 | E33: ='C5C'!E454 -> 0 | F33: ='C5C'!F454 -> 0 | G33: ='C5C'!G454 -> 0 | H33: ='C5C'!H454 -> 0 | I33: ='C5C'!I454 -> 0 | K33: ='C5C'!K454 -> 0
A34: ='Org structure'!A15 -> Vote 11 - [NAME OF VOTE 11] | C34: ='C5C'!C468 -> 0 | D34: ='C5C'!D468 -> 0 | E34: ='C5C'!E468 -> 0 | F34: ='C5C'!F468 -> 0 | G34: ='C5C'!G468 -> 0 | H34: ='C5C'!H468 -> 0 | I34: ='C5C'!I468 -> 0 | K34: ='C5C'!K468 -> 0
A35: ='Org structure'!A16 -> Vote 12 - [NAME OF VOTE 12] | C35: ='C5C'!C479 -> 0 | D35: ='C5C'!D479 -> 0 | E35: ='C5C'!E479 -> 0 | F35: ='C5C'!F479 -> 0 | G35: ='C5C'!G479 -> 0 | H35: ='C5C'!H479 -> 0 | I35: ='C5C'!I479 -> 0 | K35: ='C5C'!K479 -> 0
A36: ='Org structure'!A17 -> Vote 13 - [NAME OF VOTE 13] | C36: ='C5C'!C490 -> 0 | D36: ='C5C'!D490 -> 0 | E36: ='C5C'!E490 -> 0 | F36: ='C5C'!F490 -> 0 | G36: ='C5C'!G490 -> 0 | H36: ='C5C'!H490 -> 0 | I36: ='C5C'!I490 -> 0 | K36: ='C5C'!K490 -> 0
A37: ='Org structure'!A18 -> Vote 14 - [NAME OF VOTE 14] | C37: ='C5C'!C501 -> 0 | D37: ='C5C'!D501 -> 0 | E37: ='C5C'!E501 -> 0 | F37: ='C5C'!F501 -> 0 | G37: ='C5C'!G501 -> 0 | H37: ='C5C'!H501 -> 0 | I37: ='C5C'!I501 -> 0 | K37: ='C5C'!K501 -> 0
A38: ='Org structure'!A19 -> Vote 15 - [NAME OF VOTE 15] | C38: ='C5C'!C512 -> 0 | D38: ='C5C'!D512 -> 0 | E38: ='C5C'!E512 -> 0 | F38: ='C5C'!F512 -> 0 | G38: ='C5C'!G512 -> 0 | H38: ='C5C'!H512 -> 0 | I38: ='C5C'!I512 -> 0 | K38: ='C5C'!K512 -> 0
A39: Total Capital single-year expenditure | B39: 4 | C39: =SUM(C24:C38) -> 0 | D39: 0 | E39: 0 | F39: 0 | G39: 0 | H39: 0 | I39: 0 | K39: =SUM(K24:K38) -> 0
A40: Total Capital Expenditure | C40: =C39+C21 -> 0 | D40: 1275354230 | E40: 1380149467 | F40: 57367266.19 | G40: 99583133.55 | H40: 64942557.14 | I40: 34640576.41 | J40: =IF(I40=0,"",I40/H40) -> 0.5334033327 | K40: =K39+K21 -> 1380149467
A42: Capital Expenditure - Standard Classification
A43: ='C2-FinPerf SC'!A29 -> Governance and administration | C43: =SUM(C44:C46) -> 0 | D43: 59300000 | E43: 79109608.44 | F43: 1715544.58 | G43: 1762075.87 | H43: 3722481.071 | I43: =G43-H43 -> -1960405.201 | J43: =IF(I43=0,"",I43/H43) -> -0.5266394009 | K43: =SUM(K44:K46) -> 79109608.44
A44: ='C2-FinPerf SC'!A30 -> Executive and council | D44: 27700000 | E44: 28939297.35 | F44: 334659.51 | G44: 342070.11 | H44: 1361730.752 | I44: -1019660.642 | J44: =IF(I44=0,"",I44/H44) -> -0.7487975435 | K44: 28939297.35
A45: ='C2-FinPerf SC'!A31 -> Budget and treasury office | D45: 10000000 | E45: 10631902 | F45: 31680 | G45: 31680 | H45: 500281.2518 | I45: -468601.2518 | J45: -0.9366756202 | K45: 10631902
A46: ='C2-FinPerf SC'!A32 -> Corporate services | D46: 21600000 | E46: 39538409.09 | F46: 1349205.07 | G46: 1388325.76 | H46: 1860469.067 | I46: -472143.3071 | J46: -0.2537764887 | K46: 39538409.09
A47: ='C2-FinPerf SC'!A33 -> Community and public safety | C47: =SUM(C48:C52) -> 0 | D47: 305567500 | E47: 317533139 | F47: 12695550.9 | G47: 45866605.06 | H47: 14941435.34 | I47: 30925169.72 | J47: 2.069758963 | K47: =SUM(K48:K52) -> 317533139
A48: ='C2-FinPerf SC'!A34 -> Community and social services | D48: 40268500 | E48: 40268500 | F48: 2111840.38 | G48: 2151840.38 | H48: 1894823.296 | I48: 257017.084 | J48: 0.1356417163 | K48: 40268500
A49: ='C2-FinPerf SC'!A35 -> Sport and recreation | D49: 32225000 | E49: 33215069 | F49: 251248.66 | G49: 251248.66 | H49: 1562926.022 | I49: -1311677.362 | J49: -0.8392446882 | K49: 33215069
A50: ='C2-FinPerf SC'!A36 -> Public safety | D50: 21650000 | E50: 32265057 | F50: 222078.12 | G50: 1711479.1 | H50: 1518223.466 | I50: 193255.6338 | J50: 0.1272906381 | K50: 32265057
A51: ='C2-FinPerf SC'!A37 -> Housing | D51: 211424000 | E51: 211784513 | F51: 10110383.74 | G51: 41752036.92 | H51: 9965462.556 | I51: 31786574.36 | J51: 3.189673754 | K51: 211784513
A52: ='C2-FinPerf SC'!A38 -> Health | D52: 0 | E52: 0 | F52: 0 | G52: 0 | H52: 0 | I52: 0 | K52: 0
A53: ='C2-FinPerf SC'!A39 -> Economic and environmental services | C53: =SUM(C54:C56) -> 0 | D53: 333220661 | E53: 334652869 | F53: 6740893.94 | G53: 8583058.27 | H53: 15746999.57 | I53: -7163941.301 | J53: -0.4549400836 | K53: =SUM(K54:K56) -> 334652869
A54: ='C2-FinPerf SC'!A40 -> Planning and development | D54: 68220661 | E54: 69652869 | F54: 2793019.27 | G54: 3430842.57 | H54: 3277496.773 | I54: 153345.7968 | J54: 0.04678747453 | K54: 69652869
A55: ='C2-FinPerf SC'!A41 -> Road transport | D55: 265000000 | E55: 265000000 | F55: 3947874.67 | G55: 5152215.7 | H55: 12469502.8 | I55: -7317287.098 | J55: -0.5868146643 | K55: 265000000
A56: ='C2-FinPerf SC'!A42 -> Environmental protection | D56: 0 | E56: 0 | F56: 0 | G56: 0 | H56: 0 | I56: 0 | K56: 0
A57: ='C2-FinPerf SC'!A43 -> Trading services | C57: =SUM(C58:C61) -> 0 | D57: 529266069 | E57: 600853850.7 | F57: 36215276.77 | G57: 43371394.35 | H57: 28273014.23 | I57: 15098380.12 | J57: 0.5340208861 | K57: =SUM(K58:K61) -> 600853850.7
A58: ='C2-FinPerf SC'!A44 -> Electricity | D58: 158500000 | E58: 158500000 | F58: 11841214.44 | G58: 13859350.85 | H58: 7458174.315 | I58: 6401176.535 | J58: 0.8582766056 | K58: 158500000
A59: ='C2-FinPerf SC'!A45 -> Water | D59: 91000000 | E59: 91000000 | F59: 7284067.09 | G59: 12329587.36 | H59: 4281980.206 | I59: 8047607.154 | J59: 1.879412507 | K59: 91000000
A60: ='C2-FinPerf SC'!A46 -> Waste water management | D60: 258055969 | E60: 296851526.7 | F60: 10390705.3 | G60: 10483166.2 | H60: 13968267.71 | I60: -3485101.507 | J60: -0.2495013398 | K60: 296851526.7
A61: ='C2-FinPerf SC'!A47 -> Waste management | D61: 21710100 | E61: 54502324 | F61: 6699289.94 | G61: 6699289.94 | H61: 2564592.006 | I61: 4134697.934 | J61: 1.612224449 | K61: 54502324
A62: ='C2-FinPerf SC'!A48 -> Other | D62: 48000000 | E62: 48000000 | F62: 0 | G62: 0 | H62: 2258626.922 | I62: -2258626.922 | J62: -1 | K62: 48000000
A63: Total Capital Expenditure - Standard Classification | B63: 3 | C63: =C43+C47+C53+C57+C62 -> 0 | D63: =D43+D47+D53+D57+D62 -> 1275354230 | E63: 1380149467 | F63: 57367266.19 | G63: 99583133.55 | H63: 64942557.14 | I63: 34640576.41 | J63: 0.5334033327 | K63: =K43+K47+K53+K57+K62 -> 1380149467
A65: Funded by:
A66: National Government | D66: 742884100 | E66: 742884100 | F66: 30164185 | G66: 58069221 | H66: 34956208.92 | I66: =G66-H66 -> 23113012.08 | J66: =IF(I66=0,"",I66/H66) -> 0.6611990486 | K66: 742884100
A67: Provincial Government | D67: 107468500 | E67: 107468500 | F67: 389200 | G67: 5908898 | H67: 5056900.987 | I67: 851997.0133 | J67: 0.1684820438 | K67: 107468500
A68: District Municipality | D68: 0 | E68: 0 | F68: 0 | G68: 0 | H68: 0 | I68: 0 | K68: 0
A69: Other transfers and grants | D69: 0 | E69: 0 | F69: 0 | G69: 0 | H69: 0 | I69: 0 | K69: 0
A70: Transfers recognised - capital | C70: =SUM(C66:C69) -> 0 | D70: 850352600 | E70: 850352600 | F70: 30553385 | G70: 63978119 | H70: 40013109.91 | I70: 23965009.09 | J70: 0.5989289298 | K70: =SUM(K66:K69) -> 850352600
A71: Public contributions & donations | B71: 5 | D71: 0 | E71: 0 | F71: 0 | G71: 0 | H71: 0 | I71: 0 | K71: 0
A72: Borrowing | B72: 6 | D72: 0 | E72: 0 | F72: 0 | G72: 0 | H72: 0 | I72: 0 | K72: 0
A73: Internally generated funds | D73: 425001630 | E73: 529796867.1 | F73: 26813881 | G73: 35605014 | H73: 24929447.23 | I73: 10675566.77 | J73: 0.4282311865 | K73: 529796867.1
A74: Total Capital Funding | C74: =SUM(C70:C73) -> 0 | D74: 1275354230 | E74: 1380149467 | F74: =SUM(F70:F73) -> 57367266 | G74: =SUM(G70:G73) -> 99583133 | H74: =SUM(H70:H73) -> 64942557.14 | I74: 34640575.86 | J74: 0.5334033242 | K74: 1380149467
A75: =head27a -> References
A76: 1. Municipalities may choose to appropriate for capital expenditure for three years or for one year (if one year appropriation projected expenditure required for yr2 and yr3).
A77: 2. Include capital component of PPP unitary payment
A78: 3. Capital expenditure by standard classification must reconcile to the total of multi-year and single year appropriations
A79: 4. Include expenditure on investment property, intangible and biological assets
A80: 5. Must reconcile to Monthly Budget Statement Financial Performance (revenue and expenditure)
A81: 6. Include finance leases and PPP capital funding component of unitary payment - total borrowing/repayments to reconcile to changes in Table SA17
A86: check balance | C86: =C40-C74 -> 0 | D86: =D40-D74 -> 0 | E86: 0 | F86: 0.1899999976 | G86: 0.549999997 | H86: 0 | K86: 0

Sheet C5C
A1: =muni& " - "&S71D& " - "&"A"& " - "&date -> BUF Buffalo City - Table C5 Monthly Budget Statement - Capital Expenditure (municipal vote, standard classification and funding) - A - M03 September
A2: =Vdesc -> Vote Description | B2: =head27 -> Ref | C2: =Head1 -> 2014/15 | D2: =Head2 -> Budget Year 2015/16 | L2: =Head4 -> 
A3: R thousand | C3: =Head5 -> Audited Outcome | D3: =Head6 -> Original Budget | E3: =Head7 -> Adjusted Budget | F3: =Head38 -> Monthly actual | G3: =Head39 -> YearTD actual | H3: =Head40 -> YearTD budget | I3: =Head41 -> YTD variance | J3: =Head41 -> YTD variance | K3: =Head8 -> Full Year Forecast | L3: =Head12 -> Forecast 2010/11 | M3: =Head13 -> Forecast 2011/12 | N3: =Head14 -> Forecast 2012/13 | O3: =Head15 -> Forecast 2013/14 | P3: =Head16 -> Forecast 2014/15 | Q3: =Head17 -> Forecast 2015/16 | R3: =Head18 -> Forecast 2016/17 | S3: =Head19 -> Forecast 2017/18 | T3: =Head20 -> Forecast 2018/19 | U3: =Head21 -> Forecast 2019/20 | V3: =Head22 -> Forecast 2020/21 | W3: =Head23 -> Forecast 2021/22
J4: %
A5: Capital expenditure - Municipal Vote
A6: Expenditure of multi-year capital appropriation | B6: 1
A7: ='Org structure'!A2 -> Vote 1 - Directorate - Executive Support Services | C7: =SUM(C8:C20) -> 0 | D7: =SUM(D8:D20) -> 6200000 | E7: 7439297.35 | F7: 334659.51 | G7: 342070.11 | H7: 1366780.818 | I7: =G7-H7 -> -1024710.708 | J7: =IF(I7=0,"",I7/H7) -> -0.7497257019 | K7: 7439297.35 | Y7: 1366780.818
A8: ='Org structure'!E3 -> 1.1 - Office of The Director of Executive Support | D8: 3000000 | E8: 4239297.35 | F8: 203796 | G8: 203796 | H8: 778862.5765 | I8: -575066.5765 | J8: -0.7383415173 | K8: 4239297.35 | Y8: =E8/$E$7*$Y$7 -> 778862.5765
A9: ='Org structure'!E4 -> 1.2 - Executive Mayor, Speaker & Mayoral Committee | D9: 0 | E9: 0 | F9: 0 | G9: 0 | H9: 0 | I9: 0 | K9: 0 | Y9: =E9/$E$7*$Y$7 -> 0
A10: ='Org structure'!E5 -> 1.3 - Councillors | D10: 0 | E10: 0 | F10: 0 | G10: 0 | H10: 0 | I10: 0 | K10: 0 | Y10: 0
A11: ='Org structure'!E6 -> 1.4 - Grants-In-Aid | D11: 0 | E11: 0 | F11: 0 | G11: 0 | H11: 0 | I11: 0 | K11: 0 | Y11: 0
A12: ='Org structure'!E7 -> 1.5 - Public Participation & Ward Committees | D12: 1200000 | E12: 1200000 | F12: 0 | G12: 0 | H12: 220469.3407 | I12: -220469.3407 | J12: -1 | K12: 1200000 | Y12: 220469.3407
A13: ='Org structure'!E8 -> 1.6 - Strategic Support | D13: 0 | E13: 0 | F13: 0 | G13: 0 | H13: 0 | I13: 0 | K13: 0 | Y13: 0
A14: ='Org structure'!E9 -> 1.7 - Special Programmes | D14: 0 | E14: 0 | F14: 0 | G14: 0 | H14: 0 | I14: 0 | K14: 0 | Y14: 0
A15: ='Org structure'!E10 -> 1.8 - City Hall | D15: 2000000 | E15: 2000000 | F15: 130863.51 | G15: 138274.11 | H15: 367448.9012 | I15: -229174.7912 | J15: -0.6236915948 | K15: 2000000 | Y15: 367448.9012
A16: ='Org structure'!E11 -> 1.9 - IDP | D16: 0 | E16: 0 | F16: 0 | G16: 0 | H16: 0 | I16: 0 | K16: 0 | Y16: 0
A17: ='Org structure'!E12 -> 1.10 - G I S Unit | D17: 0 | E17: 0 | F17: 0 | G17: 0 | H17: 0 | I17: 0 | K17: 0 | Y17: 0
A18: ='Org structure'!E13 -> 1.11 - Development Co-Operation | D18: 0 | E18: 0 | F18: 0 | G18: 0 | H18: 0 | I18: 0 | K18: 0 | Y18: 0
A19: ='Org structure'!E14 -> 1.12 - Public Relations & International Events | D19: 0 | E19: 0 | F19: 0 | G19: 0 | H19: 0 | I19: 0 | K19: 0 | Y19: 0
A20: ='Org structure'!E15 -> 1.13 - Research Policy & Knowledge Management Unit | D20: 0 | E20: 0 | F20: 0 | G20: 0 | H20: 0 | I20: 0 | K20: 0 | Y20: 0
A21: ='Org structure'!A3 -> Vote 2 - Directorate - City Manager | C21: =SUM(C22:C25) -> 0 | D21: 21500000 | E21: 21500000 | F21: 0 | G21: 0 | H21: 37248.37253 | I21: -37248.37253 | J21: -1 | K21: =SUM(K22:K25) -> 21500000 | Y21: 37248.37253
A22: ='Org structure'!E17 -> 2.1 - Office of The Municipal Manager & Support Services | D22: 21500000 | E22: 21500000 | F22: 0 | G22: 0 | H22: 37248.37253 | I22: -37248.37253 | J22: -1 | K22: 21500000 | Y22: =E22/$E$21*$Y$21 -> 37248.37253
A23: ='Org structure'!E18 -> 2.2 - Internal Audit | D23: 0 | E23: 0 | F23: 0 | G23: 0 | H23: 0 | I23: 0 | K23: 0 | Y23: =E23/$E$21*$Y$21 -> 0
A24: ='Org structure'!E19 -> 2.3 - Legal Services | D24: 0 | E24: 0 | F24: 0 | G24: 0 | H24: 0 | I24: 0 | K24: 0 | Y24: 0
A25: ='Org structure'!E20 -> 2.4 - Municipal Public Accounts Committee | D25: 0 | E25: 0 | F25: 0 | G25: 0 | H25: 0 | I25: 0 | K25: 0 | Y25: 0
A26: ='Org structure'!A4 -> Vote 3 - Directorate - Human Settlements | C26: =SUM(C27:C30) -> 0 | D26: 211424000 | E26: 211784513 | F26: 10110383.74 | G26: 41752036.92 | H26: 7691287.025 | I26: 34060749.9 | J26: 4.428485088 | K26: =SUM(K27:K30) -> 211784513 | Y26: 7691287.025
A27: ='Org structure'!E28 -> 3.1 - Mdantsane Urban Renewal Unit | D27: 0 | E27: 0 | F27: 0 | G27: 0 | H27: 0 | I27: 0 | K27: 0 | Y27: =E27/$E$26*$Y$26 -> 0
A28: ='Org structure'!E29 -> 3.2 - Office of The Chief Operations Officer | D28: 0 | E28: 360513 | F28: 0 | G28: 0 | H28: 13092.59549 | I28: -13092.59549 | J28: -1 | K28: 360513 | Y28: =E28/$E$26*$Y$26 -> 13092.59549
A29: ='Org structure'!E30 -> 3.3 - Housing Department | D29: 208924000 | E29: 208924000 | F29: 10110383.74 | G29: 41752036.92 | H29: 7587403.005 | I29: 34164633.91 | J29: 4.502809972 | K29: 208924000 | Y29: 7587403.005
A30: ='Org structure'!E31 -> 3.4 - Mdantsane Urban Renewal Unit | D30: 2500000 | E30: 2500000 | F30: 0 | G30: 0 | H30: 90791.42421 | I30: -90791.42421 | J30: -1 | K30: 2500000 | Y30: =E30/$E$26*$Y$26 -> 90791.42421
A31: ='Org structure'!A5 -> Vote 4 - Directorate - Finance | C31: =SUM(C32:C43) -> 0 | D31: 10000000 | E31: 10631902 | F31: 31680 | G31: 31680 | H31: 650061.2368 | I31: -618381.2368 | J31: -0.9512661297 | K31: =SUM(K32:K43) -> 10631902 | Y31: 650061.2368
A32: ='Org structure'!E39 -> 4.1 - Office of The Director of Finance | D32: 0 | E32: 431902 | F32: 2680 | G32: 2680 | H32: 26407.57489 | I32: -23727.57489 | J32: -0.8985139676 | K32: 431902 | Y32: =E32/$E$31*$Y$31 -> 26407.57489
A33: ='Org structure'!E40 -> 4.2 - Support Services Office | D33: 0 | E33: 0 | F33: 0 | G33: 0 | H33: 0 | I33: 0 | K33: 0 | Y33: =E33/$E$31*$Y$31 -> 0
A34: ='Org structure'!E41 -> 4.3 - Budget Office | D34: 0 | E34: 0 | F34: 0 | G34: 0 | H34: 0 | I34: 0 | K34: 0 | Y34: 0
A35: ='Org structure'!E42 -> 4.4 - Asset Risk & Financial Services | D35: 10000000 | E35: 10000000 | F35: 29000 | G35: 29000 | H35: 611425.1587 | I35: -582425.1587 | J35: -0.9525698287 | K35: 10000000 | Y35: 611425.1587
A36: ='Org structure'!E43 -> 4.5 - Supply Chain Management | D36: 0 | E36: 200000 | F36: 0 | G36: 0 | H36: 12228.50317 | I36: -12228.50317 | J36: -1 | K36: 200000 | Y36: 12228.50317
A37: ='Org structure'!E44 -> 4.6 - Expenditure Office | D37: 0 | E37: 0 | F37: 0 | G37: 0 | H37: 0 | I37: 0 | K37: 0 | Y37: 0
A38: ='Org structure'!E45 -> 4.7 - Salary Office | D38: 0 | E38: 0 | F38: 0 | G38: 0 | H38: 0 | I38: 0 | K38: 0 | Y38: 0
A39: ='Org structure'!E46 -> 4.8 - Rates and Valuations Office | D39: 0 | E39: 0 | F39: 0 | G39: 0 | H39: 0 | I39: 0 | K39: 0 | Y39: 0
A40: ='Org structure'!E47 -> 4.9 - Consolidated Billing & Miscellaneous Revenue Office | D40: 0 | E40: 0 | F40: 0 | G40: 0 | H40: 0 | I40: 0 | K40: 0 | Y40: 0
A41: ='Org structure'!E48 -> 4.10 - Debtors Management Office | D41: 0 | E41: 0 | F41: 0 | G41: 0 | H41: 0 | I41: 0 | K41: 0 | Y41: 0
A42: ='Org structure'!E49 -> 4.11 - Customer Care Office | D42: 0 | E42: 0 | F42: 0 | G42: 0 | H42: 0 | I42: 0 | K42: 0 | Y42: 0
A43: ='Org structure'!E50 -> 4.12 - Pre-Payment Vending Office | D43: 0 | E43: 0 | F43: 0 | G43: 0 | H43: 0 | I43: 0 | K43: 0 | Y43: 0
A44: ='Org structure'!A6 -> Vote 5 - Directorate - Corporate Services | C44: =SUM(C45:C55) -> 0 | D44: 21600000 | E44: 39538409.09 | F44: 1349205.07 | G44: 1388325.76 | H44: 188299.4107 | I44: 1200026.349 | J44: 6.372969224 | K44: =SUM(K45:K55) -> 39538409.09 | Y44: 188299.4107
A45: ='Org structure'!E52 -> 5.1 - Office of The Director of Corporate Services | D45: 0 | E45: 412884 | F45: 0 | G45: 0 | H45: 1966.336423 | I45: -1966.336423 | J45: -1 | K45: 412884 | Y45: =E45/$E$44*$Y$44 -> 1966.336423
A46: ='Org structure'!E53 -> 5.2 - Support Services Office | D46: 0 | E46: 0 | F46: 0 | G46: 0 | H46: 0 | I46: 0 | K46: 0 | Y46: =E46/$E$44*$Y$44 -> 0
A47: ='Org structure'!E54 -> 5.3 - Administrative & Council Support | D47: 0 | E47: 0 | F47: 0 | G47: 0 | H47: 0 | I47: 0 | K47: 0 | Y47: 0
A48: ='Org structure'!E55 -> 5.4 - Auxilliary & Telecommunication Support | D48: 0 | E48: 0 | F48: 0 | G48: 0 | H48: 0 | I48: 0 | K48: 0 | Y48: 0
A49: ='Org structure'!E56 -> 5.5 - General Admin & Telecomm Services | D49: 0 | E49: 0 | F49: 0 | G49: 0 | H49: 0 | I49: 0 | K49: 0 | Y49: 0
A50: ='Org structure'!E57 -> 5.6 - Management Information Services | D50: 20000000 | E50: 37525525.09 | F50: 1349205.07 | G50: 1388325.76 | H50: 178713.1658 | I50: 1209612.594 | J50: 6.768458208 | K50: 37525525.09 | Y50: 178713.1658
A51: ='Org structure'!E58 -> 5.7 - H.R. Administration | D51: 1600000 | E51: 1600000 | F51: 0 | G51: 0 | H51: 7619.90844 | I51: -7619.90844 | J51: -1 | K51: 1600000 | Y51: 7619.90844
A52: ='Org structure'!E59 -> 5.8 - Occupational Risk Management | D52: 0 | E52: 0 | F52: 0 | G52: 0 | H52: 0 | I52: 0 | K52: 0 | Y52: 0
A53: ='Org structure'!E60 -> 5.9 - Labour Relations | D53: 0 | E53: 0 | F53: 0 | G53: 0 | H53: 0 | I53: 0 | K53: 0 | Y53: 0
A54: ='Org structure'!E61 -> 5.10 - Organisational Development | D54: 0 | E54: 0 | F54: 0 | G54: 0 | H54: 0 | I54: 0 | K54: 0 | Y54: 0
A55: ='Org structure'!E62 -> 5.11 - Research Policy & Knowledge Management Unit | D55: 0 | E55: 0 | F55: 0 | G55: 0 | H55: 0 | I55: 0 | K55: 0 | Y55: 0
A56: ='Org structure'!A7 -> Vote 6 - Directorate - Infrastructure Services | C56: =SUM(C57:C103) -> 0 | D56: =SUM(D57:D103) -> 820555969 | E56: 859351526.7 | F56: 33463861.5 | G56: 41824320.11 | H56: 43751085.32 | I56: -1926765.214 | J56: -0.04403925525 | K56: 859351526.7 | Y56: 43751085.32
A57: ='Org structure'!E64 -> 6.1 - Office of The Director of Engineering Services | D57: 0 | E57: 0 | F57: 0 | G57: 0 | H57: 0 | I57: 0 | K57: 0 | Y57: =E57/$E$56*$Y$56 -> 0
A58: ='Org structure'!E65 -> 6.2 - City Engineering Building | D58: 0 | E58: 0 | F58: 0 | G58: 0 | H58: 0 | I58: 0 | K58: 0 | Y58: =E58/$E$56*$Y$56 -> 0
A59: ='Org structure'!E66 -> 6.3 - Chiselhurst Beacon Bay & Kwt Depot | D59: 0 | E59: 0 | F59: 0 | G59: 0 | H59: 0 | I59: 0 | K59: 0 | Y59: 0
A60: ='Org structure'!E67 -> 6.4 - Beacon Bay Civic Centre | D60: 0 | E60: 0 | F60: 0 | G60: 0 | H60: 0 | I60: 0 | K60: 0 | Y60: 0
A61: ='Org structure'!E68 -> 6.5 - Scientific Services | D61: 0 | E61: 0 | F61: 0 | G61: 0 | H61: 0 | I61: 0 | K61: 0 | Y61: 0
A62: ='Org structure'!E69 -> 6.6 - Night Soil Removal - Coastal | D62: 0 | E62: 0 | F62: 0 | G62: 0 | H62: 0 | I62: 0 | K62: 0 | Y62: 0
A63: ='Org structure'!E70 -> 6.7 - Night Soil Removal - Central | D63: 0 | E63: 0 | F63: 0 | G63: 0 | H63: 0 | I63: 0 | K63: 0 | Y63: 0
A64: ='Org structure'!E71 -> 6.8 - Night Soil Removal - Inland | D64: 0 | E64: 0 | F64: 0 | G64: 0 | H64: 0 | I64: 0 | K64: 0 | Y64: 0
A65: ='Org structure'!E72 -> 6.9 - Sewerage Admin | D65: 258055969 | E65: 296851526.7 | F65: 10390705.3 | G65: 10483166.2 | H65: 15113229.07 | I65: -4630062.867 | J65: -0.3063582803 | K65: 296851526.7 | Y65: 15113229.07
A66: ='Org structure'!E73 -> 6.10 - Sewerage Pump Station - Coastal | D66: 0 | E66: 0 | F66: 0 | G66: 0 | H66: 0 | I66: 0 | K66: 0 | Y66: 0
A67: ='Org structure'!E74 -> 6.11 - Sewerage Pump Station - Central | D67: 0 | E67: 0 | F67: 0 | G67: 0 | H67: 0 | I67: 0 | K67: 0 | Y67: 0
A68: ='Org structure'!E75 -> 6.12 - Sewerage Pump Station - Inland | D68: 0 | E68: 0 | F68: 0 | G68: 0 | H68: 0 | I68: 0 | K68: 0 | Y68: 0
A69: ='Org structure'!E76 -> 6.13 - Sewerage Treatment - Coastal | D69: 0 | E69: 0 | F69: 0 | G69: 0 | H69: 0 | I69: 0 | K69: 0 | Y69: 0
A70: ='Org structure'!E77 -> 6.14 - Sewerage Treatment - Central | D70: 0 | E70: 0 | F70: 0 | G70: 0 | H70: 0 | I70: 0 | K70: 0 | Y70: 0
A71: ='Org structure'!E78 -> 6.15 - Sewerage Treatment - Inland | D71: 0 | E71: 0 | F71: 0 | G71: 0 | H71: 0 | I71: 0 | K71: 0 | Y71: 0
A72: ='Org structure'!E79 -> 6.16 - Sewerage Reticulation - Coastal | D72: 0 | E72: 0 | F72: 0 | G72: 0 | H72: 0 | I72: 0 | K72: 0 | Y72: 0
A73: ='Org structure'!E80 -> 6.17 - Sewerage Reticulation - Central | D73: 0 | E73: 0 | F73: 0 | G73: 0 | H73: 0 | I73: 0 | K73: 0 | Y73: 0
A74: ='Org structure'!E81 -> 6.18 - Sewerage Reticulation - Inland | D74: 0 | E74: 0 | F74: 0 | G74: 0 | H74: 0 | I74: 0 | K74: 0 | Y74: 0
A75: ='Org structure'!E82 -> 6.19 - Sewerage Interceptors | D75: 0 | E75: 0 | F75: 0 | G75: 0 | H75: 0 | I75: 0 | K75: 0 | Y75: 0
A76: ='Org structure'!E83 -> 6.20 - Water Administration | D76: 91000000 | E76: 91000000 | F76: 7284067.09 | G76: 12329587.36 | H76: 4632968.746 | I76: 7696618.614 | J76: 1.66127143 | K76: 91000000 | Y76: 4632968.746
A77: ='Org structure'!E84 -> 6.21 - Water Miscellaneous | D77: 0 | E77: 0 | F77: 0 | G77: 0 | H77: 0 | I77: 0 | K77: 0 | Y77: 0
A78: ='Org structure'!E85 -> 6.22 - Maden Dam | D78: 0 | E78: 0 | F78: 0 | G78: 0 | H78: 0 | I78: 0 | K78: 0 | Y78: 0
A79: ='Org structure'!E86 -> 6.23 - Bridle Drift Dam | D79: 0 | E79: 0 | F79: 0 | G79: 0 | H79: 0 | I79: 0 | K79: 0 | Y79: 0
A80: ='Org structure'!E87 -> 6.24 - Bulk Pumping Stations | D80: 0 | E80: 0 | F80: 0 | G80: 0 | H80: 0 | I80: 0 | K80: 0 | Y80: 0
A81: ='Org structure'!E88 -> 6.25 - Water Treatment Works | D81: 0 | E81: 0 | F81: 0 | G81: 0 | H81: 0 | I81: 0 | K81: 0 | Y81: 0
A82: ='Org structure'!E89 -> 6.26 - Umzonyana Water Treatment Works | D82: 0 | E82: 0 | F82: 0 | G82: 0 | H82: 0 | I82: 0 | K82: 0 | Y82: 0
A83: ='Org structure'!E90 -> 6.27 - Needs Camp Water Treatment Works | D83: 0 | E83: 0 | F83: 0 | G83: 0 | H83: 0 | I83: 0 | K83: 0 | Y83: 0
A84: ='Org structure'!E91 -> 6.28 - KWT Water Treatment Works | D84: 0 | E84: 0 | F84: 0 | G84: 0 | H84: 0 | I84: 0 | K84: 0 | Y84: 0
A85: ='Org structure'!E92 -> 6.29 - Mdantsane Bulk Pumping | D85: 0 | E85: 0 | F85: 0 | G85: 0 | H85: 0 | I85: 0 | K85: 0 | Y85: 0
A86: ='Org structure'!E93 -> 6.30 - Water Ops and Maint. - Inland | D86: 0 | E86: 0 | F86: 0 | G86: 0 | H86: 0 | I86: 0 | K86: 0 | Y86: 0
A87: ='Org structure'!E94 -> 6.31 - Water Ops and Maint. - Midland | D87: 0 | E87: 0 | F87: 0 | G87: 0 | H87: 0 | I87: 0 | K87: 0 | Y87: 0
A88: ='Org structure'!E95 -> 6.32 - Water Ops and Maint. - Coastal | D88: 0 | E88: 0 | F88: 0 | G88: 0 | H88: 0 | I88: 0 | K88: 0 | Y88: 0
A89: ='Org structure'!E96 -> 6.33 - Construction Distribution | D89: 0 | E89: 0 | F89: 0 | G89: 0 | H89: 0 | I89: 0 | K89: 0 | Y89: 0
A90: ='Org structure'!E97 -> 6.34 - Roads Administration | D90: 265000000 | E90: 265000000 | F90: 3947874.67 | G90: 5152215.7 | H90: 13491612.28 | I90: -8339396.581 | J90: -0.618117124 | K90: 265000000 | Y90: 13491612.28
A91: ='Org structure'!E98 -> 6.35 - Roads Design | D91: 0 | E91: 0 | F91: 0 | G91: 0 | H91: 0 | I91: 0 | K91: 0 | Y91: 0
A92: ='Org structure'!E99 -> 6.36 - Roads and Stormwater Drainage | D92: 0 | E92: 0 | F92: 0 | G92: 0 | H92: 0 | I92: 0 | K92: 0 | Y92: 0
A93: ='Org structure'!E100 -> 6.37 - Provincial Main Roads | D93: 0 | E93: 0 | F93: 0 | G93: 0 | H93: 0 | I93: 0 | K93: 0 | Y93: 0
A94: ='Org structure'!E101 -> 6.38 - Project Management and Implementation Branch | D94: 0 | E94: 0 | F94: 0 | G94: 0 | H94: 0 | I94: 0 | K94: 0 | Y94: 0
A95: ='Org structure'!E102 -> 6.39 - Project Management Unit | D95: 0 | E95: 0 | F95: 0 | G95: 0 | H95: 0 | I95: 0 | K95: 0 | Y95: 0
A96: ='Org structure'!E103 -> 6.40 - Mechanical Workshop - Westbank | D96: 0 | E96: 0 | F96: 0 | G96: 0 | H96: 0 | I96: 0 | K96: 0 | Y96: 0
A97: ='Org structure'!E104 -> 6.41 - Fleet Management - Westbank | D97: 0 | E97: 0 | F97: 0 | G97: 0 | H97: 0 | I97: 0 | K97: 0 | Y97: 0
A98: ='Org structure'!E105 -> 6.42 - Mechanical Workshop - Braelyn | D98: 0 | E98: 0 | F98: 0 | G98: 0 | H98: 0 | I98: 0 | K98: 0 | Y98: 0
A99: ='Org structure'!E106 -> 6.43 - Fleet Management - Braelyn | D99: 48000000 | E99: 48000000 | F99: 0 | G99: 0 | H99: 2443763.734 | I99: -2443763.734 | J99: -1 | K99: 48000000 | Y99: 2443763.734
A100: ='Org structure'!E107 -> 6.44 - Electricity Administration | D100: 158500000 | E100: 158500000 | F100: 11841214.44 | G100: 13859350.85 | H100: 8069511.496 | I100: 5789839.354 | J100: 0.7174956447 | K100: 158500000 | Y100: 8069511.496
A101: ='Org structure'!E108 -> 6.45 - Electricity Distribution Supervisory Staff | D101: 0 | E101: 0 | F101: 0 | G101: 0 | H101: 0 | I101: =G101-H101 -> 0 | J101: =IF(I101=0,"",I101/H101) ->  | K101: 0 | Y101: 0
A102: ='Org structure'!E109 -> 6.46 - Electricity Planning & Design | D102: 0 | E102: 0 | F102: 0 | G102: 0 | H102: 0 | I102: 0 | K102: 0 | Y102: 0
A103: ='Org structure'!E110 -> 6.47 - Revenue Protection | D103: 0 | E103: 0 | F103: 0 | G103: 0 | H103: 0 | I103: 0 | K103: 0 | Y103: 0
A104: ='Org structure'!A8 -> Vote 7 - Directorate - Development Planning | C104: =SUM(C105:C140) -> 0 | D104: 68220661 | E104: 69652869 | F104: 2793019.27 | G104: 3430842.57 | H104: 4153593.058 | I104: =G104-H104 -> -722750.4884 | J104: =IF(I104=0,"",I104/H104) -> -0.1740060902 | K104: =SUM(K105:K140) -> 69652869 | Y104: 4153593.058
A105: ='Org structure'!E112 -> 7.1 - Office of The Director of Planning & Economic Dev. | D105: 10820661 | E105: 10820661 | F105: 363197.69 | G105: 627297.69 | H105: 645265.9174 | I105: -17968.22743 | J105: -0.02784623663 | K105: 10820661 | Y105: =E105/$E$104*$Y$104 -> 645265.9174
A106: ='Org structure'!E113 -> 7.2 - Development Planning Administration | D106: 0 | E106: 0 | F106: 0 | G106: 0 | H106: 0 | I106: 0 | K106: 0 | Y106: =E106/$E$104*$Y$104 -> 0
A107: ='Org structure'!E114 -> 7.3 - Housing Department | D107: 0 | E107: 0 | F107: 0 | G107: 0 | H107: 0 | I107: 0 | K107: 0 | Y107: 0
A108: ='Org structure'!E115 -> 7.4 - Berlin Transit Camp | D108: 0 | E108: 0 | F108: 0 | G108: 0 | H108: 0 | I108: 0 | K108: 0 | Y108: 0
A109: ='Org structure'!E116 -> 7.5 - Garcia Flats | D109: 0 | E109: 0 | F109: 0 | G109: 0 | H109: 0 | I109: 0 | K109: 0 | Y109: 0
A110: ='Org structure'!E117 -> 7.6 - Gompo Hostel | D110: 0 | E110: 0 | F110: 0 | G110: 0 | H110: 0 | I110: 0 | K110: 0 | Y110: 0
A111: ='Org structure'!E118 -> 7.7 - Gonubie Sub-Economic Scheme 1 | D111: 0 | E111: 0 | F111: 0 | G111: 0 | H111: 0 | I111: 0 | K111: 0 | Y111: 0
A112: ='Org structure'!E119 -> 7.8 - Gonubie Sub-Economic Scheme 2 | D112: 0 | E112: 0 | F112: 0 | G112: 0 | H112: 0 | I112: 0 | K112: 0 | Y112: 0
A113: ='Org structure'!E120 -> 7.9 - Pefferville 619 | D113: 0 | E113: 0 | F113: 0 | G113: 0 | H113: 0 | I113: 0 | K113: 0 | Y113: 0
A114: ='Org structure'!E121 -> 7.10 - Kwt Housing Staff and Rents and Leases | D114: 0 | E114: 0 | F114: 0 | G114: 0 | H114: 0 | I114: 0 | K114: 0 | Y114: 0
A115: ='Org structure'!E122 -> 7.11 - City Planning | D115: 0 | E115: 0 | F115: 0 | G115: 0 | H115: 0 | I115: 0 | K115: 0 | Y115: 0
A116: ='Org structure'!E123 -> 7.12 - Architecture | D116: 4400000 | E116: 4400000 | F116: 0 | G116: 0 | H116: 262384.159 | I116: -262384.159 | J116: -1 | K116: 4400000 | Y116: 262384.159
A117: ='Org structure'!E124 -> 7.13 - Land Administration | D117: 0 | E117: 0 | F117: 0 | G117: 0 | H117: 0 | I117: 0 | K117: 0 | Y117: 0
A118: ='Org structure'!E125 -> 7.14 - Land Surveying | D118: 0 | E118: 0 | F118: 0 | G118: 0 | H118: 0 | I118: 0 | K118: 0 | Y118: 0
A119: ='Org structure'!E126 -> 7.15 - Property Administrarion | D119: 0 | E119: 0 | F119: 0 | G119: 0 | H119: 0 | I119: 0 | K119: 0 | Y119: 0
A120: ='Org structure'!E127 -> 7.16 - Building Maintenance - Coastal / Central | D120: 3000000 | E120: 4432208 | F120: 140315.65 | G120: 140315.65 | H120: 264304.8111 | I120: -123989.1611 | J120: -0.4691142797 | K120: 4432208 | Y120: 264304.8111
A121: ='Org structure'!E128 -> 7.17 - Electricity House | D121: 0 | E121: 0 | F121: 0 | G121: 0 | H121: 0 | I121: 0 | K121: 0 | Y121: 0
A122: ='Org structure'!E129 -> 7.18 - Buxton House | D122: 0 | E122: 0 | F122: 0 | G122: 0 | H122: 0 | I122: 0 | K122: 0 | Y122: 0
A123: ='Org structure'!E130 -> 7.19 - Munifin Centre | D123: 0 | E123: 0 | F123: 0 | G123: 0 | H123: 0 | I123: 0 | K123: 0 | Y123: 0
A124: ='Org structure'!E131 -> 7.20 - Braelyn Depot | D124: 0 | E124: 0 | F124: 0 | G124: 0 | H124: 0 | I124: 0 | K124: 0 | Y124: 0
A125: ='Org structure'!E132 -> 7.21 - Chiselhurst Beacon Bay & Kwt Depot | D125: 0 | E125: 0 | F125: 0 | G125: 0 | H125: 0 | I125: 0 | K125: 0 | Y125: 0
A126: ='Org structure'!E133 -> 7.22 - Gonubie Public & Council Buildings | D126: 0 | E126: 0 | F126: 0 | G126: 0 | H126: 0 | I126: 0 | K126: 0 | Y126: 0
A127: ='Org structure'!E134 -> 7.23 - Mdantsane Zone Office | D127: 0 | E127: 0 | F127: 0 | G127: 0 | H127: 0 | I127: 0 | K127: 0 | Y127: 0
A128: ='Org structure'!E135 -> 7.24 - KWT Civic (Admin) Buildings | D128: 0 | E128: 0 | F128: 0 | G128: 0 | H128: 0 | I128: 0 | K128: 0 | Y128: 0
A129: ='Org structure'!E136 -> 7.25 - Miscellaneous | D129: 0 | E129: 0 | F129: 0 | G129: 0 | H129: 0 | I129: 0 | K129: 0 | Y129: 0
A130: ='Org structure'!E137 -> 7.26 - Ilitha Small Business Centre | D130: 0 | E130: 0 | F130: 0 | G130: 0 | H130: 0 | I130: 0 | K130: 0 | Y130: 0
A131: ='Org structure'!E138 -> 7.27 - Phakamisa Small Business Centre | D131: 0 | E131: 0 | F131: 0 | G131: 0 | H131: 0 | I131: 0 | K131: 0 | Y131: 0
A132: ='Org structure'!E139 -> 7.28 - Signage Control | D132: 0 | E132: 0 | F132: 0 | G132: 0 | H132: 0 | I132: 0 | K132: 0 | Y132: 0
A133: ='Org structure'!E140 -> 7.29 - Old Mutual Building | D133: 0 | E133: 0 | F133: 0 | G133: 0 | H133: 0 | I133: 0 | K133: 0 | Y133: 0
A134: ='Org structure'!E141 -> 7.30 - Transport Planning & Operations Admin | D134: 30000000 | E134: 30000000 | F134: 2025032.25 | G134: 2039304.75 | H134: 1788982.903 | I134: 250321.8475 | J134: 0.1399241139 | K134: 30000000 | Y134: 1788982.903
A135: ='Org structure'!E142 -> 7.31 - Traffic Engineering | D135: 0 | E135: 0 | F135: 0 | G135: 0 | H135: 0 | I135: 0 | K135: 0 | Y135: 0
A136: ='Org structure'!E143 -> 7.32 - Traffic Signal Maintenance | D136: 0 | E136: 0 | F136: 0 | G136: 0 | H136: 0 | I136: 0 | K136: 0 | Y136: 0
A137: ='Org structure'!E144 -> 7.33 - Buffalo City Bus Services | D137: 0 | E137: 0 | F137: 0 | G137: 0 | H137: 0 | I137: 0 | K137: 0 | Y137: 0
A138: ='Org structure'!E145 -> 7.34 - BCMET | D138: 0 | E138: 0 | F138: 0 | G138: 0 | H138: 0 | I138: 0 | K138: 0 | Y138: 0
A139: ='Org structure'!E146 -> 7.35 - Local Economic Development | D139: 20000000 | E139: 20000000 | F139: 264473.68 | G139: 623924.48 | H139: 1192655.268 | I139: -568730.7883 | J139: -0.4768610037 | K139: 20000000 | Y139: =E139/$E$104*$Y$104 -> 1192655.268
A140: ='Org structure'!E147 -> 7.36 - Market | D140: 0 | E140: 0 | F140: 0 | G140: 0 | H140: 0 | I140: 0 | K140: 0 | Y140: 0
A141: ='Org structure'!A9 -> Vote 8 - Directorate - Health / Public Safety & Emergency Services | C141: =SUM(C142:C165) -> 0 | D141: 21650000 | E141: 32265057 | F141: 222078.12 | G141: 1711479.1 | H141: 4360792.748 | I141: -2649313.648 | J141: -0.607530282 | K141: =SUM(K142:K165) -> 32265057 | Y141: 4360792.748
A142: ='Org structure'!E149 -> 8.1 - Office of The Director of Health & Public Safety | D142: 0 | E142: 0 | F142: 0 | G142: 0 | H142: 0 | I142: 0 | K142: 0 | Y142: =E142/$E$141*$Y$141 -> 0
A143: ='Org structure'!E150 -> 8.2 - Support Services | D143: 0 | E143: 0 | F143: 0 | G143: 0 | H143: 0 | I143: 0 | K143: 0 | Y143: =E143/$E$141*$Y$141 -> 0
A144: ='Org structure'!E151 -> 8.3 - Health Administration | D144: 0 | E144: 0 | F144: 0 | G144: 0 | H144: 0 | I144: 0 | K144: 0 | Y144: 0
A145: ='Org structure'!E152 -> 8.4 - Health Support | D145: 0 | E145: 0 | F145: 0 | G145: 0 | H145: 0 | I145: 0 | K145: 0 | Y145: 0
A146: ='Org structure'!E153 -> 8.5 - Pharmacy | D146: 0 | E146: 0 | F146: 0 | G146: 0 | H146: 0 | I146: 0 | K146: 0 | Y146: 0
A147: ='Org structure'!E154 -> 8.6 - Clinics | D147: 0 | E147: 0 | F147: 0 | G147: 0 | H147: 0 | I147: 0 | K147: 0 | Y147: 0
A148: ='Org structure'!E155 -> 8.7 - Aids Training Information Centre | D148: 0 | E148: 0 | F148: 0 | G148: 0 | H148: 0 | I148: 0 | K148: 0 | Y148: 0
A149: ='Org structure'!E156 -> 8.8 - Environmental Health | D149: 950000 | E149: 950000 | F149: 0 | G149: 0 | H149: 128397.5141 | I149: -128397.5141 | J149: -1 | K149: 950000 | Y149: 128397.5141
A150: ='Org structure'!E157 -> 8.9 - Pest Control | D150: 0 | E150: 0 | F150: 0 | G150: 0 | H150: 0 | I150: 0 | K150: 0 | Y150: 0
A151: ='Org structure'!E158 -> 8.10 - Pollution Control | D151: 0 | E151: 0 | F151: 0 | G151: 0 | H151: 0 | I151: 0 | K151: 0 | Y151: 0
A152: ='Org structure'!E159 -> 8.11 - Educare Centre | D152: 0 | E152: 0 | F152: 0 | G152: 0 | H152: 0 | I152: 0 | K152: 0 | Y152: 0
A153: ='Org structure'!E160 -> 8.12 - Public Safety Administration | D153: 0 | E153: 0 | F153: 0 | G153: 0 | H153: 0 | I153: 0 | K153: 0 | Y153: 0
A154: ='Org structure'!E161 -> 8.13 - Fire and Rescue Services | D154: 9000000 | E154: 15008311 | F154: 156288.65 | G154: 1609689.63 | H154: 2028452.445 | I154: -418762.8152 | J154: -0.2064444824 | K154: 15008311 | Y154: 2028452.445
A155: ='Org structure'!E162 -> 8.14 - Security Services | D155: 3700000 | E155: 7543333 | F155: 0 | G155: 36000 | H155: 1019521.269 | I155: -983521.2685 | J155: -0.9646893095 | K155: 7543333 | Y155: 1019521.269
A156: ='Org structure'!E163 -> 8.15 - Traffic Administration | D156: 0 | E156: 0 | F156: 0 | G156: 0 | H156: 0 | I156: 0 | K156: 0 | Y156: 0
A157: ='Org structure'!E164 -> 8.16 - Traffic Control | D157: 7000000 | E157: 7645000 | F157: 0 | G157: 0 | H157: 1033262.1 | I157: -1033262.1 | J157: -1 | K157: 7645000 | Y157: 1033262.1
A158: ='Org structure'!E165 -> 8.17 - Criminal Process | D158: 0 | E158: 0 | F158: 0 | G158: 0 | H158: 0 | I158: 0 | K158: 0 | Y158: 0
A159: ='Org structure'!E166 -> 8.18 - Vehicle Test Station / Examination | D159: 1000000 | E159: 1118413 | F159: 65789.47 | G159: 65789.47 | H159: 151159.4199 | I159: -85369.94991 | J159: -0.564767647 | K159: 1118413 | Y159: 151159.4199
A160: ='Org structure'!E167 -> 8.19 - Vehicle Registration | D160: 0 | E160: 0 | F160: 0 | G160: 0 | H160: 0 | I160: 0 | K160: 0 | Y160: 0
A161: ='Org structure'!E168 -> 8.20 - Drivers License Testing | D161: 0 | E161: 0 | F161: 0 | G161: 0 | H161: 0 | I161: 0 | K161: 0 | Y161: 0
A162: ='Org structure'!E169 -> 8.21 - Traffic Technical Services | D162: 0 | E162: 0 | F162: 0 | G162: 0 | H162: 0 | I162: 0 | K162: 0 | Y162: 0
A163: ='Org structure'!E170 -> 8.22 - Parking Areas / Meters | D163: 0 | E163: 0 | F163: 0 | G163: 0 | H163: 0 | I163: 0 | K163: 0 | Y163: 0
A164: ='Org structure'!E171 -> 8.23 - Disaster Management | D164: 0 | E164: 0 | F164: 0 | G164: 0 | H164: 0 | I164: 0 | K164: 0 | Y164: 0
A165: ='Org structure'!E172 -> 8.24 - Dog Tax Office | D165: 0 | E165: 0 | F165: 0 | G165: 0 | H165: 0 | I165: 0 | K165: 0 | Y165: 0
A166: ='Org structure'!A10 -> Vote 9 - Directorate - Municipal Services | C166: =SUM(C167:C193) -> 0 | D166: 94203600 | E166: 127985893 | F166: 9062378.98 | G166: 9102378.98 | H166: 2743409.147 | I166: 6358969.833 | J166: 2.317907936 | K166: =SUM(K167:K193) -> 127985893 | Y166: 2743409.147
A167: ='Org structure'!E174 -> 9.1 - Office of The Director of Community Services | D167: 0 | E167: 0 | F167: 0 | G167: 0 | H167: 0 | I167: 0 | K167: 0 | Y167: =E167/$E$166*$Y$166 -> 0
A168: ='Org structure'!E175 -> 9.2 - Cleansing Administration Support | D168: 0 | E168: 0 | F168: 0 | G168: 0 | H168: 0 | I168: 0 | K168: 0 | Y168: =E168/$E$166*$Y$166 -> 0
A169: ='Org structure'!E176 -> 9.3 - Environmental Administration Support | D169: 0 | E169: 0 | F169: 0 | G169: 0 | H169: 0 | I169: 0 | K169: 0 | Y169: 0
A170: ='Org structure'!E177 -> 9.4 - Environmental Services | D170: 0 | E170: 0 | F170: 0 | G170: 0 | H170: 0 | I170: 0 | K170: 0 | Y170: 0
A171: ='Org structure'!E178 -> 9.5 - Environmental Conservation | D171: 0 | E171: 0 | F171: 0 | G171: 0 | H171: 0 | I171: 0 | K171: 0 | Y171: 0
A172: ='Org structure'!E179 -> 9.6 - Environmental Workshop | D172: 0 | E172: 0 | F172: 0 | G172: 0 | H172: 0 | I172: 0 | K172: 0 | Y172: 0
A173: ='Org structure'!E180 -> 9.7 - Interments | D173: 8000000 | E173: 8000000 | F173: 1045938.15 | G173: 1045938.15 | H173: 171481.9708 | I173: 874456.1792 | J173: 5.099405931 | K173: 8000000 | Y173: 171481.9708
A174: ='Org structure'!E181 -> 9.8 - Gompo Admin Building | D174: 0 | E174: 0 | F174: 0 | G174: 0 | H174: 0 | I174: 0 | K174: 0 | Y174: 0
A175: ='Org structure'!E182 -> 9.9 - Integrated Environmental Management | D175: 0 | E175: 0 | F175: 0 | G175: 0 | H175: 0 | I175: 0 | K175: 0 | Y175: 0
A176: ='Org structure'!E183 -> 9.10 - Arts & Cultural Services Admin | D176: 0 | E176: 0 | F176: 0 | G176: 0 | H176: 0 | I176: 0 | K176: 0 | Y176: 0
A177: ='Org structure'!E184 -> 9.11 - Libraries | D177: 0 | E177: 0 | F177: 0 | G177: 0 | H177: 0 | I177: 0 | K177: 0 | Y177: 0
A178: ='Org structure'!E185 -> 9.12 - Art Gallery | D178: 0 | E178: 0 | F178: 0 | G178: 0 | H178: 0 | I178: 0 | K178: 0 | Y178: 0
A179: ='Org structure'!E186 -> 9.13 - Art Centres | D179: 0 | E179: 0 | F179: 0 | G179: 0 | H179: 0 | I179: 0 | K179: 0 | Y179: 0
A180: ='Org structure'!E187 -> 9.14 - Halls | D180: 27068500 | E180: 27068500 | F180: 1065902.23 | G180: 1105902.23 | H180: 580219.966 | I180: 525682.264 | J180: 0.9060051271 | K180: 27068500 | Y180: 580219.966
A181: ='Org structure'!E188 -> 9.15 - Amenities Administration Support | D181: 0 | E181: 0 | F181: 0 | G181: 0 | H181: 0 | I181: 0 | K181: 0 | Y181: 0
A182: ='Org structure'!E189 -> 9.16 - Sportsfields | D182: 21200000 | E182: 22106069 | F182: 157947.05 | G182: 157947.05 | H182: 473849.035 | I182: -315901.985 | J182: -0.6666722134 | K182: 22106069 | Y182: 473849.035
A183: ='Org structure'!E190 -> 9.17 - Swimming Pools | D183: 2500000 | E183: 2500000 | F183: 3301.61 | G183: 3301.61 | H183: 53588.11589 | I183: -50286.50589 | J183: -0.9383891382 | K183: 2500000 | Y183: 53588.11589
A184: ='Org structure'!E191 -> 9.18 - Aquarium | D184: 5200000 | E184: 5284000 | F184: 84000 | G184: 84000 | H184: 113263.8417 | I184: -29263.84174 | J184: -0.25836879 | K184: 5284000 | Y184: 113263.8417
A185: ='Org structure'!E192 -> 9.19 - Zoo | D185: 6525000 | E185: 6525000 | F185: 0 | G185: 0 | H185: 139864.9825 | I185: -139864.9825 | J185: -1 | K185: 6525000 | Y185: 139864.9825
A186: ='Org structure'!E193 -> 9.20 - Beaches | D186: 2000000 | E186: 2000000 | F186: 6000 | G186: 6000 | H186: 42870.49271 | I186: -36870.49271 | J186: -0.8600435959 | K186: 2000000 | Y186: 42870.49271
A187: ='Org structure'!E194 -> 9.21 - Resorts | D187: 0 | E187: 0 | F187: 0 | G187: 0 | H187: 0 | I187: 0 | K187: 0 | Y187: 0
A188: ='Org structure'!E195 -> 9.22 - Cleansing Administration Support | D188: 0 | E188: 0 | F188: 0 | G188: 0 | H188: 0 | I188: 0 | K188: 0 | Y188: 0
A189: ='Org structure'!E196 -> 9.23 - Refuse Removal | D189: 0 | E189: 0 | F189: 0 | G189: 0 | H189: 0 | I189: 0 | K189: 0 | Y189: 0
A190: ='Org structure'!E197 -> 9.24 - Waste Disposal Sites | D190: 0 | E190: 0 | F190: 0 | G190: 0 | H190: 0 | I190: 0 | K190: 0 | Y190: 0
A191: ='Org structure'!E198 -> 9.25 - Street Sweeping | D191: 0 | E191: 0 | F191: 0 | G191: 0 | H191: 0 | I191: 0 | K191: 0 | Y191: 0
A192: ='Org structure'!E199 -> 9.26 - Public Conveniences | D192: 0 | E192: 0 | F192: 0 | G192: 0 | H192: 0 | I192: 0 | K192: 0 | Y192: 0
A193: ='Org structure'!E200 -> 9.27 - E.L Regional Waste Disposal Site & Transfer Station | D193: 21710100 | E193: 54502324 | F193: 6699289.94 | G193: 6699289.94 | H193: 1168270.742 | I193: 5531019.198 | J193: 4.734364219 | K193: 54502324 | Y193: 1168270.742
A194: ='Org structure'!A11 -> Vote 10 - Directorate - Miscellaneous | C194: =SUM(C195:C207) -> 0 | D194: 0 | E194: 0 | F194: 0 | G194: 0 | H194: 0 | I194: 0 | K194: =SUM(K195:K207) -> 0
A195: ='Org structure'!E202 -> 10.1 - IDP | D195: 0 | E195: 0 | F195: 0 | G195: 0 | H195: 0 | I195: 0 | K195: 0 | Y195: =E195/$E$194*$Y$194 -> 
A196: ='Org structure'!E203 -> 10.2 - Development Co-Operation | D196: 0 | E196: 0 | F196: 0 | G196: 0 | H196: 0 | I196: 0 | K196: 0 | Y196: =E196/$E$194*$Y$194 -> 
A197: ='Org structure'!E204 -> 10.3 - Strategic Support | D197: 0 | E197: 0 | F197: 0 | G197: 0 | H197: 0 | I197: 0 | K197: 0
A198: ='Org structure'!E205 -> 10.4 - Local Economic Development | D198: 0 | E198: 0 | F198: 0 | G198: 0 | H198: 0 | I198: 0 | K198: 0
A199: ='Org structure'!E206 -> 10.5 - Integrated Environmental Management | D199: 0 | E199: 0 | F199: 0 | G199: 0 | H199: 0 | I199: 0 | K199: 0
A200: ='Org structure'!E207 -> 10.6 - Market | D200: 0 | E200: 0 | F200: 0 | G200: 0 | H200: 0 | I200: 0 | K200: 0
... 327 more rows

Sheet C6-FinPos
A1: =muni& " - "&S71E& " - "&date -> BUF Buffalo City - Table C6 Monthly Budget Statement - Financial Position - M03 September
A2: =desc -> Description | B2: =head27 -> Ref | C2: =Head1 -> 2014/15 | D2: =Head2 -> Budget Year 2015/16
C3: =Head5 -> Audited Outcome | D3: =Head6 -> Original Budget | E3: =Head7 -> Adjusted Budget | F3: =Head39 -> YearTD actual | G3: =Head8 -> Full Year Forecast
A4: R thousands | B4: 1
A5: ASSETS
A6: Current assets
A7: Cash | D7: 80000000 | E7: 80000000 | F7: 92117015 | G7: 80000000
A8: Call investment deposits | D8: 2303433516 | E8: 2303434000 | F8: 2526057128 | G8: 2303434000
A9: Consumer debtors | D9: 671945495 | E9: 671946000 | F9: 530067583 | G9: 671946000
A10: Other debtors | D10: 98188000 | E10: 98188000 | F10: 528654767 | G10: 98188000
A11: Current portion of long-term receivables | D11: 14000 | E11: 14000 | F11: 0 | G11: 14000
A12: Inventory | D12: 96800000 | E12: 96800000 | F12: 44048781 | G12: 96800000
A13: Total current assets | C13: =SUM(C7:C12) -> 0 | D13: =SUM(D7:D12) -> 3250381011 | E13: =SUM(E7:E12) -> 3250382000 | F13: =SUM(F7:F12) -> 3720945274 | G13: =SUM(G7:G12) -> 3250382000
A15: Non current assets
A16: Long-term receivables | D16: 60000 | E16: 60000 | F16: 0 | G16: 60000
A17: Investments | D17: 0 | E17: 0 | F17: 0 | G17: 0
A18: Investment property | D18: 411400000 | E18: 411400000 | F18: 328302102 | G18: 411400000
A19: Investments in Associate | D19: 0 | E19: 0 | F19: 81908295 | G19: 0
A20: Property, plant and equipment | D20: 11197291423 | E20: 11197292000 | F20: 11963613602 | G20: 11197292000
A21: Agricultural | D21: 0 | E21: 0 | F21: 0 | G21: 0
A22: Biological assets | D22: 0 | E22: 0 | F22: 0 | G22: 0
A23: Intangible assets | D23: 22800000 | E23: 22800000 | F23: 98373777 | G23: 22800000
A24: Other non-current assets | D24: 75160000 | E24: 75160000 | F24: 0 | G24: 75160000
A25: Total non current assets | C25: =SUM(C16:C24) -> 0 | D25: =SUM(D16:D24) -> 11706711423 | E25: =SUM(E16:E24) -> 11706712000 | F25: =SUM(F16:F24) -> 12472197776 | G25: =SUM(G16:G24) -> 11706712000
A26: TOTAL ASSETS | C26: =C13+C25 -> 0 | D26: =D13+D25 -> 1.495709243e+10 | E26: =E13+E25 -> 14957094000 | F26: =F13+F25 -> 16193143050 | G26: =G13+G25 -> 14957094000
A28: LIABILITIES
A29: Current liabilities
A30: Bank overdraft | D30: 0 | E30: 0 | F30: 0 | G30: 0
A31: Borrowing | D31: 46097000 | E31: 46097000 | F31: 48835300 | G31: 46097000
A32: Consumer deposits | D32: 54050000 | E32: 54050000 | F32: 52586288 | G32: 54050000
A33: Trade and other payables | D33: 774300000 | E33: 774300000 | F33: 1029122719 | G33: 774300000
A34: Provisions | D34: 151780000 | E34: 151780000 | F34: 166234394 | G34: 151780000
A35: Total current liabilities | C35: =SUM(C30:C34) -> 0 | D35: =SUM(D30:D34) -> 1026227000 | E35: =SUM(E30:E34) -> 1026227000 | F35: =SUM(F30:F34) -> 1296778701 | G35: =SUM(G30:G34) -> 1026227000
A37: Non current liabilities
A38: Borrowing | D38: 500418000 | E38: 500418000 | F38: 486874016 | G38: 500418000
A39: Provisions | D39: 599090000 | E39: 599090000 | F39: 465341051 | G39: 599090000
A40: Total non current liabilities | C40: =SUM(C38:C39) -> 0 | D40: =SUM(D38:D39) -> 1099508000 | E40: =SUM(E38:E39) -> 1099508000 | F40: =SUM(F38:F39) -> 952215067 | G40: =SUM(G38:G39) -> 1099508000
A41: TOTAL LIABILITIES | C41: =C35+C40 -> 0 | D41: =D35+D40 -> 2125735000 | E41: =E35+E40 -> 2125735000 | F41: =F35+F40 -> 2248993768 | G41: =G35+G40 -> 2125735000
A43: NET ASSETS | B43: 2 | C43: =C26-C41 -> 0 | D43: =D26-D41 -> 1.283135743e+10 | E43: =E26-E41 -> 12831359000 | F43: =F26-F41 -> 13944149282 | G43: =G26-G41 -> 12831359000
A45: COMMUNITY WEALTH/EQUITY
A46: Accumulated Surplus/(Deficit) | D46: 1.002057443e+10 | E46: 1.002057477e+10 | F46: 9707486410 | G46: 1.002057477e+10
A47: Reserves | D47: 2810783000 | E47: 2810783000 | F47: 4236662872 | G47: 2810783000
A48: TOTAL COMMUNITY WEALTH/EQUITY | B48: 2 | C48: =SUM(C46:C47) -> 0 | D48: =SUM(D46:D47) -> 1.283135743e+10 | E48: =SUM(E46:E47) -> 1.283135777e+10 | F48: =SUM(F46:F47) -> 13944149282 | G48: =SUM(G46:G47) -> 1.283135777e+10
A49: =head27a -> References
A50: 1. Material variances to be explained in Table SC1
A51: 2. Net assets must balance with Total Community Wealth/Equity
A54: check balance | C54: =C43-C48 -> 0 | D54: =D43-D48 -> -0.001535415649 | E54: =E43-E48 -> 1232.610283 | F54: =F43-F48 -> 0 | G54: =G43-G48 -> 1232.610283

Sheet C7-CFlow
A1: =muni& " - "&S71F& " - "&date -> BUF Buffalo City - Table C7 Monthly Budget Statement - Cash Flow - M03 September
A2: =desc -> Description | B2: =head27 -> Ref | C2: =Head1 -> 2014/15 | D2: =Head2 -> Budget Year 2015/16
C3: =Head5 -> Audited Outcome | D3: =Head6 -> Original Budget | E3: =Head7 -> Adjusted Budget | F3: =Head38 -> Monthly actual | G3: =Head39 -> YearTD actual | H3: =Head40 -> YearTD budget | I3: =Head41 -> YTD variance | J3: =Head41 -> YTD variance | K3: =Head8 -> Full Year Forecast
A4: R thousands | B4: 1 | J4: %
A5: CASH FLOW FROM OPERATING ACTIVITIES
A6: Receipts
A7: Property rates, penalties & collection charges | D7: 831140097.8 | E7: 831140097.8 | F7: 124598205 | G7: 280653785 | H7: 207785024.5 | I7: =G7-H7 -> 72868760.54 | J7: =IF(I7=0,"",I7/H7) -> 0.3506930335 | K7: 831140097.8
A8: Service charges | D8: 2471801739 | E8: 2471801739 | F8: 195484981 | G8: 680730511 | H8: 617950434.8 | I8: =G8-H8 -> 62780076.19 | J8: =IF(I8=0,"",I8/H8) -> 0.1015940319 | K8: 2471801739
A9: Other revenue | D9: 657179518.6 | E9: 657179518.6 | F9: 22401705 | G9: 193324996 | H9: 164294879.6 | I9: 29030116.36 | J9: 0.1766951984 | K9: 657179518.6
A10: Government - operating | D10: 1149386635 | E10: 1154103635 | F10: 11594275 | G10: 287621213 | H10: 287346658.7 | I10: =G10-H10 -> 274554.2714 | J10: 0.000955480995 | K10: 1154103635
A11: Government - capital | D11: 850352600 | E11: 850352600 | F11: -143628000 | G11: 321252000 | H11: 212588150 | I11: =G11-H11 -> 108663850 | J11: =IF(I11=0,"",I11/H11) -> 0.5111472582 | K11: 850352600
A12: Interest | D12: 152530901.7 | E12: 152530901.7 | F12: 14679078 | G12: 42081469 | H12: 38132725.43 | I12: =G12-H12 -> 3948743.574 | J12: 0.1035526187 | K12: 152530901.7
A13: Dividends | D13: 0 | E13: 0.92 | F13: 0 | G13: 0 | H13: 0 | I13: =G13-H13 -> 0 | K13: 0.92
A14: Payments
A15: Suppliers and employees | D15: -4448581339 | E15: -4474991967 | F15: -229018253 | G15: -1211811963 | H15: -1112145335 | I15: =H15-G15 -> 99666628.26 | J15: -0.08961655024 | K15: -4474991967
A16: Finance charges | D16: -54313000 | E16: -54313000 | F16: -4031476 | G16: -13083642 | H16: -13578250 | I16: =H16-G16 -> -494608 | J16: 0.0364264909 | K16: -54313000
A17: Transfers and Grants | D17: -258568483.3 | E17: -258568483.3 | F17: -31036834 | G17: -51438575 | H17: -64642120.82 | I17: =H17-G17 -> -13203545.82 | J17: 0.2042560741 | K17: -258568483.3
A18: NET CASH FROM/(USED) OPERATING ACTIVITIES | C18: =SUM(C7:C13)+SUM(C15:C17) -> 0 | D18: 1350928670 | E18: 1329235043 | F18: -38956319 | G18: 529329794 | H18: 337732167.5 | I18: =H18-G18 -> -191597626.5 | J18: -0.5673064189 | K18: =SUM(K7:K13)+SUM(K15:K17) -> 1329235043
A20: CASH FLOWS FROM INVESTING ACTIVITIES
A21: Receipts
A22: Proceeds on disposal of PPE | D22: 0 | E22: 0 | F22: 0 | G22: 0 | H22: 0 | I22: =G22-H22 -> 0 | J22: =IF(I22=0,"",I22/H22) ->  | K22: 0
A23: Decrease (Increase) in non-current debtors | D23: 0 | E23: 0 | F23: 0 | G23: 0 | H23: 0 | I23: =G23-H23 -> 0 | K23: 0
A24: Decrease (increase) other non-current receivables | D24: 0 | E24: 0 | F24: 0 | G24: 0 | H24: 0 | I24: =G24-H24 -> 0 | K24: 0
A25: Decrease (increase) in non-current investments | D25: 0 | E25: 0 | F25: 0 | G25: 0 | H25: 0 | I25: =G25-H25 -> 0 | K25: 0
A26: Payments
A27: Capital assets | D27: -1275354230 | E27: -1380149467 | F27: -57367266 | G27: -99583133 | H27: -318838557.5 | I27: =H27-G27 -> -219255424.5 | J27: 0.6876691019 | K27: -1380149467
A28: NET CASH FROM/(USED) INVESTING ACTIVITIES | C28: =SUM(C22:C25)+C27 -> 0 | D28: =SUM(D22:D25)+D27 -> -1275354230 | E28: -1380149467 | F28: -57367266 | G28: -99583133 | H28: -318838557.5 | I28: =H28-G28 -> -219255424.5 | J28: 0.6876691019 | K28: =SUM(K22:K25)+K27 -> -1380149467
A30: CASH FLOWS FROM FINANCING ACTIVITIES
A31: Receipts
A32: Short term loans | D32: 0 | E32: 0 | F32: 0 | G32: 0 | H32: 0 | I32: =G32-H32 -> 0 | J32: =IF(I32=0,"",I32/H32) ->  | K32: 0
A33: Borrowing long term/refinancing | D33: 0 | E33: 0 | F33: 0 | G33: 0 | H33: 0 | I33: =G33-H33 -> 0 | K33: 0
A34: Increase (decrease) in consumer deposits | D34: 0 | E34: 0 | F34: 0 | G34: 0 | H34: 0 | I34: =G34-H34 -> 0 | K34: 0
A35: Payments
A36: Repayment of borrowing | D36: -46097193.9 | E36: -46097193.9 | F36: -10369866.03 | G36: -10369866.03 | H36: -11524298.48 | I36: =H36-G36 -> -1154432.445 | J36: 0.1001737717 | K36: -46097193.9
A37: NET CASH FROM/(USED) FINANCING ACTIVITIES | C37: =SUM(C32:C34)+C36 -> 0 | D37: -46097193.9 | E37: -46097193.9 | F37: -10369866.03 | G37: -10369866.03 | H37: -11524298.48 | I37: =H37-G37 -> -1154432.445 | J37: 0.1001737717 | K37: =SUM(K32:K34)+K36 -> -46097193.9
A39: NET INCREASE/ (DECREASE) IN CASH HELD | C39: =C18+C28+C37 -> 0 | D39: 29477246.15 | E39: -97011617.85 | F39: -106693451 | G39: 419376795 | H39: 7369311.537 | K39: =K18+K28+K37 -> -97011617.85
A40: Cash/cash equivalents at beginning: | D40: 2353956269 | E40: 2353956269 | G40: 2198797348 | H40: =IF(E40=0, D40, E40) -> 2353956269 | K40: =G40 -> 2198797348
A41: Cash/cash equivalents at month/year end: | C41: =C39+C40 -> 0 | D41: =D39+D40 -> 2383433515 | E41: =E39+E40 -> 2256944651 | G41: =G39+G40 -> 2618174143 | H41: =H39+H40 -> 2361325581 | K41: =K39+K40 -> 2101785731
A42: References
A43: 1. Material variances to be explained in Table SC1

Sheet SC1
A1: =muni& " - "&S71G& " - "&date -> BUF Buffalo City - Supporting Table SC1 Material variance explanations - M03 September
A2: =head27 -> Ref | B2: =desc -> Description
C3: Variance | D3: Reasons for material deviations | E3: Remedial or corrective steps/remarks
B4: R thousands
A5: 1 | B5: ='C4-FinPerf RE'!A5 -> Revenue By Source
B6: ='C4-FinPerf RE'!A6 -> Property rates | C6: ='C4-FinPerf RE'!I6 -> 57775197.27 | D6: The over-recovery of 26% is a combination of the non-alignment of the period budget which is based on past trends with the actual trend. | E6: The situation is monitored on a monthly basis.
B7: ='C4-FinPerf RE'!A7 -> Property rates - penalties & collection charges | C7: ='C4-FinPerf RE'!I7 -> 0
B8: ='C4-FinPerf RE'!A8 -> Service charges - electricity revenue | C8: ='C4-FinPerf RE'!I8 -> 21354989.12 | D8: The over-recovery of 21% is a combination of the non-alignment of the period budget with the actual trend of consumption and the influences of seasonal consumption trends. | E8: The situation is monitored on a monthly basis.
B9: ='C4-FinPerf RE'!A9 -> Service charges - water revenue | C9: ='C4-FinPerf RE'!I9 -> 8279516.105
B10: ='C4-FinPerf RE'!A10 -> Service charges - sanitation revenue | C10: ='C4-FinPerf RE'!I10 -> 5088232.434 | D10: The over-recovery of 15% is a combination of the non-alignment of the period budget which is based on past trends with the actual trend. | E10: The situation is monitored on a monthly basis.
B11: ='C4-FinPerf RE'!A11 -> Service charges - refuse revenue | C11: ='C4-FinPerf RE'!I11 -> 392178.38
B12: ='C4-FinPerf RE'!A12 -> Service charges - other | C12: ='C4-FinPerf RE'!I12 -> -7165756.71 | D12: The demand for items mentioned below is not constant throughout the year. Income is earned when there is a demand by the clients. Therefore the trend in which income is earned is not constant.The main contributors are:  Connection / Reconnection charges  Availability charges | E12: The situation is monitored on a monthly basis.
B13: ='C4-FinPerf RE'!A13 -> Rental of facilities and equipment | C13: ='C4-FinPerf RE'!I13 -> 1713150.68 | D13: Rental of facilities is demand driven and therefore difficult to predict accurately. The situation is monitored on a monthly basis. | E13: The situation is monitored on a monthly basis.
B14: ='C4-FinPerf RE'!A14 -> Interest earned - external investments | C14: ='C4-FinPerf RE'!I14 -> 1498337.12 | D14: The variance of 17% is due to high interest earned on investments than what was projected. The trend is expected to become linear as the year progresses. | E14: The nature of this revenue category makes planning difficult.
B15: ='C4-FinPerf RE'!A15 -> Interest earned - outstanding debtors | C15: ='C4-FinPerf RE'!I15 -> 2138353.84 | D15: The variance of 42% on the interest earned on outstanding debtors signifies that during the third month period July 2015 - September 2015, the amount owed by debtors has been more than what was expected. This is caused by the rise in outstanding debtors. | E15: The situation is monitored on a monthly basis.
B16: ='C4-FinPerf RE'!A16 -> Dividends received | C16: ='C4-FinPerf RE'!I16 -> 0
B17: ='C4-FinPerf RE'!A17 -> Fines | C17: ='C4-FinPerf RE'!I17 -> 1134703 | D17: The Magistrates Court has backdated their payments to BCMM for about three months as they have not been paying BCMM’s portion of the fines/warrants paid in at the Magistrates Court.
B18: ='C4-FinPerf RE'!A18 -> Licences and permits | C18: ='C4-FinPerf RE'!I18 -> -1671372.04 | D18: The actual income earned from licences and permits is less than the year to date budget by 63%. Applicants are not restricted to apply for drivers and learners licenses in their area of residence and will apply at more convenient testing stations. This results in reduction in income generated by BCMM on this service | E18: This category is demand driven.
B19: ='C4-FinPerf RE'!A19 -> Agency services | C19: ='C4-FinPerf RE'!I19 -> 0
B20: ='C4-FinPerf RE'!A20 -> Transfers recognised - operational | C20: ='C4-FinPerf RE'!I20 -> 27293808.18
B21: ='C4-FinPerf RE'!A21 -> Other revenue | C21: ='C4-FinPerf RE'!I21 -> 27754547.32 | D21: Other revenue is made up of numerous miscellaneous items (e.g. town planning fees, market income, road & transport registration fees, cemetery & burial fees, etc.). The actual income realised is above the projected income for the period under review due to varying seasonal trends. | E21: The situation is monitored on a monthly basis.
B22: ='C4-FinPerf RE'!A22 -> Gains on disposal of PPE | C22: ='C4-FinPerf RE'!I22 -> 0
A24: 2 | B24: ='C4-FinPerf RE'!A25 -> Expenditure By Type
B25: ='C4-FinPerf RE'!A26 -> Employee related costs | C25: ='C4-FinPerf RE'!I26 -> -20622971.44 | D25: The employee related costs are under spent by R26.05 million, this is due to vacant funded posts that are not yet filled and the fact that the 7% increment has not yet been implemented. Refer to Annexure B –SC8 for the employee related costs expenditure breakdown per type. | E25: The situation is monitored on a monthly basis.
B26: ='C4-FinPerf RE'!A27 -> Remuneration of councillors | C26: ='C4-FinPerf RE'!I27 -> -443172.65
B27: ='C4-FinPerf RE'!A28 -> Debt impairment | C27: ='C4-FinPerf RE'!I28 -> -0.09750000387
B28: ='C4-FinPerf RE'!A29 -> Depreciation & asset impairment | C28: ='C4-FinPerf RE'!I29 -> 0.09161281586
B29: ='C4-FinPerf RE'!A30 -> Finance charges | C29: ='C4-FinPerf RE'!I30 -> -494607.19
B30: ='C4-FinPerf RE'!A31 -> Bulk purchases | C30: ='C4-FinPerf RE'!I31 -> 1077211.767 | D30: This represents purchases of electricity and water for redistribution (Electricity R148.94 million, Water R15 million). The bulk purchases are over spent by R20.45 million (14%) due to the fact that expenditure on water and electricity is not incurred proportionally throughout the year as a result of cyclic demands. | E30: This category is demand driven.
B31: ='C4-FinPerf RE'!A32 -> Other materials | C31: ='C4-FinPerf RE'!I32 -> 0
B32: ='C4-FinPerf RE'!A33 -> Contracted services | C32: ='C4-FinPerf RE'!I33 -> 65233.21 | D32: Contracted services are utilised as and when required. As the year progresses the use of contracted services will stabilise. | E32: The expenditure is still within the overall budget.
B33: ='C4-FinPerf RE'!A34 -> Transfers and grants | C33: ='C4-FinPerf RE'!I34 -> 37110463.11 | D33: The Indigent Support Policy was reviewed to include property value as one of the qualifying criterias; this led to increase in number of qualifying indigents. The budget will be adjusted in the mid year to take this into consideration. | E33: The situation is monitored on a monthly basis.
B34: ='C4-FinPerf RE'!A35 -> Other expenditure | C34: ='C4-FinPerf RE'!I35 -> 50045549.69 | D34: Other expenditure includes operating projects, operational costs as well as repairs and maintenance. | E34: The situation is monitored on a monthly basis.
B35: ='C4-FinPerf RE'!A36 -> Loss on disposal of PPE | C35: ='C4-FinPerf RE'!I36 -> 0
A37: 3 | B37: =RIGHT('C5-Capex'!A40,19) -> Capital Expenditure
A42: 4 | B42: Financial Position
A47: 5 | B47: Cash Flow
A52: 6 | B52: Measureable performance
A57: 7 | B57: Municipal Entities
A63: =head27a -> References
A64: 1. Revenue for each source, vote and standard classification
A65: 2. Expenditure for each type, vote and standard classification
A66: 3. Capital expenditure for each vote and standard classification
A67: 4. Explain any material variances between the annual budget and the expected financial position based on current trends
A68: 5. Cash receipts by source and cash payments by type where not explained under revenue and expenditure
A69: 6. For Sept, Dec, Mar and Jun statements explain any material variances in achievement of measurable performance objectives

Sheet SC2
A1: =muni& " - "&S71H& " - "&Head57 -> BUF Buffalo City - Supporting Table SC2 Monthly Budget Statement - performance indicators - M03 September
A2: Description of financial indicator | B2: Basis of calculation | C2: =head27 -> Ref | D2: =Head1 -> 2014/15 | E2: =Head2 -> Budget Year 2015/16
D3: =Head5 -> Audited Outcome | E3: =Head6 -> Original Budget | F3: =Head7 -> Adjusted Budget | G3: =Head39 -> YearTD actual | H3: =Head8 -> Full Year Forecast
A5: Borrowing Management
A7: Capital Charges to Operating Expenditure | B7: Interest & principal paid/Operating Expenditure | D7: =IF(ISERROR((D42-D43)/D45),0,((D42-D43)/D45)) -> 0 | E7: =IF(ISERROR((E42+E44)/E45),0,((E42+E44)/E45)) -> 0.13403888 | F7: =IF(ISERROR((F42+F44)/F45),0,((F42+F44)/F45)) -> 0.1302004079 | G7: =IF(ISERROR((G42+G44)/G45),0,((G42+G44)/G45)) -> 0.01030001952 | H7: =IF(ISERROR((H42+H44)/H45),0,((H42+H44)/H45)) -> 0.01873282747
A8: Borrowed funding of 'own' capital expenditure | B8: Borrowings/Capital expenditure excl. transfers and grants | D8: =IF(ISERROR(D47/D46),0,(D47/D46)) -> 0 | E8: =IF(ISERROR(E47/E46),0,(E47/E46)) -> 0 | F8: =IF(ISERROR(F47/F46),0,(F47/F46)) -> 0 | G8: =IF(ISERROR(G47/G46),0,(G47/G46)) -> 0 | H8: =IF(ISERROR(H47/H46),0,(H47/H46)) -> 0
A9: Safety of Capital
A10: Debt to Equity | B10: Loans, Accounts Payable, Overdraft & Tax Provision/ Funds & Reserves | D10: =IF(ISERROR(D48/D49),0,(D48/D49)) -> 0 | E10: =IF(ISERROR(E48/E49),0,(E48/E49)) -> 0.1029364981 | F10: =IF(ISERROR(F48/F49),0,(F48/F49)) -> 0.1029364954 | G10: =IF(ISERROR(G48/G49),0,(G48/G49)) -> 0.1122214058 | H10: =IF(ISERROR(H48/H49),0,(H48/H49)) -> 0.1029364954
A11: Gearing | B11: Long Term Borrowing/ Funds & Reserves | D11: =IF(ISERROR(D51/D50),0,(D51/D50)) -> 0 | E11: =IF(ISERROR(E51/E50),0,(E51/E50)) -> 0.1780350884 | F11: =IF(ISERROR(F51/F50),0,(F51/F50)) -> 0.1780350884 | G11: =IF(ISERROR(G51/G50),0,(G51/G50)) -> 0.1149192255 | H11: =IF(ISERROR(H51/H50),0,(H51/H50)) -> 0.1780350884
A12: Liquidity
A13: Current Ratio | B13: Current assets/current liabilities | C13: 1 | D13: =IF(ISERROR(D52/D53),0,(D52/D53)) -> 0 | E13: =IF(ISERROR(E52/E53),0,(E52/E53)) -> 3.167311921 | F13: =IF(ISERROR(F52/F53),0,(F52/F53)) -> 3.167312885 | G13: =IF(ISERROR(G52/G53),0,(G52/G53)) -> 2.869375685 | H13: =IF(ISERROR(H52/H53),0,(H52/H53)) -> 3.167312885
A14: Liquidity Ratio | B14: Monetary Assets/Current Liabilities | D14: =IF(ISERROR(D54/D53),0,(D54/D53)) -> 0 | E14: =IF(ISERROR(E54/E53),0,(E54/E53)) -> 2.322520764 | F14: =IF(ISERROR(F54/F53),0,(F54/F53)) -> 2.322521236 | G14: =IF(ISERROR(G54/G53),0,(G54/G53)) -> 2.018982993 | H14: =IF(ISERROR(H54/H53),0,(H54/H53)) -> 2.322521236
A15: Revenue Management
A16: Annual Debtors Collection Rate (Payment Level %) | B16: Last 12 Mths Receipts/ Last 12 Mths Billing
A17: Outstanding Debtors to Revenue | B17: Total Outstanding Debtors to Annual Revenue | D17: =IF(ISERROR(D59/D55),0,(D59/D55)) -> 0 | E17: =IF(ISERROR(E59/E55),0,(E59/E55)) -> 0.1346609005 | F17: =IF(ISERROR(F59/F55),0,(F59/F55)) -> 0.134540384 | G17: =IF(ISERROR(G59/G55),0,(G59/G55)) -> 0.7132267644 | H17: =IF(ISERROR(H59/H55),0,(H59/H55)) -> 0.134540384
A18: Longstanding Debtors Recovered | B18: Debtors > 12 Mths Recovered/Total Debtors > 12 Months Old | D18: =IF(ISERROR(D64/D63),0,(D64/D63)) -> 0 | E18: =IF(ISERROR(E64/E63),0,(E64/E63)) -> 0 | F18: =IF(ISERROR(F64/F63),0,(F64/F63)) -> 0 | G18: =IF(ISERROR(G64/G63),0,(G64/G63)) -> 0 | H18: =IF(ISERROR(H64/H63),0,(H64/H63)) -> 0
A19: Creditors Management
A20: Creditors System Efficiency | B20: % of Creditors Paid Within Terms (within MFMA s 65(e)) | E20: 1 | F20: 1 | G20: 1 | H20: 1
A21: Funding of Provisions
A22: Percentage Of Provisions Not Funded | B22: Unfunded Provisions/Total Provisions
A23: Other Indicators
A24: Electricity Distribution Losses | B24: % Volume (units purchased and generated less units sold)/units purchased and generated | C24: 2 | E24: 0.1662 | F24: 0.1662 | G24: 0.1582 | H24: 0.1662
A25: Water Distribution Losses | B25: % Volume (units purchased and own source less units sold)/Total units purchased and own source | C25: 2 | E25: 0.3 | F25: 0.3 | G25: 0.2756 | H25: 0.3
A26: Employee costs | B26: Employee costs/Total Revenue - capital revenue | D26: =IF(ISERROR(D40/D55),0,(D40/D55)) -> 0 | E26: =IF(ISERROR(E40/E55),0,(E40/E55)) -> 0.2426073669 | F26: =IF(ISERROR(F40/F55),0,(F40/F55)) -> 0.2423900834 | G26: =IF(ISERROR(G40/G55),0,(G40/G55)) -> 0.2198053925 | H26: =IF(ISERROR(H40/H55),0,(H40/H55)) -> 0.2423900834
A27: Repairs & Maintenance | B27: R&M/Total Revenue - capital revenue | D27: =IF(ISERROR(D41/D55),0,(D41/D55)) -> 0 | E27: =IF(ISERROR(E41/E55),0,(E41/E55)) -> 0.06504112576 | F27: =IF(ISERROR(F41/F55),0,(F41/F55)) -> 0.06498287377 | G27: =IF(ISERROR(G41/G55),0,(G41/G55)) -> 0.03659589896 | H27: =IF(ISERROR(H41/H55),0,(H41/H55)) -> 0.06498287377
A28: Interest & Depreciation | B28: I&D/Total Revenue - capital revenue | D28: =IF(ISERROR((D42+D44)/D55),0,((D42+D44)/D55)) -> 0 | E28: =IF(ISERROR((E42+E44)/E55),0,((E42+E44)/E55)) -> 0.134017269 | F28: =IF(ISERROR((F42+F44)/F55),0,((F42+F44)/F55)) -> 0.1301794346 | G28: =IF(ISERROR((G42+G44)/G55),0,((G42+G44)/G55)) -> 0.008814024025 | H28: =IF(ISERROR((H42+H44)/H55),0,((H42+H44)/H55)) -> 0.0187298099
A29: IDP regulation financial viability indicators
A30: i. Debt coverage | B30: (Total Operating Revenue - Operating Grants)/Debt service payments due within financial year) | E30: 21.33399524 | F30: 21.33399524 | G30: 0.4447 | H30: 21.33399524
A31: ii. O/S Service Debtors to Revenue | B31: Total outstanding service debtors/annual revenue received for services | E31: 0.213409175 | F31: 0.213409175 | G31: 0.1985 | H31: 0.213409175
A32: iii. Cost coverage | B32: (Available cash + Investments)/monthly fixed operational expenditure | E32: 7.603370507 | F32: 7.603370507 | G32: 0.0587 | H32: 7.603370507
A33: References
A34: 1. Consumer debtors > 12 months old are excluded from current assets.
A35: 2. Material variances to be explained.
A37: Calculations
A38: ='C6-FinPos'!A38 -> Borrowing | D38: ='C6-FinPos'!C38 -> 0 | E38: ='C6-FinPos'!D38 -> 500418000 | F38: ='C6-FinPos'!E38 -> 500418000 | G38: ='C6-FinPos'!F38 -> 486874016 | H38: 0
A39: Total Assets | D39: ='C6-FinPos'!C26 -> 0 | E39: ='C6-FinPos'!D26 -> 1.495709243e+10 | F39: ='C6-FinPos'!E26 -> 14957094000 | G39: ='C6-FinPos'!F26 -> 16193143050 | H39: ='C6-FinPos'!G26 -> 14957094000
A40: ='C4-FinPerf RE'!A26 -> Employee related costs | D40: ='C4-FinPerf RE'!C26 -> 0 | E40: ='C4-FinPerf RE'!D26 -> 1387618913 | F40: ='C4-FinPerf RE'!E26 -> 1387618913 | G40: ='C4-FinPerf RE'!G26 -> 326281756.8 | H40: ='C4-FinPerf RE'!K26 -> 1387618913
A41: =A27 -> Repairs & Maintenance | E41: 372009710.1 | F41: 372009710.1 | G41: 54323390.65 | H41: 372009710.1
A42: Interest (finance charges) | D42: ='C4-FinPerf RE'!C30 -> 0 | E42: ='C4-FinPerf RE'!D30 -> 54313000 | F42: ='C4-FinPerf RE'!E30 -> 54313000 | G42: ='C4-FinPerf RE'!G30 -> 13083642.81 | H42: ='C4-FinPerf RE'!K30 -> 54313000
A43: Principal paid | D43: =-'C7-CFlow'!C36 -> 0 | E43: =-'C7-CFlow'!D36 -> 46097193.9 | F43: =-'C7-CFlow'!E36 -> 46097193.9 | G43: =-'C7-CFlow'!G36 -> 10369866.03 | H43: =-'C7-CFlow'!K36 -> 46097193.9
A44: Depreciation | D44: ='C4-FinPerf RE'!C29 -> 0 | E44: ='C4-FinPerf RE'!D29 -> 712213175.6 | F44: ='C4-FinPerf RE'!E29 -> 690929721.6 | H44: ='C4-FinPerf RE'!K27 -> 52910192
A45: Operating expenditure | D45: ='C4-FinPerf RE'!C37 -> 0 | E45: ='C4-FinPerf RE'!D37 -> 5718685323 | F45: ='C4-FinPerf RE'!E37 -> 5723812497 | G45: ='C4-FinPerf RE'!G37 -> 1270254177 | H45: ='C4-FinPerf RE'!K37 -> 5723812497
A46: ='C5-Capex'!A40 -> Total Capital Expenditure | D46: ='C5-Capex'!C40 -> 0 | E46: ='C5-Capex'!D40 -> 1275354230 | F46: ='C5-Capex'!E40 -> 1380149467 | G46: ='C5-Capex'!G40 -> 99583133.55 | H46: ='C5-Capex'!K40 -> 1380149467
A47: Borrowed funding for capital | D47: ='C5-Capex'!C72 -> 0 | E47: ='C5-Capex'!D72 -> 0 | F47: ='C5-Capex'!E72 -> 0 | G47: ='C5-Capex'!G72 -> 0 | H47: ='C5-Capex'!K72 -> 0
A48: Debt | D48: ='C6-FinPos'!C30+'C6-FinPos'!C31+'C6-FinPos'!C33+'C6-FinPos'!C38 -> 0 | E48: ='C6-FinPos'!D30+'C6-FinPos'!D31+'C6-FinPos'!D33+'C6-FinPos'!D38 -> 1320815000 | F48: ='C6-FinPos'!E30+'C6-FinPos'!E31+'C6-FinPos'!E33+'C6-FinPos'!E38 -> 1320815000 | G48: ='C6-FinPos'!F30+'C6-FinPos'!F31+'C6-FinPos'!F33+'C6-FinPos'!F38 -> 1564832035 | H48: ='C6-FinPos'!G30+'C6-FinPos'!G31+'C6-FinPos'!G33+'C6-FinPos'!G38 -> 1320815000
A49: Equity | D49: ='C6-FinPos'!C48 -> 0 | E49: ='C6-FinPos'!D48 -> 1.283135743e+10 | F49: ='C6-FinPos'!E48 -> 1.283135777e+10 | G49: ='C6-FinPos'!F48 -> 13944149282 | H49: ='C6-FinPos'!G48 -> 1.283135777e+10
A50: ='C6-FinPos'!A47 -> Reserves | D50: ='C6-FinPos'!C47 -> 0 | E50: ='C6-FinPos'!D47 -> 2810783000 | F50: ='C6-FinPos'!E47 -> 2810783000 | G50: ='C6-FinPos'!F47 -> 4236662872 | H50: ='C6-FinPos'!G47 -> 2810783000
A51: ='C6-FinPos'!A38 -> Borrowing | D51: ='C6-FinPos'!C38 -> 0 | E51: ='C6-FinPos'!D38 -> 500418000 | F51: ='C6-FinPos'!E38 -> 500418000 | G51: ='C6-FinPos'!F38 -> 486874016 | H51: ='C6-FinPos'!G38 -> 500418000
A52: ='C6-FinPos'!A6 -> Current assets | D52: ='C6-FinPos'!C13 -> 0 | E52: ='C6-FinPos'!D13 -> 3250381011 | F52: ='C6-FinPos'!E13 -> 3250382000 | G52: ='C6-FinPos'!F13 -> 3720945274 | H52: ='C6-FinPos'!G13 -> 3250382000
A53: ='C6-FinPos'!A29 -> Current liabilities | D53: ='C6-FinPos'!C35 -> 0 | E53: ='C6-FinPos'!D35 -> 1026227000 | F53: ='C6-FinPos'!E35 -> 1026227000 | G53: ='C6-FinPos'!F35 -> 1296778701 | H53: ='C6-FinPos'!G35 -> 1026227000
A54: Monetary assets | D54: ='C6-FinPos'!C7+'C6-FinPos'!C8 -> 0 | E54: ='C6-FinPos'!D7+'C6-FinPos'!D8 -> 2383433516 | F54: ='C6-FinPos'!E7+'C6-FinPos'!E8 -> 2383434000 | G54: ='C6-FinPos'!F7+'C6-FinPos'!F8 -> 2618174143 | H54: ='C6-FinPos'!G7+'C6-FinPos'!G8 -> 2383434000
A55: ='C4-FinPerf RE'!A23 -> Total Revenue (excluding capital transfers and contributions) | D55: ='C4-FinPerf RE'!C23 -> 0 | E55: ='C4-FinPerf RE'!D23 -> 5719607491 | F55: ='C4-FinPerf RE'!E23 -> 5724734665 | G55: ='C4-FinPerf RE'!G23 -> 1484411975 | H55: ='C4-FinPerf RE'!K23 -> 5724734665
A56: ='C4-FinPerf RE'!A20 -> Transfers recognised - operational | D56: ='C4-FinPerf RE'!C20 -> 0 | E56: ='C4-FinPerf RE'!D20 -> 1249333299 | F56: ='C4-FinPerf RE'!E20 -> 1254460473 | G56: ='C4-FinPerf RE'!G20 -> 287621213.9 | H56: ='C4-FinPerf RE'!K20 -> 1254460473
A57: ='C4-FinPerf RE'!A40 -> Transfers recognised - capital | D57: ='C4-FinPerf RE'!C40 -> 0 | E57: ='C4-FinPerf RE'!D40 -> 850352600 | F57: ='C4-FinPerf RE'!E40 -> 850352600 | G57: ='C4-FinPerf RE'!G40 -> 63978119.23 | H57: ='C4-FinPerf RE'!K40 -> 850352600
A58: Debt service payments | D58: ='C7-CFlow'!C12+'C7-CFlow'!C36 -> 0 | E58: ='C7-CFlow'!D12+'C7-CFlow'!D36 -> 106433707.8 | F58: ='C7-CFlow'!E12+'C7-CFlow'!E36 -> 106433707.8 | G58: ='C7-CFlow'!G16+'C7-CFlow'!G36 -> -23453508.03 | H58: ='C7-CFlow'!K16+'C7-CFlow'!K36 -> -100410193.9
A59: Outstanding debtors (receivables) | D59: ='C6-FinPos'!C9+'C6-FinPos'!C10+'C6-FinPos'!C11+'C6-FinPos'!C16 -> 0 | E59: ='C6-FinPos'!D9+'C6-FinPos'!D10+'C6-FinPos'!D11+'C6-FinPos'!D16 -> 770207495 | F59: ='C6-FinPos'!E9+'C6-FinPos'!E10+'C6-FinPos'!E11+'C6-FinPos'!E16 -> 770208000 | G59: ='C6-FinPos'!F9+'C6-FinPos'!F10+'C6-FinPos'!F11+'C6-FinPos'!F16 -> 1058722350 | H59: ='C6-FinPos'!G9+'C6-FinPos'!G10+'C6-FinPos'!G11+'C6-FinPos'!G16 -> 770208000
A60: Annual services revenue | D60: =SUM('C4-FinPerf RE'!C8:C12) -> 0 | E60: =SUM('C4-FinPerf RE'!D8:D12) -> 2686741021 | F60: =SUM('C4-FinPerf RE'!E8:E12) -> 2686741021 | G60: =SUM('C4-FinPerf RE'!G8:G12) -> 685512902.9
A61: Cash + investments | B61: Including LT investments | D61: ='C6-FinPos'!C7+'C6-FinPos'!C8+'C6-FinPos'!C17-'C6-FinPos'!C30 -> 0 | E61: ='C6-FinPos'!D7+'C6-FinPos'!D8+'C6-FinPos'!D17-'C6-FinPos'!D30 -> 2383433516 | F61: ='C6-FinPos'!E7+'C6-FinPos'!E8+'C6-FinPos'!E17-'C6-FinPos'!E30 -> 2383434000 | G61: ='C6-FinPos'!F7+'C6-FinPos'!F8+'C6-FinPos'!F17-'C6-FinPos'!F30 -> 2618174143 | H61: ='C6-FinPos'!G7+'C6-FinPos'!G8+'C6-FinPos'!G17-'C6-FinPos'!G30 -> 2383434000
A62: Fixed operational expend. (monthly)
A63: Longstanding debtors outstanding | D63: ='C6-FinPos'!C16 -> 0 | E63: ='C6-FinPos'!D16 -> 60000 | F63: ='C6-FinPos'!E16 -> 60000 | G63: ='C6-FinPos'!F16 -> 0 | H63: ='C6-FinPos'!G16 -> 60000
A64: Longstanding debtors recovered
A65: Attorney collections

Sheet SC3
A1: =muni& " - "&S71I& " - "&Head57 -> BUF Buffalo City - Supporting Table SC3 Monthly Budget Statement - aged debtors - M03 September
A2: =desc -> Description | C2: =Head2 -> Budget Year 2015/16
A3: R thousands | B3: NT Code | C3: 0-30 Days | D3: 31-60 Days | E3: 61-90 Days | F3: 91-120 Days | G3: 121-150 Dys | H3: 151-180 Dys | I3: 181 Dys-1 Yr | J3: Over 1Yr | K3: Total | L3: Total over 90 days | M3: Actual Bad Debts Written Off against Debtors | N3: Impairment - Bad Debts i.t.o Council Policy
A4: Debtors Age Analysis By Income Source
A5: Trade and Other Receivables from Exchange Transactions - Water | B5: 1200 | C5: 38351403.88 | D5: 19709525.8 | E5: 18866835.24 | F5: 18475351.33 | G5: 21525078.83 | H5: 16337377.03 | I5: 62195642.31 | J5: 185101335 | K5: =SUM(C5:J5) -> 380562549.4 | L5: =SUM(F5:J5) -> 303634784.5
A6: Trade and Other Receivables from Exchange Transactions - Electricity | B6: 1300 | C6: 83251297.59 | D6: 12230474.27 | E6: 5615386.7 | F6: 3928480.08 | G6: 1916102.8 | H6: 1952822.13 | I6: 8054752.09 | J6: 26021298.05 | K6: =SUM(C6:J6) -> 142970613.7 | L6: =SUM(F6:J6) -> 41873455.15
A7: Receivables from Non-exchange Transactions - Property Rates | B7: 1400 | C7: 91474345.56 | D7: 24003591.78 | E7: 24804803.47 | F7: 12325659.61 | G7: 11340149.04 | H7: 10687484.88 | I7: 71778612.33 | J7: 155960775.2 | K7: =SUM(C7:J7) -> 402375421.8 | L7: 262092681
A8: Receivables from Exchange Transactions - Waste Water Management | B8: 1500 | C8: 26167399.48 | D8: 7731445.09 | E8: 5423213.84 | F8: 3698814.1 | G8: 3446725.58 | H8: 3015852.98 | I8: 17695180.57 | J8: 96885774.61 | K8: 164064406.2 | L8: 124742347.8
A9: Receivables from Exchange Transactions - Waste Management | B9: 1600 | C9: 16764852.5 | D9: 8195204.75 | E9: 6306725.77 | F9: 4324110.51 | G9: 3970563.18 | H9: 3813848.31 | I9: 22622628.39 | J9: 137672612.5 | K9: 203670545.9 | L9: =SUM(F9:J9) -> 172403762.9
A10: Receivables from Exchange Transactions - Property Rental Debtors | B10: 1700 | C10: 69398.26 | D10: 63812.28 | E10: 68541.3 | F10: 62256.74 | G10: 60523.39 | H10: 59967.21 | I10: 390910.09 | J10: 2520233.48 | K10: 3295642.75 | L10: =SUM(F10:J10) -> 3093890.91
A11: Interest on Arrear Debtor Accounts | B11: 1810 | K11: 0 | L11: 0
A12: Recoverable unauthorised, irregular, fruitless and wasteful expenditure | B12: 1820 | K12: 0 | L12: 0
A13: Other | B13: 1900 | C13: 10935931.87 | D13: 3402430.62 | E13: 4415288.94 | F13: 2300713.6 | G13: 2120374.24 | H13: 1913654.68 | I13: 13745736.11 | J13: 100807767.9 | K13: 139641898 | L13: =SUM(F13:J13) -> 120888246.5
A14: Total By Income Source | B14: 2000 | C14: =SUM(C5:C13) -> 267014629.1 | D14: 75336484.59 | E14: 65500795.26 | F14: 45115385.97 | G14: 44379517.06 | H14: 37781007.22 | I14: 196483461.9 | J14: 704969796.8 | K14: 1436581078 | L14: =SUM(L5:L13) -> 1028729169 | M14: 0 | N14: 0
A15: =Head1&" - totals only" -> 2014/15 - totals only | C15: 188707258 | D15: 51322895 | E15: 36295422 | F15: 32134385 | G15: 37321926 | H15: 42004600 | I15: 146747249 | J15: 566722059 | K15: =SUM(C15:J15) -> 1101255794 | L15: =SUM(F15:J15) -> 824930219
A16: Debtors Age Analysis By Customer Group
A17: Organs of State | B17: 2200 | C17: 33397616.78 | D17: 6980082.8 | E17: 6749595.86 | F17: 109822.28 | G17: 277755.56 | H17: 208926.84 | I17: 1675939.68 | J17: 2551438.54 | K17: =SUM(C17:J17) -> 51951178.34 | L17: =SUM(F17:J17) -> 4823882.9
A18: Commercial | B18: 2300 | C18: 121517744.3 | D18: 18054703.84 | E18: 15359565.35 | F18: 10968838.46 | G18: 10210662.21 | H18: 9763679.26 | I18: 50036175.65 | J18: 73823497.16 | K18: =SUM(C18:J18) -> 309734866.2 | L18: =SUM(F18:J18) -> 154802852.7
A19: Households | B19: 2400 | C19: 101731849.8 | D19: 44817520.15 | E19: 36013517.46 | F19: 29920848.9 | G19: 29649292.15 | H19: 24124841.23 | I19: 118784964.4 | J19: 503150078.6 | K19: =SUM(C19:J19) -> 888192912.7 | L19: =SUM(F19:J19) -> 705630025.4
A20: Other | B20: 2500 | C20: 10367418.3 | D20: 5484177.8 | E20: 7378116.59 | F20: 4115876.33 | G20: 4241807.14 | H20: 3683559.89 | I20: 25986382.13 | J20: 125444782.4 | K20: =SUM(C20:J20) -> 186702120.6 | L20: =SUM(F20:J20) -> 163472407.9
A21: Total By Customer Group | B21: 2600 | C21: =SUM(C17:C20) -> 267014629.1 | D21: 75336484.59 | E21: 65500795.26 | F21: 45115385.97 | G21: 44379517.06 | H21: 37781007.22 | I21: 196483461.9 | J21: =SUM(J17:J20) -> 704969796.8 | K21: =SUM(K17:K20) -> 1436581078 | L21: =SUM(L17:L20) -> 1028729169 | M21: =SUM(M17:M20) -> 0 | N21: =SUM(N17:N20) -> 0
A22: Notes
A23: Material increases in value of debtors' categories compared to previous month to be explained
A24: Bad debts = amounts actually written off in the month
A25: Total by Income Source must reconcile with Total by Customer Group
C26: =C14-C21 -> 0 | D26: =D14-D21 -> 0 | E26: =E14-E21 -> 0 | F26: 0 | G26: 0 | H26: 0 | I26: 0 | J26: =J14-J21 -> 0 | K26: 0
A27: NOTE: IMPAIRMENT WILL BE CALCULATED AT 30 JUNE | C27: =IF(C26=0,"","MUST AGREE") ->  | D27: =IF(D26=0,"","MUST AGREE") -> 
A28: THE INTEREST ON ARREAR DEBTOR ACCOUNTS IS R3,540,175.92 FOR SEPTEMBER 2015 AND CANNOT BE SLIPT INTO THE ABOVE CATEGORIES AS THIS IS A GLOBAL CALCULATION

Sheet SC4
A1: =muni& " - "&S71J& " - "&Head57 -> BUF Buffalo City - Supporting Table SC4 Monthly Budget Statement - aged creditors - M03 September
A2: =desc -> Description | B2: NT Code | C2: =Head2 -> Budget Year 2015/16 | L2: Prior year totals for chart (same period)
C3: 0 - 30 Days | D3: 31 - 60 Days | E3: 61 - 90 Days | F3: 91 - 120 Days | G3: 121 - 150 Days | H3: 151 - 180 Days | I3: 181 Days - 1 Year | J3: Over 1 Year | K3: Total
A4: R thousands
A5: Creditors Age Analysis By Customer Type
A6: Bulk Electricity | B6: 0100 | C6: 100994621 | K6: =SUM(C6:J6) -> 100994621 | L6: 142700483
A7: Bulk Water | B7: 0200 | C7: 17070269 | K7: =SUM(C7:J7) -> 17070269 | L7: 14988976
A8: PAYE deductions | B8: 0300 | C8: 16471880 | K8: 16471880 | L8: 11817171
A9: VAT (output less input) | B9: 0400 | C9: 0 | K9: 0 | L9: 0
A10: Pensions / Retirement deductions | B10: 0500 | C10: 19734619 | K10: 19734619 | L10: 15145591
A11: Loan repayments | B11: 0600 | C11: 23453509 | K11: 23453509 | L11: 0
A12: Trade Creditors | B12: 0700 | C12: 115512740 | D12: 13802331 | E12: 11839774 | K12: 141154845 | L12: 51518199
A13: Auditor General | B13: 0800 | C13: 1172723 | K13: 1172723 | L13: 1282313
A14: Other | B14: 0900 | C14: 210015117 | K14: =SUM(C14:J14) -> 210015117 | L14: 47691228
A15: Total By Customer Type | B15: 1000 | C15: =SUM(C6:C14) -> 504425478 | D15: =SUM(D6:D14) -> 13802331 | E15: 11839774 | F15: 0 | G15: 0 | H15: 0 | I15: 0 | J15: 0 | K15: =SUM(K6:K14) -> 530067583 | L15: =SUM(L6:L14) -> 285143961
A16: Notes
A17: Material increases in value of creditors' categories compared to previous month to be explained

Sheet SC5
A1: =muni& " - "&S71K& " - "&Head57 -> BUF Buffalo City - Supporting Table SC5 Monthly Budget Statement - investment portfolio - M03 September
A2: Investments by maturity Name of institution & investment ID | B2: Ref | C2: Period of Investment | D2: Type of Investment | E2: Expiry date of investment | F2: Accrued interest for the month | G2: Yield for the month 1 (%) | H2: Market value at beginning of the month | I2: Change in market value | J2: Market value at end of the month
A3: R thousands | C3: Yrs/Months
A4: Municipality
A5: Rand Merchant Bank X021901943 | C5: Call Account | D5: Call Account | E5: Call Account | F5: 204642.3 | G5: 0.01769201723 | H5: 45269356.82 | I5: 204642.3 | J5: 45473999.12
A6: Absa 91 2884 4539 | C6: Call Account | D6: Call Account | E6: Call Account | F6: 6861.44 | G6: 0.0005931946364 | H6: 1531757.83 | I6: 6861.44 | J6: 1538619.27
A7: Standard 422 742 | C7: Call Account | D7: Call Account | E7: Call Account | F7: 7953.85 | G7: 0.0006876371663 | H7: 1759486.84 | I7: 7953.85 | J7: 1767440.69
A8: Absa 91 4102 2241 | C8: Call Account | D8: Call Account | E8: Call Account | F8: 41006.76 | G8: 0.003545172746 | H8: 9154415.36 | I8: 41006.76 | J8: 9195422.12
A9: Absa 91 4163 6965 | C9: Call Account | D9: Call Account | E9: Call Account | F9: 929.45 | G9: 8.035408818e-05 | H9: 207491.74 | I9: 929.45 | J9: 208421.19
A10: Absa 91 5484 1280 | C10: Call Account | D10: Call Account | E10: Call Account | F10: 33.77 | G10: 2.919530429e-06 | H10: 7537.84 | I10: 33.77 | J10: 7571.61
A11: Rand Merchant Bank X021904910 | C11: Call Account | D11: Call Account | E11: Call Account | F11: 39920.06 | G11: 0.003451223865 | H11: 8830801.4 | I11: 39920.06 | J11: 8870721.46
A12: Standard 76586/442740 | C12: Call Account | D12: Call Account | E12: Call Account | F12: 9709.2 | G12: 0.0008393930958 | H12: 2147792.18 | I12: 9709.2 | J12: 2157501.38
A13: Absa 92 0562 2137 | C13: Call Account | D13: Call Account | E13: Call Account | F13: 3463.01 | G13: 0.0002993888976 | H13: 773087.73 | I13: 3463.01 | J13: 776550.74
A14: Rand Merchant Bank X021904913 | C14: Call Account | D14: Call Account | E14: Call Account | F14: 64370.76 | G14: 0.005565069369 | H14: 14239593.46 | I14: 64370.76 | J14: 14303964.22
A15: Rand Merchant Bank X021903300 | C15: Call Account | D15: Call Account | E15: Call Account | F15: 0 | H15: 0 | I15: 0 | J15: 0
A16: Stanlib 551 557 338 | C16: Call Account | D16: Call Account | E16: Call Account | F16: 0 | H16: 7542.41 | I16: -7542.41 | J16: 0
A17: Absa 92 4434 8061 | C17: Call Account | D17: Call Account | E17: Call Account | F17: 0 | H17: 7.970811566e-09 | I17: 0 | J17: 7.970811566e-09
A18: Nedbank 03/7881532939/000126 | C18: Call Account | D18: Call Account | E18: Call Account | F18: 0 | H18: 0 | I18: 0 | J18: 0
A19: Standard 76586/442739 | C19: Call Account | D19: Call Account | E19: Call Account | F19: 25499.94 | G19: 0.002204555842 | H19: 5640896.27 | I19: 25499.94 | J19: 5666396.21
A20: Stanlib 551 660 303 | C20: Call Account | D20: Call Account | E20: Call Account | F20: 106417.04 | G20: 0.009200112126 | H20: 20045444.98 | I20: 106417.04 | J20: 20151862.02
A21: Nedbank 03/7881532939/000041 | C21: Call Account | D21: Call Account | E21: Call Account | F21: 29408.27 | G21: 0.002542444156 | H21: 6505465.92 | I21: 29408.27 | J21: 6534874.19
A22: Nedbank 03/7881532939/000056 | C22: Call Account | D22: Call Account | E22: Call Account | F22: 4868.63 | G22: 0.0004209094887 | H22: 1077001.06 | I22: 4868.63 | J22: 1081869.69
A23: Nedbank 03/7881532939/000058 | C23: Call Account | D23: Call Account | E23: Call Account | F23: 26674.64 | G23: 0.00230611262 | H23: 5900754.05 | I23: 26674.64 | J23: 5927428.69
A24: Nedbank 03/7881532939/000103 | C24: Call Account | D24: Call Account | E24: Call Account | F24: 5449.6 | G24: 0.0004711363053 | H24: 1205517.62 | I24: 5449.6 | J24: 1210967.22
A25: Nedbank 03/7881532939/000064 | C25: Call Account | D25: Call Account | E25: Call Account | F25: 36146.54 | G25: 0.00312499033 | H25: 7996051.81 | I25: 36146.54 | J25: 8032198.35
A26: Absa 92 0559 0710 | C26: Call Account | D26: Call Account | E26: Call Account | F26: 177.96 | G26: 1.538524238e-05 | H26: 39727.92 | I26: 177.96 | J26: 39905.88
A27: Nedbank 03/7881532939/000117 | C27: Call Account | D27: Call Account | E27: Call Account | F27: 36384.49 | G27: 0.00314556191 | H27: 8048689.77 | I27: 36384.49 | J27: 8085074.26
A28: Nedbank 03/7881532939/000108 | C28: Call Account | D28: Call Account | E28: Call Account | F28: 739.76 | G28: 6.395474772e-05 | H28: 163643.62 | I28: 739.76 | J28: 164383.38
A29: Absa 92 2975 5568 | C29: Call Account | D29: Call Account | E29: Call Account | F29: 66.42 | G29: 5.74223308e-06 | H29: 14828.6 | I29: 66.42 | J29: 14895.02
A30: Absa 91 9360 7257 | C30: Call Account | D30: Call Account | E30: Call Account | F30: 4237.45 | G30: 0.0003663418483 | H30: 945975.75 | I30: 4237.45 | J30: 950213.2
A31: Nedbank 03/7881532939/000112 | C31: Call Account | D31: Call Account | E31: Call Account | F31: 2.51 | G31: 2.16997968e-07 | H31: 556.03 | I31: 2.51 | J31: 558.54
A32: Standard 76586/442737 | C32: Call Account | D32: Call Account | E32: Call Account | F32: 818.25 | G32: 7.074047302e-05 | H32: 181006.36 | I32: 818.25 | J32: 181824.61
A33: Nedbank 03/7881532939/000110 | C33: Call Account | D33: Call Account | E33: Call Account | F33: 893.3 | G33: 7.722879872e-05 | H33: 197608.98 | I33: 893.3 | J33: 198502.28
A34: Nedbank 03/7881532939/000123 | C34: Call Account | D34: Call Account | E34: Call Account | F34: 643.65 | G34: 5.564571398e-05 | H34: 142384.06 | I34: 643.65 | J34: 143027.71
A35: Rand Merchant Bank RRB1629010 | C35: Call Account | D35: Call Account | E35: Call Account | F35: 318906.02 | G35: 0.02757050132 | H35: 70545876.96 | I35: 318906.02 | J35: 70864782.98
A36: Stanlib 551 989 180 | C36: Call Account | D36: Call Account | E36: Call Account | F36: 187412.01 | G36: 0.01620240053 | H36: 35302213.33 | I36: 187412.01 | J36: 35489625.34
A37: Absa 92 2590 9850 | C37: Call Account | D37: Call Account | E37: Call Account | F37: 4176.08 | G37: 0.0003610362048 | H37: 932274.66 | I37: 4176.08 | J37: 936450.74
A38: Stanlib 551 539 764 | C38: Call Account | D38: Call Account | E38: Call Account | F38: 7836.1 | G38: 0.0006774572816 | H38: 1476061.68 | I38: 7836.1 | J38: 1483897.78
A39: Rand Merchant Bank RRB0324003 | C39: Call Account | D39: Call Account | E39: Call Account | F39: 175.23 | G39: 1.514922467e-05 | H39: 38763.27 | I39: 175.23 | J39: 38938.5
A40: Stanlib 551 567 496 | C40: Call Account | D40: Call Account | E40: Call Account | F40: 9.34 | G40: 8.074745103e-07 | H40: 1760.16 | I40: 9.34 | J40: 1769.5
A41: Stanlib 551 576 733 | C41: Call Account | D41: Call Account | E41: Call Account | F41: 433.99 | G41: 3.751989965e-05 | H41: 81749.92 | I41: 433.99 | J41: 82183.91
A42: Rand Merchant Bank RRB0B25020 | C42: Call Account | D42: Call Account | E42: Call Account | F42: 7643.04 | G42: 0.0006607665932 | H42: 1690732.11 | I42: 7643.04 | J42: 1698375.15
A43: Standard 76586/442743 | C43: Call Account | D43: Call Account | E43: Call Account | F43: 383.61 | G43: 3.316437868e-05 | H43: 84859.37 | I43: 383.61 | J43: 85242.98
A44: Rand Merchant Bank RRB1609012 | C44: Call Account | D44: Call Account | E44: Call Account | F44: 1265.23 | G44: 0.000109383402 | H44: 279883.22 | I44: 1265.23 | J44: 281148.45
A45: Stanlib 551 742 405 | C45: Call Account | D45: Call Account | E45: Call Account | F45: 1925.66 | G45: 0.0001664798036 | H45: 362730.55 | I45: 1925.66 | J45: 364656.21
A46: Rand Merchant Bank KLN2308011 | C46: Call Account | D46: Call Account | E46: Call Account | F46: 1606.38 | G46: 0.0001388769704 | H46: 355349.91 | I46: 1606.38 | J46: 356956.29
A47: Nedbank 03/7881532939/000128 | C47: Call Account | D47: Call Account | E47: Call Account | F47: 300897.17 | G47: 0.02601357548 | H47: 66562100.29 | I47: 300897.17 | J47: 66862997.46
A48: Rand Merchant Bank RRB1722008 | C48: Call Account | D48: Call Account | E48: Call Account | F48: 278805.96 | G48: 0.02410371585 | H48: 61675256.74 | I48: 278805.96 | J48: 61954062.7
A49: Standard 76586/442745 | C49: Call Account | D49: Call Account | E49: Call Account | F49: 274510.85 | G49: 0.0237323891 | H49: 60725127.74 | I49: 274510.85 | J49: 60999638.59
A50: Absa 92 6406 3148 | C50: Call Account | D50: Call Account | E50: Call Account | F50: 444008.37 | G50: 0.03838602153 | H50: 99121135.65 | I50: 444008.37 | J50: 99565144.02
A51: Rand Merchant Bank KLN2720020 | C51: Call Account | D51: Call Account | E51: Call Account | F51: 16963.31 | G51: 0.001466535378 | H51: 3752490.76 | I51: 16963.31 | J51: 3769454.07
A52: Stanlib 551 868 235 | C52: Call Account | D52: Call Account | E52: Call Account | F52: 680.14 | G52: 5.880039758e-05 | H52: 128117.37 | I52: 680.14 | J52: 128797.51
A53: Absa 92 0559 0891 | C53: Call Account | D53: Call Account | E53: Call Account | F53: 2205.97 | G53: 0.0001907135488 | H53: 492465.19 | I53: 2205.97 | J53: 494671.16
A54: Rand Merchant Bank VVW2B13011 | C54: Call Account | D54: Call Account | E54: Call Account | F54: 3398.13 | G54: 0.0002937798027 | H54: 751707.82 | I54: 3398.13 | J54: 755105.95
A55: Nedbank Refer to Confirmation | C55: Refer to Confirmation | D55: Refer to Confirmation | E55: Refer to Confirmation | F55: 0 | H55: 0 | I55: 0 | J55: 0
A56: Stanlib 753 72 270 | C56: Call Account | D56: Call Account | E56: Call Account | F56: 130076.52 | G56: 0.01124555399 | H56: 24502106.22 | I56: 130076.52 | J56: 24632182.74
A57: Stanlib 551 353 708 | C57: Call Account | D57: Call Account | E57: Call Account | F57: 5181.73 | G57: 0.00044797804 | H57: 976067.15 | I57: 5181.73 | J57: 981248.88
A58: Standard 76586/442736 | C58: Call Account | D58: Call Account | E58: Call Account | F58: 262918.13 | G58: 0.02273015934 | H58: 58160677.35 | I58: 262918.13 | J58: 58423595.48
A59: Stanlib 753 72 271 | C59: Call Account | D59: Call Account | E59: Call Account | F59: 571469.48 | G59: 0.04940546451 | H59: 107645913.6 | I59: 571469.48 | J59: 108217383.1
A60: Rand Merchant Bank X021904579 | C60: Call Account | D60: Call Account | E60: Call Account | F60: 113296.602 | G60: 0.00979487347 | H60: 25062580.97 | I60: 113296.602 | J60: 25175877.57
A61: Nedbank 03/7881532939/000101 | C61: Call Account | D61: Call Account | E61: Call Account | F61: 165377.91 | G61: 0.01429747825 | H61: 36583597.61 | I61: 165377.91 | J61: 36748975.52
A62: Absa 92 1120 9757 | C62: Call Account | D62: Call Account | E62: Call Account | F62: 1422908.13 | G62: 0.1230152083 | H62: 317652274.7 | I62: 1422908.13 | J62: 319075182.8
A63: Absa 92 2110 3430 | C63: Call Account | D63: Call Account | E63: Call Account | F63: 620385.83 | G63: 0.05363444799 | H63: 138495919.8 | I63: 620385.83 | J63: 139116305.7
A64: Standard 76586/442741 | C64: Call Account | D64: Call Account | E64: Call Account | F64: 42656.11 | G64: 0.003687764618 | H64: 9436048.95 | I64: 42656.11 | J64: 9478705.06
A65: Standard 76586/442744 | C65: Call Account | D65: Call Account | E65: Call Account | F65: 121739.94 | G65: 0.01052482853 | H65: 26930350.4 | I65: 121739.94 | J65: 27052090.34
A66: Rand Merchant Bank RRB0C07002 | C66: Call Account | D66: Call Account | E66: Call Account | F66: 41997.76 | G66: 0.003630848039 | H66: 9290412.79 | I66: 41997.76 | J66: 9332410.55
A67: Nedbank 03/7881532939/000129 | C67: Call Account | D67: Call Account | E67: Call Account | F67: 93878.98 | G67: 0.008116154539 | H67: 20767167.71 | I67: 93878.98 | J67: 20861046.69
A68: Nedbank 03/7881532939/000125 | C68: Call Account | D68: Call Account | E68: Call Account | F68: 2147.74 | G68: 0.0001856793688 | H68: 475106.14 | I68: 2147.74 | J68: 477253.88
A69: Stanlib 551 748 914 | C69: Call Account | D69: Call Account | E69: Call Account | F69: 141834.04 | G69: 0.01226203126 | H69: 26716834.68 | I69: 141834.04 | J69: 26858668.72
A70: Absa 92 6406 3407 | C70: Call Account | D70: Call Account | E70: Call Account | F70: 7822.84 | G70: 0.0006763109098 | H70: 1746383.9 | I70: 7822.84 | J70: 1754206.74
A71: Nedbank 03/7881532939/000132 | C71: Call Account | D71: Call Account | E71: Call Account | F71: 2251417.77 | G71: 0.1946426618 | H71: 498040901.7 | I71: 2251417.77 | J71: 500292319.4
A72: Rand Merchant Bank KLN3815041 | C72: Call Account | D72: Call Account | E72: Call Account | F72: 1753150.59 | G72: 0.1515657831 | H72: 387818161.2 | I72: 1753150.59 | J72: 389571311.8
A73: Standard 76586/470801 | C73: Call Account | D73: Call Account | E73: Call Account | F73: 1297766.38 | G73: 0.1121962818 | H73: 287081654.3 | I73: 1297766.38 | J73: 288379420.7
A74: Standard 76586/442738 | C74: Call Account | D74: Call Account | E74: Call Account | F74: 10340.47 | G74: 0.000893968517 | H74: 2287437.75 | I74: 10340.47 | J74: 2297778.22
A76: Municipality sub-total | F76: =SUM(F5:F75) -> 11566928.59 | H76: =SUM(H5:H75) -> 2526064670 | I76: =SUM(I5:I75) -> 11559386.18 | J76: =SUM(J5:J75) -> 2537624056
A78: Entities
A86: Entities sub-total | F86: =SUM(F79:F85) -> 0 | H86: =SUM(H79:H85) -> 0 | I86: =SUM(I79:I85) -> 0 | J86: =SUM(J79:J85) -> 0
A88: TOTAL INVESTMENTS AND INTEREST | B88: 2 | F88: =F76+F86 -> 11566928.59 | H88: =H76+H86 -> 2526064670 | I88: =I76+I86 -> 11559386.18 | J88: =J76+J86 -> 2537624056
A89: =head27a -> References
A90: 1. Yield is calculated as the annualised equivalent
A91: 2. Total market value must reconcile with the total of investments on the 'Financial Position statement'

Sheet SC6
A1: =muni& " - "&S71L& " - "&Head57 -> BUF Buffalo City - Supporting Table SC6 Monthly Budget Statement - transfers and grant receipts - M03 September
A2: =desc -> Description | B2: =head27 -> Ref | C2: =Head1 -> 2014/15 | D2: =Head2 -> Budget Year 2015/16
C3: =Head5 -> Audited Outcome | D3: =Head6 -> Original Budget | E3: =Head7 -> Adjusted Budget | F3: =Head38 -> Monthly actual | G3: =Head39 -> YearTD actual | H3: =Head40 -> YearTD budget | I3: =Head41 -> YTD variance | J3: =Head41 -> YTD variance | K3: =Head8 -> Full Year Forecast
A4: R thousands | J4: %
A5: RECEIPTS: | B5: 1,2
A7: Operating Transfers and Grants
A8: National Government: | C8: =SUM(C9:C20) -> 0 | D8: 714195900 | E8: 714195900 | F8: 2803000 | G8: 280739000 | H8: 323339000 | I8: -42600000 | J8: =IF(I8=0,"",I8/H8) -> -0.1317502683 | K8: =SUM(K9:K20) -> 714195900
A9: Local Government Equitable Share | D9: 655141000 | E9: 655141000 | F9: 0 | G9: 272976000 | H9: 272976000 | I9: =G9-H9 -> 0 | K9: 655141000
A10: Urban Settlement Development Grant | D10: 33347900 | E10: 33347900 | F10: 0 | G10: 0 | H10: 33348000 | I10: -33348000 | J10: -1 | K10: 33347900
A11: Finance Management | D11: 1300000 | E11: 1300000 | F11: 0 | G11: 1300000 | H11: 1300000 | I11: 0 | K11: 1300000
A12: EPWP Incentive | D12: 1149000 | E12: 1149000 | F12: 0 | G12: 460000 | H12: 460000 | I12: 0 | K12: 1149000
A13: Infrastucture Skills Development Grant | D13: 8400000 | E13: 8400000 | F13: 0 | G13: 3200000 | H13: 3200000 | I13: 0 | K13: 8400000
A14: Integrated National Electrification Programme | D14: 0 | E14: 0 | I14: 0 | K14: 0
A15: Municipal Systems Improvement | B15: 3 | D15: 0 | E15: 0 | I15: 0 | K15: 0
A16: Department of Water Affairs | D16: 0 | E16: 0 | I16: 0 | K16: 0
A17: Municipal Infrastructure Grant (MIG) | D17: 0 | E17: 0 | I17: 0 | K17: 0
A18: Neighbourhood Development Partnership | D18: 0 | E18: 0 | I18: 0 | K18: 0
A19: Integrated City Development Grant | D19: 5605000 | E19: 5605000 | F19: 2803000 | G19: 2803000 | H19: 2802000 | I19: 1000 | J19: 0.0003568879372 | K19: 5605000
A20: Municipal Human Settlement Capacity Grant | D20: 9253000 | E20: 9253000 | F20: 0 | G20: 0 | H20: 9253000 | I20: -9253000 | J20: -1 | K20: 9253000
A21: Provincial Government: | C21: =SUM(C22:C37) -> 0 | D21: 531686619 | E21: 536682327 | F21: 4805519.76 | G21: 29831829.93 | H21: 30815767.28 | I21: -983937.35 | J21: -0.03192967227 | K21: =SUM(K22:K37) -> 536682327
A22: Roads Subsidy - Provincial Roads | D22: 1870794 | E22: 1870794 | F22: 0 | G22: 0 | H22: 467698.5 | I22: =G22-H22 -> -467698.5 | J22: -1 | K22: 1870794
A23: Dept of Economic Development, Environmental Affairs and Tourism (DEDEAT) | D23: 0 | E23: 2500000 | F23: 0 | G23: 0 | H23: 0 | I23: 0 | K23: 2500000
A24: Department of Environmental Affairs (Greening Award) | D24: 0 | E24: 0 | F24: 0 | G24: 0 | H24: 0 | I24: 0 | K24: 0
A25: Department of Water Affairs | D25: 0 | E25: 0 | F25: 0 | G25: 0 | H25: 0 | I25: 0 | K25: 0
A26: Local Government & Traditional Affairs | D26: 2000000 | E26: 3494025 | F26: 0 | G26: 0 | H26: 873506.25 | I26: -873506.25 | J26: -1 | K26: 3494025
A27: Health Subsidy - Primary Health Care | D27: 0 | E27: 0 | F27: 0 | G27: 0 | H27: 0 | I27: 0 | K27: 0
A28: Health Subsidy - ATIC | D28: 2521878 | E28: 2521878 | F28: 0 | G28: 0 | H28: 630469.5 | I28: -630469.5 | J28: -1 | K28: 2521878
A29: Cooperative Governance and Traditional Affairs | D29: 0 | E29: 0 | F29: 0 | G29: 0 | H29: 0 | I29: 0 | K29: 0
A30: Library Subsidy | D30: 3638000 | E30: 3638000 | F30: 0 | G30: 0 | H30: 909500 | I30: -909500 | J30: -1 | K30: 3638000
A31: Reclaim Land Claims Commission(RLCC | D31: 0 | E31: 0 | F31: 0 | G31: 0 | H31: 0 | I31: 0 | K31: 0
A32: Dept Sport, Recreation, Arts and Culture (DSRAC) | D32: 0 | E32: 0 | F32: 0 | G32: 0 | H32: 0 | I32: 0 | K32: 0
A33: Dept of Land Affairs | D33: 0 | E33: 0 | F33: 0 | G33: 0 | H33: 0 | I33: 0 | K33: 0
A34: Accreditation Capacity Enhancement Grant | D34: 0 | E34: 0 | F34: 0 | G34: 0 | H34: 0 | I34: 0 | K34: 0
A35: Human Settlement Development Grant | D35: 521655947 | E35: 522657630 | F35: 4805519.76 | G35: 29831829.93 | H35: 27934593.03 | I35: 1897236.9 | J35: 0.06791711259 | K35: 522657630
A36: Human Settlement Development Grant - MPCC | D36: 0 | E36: 0 | F36: 0 | G36: 0 | H36: 0 | I36: 0 | K36: 0
A37: Office of the Premier | D37: 0 | E37: 0 | F37: 0 | G37: 0 | H37: 0 | I37: 0 | K37: 0
A38: District Municipality: | C38: =SUM(C39:C40) -> 0 | D38: 0 | E38: 0 | F38: 0 | G38: 0 | H38: 0 | I38: 0 | K38: =SUM(K39:K40) -> 0
A39: Health Subsidy - Environmental Health | I39: 0
I40: 0
A41: Other grant providers: | C41: =SUM(C42:C53) -> 0 | D41: 3328654 | E41: 3460120 | F41: 552196.25 | G41: 917190.53 | H41: 1035063.03 | I41: -117872.5 | J41: -0.1138795383 | K41: =SUM(K42:K53) -> 3460120
A42: SETA - Skills Development | D42: 2988630 | E42: 2988630 | F42: 552196.25 | G42: 917190.53 | H42: 917190.53 | I42: 0 | K42: 2988630
A43: SETA - Councillor Training | D43: 0 | E43: 0 | F43: 0 | G43: 0 | H43: 0 | I43: 0 | K43: 0
A44: Donor Funding - Leiden & Galve | D44: 0 | E44: 0 | F44: 0 | G44: 0 | H44: 0 | I44: 0 | K44: 0
A45: Salaida | D45: 0 | E45: 0 | F45: 0 | G45: 0 | H45: 0 | I45: 0 | K45: 0
A46: Trust Funds | D46: 0 | E46: 0 | F46: 0 | G46: 0 | H46: 0 | I46: 0 | K46: 0
A47: Umsobomvu Youth Fund | D47: 0 | E47: 131466 | F47: 0 | G47: 0 | H47: 32866.5 | I47: -32866.5 | J47: -1 | K47: 131466
A48: BCMET Funding | D48: 0 | E48: 0 | F48: 0 | G48: 0 | H48: 0 | I48: 0 | K48: 0
A49: Donor Funding - European Commission | D49: 340024 | E49: 340024 | F49: 0 | G49: 0 | H49: 85006 | I49: -85006 | J49: -1 | K49: 340024
A50: DBSA | D50: 0 | E50: 0 | F50: 0 | G50: 0 | H50: 0 | I50: 0 | K50: 0
A51: LOTTO | D51: 0 | E51: 0 | F51: 0 | G51: 0 | H51: 0 | I51: 0 | K51: 0
A52: Vuna Award | D52: 0 | E52: 0 | F52: 0 | G52: 0 | H52: 0 | I52: 0 | K52: 0
A53: SIDA | D53: 0 | E53: 0 | F53: 0 | G53: 0 | H53: 0 | I53: 0 | K53: 0
A54: Total Operating Transfers and Grants | B54: 5 | C54: =C8+C21+C38+C41 -> 0 | D54: 1249211173 | E54: 1254338347 | F54: 8160716.01 | G54: 311488020.5 | H54: 355189830.3 | I54: -43701809.85 | J54: -0.1230378973 | K54: =K8+K21+K38+K41 -> 1254338347
A56: Capital Transfers and Grants
A57: =A8 -> National Government: | C57: =SUM(C58:C67) -> 0 | D57: 742884100 | E57: 742884100 | F57: 10000000 | G57: 321252000 | H57: 321352000 | I57: -100000 | J57: =IF(I57=0,"",I57/H57) -> -0.0003111852424 | K57: =SUM(K58:K67) -> 742884100
A58: Urban Settlement Development Grant | D58: 679784100 | E58: 679784100 | F58: 0 | G58: 285252000 | H58: 285252000 | I58: =G58-H58 -> 0 | K58: 679784100
A59: Infrastructure Skills Development Grant | D59: 100000 | E59: 100000 | F59: 0 | G59: 0 | H59: 100000 | I59: -100000 | J59: -1 | K59: 100000
A60: Municipal Infrastructure Grant (MIG) | D60: 0 | E60: 0 | F60: 0 | G60: 0 | H60: 0 | I60: 0 | K60: 0
A61: Energy Efficiency and Demand Management | D61: 13000000 | E61: 13000000 | F61: 0 | G61: 4000000 | H61: 4000000 | I61: 0 | K61: 13000000
A62: Public Transport and Systems | D62: 0 | E62: 0 | F62: 0 | G62: 0 | H62: 0 | I62: 0 | K62: 0
A63: Neighbourhood Development Partnership | D63: 20000000 | E63: 20000000 | F63: 0 | G63: 2000000 | H63: 2000000 | I63: 0 | K63: 20000000
A64: Integrated National Electrification Programme | D64: 30000000 | E64: 30000000 | F64: 10000000 | G64: 30000000 | H64: 30000000 | I64: 0 | K64: 30000000
A65: Department of Water Affairs | D65: 0 | E65: 0 | F65: 0 | G65: 0 | H65: 0 | I65: 0 | K65: 0
A66: Finance Management | D66: 0 | E66: 0 | F66: 0 | G66: 0 | H66: 0 | I66: 0 | K66: 0
A67: Integrated City Development Grant | D67: 0 | E67: 0 | F67: 0 | G67: 0 | H67: 0 | I67: 0 | K67: 0
A68: =A21 -> Provincial Government: | C68: =SUM(C69:C79) -> 0 | D68: 107468500 | E68: 107468500 | F68: 0 | G68: 0 | H68: 26867125 | I68: =G68-H68 -> -26867125 | J68: =IF(I68=0,"",I68/H68) -> -1 | K68: =SUM(K69:K79) -> 107468500
A69: Disaster Relief Fund | D69: 0 | E69: 0 | F69: 0 | G69: 0 | H69: 0 | I69: 0 | J69: =IF(I69=0,"",I69/H69) ->  | K69: 0
A70: Human Settlement Development Grant | D70: 94400000 | E70: 94400000 | F70: 0 | G70: 0 | H70: 23600000 | I70: -23600000 | J70: =IF(I70=0,"",I70/H70) -> -1 | K70: 94400000
A71: Human Settlement Development Grant - MPCC | D71: 13068500 | E71: 13068500 | F71: 0 | G71: 0 | H71: 3267125 | I71: -3267125 | J71: -1 | K71: 13068500
A72: Dept of Human Settlement Grant - Special Fund | D72: 0 | E72: 0 | F72: 0 | G72: 0 | H72: 0 | I72: 0 | K72: 0
A73: Dept Sport, Recreation, Arts and Culture (DSRAC) | D73: 0 | E73: 0 | F73: 0 | G73: 0 | H73: 0 | I73: 0 | K73: 0
A74: Dept of Local Government and Traditional Affairs | D74: 0 | E74: 0 | F74: 0 | G74: 0 | H74: 0 | I74: 0 | K74: 0
A75: Dept of Land Affairs | D75: 0 | E75: 0 | F75: 0 | G75: 0 | H75: 0 | I75: 0 | K75: 0
A76: Provincial Treasury | D76: 0 | E76: 0 | F76: 0 | G76: 0 | H76: 0 | I76: 0 | K76: 0
A77: Dept of Economic Development, Environmental Affairs and Tourism (DEDEAT) | D77: 0 | E77: 0 | F77: 0 | G77: 0 | H77: 0 | I77: 0 | K77: 0
A78: Dept of Science and Technology | D78: 0 | E78: 0 | F78: 0 | G78: 0 | H78: 0 | I78: 0 | K78: 0
A79: Office of the Premier | D79: 0 | E79: 0 | F79: 0 | G79: 0 | H79: 0 | I79: 0 | K79: 0
A80: =A38 -> District Municipality: | C80: =SUM(C81:C82) -> 0 | D80: 0 | E80: 0 | F80: 0 | G80: 0 | H80: 0 | I80: 0 | K80: =SUM(K81:K82) -> 0
A81: Health Subsidy - Environmental Health | D81: 0 | E81: 0 | I81: 0 | K81: 0
I82: 0
A83: =A41 -> Other grant providers: | C83: =SUM(C84:C89) -> 0 | D83: 0 | E83: 0 | F83: 0 | G83: 0 | H83: 0 | I83: 0 | K83: =SUM(K84:K89) -> 0
A84: BCMET Funding | D84: 0 | E84: 0 | I84: 0 | J84: =IF(I84=0,"",I84/H84) ->  | K84: 0
A85: Public Funding | D85: 0 | E85: 0 | F85: 0 | G85: 0 | H85: 0 | I85: 0 | J85: =IF(I85=0,"",I85/H85) ->  | K85: 0
A86: SIDA | D86: 0 | E86: 0 | F86: 0 | G86: 0 | H86: 0 | I86: 0 | K86: 0
A87: ECDC | D87: 0 | E87: 0 | F87: 0 | G87: 0 | H87: 0 | I87: 0 | K87: 0
A88: European Commission | D88: 0 | E88: 0 | F88: 0 | G88: 0 | H88: 0 | I88: 0 | K88: 0
A89: Lieden | D89: 0 | E89: 0 | F89: 0 | G89: 0 | H89: 0 | I89: 0 | K89: 0
A90: Total Capital Transfers and Grants | B90: 5 | C90: =C57+C68+C80+C83 -> 0 | D90: 850352600 | E90: 850352600 | F90: 10000000 | G90: 321252000 | H90: 348219125 | I90: -26967125 | J90: -0.07744297502 | K90: =K57+K68+K80+K83 -> 850352600
A92: TOTAL RECEIPTS OF TRANSFERS & GRANTS | B92: 5 | C92: =C54+C90 -> 0 | D92: 2099563773 | E92: 2104690947 | F92: 18160716.01 | G92: 632740020.5 | H92: 703408955.3 | I92: -70668934.85 | J92: -0.1004663565 | K92: =K54+K90 -> 2104690947
A93: =head27a -> References
A94: 1. Each grant is listed by name as gazetted together with the name of the transferring department or municipality, donor or other organisation
A95: 2. Grant expenditure must be separately listed for each grant received
A96: 3. Replacement of RSC levies
A97: 4. Housing subsidies for housing where ownership transferred
A98: 5. Total recurrent/capital grants and subsidies must reconcile to the 'Financial Performance' Statement

Sheet SC7(1)
A1: =muni& " - "&S71M& " - "&Head57 -> BUF Buffalo City - Supporting Table SC7(1) Monthly Budget Statement - transfers and grant expenditure - M03 September
A2: =desc -> Description | B2: =head27 -> Ref | C2: =Head1 -> 2014/15 | D2: =Head2 -> Budget Year 2015/16
C3: =Head5 -> Audited Outcome | D3: =Head6 -> Original Budget | E3: =Head7 -> Adjusted Budget | F3: =Head38 -> Monthly actual | G3: =Head39 -> YearTD actual | H3: =Head40 -> YearTD budget | I3: =Head41 -> YTD variance | J3: =Head41 -> YTD variance | K3: =Head8 -> Full Year Forecast
A4: R thousands | J4: %
A5: EXPENDITURE
A7: Operating expenditure of Transfers and Grants
A8: ='SC6'!A8 -> National Government: | C8: =SUM(C9:C20) -> 0 | D8: 714195900 | E8: 714195900 | F8: 4373301 | G8: 8779542 | H8: 178548975 | I8: -169769433 | J8: =IF(I8=0,"",I8/H8) -> -0.950828382 | K8: =SUM(K9:K20) -> 714195900
A9: Local Government Equitable Share | D9: 655141000 | E9: 655141000 | F9: 0 | G9: 0 | H9: 163785250 | I9: =G9-H9 -> -163785250 | J9: -1 | K9: 655141000
A10: Urban Settlement Development Grant | D10: 33347900 | E10: 33347900 | F10: 2907118 | G10: 6763169 | H10: 8336975 | I10: -1573806 | J10: -0.1887742257 | K10: 33347900
A11: Finance Management | D11: 1300000 | E11: 1300000 | F11: 0 | G11: 73635 | H11: 325000 | I11: -251365 | K11: 1300000
A12: EPWP Incentive | D12: 1149000 | E12: 1149000 | F12: 377437 | G12: 477346 | H12: 287250 | I12: 190096 | K12: 1149000
A13: Infrastucture Skills Development Grant | D13: 8400000 | E13: 8400000 | F13: 1088746 | G13: 1465392 | H13: 2100000 | I13: -634608 | K13: 8400000
A14: Municipal Infrastructure Grant (MIG) | D14: 0 | E14: 0 | H14: 0 | I14: 0 | K14: 0
A15: Municipal Systems Improvement | D15: 0 | E15: 0 | H15: 0 | I15: 0 | K15: 0
A16: Department of Water Affairs | D16: 0 | E16: 0 | H16: 0 | I16: 0 | K16: 0
A17: Integrated National Electrification Programme | D17: 0 | E17: 0 | H17: 0 | I17: 0 | K17: 0
A18: Neighbourhood Development Partnership | D18: 0 | E18: 0 | H18: 0 | I18: 0 | K18: 0
A19: Integrated City Development Grant | D19: 5605000 | E19: 5605000 | F19: 0 | G19: 0 | H19: 1401250 | I19: -1401250 | K19: 5605000
A20: Municipal Human Settlement Capacity Grant | D20: 9253000 | E20: 9253000 | F20: 0 | G20: 0 | H20: 2313250 | I20: -2313250 | J20: -1 | K20: 9253000
A21: ='SC6'!A21 -> Provincial Government: | C21: =SUM(C22:C37) -> 0 | D21: 531686619 | E21: 536682327 | F21: 19434942 | G21: 29673913 | H21: 134170581.8 | I21: -104496668.8 | J21: -0.7788344314 | K21: =SUM(K22:K37) -> 536682327
A22: Roads Subsidy - Provincial Roads | D22: 1870794 | E22: 1870794 | F22: 0 | G22: 0 | H22: 467698.5 | I22: =G22-H22 -> -467698.5 | J22: -1 | K22: 1870794
A23: Dept of Economic Dev, Environmental Affairs &Tourism | D23: 0 | E23: 2500000 | F23: 0 | G23: 0 | H23: 625000 | I23: -625000 | J23: -1 | K23: 2500000
A24: Department of Environmental Affairs (Greening Award) | D24: 0 | E24: 0 | H24: 0 | I24: 0 | K24: 0
A25: Department of Water Affairs | D25: 0 | E25: 0 | H25: 0 | I25: 0 | K25: 0
A26: Local Government & Traditional Affairs | D26: 2000000 | E26: 3494025 | F26: 43360 | G26: 347684 | H26: 873506.25 | I26: -525822.25 | J26: -0.6019673586 | K26: 3494025
A27: Health Subsidy - Primary Health Care | D27: 0 | E27: 0 | H27: 0 | I27: 0 | K27: 0
A28: Health Subsidy - ATIC | D28: 2521878 | E28: 2521878 | F28: 0 | G28: 0 | H28: 630469.5 | I28: -630469.5 | J28: -1 | K28: 2521878
A29: Cooperative Governance and Traditional Affairs | D29: 0 | E29: 0 | H29: 0 | I29: 0 | K29: 0
A30: Library Subsidy | D30: 3638000 | E30: 3638000 | F30: 0 | G30: 0 | H30: 909500 | I30: -909500 | J30: -1 | K30: 3638000
A31: Reclaim Land Claims Commission(RLCC | D31: 0 | E31: 0 | H31: 0 | I31: 0 | K31: 0
A32: Dept Sport, Recreation, Arts and Culture (DSRAC) | D32: 0 | E32: 0 | H32: 0 | I32: 0 | K32: 0
A33: Dept of Land Affairs | D33: 0 | E33: 0 | H33: 0 | I33: 0 | K33: 0
A34: Accreditation Capacity Enhancement Grant | D34: 0 | E34: 0 | H34: 0 | I34: 0 | K34: 0
A35: Human Settlement Development Grant | D35: 521655947 | E35: 522657630 | F35: 19391582 | G35: 29326229 | H35: 130664407.5 | I35: -101338178.5 | J35: -0.7755606935 | K35: 522657630
A36: Human Settlement Development Grant - MPCC | D36: 0 | E36: 0 | H36: 0 | I36: 0 | K36: 0
A37: Office of the Premier | D37: 0 | E37: 0 | H37: 0 | I37: 0 | K37: 0
A38: ='SC6'!A38 -> District Municipality: | C38: =SUM(C39:C40) -> 0 | D38: 0 | E38: =SUM(E39:E40) -> 0 | F38: 0 | G38: 0 | H38: 0 | I38: 0 | K38: =SUM(K39:K40) -> 0
A39: Health Subsidy - Environmental Health | D39: 0 | E39: 0 | I39: 0 | K39: 0
I40: 0
A41: ='SC6'!A41 -> Other grant providers: | C41: =SUM(C42:C53) -> 0 | D41: 3328654 | E41: 3460120 | F41: 0 | G41: 0 | H41: 865030 | I41: -865030 | J41: -1 | K41: =SUM(K42:K53) -> 3460120
A42: SETA - Skills Development | D42: 2988630 | E42: 2988630 | F42: 0 | G42: 0 | H42: 747157.5 | I42: -747157.5 | J42: -1 | K42: 2988630
A43: SETA - Councillor Training | D43: 0 | H43: 0 | I43: 0 | K43: 0
A44: Donor Funding - Leiden & Galve | D44: 0 | H44: 0 | I44: 0 | K44: 0
A45: Salaida | D45: 0 | H45: 0 | I45: 0 | K45: 0
A46: Trust Funds | D46: 0 | H46: 0 | I46: 0 | K46: 0
A47: Umsobomvu Youth Fund | D47: 0 | E47: 131466 | F47: 0 | G47: 0 | H47: 32866.5 | I47: -32866.5 | J47: -1 | K47: 131466
A48: BCMET Funding | D48: 0 | H48: 0 | I48: 0 | K48: 0
A49: Donor Funding - European Commission | D49: 340024 | E49: 340024 | F49: 0 | G49: 0 | H49: 85006 | I49: -85006 | J49: -1 | K49: 340024
A50: DBSA | D50: 0 | H50: 0 | I50: 0 | K50: 0
A51: LOTTO | D51: 0 | H51: 0 | I51: 0 | K51: 0
A52: Vuna Award | D52: 0 | H52: 0 | I52: 0 | K52: 0
A53: SIDA | D53: 0 | H53: 0 | I53: 0 | K53: 0
A54: Total operating expenditure of Transfers and Grants: | C54: =C8+C21+C38+C41 -> 0 | D54: 1249211173 | E54: 1254338347 | F54: 23808243 | G54: 38453455 | H54: 313584586.8 | I54: -275131131.8 | J54: -0.8773745374 | K54: =K8+K21+K38+K41 -> 1254338347
A56: Capital expenditure of Transfers and Grants
A57: ='SC6'!A57 -> National Government: | C57: =SUM(C58:C67) -> 0 | D57: 742884100 | E57: 742884100 | F57: 30164185 | G57: 58069221 | H57: 185721025 | I57: -127651804 | J57: =IF(I57=0,"",I57/H57) -> -0.6873309255 | K57: =SUM(K58:K67) -> 742884100
A58: Urban Settlement Development Grant | D58: 679784100 | E58: 679784100 | F58: 27390943 | G58: 55295979 | H58: 169946025 | I58: =G58-H58 -> -114650046 | J58: -0.6746262291 | K58: 679784100
A59: Infrastructure Skills Development Grant | D59: 100000 | E59: 100000 | F59: 0 | G59: 0 | H59: 25000 | I59: -25000 | J59: -1 | K59: 100000
A60: Municipal Infrastructure Grant (MIG) | D60: 0 | E60: 0 | F60: 0 | G60: 0 | H60: 0 | I60: 0 | K60: 0
A61: Energy Efficiency and Demand Management | D61: 13000000 | E61: 13000000 | F61: 0 | G61: 0 | H61: 3250000 | I61: -3250000 | J61: -1 | K61: 13000000
A62: Public Transport and Systems | D62: 0 | E62: 0 | F62: 0 | G62: 0 | H62: 0 | I62: 0 | K62: 0
A63: Neighbourhood Development Partnership | D63: 20000000 | E63: 20000000 | F63: 0 | G63: 0 | H63: 5000000 | I63: -5000000 | J63: -1 | K63: 20000000
A64: Integrated National Electrification Programme | D64: 30000000 | E64: 30000000 | F64: 2773242 | G64: 2773242 | H64: 7500000 | I64: -4726758 | J64: -0.6302344 | K64: 30000000
A65: Department of Water Affairs | D65: 0 | F65: 0 | G65: 0 | H65: 0 | I65: 0 | K65: 0
A66: Finance Management | D66: 0 | F66: 0 | G66: 0 | H66: 0 | I66: 0 | K66: 0
A67: Integrated City Development Grant | D67: 0 | F67: 0 | G67: 0 | H67: 0 | I67: 0 | K67: 0
A68: ='SC6'!A68 -> Provincial Government: | C68: =SUM(C69:C79) -> 0 | D68: 107468500 | E68: 107468500 | F68: 389200 | G68: 5908898 | H68: 26867125 | I68: =G68-H68 -> -20958227 | J68: -0.7800695832 | K68: =SUM(K69:K79) -> 107468500
A69: Disaster Relief Fund | D69: 0 | F69: 0 | G69: 0 | H69: 0 | I69: 0 | K69: 0
A70: Human Settlement Development Grant | D70: 94400000 | E70: 94400000 | F70: 389200 | G70: 5908898 | H70: 23600000 | I70: -17691102 | J70: -0.7496229661 | K70: 94400000
A71: Human Settlement Development Grant - MPCC | D71: 13068500 | E71: 13068500 | F71: 0 | G71: 0 | H71: 3267125 | I71: -3267125 | J71: -1 | K71: 13068500
A72: Dept of Human Settlement Grant - Special Fund | D72: 0 | F72: 0 | G72: 0 | H72: 0 | I72: 0 | K72: 0
A73: Dept Sport, Recreation, Arts and Culture (DSRAC) | D73: 0 | F73: 0 | G73: 0 | H73: 0 | I73: 0 | K73: 0
A74: Dept of Local Government and Traditional Affairs | D74: 0 | F74: 0 | G74: 0 | H74: 0 | I74: 0 | K74: 0
A75: Dept of Land Affairs | D75: 0 | F75: 0 | G75: 0 | H75: 0 | I75: 0 | K75: 0
A76: Provincial Treasury | D76: 0 | F76: 0 | G76: 0 | H76: 0 | I76: 0 | K76: 0
A77: Dept of Economic Development, Environmental Affairs and Tourism (DEDEAT) | D77: 0 | F77: 0 | G77: 0 | H77: 0 | I77: 0 | K77: 0
A78: Dept of Science and Technology | D78: 0 | F78: 0 | G78: 0 | H78: 0 | I78: 0 | K78: 0
A79: Office of the Premier | D79: 0 | F79: 0 | G79: 0 | H79: 0 | I79: 0 | K79: 0
A80: ='SC6'!A80 -> District Municipality: | C80: =SUM(C81:C82) -> 0 | D80: 0 | E80: 0 | F80: 0 | G80: 0 | H80: 0 | I80: 0 | K80: =SUM(K81:K82) -> 0
A81: Health Subsidy - Environmental Health | D81: 0 | E81: 0 | I81: 0 | K81: 0
A82: ='SC6'!A82 -> 0 | I82: 0
A83: ='SC6'!A83 -> Other grant providers: | C83: =SUM(C84:C89) -> 0 | D83: 0 | E83: 0 | F83: 0 | G83: 0 | H83: 0 | I83: 0 | K83: =SUM(K84:K89) -> 0
A84: BCMET Funding | D84: 0 | E84: 0 | F84: 0 | G84: 0 | H84: 0 | I84: 0 | K84: 0
A85: Public Funding | D85: 0 | E85: 0 | F85: 0 | G85: 0 | H85: 0 | I85: 0 | K85: 0
A86: SIDA | D86: 0 | F86: 0 | G86: 0 | H86: 0 | I86: 0 | K86: 0
A87: ECDC | D87: 0 | F87: 0 | G87: 0 | H87: 0 | I87: 0 | K87: 0
A88: European Commission | D88: 0 | F88: 0 | G88: 0 | H88: 0 | I88: 0 | K88: 0
A89: Lieden | D89: 0 | F89: 0 | G89: 0 | H89: 0 | I89: 0 | K89: 0
A90: Total capital expenditure of Transfers and Grants | C90: =C57+C68+C80+C83 -> 0 | D90: 850352600 | E90: 850352600 | F90: 30553385 | G90: 63978119 | H90: 212588150 | I90: -148610031 | J90: =IF(I90=0,"",I90/H90) -> -0.6990513394 | K90: =K57+K68+K80+K83 -> 850352600
A92: TOTAL EXPENDITURE OF TRANSFERS AND GRANTS | C92: =C54+C90 -> 0 | D92: 2099563773 | E92: 2104690947 | F92: 54361628 | G92: 102431574 | H92: 526172736.8 | I92: -423741162.8 | J92: =IF(I92=0,"",I92/H92) -> -0.8053270973 | K92: =K54+K90 -> 2104690947
A93: =head27a -> References

Sheet SC7(2)
A1: =muni& " - "&S71T& " - "&Head57 -> BUF Buffalo City - Supporting Table SC7(2) Monthly Budget Statement - Expenditure against approved rollovers - M03 September
A2: =desc -> Description | B2: =head27 -> Ref | C2: =Head2 -> Budget Year 2015/16
C3: ="Approved Rollover " &Head1 -> Approved Rollover 2014/15 | D3: =Head38 -> Monthly actual | E3: =Head39 -> YearTD actual | F3: =Head41 -> YTD variance | G3: =Head41 -> YTD variance
A4: R thousands | G4: %
A5: EXPENDITURE
A7: Operating expenditure of Approved Roll-overs
A8: ='SC6'!A8 -> National Government: | C8: =SUM(C9:C15) -> 0 | D8: =SUM(D9:D15) -> 0 | E8: =SUM(E9:E15) -> 0 | F8: =SUM(F9:F15) -> 0 | G8: =IF(F8=0,"",F8/C8) -> 
A9: ='SC6'!A9 -> Local Government Equitable Share | F9: =E9-C9 -> 0 | G9: =IF(F9=0,"",F9/C9) -> 
A10: ='SC6'!A10 -> Urban Settlement Development Grant | F10: =C10-E10 -> 0
A11: ='SC6'!A11 -> Finance Management | F11: 0
A12: ='SC6'!A12 -> EPWP Incentive | F12: 0
A13: ='SC6'!A14 -> Integrated National Electrification Programme | F13: 0
A14: ='SC6'!A15 -> Municipal Systems Improvement | F14: 0
A15: ='SC6'!A20 -> Municipal Human Settlement Capacity Grant | F15: 0
A16: ='SC6'!A21 -> Provincial Government: | C16: =SUM(C17:C21) -> 4995709 | D16: =SUM(D17:D21) -> 0 | E16: =SUM(E17:E21) -> 0 | F16: =SUM(F17:F21) -> 4995709 | G16: 1
A17: ='SC6'!A22 -> Roads Subsidy - Provincial Roads | F17: =C17-E17 -> 0
A18: Dept of Economic Development, Environmental Affairs and Tourism (DEDEAT) | C18: 0 | F18: =C18-E18 -> 0
A19: Department of Environmental Affairs (Greening Award) | C19: 2500000 | F19: =C19-E19 -> 2500000 | G19: 1
A20: Human Settlement Development Grant | C20: 1001683 | F20: =C20-E20 -> 1001683 | G20: 1
A21: Local Government & Traditional Affairs | C21: 1494026 | F21: =C21-E21 -> 1494026 | G21: 1
A22: ='SC6'!A38 -> District Municipality: | C22: =SUM(C23:C24) -> 0 | D22: =SUM(D23:D24) -> 0 | E22: =SUM(E23:E24) -> 0 | F22: =SUM(F23:F24) -> 0
F23: =C23-E23 -> 0
A24: ='SC6'!A39 -> Health Subsidy - Environmental Health | F24: =C24-E24 -> 0
A25: ='SC6'!A41 -> Other grant providers: | C25: =SUM(C26:C27) -> 0 | D25: =SUM(D26:D27) -> 0 | E25: =SUM(E26:E27) -> 0 | F25: =SUM(F26:F27) -> 0
A26: Umsobomvu Youth Fund | C26: 0 | F26: =C26-E26 -> 0
A27: ='SC6'!A42 -> SETA - Skills Development | F27: =C27-E27 -> 0
A28: Total operating expenditure of Approved Roll-overs | C28: =C8+C16+C22+C25 -> 4995709 | D28: =D8+D16+D22+D25 -> 0 | E28: =E8+E16+E22+E25 -> 0 | F28: =F8+F16+F22+F25 -> 4995709 | G28: 1
A30: Capital expenditure of Approved Roll-overs
A31: ='SC6'!A57 -> National Government: | C31: =SUM(C32:C37) -> 0 | D31: =SUM(D32:D37) -> 0 | E31: =SUM(E32:E37) -> 0 | F31: =SUM(F32:F37) -> 0
A32: ='SC6'!A58 -> Urban Settlement Development Grant | F32: =C32-E32 -> 0
A33: ='SC6'!A65 -> Department of Water Affairs | F33: 0
A34: ='SC6'!A66 -> Finance Management | F34: 0
A35: ='SC6'!A67 -> Integrated City Development Grant | F35: 0
A36: Public Transport and Systems | F36: 0
A37: Neighbourhood Development Partnership | F37: 0
A38: ='SC6'!A68 -> Provincial Government: | C38: =SUM(C39:C40) -> 0 | D38: =SUM(D39:D40) -> 0 | E38: =SUM(E39:E40) -> 0 | F38: =SUM(F39:F40) -> 0
F39: =C39-E39 -> 0
A40: ='SC6'!#REF! ->  | F40: =C40-E40 -> 0
A41: ='SC6'!A80 -> District Municipality: | C41: =SUM(C42:C43) -> 0 | D41: =SUM(D42:D43) -> 0 | E41: =SUM(E42:E43) -> 0 | F41: =SUM(F42:F43) -> 0
F42: =C42-E42 -> 0
A43: ='SC6'!A82 -> 0 | F43: =C43-E43 -> 0
A44: ='SC6'!A83 -> Other grant providers: | C44: =SUM(C45:C46) -> 0 | D44: =SUM(D45:D46) -> 0 | E44: =SUM(E45:E46) -> 0 | F44: =SUM(F45:F46) -> 0
F45: =C45-E45 -> 0
A46: ='SC6'!A89 -> Lieden | F46: =C46-E46 -> 0
A47: Total capital expenditure of Approved Roll-overs | C47: =C31+C38+C41+C44 -> 0 | D47: =D31+D38+D41+D44 -> 0 | E47: =E31+E38+E41+E44 -> 0 | F47: =F31+F38+F41+F44 -> 0
A49: TOTAL EXPENDITURE OF APPROVED ROLL-OVERS | C49: =C28+C47 -> 4995709 | D49: =D28+D47 -> 0 | E49: =E28+E47 -> 0 | F49: =F28+F47 -> 4995709 | G49: 1
A50: =head27a -> References

Sheet SC8
A1: =muni& " - "&S71N& " - "&Head57 -> BUF Buffalo City - Supporting Table SC8 Monthly Budget Statement - councillor and staff benefits - M03 September
A2: Summary of Employee and Councillor remuneration | B2: =head27 -> Ref | C2: =Head1 -> 2014/15 | D2: =Head2 -> Budget Year 2015/16
C3: =Head5 -> Audited Outcome | D3: =Head6 -> Original Budget | E3: =Head7 -> Adjusted Budget | F3: =Head38 -> Monthly actual | G3: =Head39 -> YearTD actual | H3: =Head40 -> YearTD budget | I3: =Head41 -> YTD variance | J3: =Head41 -> YTD variance | K3: =Head8 -> Full Year Forecast
A4: R thousands | J4: %
B5: 1 | C5: A | D5: B | E5: C | K5: D
A6: Councillors (Political Office Bearers plus Other)
A7: Basic Salaries and Wages | D7: 31902734.9 | E7: 31902734.9 | F7: 577896.67 | G7: 7265958.58 | H7: 7910254.543 | I7: =G7-H7 -> -644295.9628 | J7: =IF(I7=0,"",I7/H7) -> -0.08145072442 | K7: 31902734.9
A8: Pension and UIF Contributions | D8: 3328325.005 | E8: 3328325.005 | F8: 511916.42 | G8: 771383.66 | H8: 834821.0806 | I8: -63437.42057 | J8: -0.07598924135 | K8: 3328325.005
A9: Medical Aid Contributions | D9: 1855622.779 | E9: 1855622.779 | F9: 278614.6 | G9: 421075.8 | H9: 269189.7445 | I9: 151886.0555 | J9: 0.5642341826 | K9: 1855622.779
A10: Motor Vehicle Allowance | D10: 12944102.06 | E10: 12944102.06 | F10: 966891.34 | G10: 1959279.4 | H10: 3295932.37 | I10: =G10-H10 -> -1336652.97 | J10: =IF(I10=0,"",I10/H10) -> -0.405546237 | K10: 12944102.06
A11: Cellphone Allowance | D11: 0 | E11: 0 | F11: 354798 | G11: 532197 | H11: 0 | I11: =G11-H11 -> 532197 | J11: =IF(I11=0,"",I11/H11) ->  | K11: 0
A12: Housing Allowances | D12: 2879406.83 | E12: 2879406.83 | F12: 424786.06 | G12: 637026.98 | H12: 917349.9463 | I12: =G12-H12 -> -280322.9663 | J12: =IF(I12=0,"",I12/H12) -> -0.3055790949 | K12: 2879406.83
A13: Other benefits and allowances | D13: 0 | E13: 0 | F13: 1197453.93 | G13: 1197453.93 | H13: 0 | I13: 1197453.93 | K13: 0
A14: Sub Total - Councillors | C14: =SUM(C7:C13) -> 0 | D14: 52910191.57 | E14: 52910191.57 | F14: 4312357.02 | G14: 12784375.35 | H14: 13227547.68 | I14: -443172.3341 | J14: -0.03350374118 | K14: 52910191.57
A15: % increase | B15: 4 | D15: =IF(D14=0,"",(D14/C14)-1) ->  | E15: =IF(E14=0,"",(E14/C14)-1) ->  | K15: =IF(K14=0,"",(K14/C14)-1) -> 
A17: Senior Managers of the Municipality | B17: 3
A18: Basic Salaries and Wages | D18: 15025694.49 | E18: 15025694.49 | F18: 495346.72 | G18: 1329225.54 | H18: 3700185.259 | I18: =G18-H18 -> -2370959.719 | J18: =IF(I18=0,"",I18/H18) -> -0.6407678408 | K18: 15025694.49
A19: Pension and UIF Contributions | D19: 2734309.254 | E19: 2734309.254 | F19: 96243.2 | G19: 258980.5 | H19: 702570.1956 | I19: -443589.6956 | J19: -0.6313813173 | K19: 2734309.254
A20: Medical Aid Contributions | D20: 266448.0192 | E20: 266448.0192 | F20: 10738.2 | G20: 32214.6 | H20: 118739.1109 | I20: -86524.51091 | J20: -0.7286942798 | K20: 266448.0192
A21: Overtime | D21: 0 | E21: 0 | F21: 0 | G21: 0 | H21: 0 | I21: 0 | K21: 0
A22: Performance Bonus | D22: 0 | E22: 0 | F22: 0 | G22: 0 | H22: 0 | I22: =G22-H22 -> 0 | J22: =IF(I22=0,"",I22/H22) ->  | K22: 0
A23: Motor Vehicle Allowance | D23: 2737970.822 | E23: 2737970.822 | F23: 86280.21 | G23: 258840.63 | H23: 790563.7624 | I23: =G23-H23 -> -531723.1324 | J23: =IF(I23=0,"",I23/H23) -> -0.6725872823 | K23: 2737970.822
A24: Cellphone Allowance | D24: 0 | E24: 0 | F24: 15740 | G24: 47220 | H24: 0 | I24: =G24-H24 -> 47220 | J24: =IF(I24=0,"",I24/H24) ->  | K24: 0
A25: Housing Allowances | D25: 83412 | E25: 83412 | F25: 0 | G25: 1090 | H25: 84702.61922 | I25: =G25-H25 -> -83612.61922 | J25: =IF(I25=0,"",I25/H25) -> -0.9871314487 | K25: 83412
A26: Other benefits and allowances | D26: 2272683.024 | E26: 2272683.024 | F26: 139808.12 | G26: 348877.04 | H26: 658255.9189 | I26: -309378.8789 | J26: -0.4699978686 | K26: 2272683.024
A27: Payments in lieu of leave | D27: 0 | E27: 0 | F27: 87317.16 | G27: 87317.16 | H27: 0 | I27: 87317.16 | K27: 0
A28: Long service awards | D28: 36021.80736 | E28: 36021.80736 | F28: 0 | G28: 0 | H28: 0 | I28: 0 | K28: 36021.80736
A29: Post-retirement benefit obligations | B29: 2 | D29: 0 | E29: 0 | F29: 0 | G29: 0 | H29: 0 | I29: 0 | K29: 0
A30: Sub Total - Senior Managers of Municipality | C30: =SUM(C18:C29) -> 0 | D30: 23156539.42 | E30: 23156539.42 | F30: =SUM(F18:F29) -> 931473.61 | G30: =SUM(G18:G29) -> 2363765.47 | H30: =SUM(H18:H29) -> 6055016.866 | I30: -3691251.396 | J30: =IF(I30=0,"",I30/H30) -> -0.6096186811 | K30: 23156539.42
A31: % increase | B31: 4 | D31: =IF(D30=0,"",(D30/C30)-1) ->  | E31: =IF(E30=0,"",(E30/C30)-1) ->  | K31: =IF(K30=0,"",(K30/C30)-1) -> 
A33: Other Municipal Staff
A34: Basic Salaries and Wages | D34: 851397693.6 | E34: 851397693.6 | F34: 69314104.33 | G34: 186147475.2 | H34: 218905273.3 | I34: =G34-H34 -> -32757798.05 | J34: =IF(I34=0,"",I34/H34) -> -0.1496437137 | K34: 851397693.6
A35: Pension and UIF Contributions | D35: 155270704.9 | E35: 155270704.9 | F35: 13468431.24 | G35: 38792582.65 | H35: 40691104.23 | I35: -1898521.576 | J35: -0.04665691954 | K35: 155270704.9
A36: Medical Aid Contributions | D36: 96718516.82 | E36: 96718516.82 | F36: 4683494.79 | G36: 13979310.99 | H36: 15199938.86 | I36: -1220627.873 | J36: -0.0803047883 | K36: 96718516.82
A37: Overtime | D37: 60348385.27 | E37: 60348385.27 | F37: 10278871.27 | G37: 26821027.98 | H37: 16910361.98 | I37: 9910666.002 | J37: 0.5860706007 | K37: 60348385.27
A38: Performance Bonus | D38: 0 | E38: 0 | F38: 0 | G38: 0 | H38: 0 | I38: 0 | K38: 0
A39: Motor Vehicle Allowance | D39: 26799784.7 | E39: 26799784.7 | F39: 1918302.38 | G39: 5177560.71 | H39: 6985540.356 | I39: =G39-H39 -> -1807979.646 | J39: =IF(I39=0,"",I39/H39) -> -0.2588174363 | K39: 26799784.7
A40: Cellphone Allowance | D40: 0 | E40: 0 | F40: 325861.02 | G40: 982635.17 | H40: 0 | I40: =G40-H40 -> 982635.17 | J40: =IF(I40=0,"",I40/H40) ->  | K40: 0
A41: Housing Allowances | D41: 10185396 | E41: 10185396 | F41: 2037853 | G41: 2651405 | H41: 2059326.09 | I41: =G41-H41 -> 592078.91 | J41: =IF(I41=0,"",I41/H41) -> 0.2875110032 | K41: 10185396
A42: Other benefits and allowances | D42: 139402129.3 | E42: 139402129.3 | F42: 15053331.49 | G42: 40280288.33 | H42: 31207969.92 | I42: 9072318.406 | J42: 0.2907051765 | K42: 139402129.3
A43: Payments in lieu of leave | D43: 7307061 | E43: 7307061 | F43: 1366794.8 | G43: 4628804.75 | H43: 4565049.883 | I43: 63754.86727 | J43: 0.01396586432 | K43: 7307061
A44: Long service awards | D44: 17032701.69 | E44: 17032701.69 | F44: 1678454.84 | G44: 4456900.51 | H44: 4325148.234 | I44: 131752.2765 | J44: 0.03046191005 | K44: 17032701.69
A45: Post-retirement benefit obligations | B45: 2 | D45: 0 | E45: 0 | F45: 0 | G45: 312.03 | H45: 0 | I45: 312.03 | K45: 0
A46: Sub Total - Other Municipal Staff | C46: =SUM(C34:C45) -> 0 | D46: 1364462373 | E46: 1364462373 | F46: =SUM(F34:F45) -> 120125499.2 | G46: =SUM(G34:G45) -> 323918303.4 | H46: =SUM(H34:H45) -> 340849712.9 | I46: -16931409.49 | J46: =IF(I46=0,"",I46/H46) -> -0.04967411985 | K46: 1364462373
A47: % increase | B47: 4 | D47: =IF(D46=0,"",(D46/C46)-1) ->  | E47: =IF(E46=0,"",(E46/C46)-1) ->  | K47: =IF(K46=0,"",(K46/C46)-1) -> 
A49: Total Parent Municipality | C49: =C14+C30+C46 -> 0 | D49: =D14+D30+D46 -> 1440529104 | E49: 1440529104 | F49: 125369329.8 | G49: 339066444.2 | H49: 360132277.4 | I49: =G49-H49 -> -21065833.22 | J49: =IF(I49=0,"",I49/H49) -> -0.05849471024 | K49: 1440529104
D50: =IF(D49=0,"",(D49/C49)-1) ->  | E50: =IF(E49=0,"",(E49/C49)-1) ->  | K50: =IF(K49=0,"",(K49/C49)-1) -> 
A51: Unpaid salary, allowances & benefits in arrears:
A53: Board Members of Entities
A54: Basic Salaries and Wages | D54: 96083.13 | E54: 96083.13 | F54: 0 | G54: 0 | H54: 0 | I54: =G54-H54 -> 0 | J54: =IF(I54=0,"",I54/H54) ->  | K54: 96083.13
A55: Pension and UIF Contributions | D55: 0 | E55: 0 | F55: 0 | G55: 0 | H55: 0 | I55: 0 | K55: 0
A56: Medical Aid Contributions | D56: 0 | E56: 0 | F56: 0 | G56: 0 | H56: 0 | I56: 0 | K56: 0
A57: Overtime | D57: 0 | E57: 0 | F57: 0 | G57: 0 | H57: 0 | I57: =G57-H57 -> 0 | J57: =IF(I57=0,"",I57/H57) ->  | K57: 0
A58: Performance Bonus | D58: 0 | E58: 0 | F58: 0 | G58: 0 | H58: 0 | I58: =G58-H58 -> 0 | J58: =IF(I58=0,"",I58/H58) ->  | K58: 0
A59: Motor Vehicle Allowance | D59: 0 | E59: 0 | F59: 0 | G59: 0 | H59: 0 | I59: =G59-H59 -> 0 | J59: =IF(I59=0,"",I59/H59) ->  | K59: 0
A60: Cellphone Allowance | D60: 0 | E60: 0 | F60: 0 | G60: 0 | H60: 0 | I60: =G60-H60 -> 0 | J60: =IF(I60=0,"",I60/H60) ->  | K60: 0
A61: Housing Allowances | D61: 0 | E61: 0 | F61: 0 | G61: 0 | H61: 0 | I61: =G61-H61 -> 0 | J61: =IF(I61=0,"",I61/H61) ->  | K61: 0
A62: Other benefits and allowances | D62: 0 | E62: 0 | F62: 0 | G62: 0 | H62: 0 | I62: 0 | K62: 0
A63: Board Fees | D63: 0 | E63: 0 | F63: 0 | G63: 0 | H63: 0 | I63: =G63-H63 -> 0 | J63: =IF(I63=0,"",I63/H63) ->  | K63: 0
A64: Payments in lieu of leave | D64: 0 | E64: 0 | F64: 0 | G64: 0 | H64: 0 | I64: 0 | K64: 0
A65: Long service awards | D65: 0 | E65: 0 | F65: 0 | G65: 0 | H65: 0 | I65: 0 | K65: 0
A66: Post-retirement benefit obligations | D66: 0 | E66: 0 | F66: 0 | G66: 0 | H66: 0 | I66: 0 | K66: 0
